Workbook

Sheet Principal
B2: CALCULADORA DE POTENCIA Y ESPECTRO PARA PANTALLAS DIY | P2: Desarrollado para:
B4: Elaborado por Óscar Fernández, 2021 | M4: V2.0
B8: 1º PASO: DATOS DEL PROYECTO | L8: 1º PASO: ELECCIÓN DE LEDS
B9: Rellena las casillas con fondo blanco para calcular una estimación de potencia que será necesaria para tu acuario | L9: Introduce los vatios de cada tipo de led que vayas a utilizar. Verás automáticamente como influye en el espectro final de la pantalla. Puedes hacer hasta 3 configuraciones simultáneas y seleccionar con una X que configuración representar en la gráfica.
B12: Medidas del acuario
B13: Ancho (cm): | G13: 36 | L13: Tipo de led: | N13: 3535
B14: Fondo (cm): | G14: 24
B15: Columna de agua (cm): | G15: 30 | L15: Tipo de led | O15: Temperatura nm | P15: W | Q15: W | R15: W | S15: Nº Leds
L17: Marca con una X la columna a utilizar --> | P17: X
B18: Iluminación | M18: Blue (465-480) XP-E2 | P18: 18 | S18: =IF(M18="","",ROUNDUP(HLOOKUP("X",$P$17:$R$30,ROW(P18)-16,FALSE) / VLOOKUP(M18,Datos!A:O,15,FALSE),0)) -> 6
B19: Fotoperiodo en horas: | G19: 7 | M19: Blanco Frío (6000K) XP-G2 | P19: 26 | S19: =IF(M19="","",ROUNDUP(HLOOKUP("X",$P$17:$R$30,ROW(P19)-16,FALSE) / VLOOKUP(M19,Datos!A:O,15,FALSE),0)) -> 6
B20: Tipo de requisitos: | G20: Alto | M20: Royal Blue (440-450) XT-E | P20: 26 | S20: =IF(M20="","",ROUNDUP(HLOOKUP("X",$P$17:$R$30,ROW(P20)-16,FALSE) / VLOOKUP(M20,Datos!A:O,15,FALSE),0)) -> 6
B21: Con la información solicitada a continuación se podrá calcular la superficie de acuario que se puede iluminar y estimar una medida de PAR en la base. | M21: Green (520-525) XP-E | P21: 8 | S21: =IF(M21="","",ROUNDUP(HLOOKUP("X",$P$17:$R$30,ROW(P21)-16,FALSE) / VLOOKUP(M21,Datos!A:O,15,FALSE),0)) -> 3
M22: UV (410-420) Semiled | P22: 8 | S22: =IF(M22="","",ROUNDUP(HLOOKUP("X",$P$17:$R$30,ROW(P22)-16,FALSE) / VLOOKUP(M22,Datos!A:O,15,FALSE),0)) -> 4
M23: Photo Red (650-665) XP-E2 | P23: 8 | S23: =IF(M23="","",ROUNDUP(HLOOKUP("X",$P$17:$R$30,ROW(P23)-16,FALSE) / VLOOKUP(M23,Datos!A:O,15,FALSE),0)) -> 4
M24: UV (405-410) Semiled | P24: 8 | S24: =IF(M24="","",ROUNDUP(HLOOKUP("X",$P$17:$R$30,ROW(P24)-16,FALSE) / VLOOKUP(M24,Datos!A:O,15,FALSE),0)) -> 4
B25: Datos de la pantalla | S25: =IF(M25="","",ROUNDUP(HLOOKUP("X",$P$17:$R$30,ROW(P25)-16,FALSE) / VLOOKUP(M25,Datos!A:O,15,FALSE),0)) -> 
B26: Altura de la fuente de luz desde la COLUMNA de agua (cm): | G26: 16 | S26: =IF(M26="","",ROUNDUP(HLOOKUP("X",$P$17:$R$30,ROW(P26)-16,FALSE) / VLOOKUP(M26,Datos!A:O,15,FALSE),0)) -> 
B27: *Ancho de la pantalla (cm): | G27: 30 | S27: =IF(M27="","",ROUNDUP(HLOOKUP("X",$P$17:$R$30,ROW(P27)-16,FALSE) / VLOOKUP(M27,Datos!A:O,15,FALSE),0)) -> 
B28: Grados de las lentes (º) | G28: 90 | S28: =IF(M28="","",ROUNDUP(HLOOKUP("X",$P$17:$R$30,ROW(P28)-16,FALSE) / VLOOKUP(M28,Datos!A:O,15,FALSE),0)) -> 
B29: *Fondo de la pantalla (cm): | G29: 10 | S29: =IF(M29="","",ROUNDUP(HLOOKUP("X",$P$17:$R$30,ROW(P29)-16,FALSE) / VLOOKUP(M29,Datos!A:O,15,FALSE),0)) -> 
B30: * Se entiende por ancho y por fondo de la pantalla la supercie que ocupan los leds. No confundir con el tamaño total de la pantalla o disipador. Por ejemplo, una fila de 5 leds de 20mm totalmente juntos sería 10cmx0,2cm | S30: =IF(M30="","",ROUNDUP(HLOOKUP("X",$P$17:$R$30,ROW(P30)-16,FALSE) / VLOOKUP(M30,Datos!A:O,15,FALSE),0)) -> 
P31: =SUM(P18:P30) -> 102 | Q31: =SUM(Q18:Q30) -> 0 | R31: =SUM(R18:R30) -> 0
B36: 3º PASO: RESULTADOS
B38: Litros (L): | C38: =(G13*G14*G15)/1000 -> 25.92 | F38: Cobertura Superficie: | I38: =ROUND(((G26/100)*TAN((RADIANS(G28)/2))*2)*100+G27,0)&"x"&ROUND(((G26/100)*TAN((RADIANS(G28)/2))*2)*100+G29,0) -> 62x42 | K38: Cobertura en base: | N38: =ROUND((((G26+G15)/100)*TAN((RADIANS(G28)/2))*2)*100+G27,0)&"x"&ROUND((((G26+G15)/100)*TAN((RADIANS(G28)/2))*2)*100+G29,0) -> 122x102 | P38: * Temperatura de color: | R38: =IFERROR(ROUND(CRI!B8,0),"") -> 7691
B40: Potencia necesaria (W): | D40: =ROUNDUP(0.0354*G13*G14*(IF(G20="Bajo",1,IF(G20="Medio",2,3))/G19)*EXP((G15) /100),0) -> 18 | F40: Potencia Recomendada (W) | I40: =D40*1.3 -> 23.4 | K40: Potencia Final (W) | N40: =_xlfn.CONCAT(ROUND(P31,1),"W") -> 102W | P40: PAR estimado (μmol/s): | R40: =ROUND((Espectros!E58/(2*PI()*(1-COS(RADIANS(G28)/2))))/(((G26+G15)/100)^2)*0.025,0) -> 322
N58: * Si la casilla de temperatura de color está en rojo significa que hay una distancia cromática >0.0054. Es decir, se aleja de un tono blanco y los resultados serán aproximados.

Sheet Histórico versiones
B2: HISTÓRICO DE VERSIONES
B4: Versión | C4: Fecha Publicación | D4: Cambios
B5: v2.1 | D5: · Corregidos algunos valores de potencia y lumens en los tipos de led. · Añadido más tipos de led. · El espectro de W se calcula en base a los mW teoricos de cada led y no con la potencia que consume el led. · Corregido un fallo en el cálculo del CRI. · Añadido campo con los leds necesarios según los W indicados.
B6: v2.0 | C6: 2022-10-23 | D6: · Se cambia la hoja Principal entera. · Cambios en las fórmulas de cálculos de los espectros. · Añadida gráfica en base a la luz visible. · Añadido cálculo del CRI. · Añadido cálculo del par estimado · Filtro para elegir el tipo de led a utilizar.
B7: v1.4 | C7: 2022-03-04 | D7: · Cambiados los literales del punto 3 · Corregido error en los totales del punto 2
B8: v1.3 | C8: 2021-09-03 | D8: · Cambiado los literales de la parte de resultados. · Añadida opción para tipo de led · Añadido el color "Full Spectrum Pink" · Añadido el apartado 3 para calcular la superficie de acuario que quedará ilumada
B9: v1.2 | C9: 2021-07-20 | D9: · Se incluye un histórico de versiones para control de cambios. · Se cambia el gráfico para que se mantega la escala entre el espectro sugerido y el espectro personalizado y que la comparativa de espectros sea más real e intuitiva.
B10: v1.1 | C10: 2021-07-17 | D10: · Quitadas macros para mejorar compatibilidad · Se incluye la opción de trabajar en tres espectros a la vez y seleccionar la columna que queremos representar. · El espectro inicial se calcula con fórmulas y se representa mediante una línea negra en la gráfica. · Cambiados los literales de las medidas del paso 1 para que sea más explicativo. · En vez del alto se pide la columna de agua
B11: v1.0 | C11: 2021-07-17 | D11: Versión inicial

Sheet Datos
A2: Nombre | B2: Voltaje (V) | C2: Corriente (mA) | D2: Kelvin | E2: DWL | F2: lm/Led | G2: mW/led | H2: Formato | I2: R | J2: G | K2: B | L2: Luminous efficacy | M2: Lumens Flux (lx) | N2: Radion Flux (W) | O2: Potencia (W)
A3: Blanco Frío (6000K) XP-E | B3: 3.23 | C3: 1000 | D3: 6000 | F3: 148 | H3: 3535 | I3: 245 | J3: 250 | K3: 253 | L3: =IF(E3="","",HLOOKUP(E3,Otros!$C$25:$GU$29,5,FALSE)) ->  | M3: =IF(F3>0,F3*C3/350,((G3*C3/350)/1000)*L3*(683)) -> 422.8571429 | N3: =IF(L3="",O3*0.7,M3/(L3*683)) -> 2.261 | O3: =B3*C3/1000 -> 3.23
A4: Blanco Frío (6000K) XP-E2 | B4: 3.12 | C4: 1000 | D4: 6000 | F4: 148 | H4: 3535 | I4: 245 | J4: 250 | K4: 253 | L4: =IF(E4="","",HLOOKUP(E4,Otros!$C$25:$GU$29,5,FALSE)) ->  | M4: 422.8571429 | N4: =IF(L4="",O4*0.7,M4/(L4*683)) -> 2.184 | O4: 3.12
A5: Blanco Cálido (3500K) XP-E | B5: 3.23 | C5: 1000 | D5: 3500 | F5: 130 | H5: 3535 | I5: 255 | J5: 231 | K5: 153 | L5: =IF(E5="","",HLOOKUP(E5,Otros!$C$25:$GU$29,5,FALSE)) ->  | M5: 371.4285714 | N5: 2.261 | O5: 3.23
A6: Blanco Cálido (3500K) XP-E2 | B6: 3.12 | C6: 1000 | D6: 3500 | F6: 142 | H6: 3535 | I6: 255 | J6: 231 | K6: 153 | L6: =IF(E6="","",HLOOKUP(E6,Otros!$C$25:$GU$29,5,FALSE)) ->  | M6: 405.7142857 | N6: 2.184 | O6: 3.12
A7: Blue (465-480) XP-E | B7: 3.27 | C7: 1000 | E7: 464 | F7: 35 | H7: 3535 | I7: 68 | J7: 116 | K7: 197 | L7: =IF(E7="","",HLOOKUP(E7,Otros!$C$25:$GU$29,5,FALSE)) -> 0.07091109 | M7: =IF(F7>0,F7*C7/350,((G7*C7/350)/1000)*L7*(683)) -> 100 | N7: 2.064738877 | O7: =B7*C7/1000 -> 3.27
A8: Blue (465-480) XP-E2 | B8: 3.14 | C8: 1000 | E8: 464 | F8: 39 | H8: 3535 | I8: 68 | J8: 116 | K8: 197 | L8: =IF(E8="","",HLOOKUP(E8,Otros!$C$25:$GU$29,5,FALSE)) -> 0.07091109 | M8: 111.4285714 | N8: 2.300709034 | O8: 3.14
A9: Royal Blue (440-450) XP-E2 | B9: 3.2 | C9: 1000 | E9: 444 | G9: 625 | H9: 3535 | I9: 68 | J9: 10 | K9: 241 | L9: =IF(E9="","",HLOOKUP(E9,Otros!$C$25:$GU$29,5,FALSE)) -> 0.02835125 | M9: =IF(F9>0,F9*C9/350,((G9*C9/350)/1000)*L9*(683)) -> 34.57839955 | N9: 1.785714286 | O9: 3.2
A10: Green (520-525) XP-E | B10: 3.16 | C10: 1000 | E10: 520 | F10: 87 | H10: 3535 | I10: 1 | J10: 176 | K10: 81 | L10: =IF(E10="","",HLOOKUP(E10,Otros!$C$25:$GU$29,5,FALSE)) -> 0.71 | M10: =IF(F10>0,F10*C10/350,((G10*C10/350)/1000)*L10*(683)) -> 248.5714286 | N10: 0.5125923918 | O10: 3.16
A11: Green (520-525) XP-E2 | B11: 3.01 | C11: 1000 | E11: 520 | F11: 148 | H11: 3535 | I11: 1 | J11: 176 | K11: 81 | L11: =IF(E11="","",HLOOKUP(E11,Otros!$C$25:$GU$29,5,FALSE)) -> 0.71 | M11: =IF(F11>0,F11*C11/350,((G11*C11/350)/1000)*L11*(683)) -> 422.8571429 | N11: 0.8719962528 | O11: =B11*C11/1000 -> 3.01
A12: Red (620-630) XP-E | B12: 2.3 | C12: 700 | E12: 620 | F12: 51 | H12: 3535 | I12: 255 | J12: 1 | K12: 0 | L12: =IF(E12="","",HLOOKUP(E12,Otros!$C$25:$GU$29,5,FALSE)) -> 0.381 | M12: =IF(F12>0,F12*C12/350,((G12*C12/350)/1000)*L12*(683)) -> 102 | N12: 0.3919715014 | O12: =B12*C12/1000 -> 1.61
A13: Red (620-630) XP-E2 | B13: 2.3 | C13: 700 | E13: 620 | F13: 73 | H13: 3535 | I13: 255 | J13: 1 | K13: 0 | L13: =IF(E13="","",HLOOKUP(E13,Otros!$C$25:$GU$29,5,FALSE)) -> 0.381 | M13: 146 | N13: 0.5610572471 | O13: 1.61
A14: Photo Red (650-665) XP-E | B14: 2.5 | C14: 1000 | E14: 660 | G14: 375 | H14: 3535 | I14: 255 | J14: 1 | K14: 0 | L14: =IF(E14="","",HLOOKUP(E14,Otros!$C$25:$GU$29,5,FALSE)) -> 0.061 | M14: =IF(F14>0,F14*C14/350,((G14*C14/350)/1000)*L14*(683)) -> 44.63892857 | N14: 1.071428571 | O14: =B14*C14/1000 -> 2.5
A15: Photo Red (650-665) XP-E2 | B15: 2.42 | C15: 1000 | E15: 660 | G15: 425 | H15: 3535 | I15: 194 | J15: 0 | K15: 2 | L15: =IF(E15="","",HLOOKUP(E15,Otros!$C$25:$GU$29,5,FALSE)) -> 0.061 | M15: 50.59078571 | N15: 1.214285714 | O15: 2.42
A16: Amber (585-595) XP-E2 | B16: 2.6 | C16: 1000 | E16: 590 | F16: 80 | H16: 3535 | I16: 255 | J16: 193 | K16: 0 | L16: =IF(E16="","",HLOOKUP(E16,Otros!$C$25:$GU$29,5,FALSE)) -> 0.757 | M16: =IF(F16>0,F16*C16/350,((G16*C16/350)/1000)*L16*(683)) -> 228.5714286 | N16: 0.4420845724 | O16: =B16*C16/1000 -> 2.6
A17: Amber (585-595) XP-E | B17: 2.3 | C17: 500 | E17: 590 | F17: 51 | H17: 3535 | I17: 255 | J17: 193 | K17: 0 | L17: =IF(E17="","",HLOOKUP(E17,Otros!$C$25:$GU$29,5,FALSE)) -> 0.757 | M17: 72.85714286 | N17: 0.1409144575 | O17: 1.15
A18: Red-Orange (610-620) XP-E | B18: 2.1 | C18: 700 | E18: 610 | F18: 62 | H18: 3535 | I18: 255 | J18: 140 | K18: 0 | L18: =IF(E18="","",HLOOKUP(E18,Otros!$C$25:$GU$29,5,FALSE)) -> 0.503 | M18: =IF(F18>0,F18*C18/350,((G18*C18/350)/1000)*L18*(683)) -> 124 | N18: 0.3609383232 | O18: =B18*C18/1000 -> 1.47
A19: Red-Orange (610-620) XP-E2 | B19: 2.6 | C19: 1000 | E19: 610 | F19: 93 | H19: 3535 | I19: 255 | J19: 140 | K19: 0 | L19: =IF(E19="","",HLOOKUP(E19,Otros!$C$25:$GU$29,5,FALSE)) -> 0.503 | M19: 265.7142857 | N19: 0.773439264 | O19: 2.6
A20: Far-Red (720-740) XP-E2 | B20: 2.24 | C20: 1000 | E20: 730 | G20: 375 | H20: 3535 | I20: 95 | J20: 1 | K20: 1 | L20: =IF(E20="","",HLOOKUP(E20,Otros!$C$25:$GU$29,5,FALSE)) -> 0.00052 | M20: 0.3805285714 | N20: 1.071428571 | O20: 2.24
A21: UV (395-400) Semiled | B21: 3.4 | C21: 700 | E21: 400 | G21: 425 | H21: 3535 | I21: 82 | J21: 35 | K21: 116 | L21: =IF(E21="","",HLOOKUP(E21,Otros!$C$25:$GU$29,5,FALSE)) -> 0.000396 | M21: 0.2298978 | N21: 0.85 | O21: 2.38
A22: UV (405-410) Semiled | B22: 3.4 | C22: 700 | E22: 410 | G22: 425 | H22: 3535 | I22: 112 | J22: 48 | K22: 161 | L22: =IF(E22="","",HLOOKUP(E22,Otros!$C$25:$GU$29,5,FALSE)) -> 0.00121 | M22: 0.7024655 | N22: 0.85 | O22: 2.38
A23: UV (410-420) Semiled | B23: 3.4 | C23: 700 | E23: 420 | G23: 455 | H23: 3535 | I23: 69 | J23: 48 | K23: 167 | L23: =IF(E23="","",HLOOKUP(E23,Otros!$C$25:$GU$29,5,FALSE)) -> 0.004 | M23: 2.48612 | N23: 0.91 | O23: 2.38
A24: Royal Blue (440-450) XT-E | B24: 3.28 | C24: 1500 | E24: 450 | G24: 625 | H24: 3535 | I24: 68 | J24: 10 | K24: 241 | L24: =IF(E24="","",HLOOKUP(E24,Otros!$C$25:$GU$29,5,FALSE)) -> 0.038 | M24: =IF(F24>0,F24*C24/350,((G24*C24/350)/1000)*L24*(683)) -> 69.51964286 | N24: =IF(L24="",O24*0.7,M24/(L24*683)) -> 2.678571429 | O24: =B24*C24/1000 -> 4.92
A25: Blanco Frío (6000K) XT-E | B25: 3.21 | C25: 1500 | D25: 6000 | F25: 130 | H25: 3535 | I25: 245 | J25: 250 | K25: 253 | L25: =IF(E25="","",HLOOKUP(E25,Otros!$C$25:$GU$29,5,FALSE)) ->  | M25: =IF(F25>0,F25*C25/350,((G25*C25/350)/1000)*L25*(683)) -> 557.1428571 | N25: =IF(L25="",O25*0.7,M25/(L25*683)) -> 3.3705 | O25: =B25*C25/1000 -> 4.815
A26: Blanco Cálido (3500K) XT-E | B26: 3.21 | C26: 1500 | D26: 3500 | F26: 110 | H26: 3535 | I26: 255 | J26: 231 | K26: 153 | L26: =IF(E26="","",HLOOKUP(E26,Otros!$C$25:$GU$29,5,FALSE)) ->  | M26: 471.4285714 | N26: 3.3705 | O26: 4.815
A27: Blanco Frío (6000K) XP-G2 | B27: 3.02 | C27: 1500 | D27: 6000 | F27: 130 | H27: 3535 | I27: 245 | J27: 250 | K27: 253 | L27: =IF(E27="","",HLOOKUP(E27,Otros!$C$25:$GU$29,5,FALSE)) ->  | M27: =IF(F27>0,F27*C27/350,((G27*C27/350)/1000)*L27*(683)) -> 557.1428571 | N27: =IF(L27="",O27*0.7,M27/(L27*683)) -> 3.171 | O27: =B27*C27/1000 -> 4.53
A28: Blanco Cálido (3500K) XP-G2 | B28: 3.02 | C28: 1500 | D28: 3500 | F28: 130 | H28: 3535 | I28: 255 | J28: 231 | K28: 153 | L28: =IF(E28="","",HLOOKUP(E28,Otros!$C$25:$GU$29,5,FALSE)) ->  | M28: 557.1428571 | N28: 3.171 | O28: 4.53
A29: Blanco Cálido (3500K) 1W | B29: 3.4 | C29: 300 | D29: 3500 | F29: 115 | H29: Powerled 1W | I29: 255 | J29: 231 | K29: 153 | L29: =IF(E29="","",HLOOKUP(E29,Otros!$C$25:$GU$29,5,FALSE)) ->  | M29: 98.57142857 | N29: 0.714 | O29: 1.02
A30: Blanco Frio (6500K) 1W | B30: 3.4 | C30: 300 | D30: 6500 | F30: 110 | H30: Powerled 1W | I30: 245 | J30: 250 | K30: 253 | L30: =IF(E30="","",HLOOKUP(E30,Otros!$C$25:$GU$29,5,FALSE)) ->  | M30: 94.28571429 | N30: 0.714 | O30: 1.02
A31: Blanco Frio (10000K) 1W | B31: 3.4 | C31: 300 | D31: 10000 | F31: 110 | H31: Powerled 1W | I31: 190 | J31: 216 | K31: 239 | L31: =IF(E31="","",HLOOKUP(E31,Otros!$C$25:$GU$29,5,FALSE)) ->  | M31: 94.28571429 | N31: 0.714 | O31: 1.02
A32: UV (395-400) 1W | B32: 3.4 | C32: 300 | E32: 400 | F32: 10 | H32: Powerled 1W | I32: 82 | J32: 35 | K32: 116 | L32: =IF(E32="","",HLOOKUP(E32,Otros!$C$25:$GU$29,5,FALSE)) -> 0.000396 | M32: 8.571428571 | N32: 31.69110051 | O32: 1.02
A33: UV (410-415) 1W | B33: 3.4 | C33: 300 | E33: 410 | F33: 10 | H33: Powerled 1W | I33: 112 | J33: 48 | K33: 161 | L33: =IF(E33="","",HLOOKUP(E33,Otros!$C$25:$GU$29,5,FALSE)) -> 0.00121 | M33: 8.571428571 | N33: 10.37163289 | O33: 1.02
A34: UV (420-430) 1W | B34: 3.4 | C34: 300 | E34: 420 | F34: 10 | H34: Powerled 1W | I34: 69 | J34: 48 | K34: 167 | L34: =IF(E34="","",HLOOKUP(E34,Otros!$C$25:$GU$29,5,FALSE)) -> 0.004 | M34: 8.571428571 | N34: 3.13741895 | O34: 1.02
A35: Royal Blue (440-450) 1W | B35: 3.4 | C35: 300 | E35: 444 | G35: 300 | H35: Powerled 1W | I35: 68 | J35: 10 | K35: 241 | L35: =IF(E35="","",HLOOKUP(E35,Otros!$C$25:$GU$29,5,FALSE)) -> 0.02835125 | M35: 4.979289536 | N35: 0.2571428571 | O35: 1.02
A36: Blue (465-480) 1W | B36: 3.4 | C36: 300 | E36: 470 | F36: 20 | H36: Powerled 1W | I36: 68 | J36: 116 | K36: 197 | L36: =IF(E36="","",HLOOKUP(E36,Otros!$C$25:$GU$29,5,FALSE)) -> 0.09098 | M36: 17.14285714 | N36: 0.275877683 | O36: 1.02
A37: Cyan (495-500) 1W | B37: 3.2 | C37: 300 | E37: 500 | F37: 45 | H37: Powerled 1W | I37: 1 | J37: 201 | K37: 182 | L37: =IF(E37="","",HLOOKUP(E37,Otros!$C$25:$GU$29,5,FALSE)) -> 0.323 | M37: 38.57142857 | N37: 0.1748406845 | O37: 0.96
A38: Verde (520-525) 1W | B38: 3 | C38: 300 | E38: 520 | F38: 60 | H38: Powerled 1W | I38: 1 | J38: 176 | K38: 81 | L38: =IF(E38="","",HLOOKUP(E38,Otros!$C$25:$GU$29,5,FALSE)) -> 0.71 | M38: 51.42857143 | N38: 0.1060535983 | O38: 0.9
A39: Amarillo (590-595) 1W | B39: 2.5 | C39: 300 | E39: 590 | F39: 25 | H39: Powerled 1W | I39: 255 | J39: 255 | K39: 1 | L39: =IF(E39="","",HLOOKUP(E39,Otros!$C$25:$GU$29,5,FALSE)) -> 0.757 | M39: 21.42857143 | N39: 0.04144542867 | O39: 0.75
A40: Naranja (600-605) 1W | B40: 2.5 | C40: 300 | E40: 600 | F40: 25 | H40: Powerled 1W | I40: 255 | J40: 140 | K40: 0 | L40: =IF(E40="","",HLOOKUP(E40,Otros!$C$25:$GU$29,5,FALSE)) -> 0.631 | M40: 21.42857143 | N40: 0.04972137797 | O40: 0.75
A41: Rojo (620-625) 1W | B41: 2.4 | C41: 300 | E41: 620 | F41: 25 | H41: Powerled 1W | I41: 255 | J41: 1 | K41: 0 | L41: =IF(E41="","",HLOOKUP(E41,Otros!$C$25:$GU$29,5,FALSE)) -> 0.381 | M41: 21.42857143 | N41: 0.08234695407 | O41: 0.72
A42: Rojo Profundo (660-665) 1W | B42: 2.4 | C42: 300 | E42: 660 | G42: 290 | H42: Powerled 1W | I42: 194 | J42: 0 | K42: 2 | L42: =IF(E42="","",HLOOKUP(E42,Otros!$C$25:$GU$29,5,FALSE)) -> 0.061 | M42: 10.35623143 | N42: 0.2485714286 | O42: 0.72
A43: Infrarojo(735-745) 1W | B43: 2.4 | C43: 300 | E43: 740 | F43: 0.25 | H43: Powerled 1W | I43: 95 | J43: 1 | K43: 1 | L43: =IF(E43="","",HLOOKUP(E43,Otros!$C$25:$GU$29,5,FALSE)) -> 0.0002492 | M43: 0.2142857143 | N43: 1.258996368 | O43: 0.72
A44: Blanco Cálido (3500K) 3W | B44: 3.6 | C44: 700 | D44: 3500 | F44: 115 | H44: Powerled 3W | I44: 255 | J44: 231 | K44: 153 | L44: =IF(E44="","",HLOOKUP(E44,Otros!$C$25:$GU$29,5,FALSE)) ->  | M44: 230 | N44: 1.764 | O44: 2.52
A45: Blanco Frio (6500K) 3W | B45: 3.6 | C45: 700 | D45: 6500 | F45: 110 | H45: Powerled 3W | I45: 245 | J45: 250 | K45: 253 | L45: =IF(E45="","",HLOOKUP(E45,Otros!$C$25:$GU$29,5,FALSE)) ->  | M45: 220 | N45: 1.764 | O45: 2.52
A46: Blanco Frio (10000K) 3W | B46: 3.6 | C46: 700 | D46: 10000 | F46: 110 | H46: Powerled 3W | I46: 190 | J46: 216 | K46: 239 | L46: =IF(E46="","",HLOOKUP(E46,Otros!$C$25:$GU$29,5,FALSE)) ->  | M46: 220 | N46: 1.764 | O46: 2.52
A47: UV (395-400) 3W | B47: 3.6 | C47: 700 | E47: 400 | F47: 20 | H47: Powerled 3W | I47: 82 | J47: 35 | K47: 116 | L47: =IF(E47="","",HLOOKUP(E47,Otros!$C$25:$GU$29,5,FALSE)) -> 0.000396 | M47: 40 | N47: 147.8918024 | O47: 2.52
A48: UV (410-415) 3W | B48: 3.4 | C48: 700 | E48: 410 | F48: 20 | H48: Powerled 3W | I48: 112 | J48: 48 | K48: 161 | L48: =IF(E48="","",HLOOKUP(E48,Otros!$C$25:$GU$29,5,FALSE)) -> 0.00121 | M48: 40 | N48: 48.4009535 | O48: 2.38
A49: UV (420-430) 3W | B49: 3.4 | C49: 700 | E49: 420 | F49: 20 | H49: Powerled 3W | I49: 69 | J49: 48 | K49: 167 | L49: =IF(E49="","",HLOOKUP(E49,Otros!$C$25:$GU$29,5,FALSE)) -> 0.004 | M49: 40 | N49: 14.64128843 | O49: 2.38
A50: Royal Blue (440-450) 3W | B50: 3.4 | C50: 700 | E50: 444 | G50: 300 | H50: Powerled 3W | I50: 68 | J50: 10 | K50: 241 | L50: =IF(E50="","",HLOOKUP(E50,Otros!$C$25:$GU$29,5,FALSE)) -> 0.02835125 | M50: 11.61834225 | N50: 0.6 | O50: 2.38
A51: Blue (465-480) 3W | B51: 3.4 | C51: 700 | E51: 470 | F51: 20 | H51: Powerled 3W | I51: 68 | J51: 116 | K51: 197 | L51: =IF(E51="","",HLOOKUP(E51,Otros!$C$25:$GU$29,5,FALSE)) -> 0.09098 | M51: 40 | N51: 0.6437145937 | O51: 2.38
A52: Cyan (495-500) 3W | B52: 3.2 | C52: 700 | E52: 500 | F52: 45 | H52: Powerled 3W | I52: 1 | J52: 201 | K52: 182 | L52: =IF(E52="","",HLOOKUP(E52,Otros!$C$25:$GU$29,5,FALSE)) -> 0.323 | M52: 90 | N52: 0.4079615972 | O52: 2.24
A53: Verde (520-525) 3W | B53: 3 | C53: 700 | E53: 520 | F53: 60 | H53: Powerled 3W | I53: 1 | J53: 176 | K53: 81 | L53: =IF(E53="","",HLOOKUP(E53,Otros!$C$25:$GU$29,5,FALSE)) -> 0.71 | M53: 120 | N53: 0.2474583961 | O53: 2.1
A54: Amarillo (590-595) 3W | B54: 2.5 | C54: 700 | E54: 590 | F54: 25 | H54: Powerled 3W | I54: 255 | J54: 255 | K54: 1 | L54: =IF(E54="","",HLOOKUP(E54,Otros!$C$25:$GU$29,5,FALSE)) -> 0.757 | M54: 50 | N54: 0.09670600022 | O54: 1.75
A55: Naranja (600-605) 3W | B55: 2.5 | C55: 700 | E55: 600 | F55: 25 | H55: Powerled 3W | I55: 255 | J55: 140 | K55: 0 | L55: =IF(E55="","",HLOOKUP(E55,Otros!$C$25:$GU$29,5,FALSE)) -> 0.631 | M55: 50 | N55: 0.1160165486 | O55: 1.75
A56: Rojo (620-625) 3W | B56: 2.4 | C56: 700 | E56: 620 | F56: 25 | H56: Powerled 3W | I56: 255 | J56: 1 | K56: 0 | L56: =IF(E56="","",HLOOKUP(E56,Otros!$C$25:$GU$29,5,FALSE)) -> 0.381 | M56: 50 | N56: 0.1921428928 | O56: 1.68
A57: Rojo Profundo (660-665) 3W | B57: 2.4 | C57: 700 | E57: 660 | G57: 300 | H57: Powerled 3W | I57: 194 | J57: 0 | K57: 2 | L57: =IF(E57="","",HLOOKUP(E57,Otros!$C$25:$GU$29,5,FALSE)) -> 0.061 | M57: 24.9978 | N57: 0.6 | O57: 1.68
A58: Infrarojo(735-745) 3W | B58: 2.4 | C58: 700 | E58: 740 | G58: 290 | H58: Powerled 3W | I58: 95 | J58: 1 | K58: 1 | L58: =IF(E58="","",HLOOKUP(E58,Otros!$C$25:$GU$29,5,FALSE)) -> 0.0002492 | M58: 0.098718088 | N58: 0.58 | O58: 1.68

Sheet Espectros
B1: Parametros:
B2: nm Mínimos | C2: 390 | E2: Valor min. grafica | F2: 0
B3: nm Máximos | C3: 780 | E3: Valor max. grafica | F3: 10
A5: Espectro normalizado para cada tipo de led
A6: FILA | B6: Nombre | C6: Kelvin | D6: Peak wavelength | E6: Peak Wavelength normalize | F6: Gauss (a) | G6: H | H6: T | I6: =F2 -> 0 | J6: =IF(J7="","",(J7-$C$2)*($F$3-$F$2)/($C$3-$C$2)+$F$2) -> 0.02564102564 | K6: =IF(K7="","",(K7-$C$2)*($F$3-$F$2)/($C$3-$C$2)+$F$2) -> 0.05128205128 | L6: 0.07692307692 | M6: 0.1025641026 | N6: 0.1282051282 | O6: 0.1538461538 | P6: 0.1794871795 | Q6: 0.2051282051 | R6: 0.2307692308 | S6: 0.2564102564 | T6: 0.2820512821 | U6: 0.3076923077 | V6: 0.3333333333 | W6: 0.358974359 | X6: 0.3846153846 | Y6: 0.4102564103 | Z6: 0.4358974359 | AA6: 0.4615384615 | AB6: 0.4871794872 | AC6: 0.5128205128 | AD6: 0.5384615385 | AE6: 0.5641025641 | AF6: 0.5897435897 | AG6: 0.6153846154 | AH6: 0.641025641 | AI6: 0.6666666667 | AJ6: 0.6923076923 | AK6: 0.7179487179 | AL6: 0.7435897436 | AM6: 0.7692307692 | AN6: 0.7948717949 | AO6: 0.8205128205 | AP6: 0.8461538462 | AQ6: 0.8717948718 | AR6: 0.8974358974 | AS6: 0.9230769231 | AT6: 0.9487179487 | AU6: 0.9743589744 | AV6: 1 | AW6: 1.025641026 | AX6: 1.051282051 | AY6: 1.076923077 | AZ6: 1.102564103 | BA6: 1.128205128 | BB6: 1.153846154 | BC6: 1.179487179 | BD6: 1.205128205 | BE6: 1.230769231 | BF6: 1.256410256 | BG6: 1.282051282 | BH6: 1.307692308 | BI6: 1.333333333 | BJ6: 1.358974359 | BK6: 1.384615385 | BL6: 1.41025641 | BM6: 1.435897436 | BN6: 1.461538462 | BO6: 1.487179487 | BP6: 1.512820513 | BQ6: 1.538461538 | BR6: 1.564102564 | BS6: 1.58974359 | BT6: 1.615384615 | BU6: 1.641025641 | BV6: 1.666666667 | BW6: =IF(BW7="","",(BW7-$C$2)*($F$3-$F$2)/($C$3-$C$2)+$F$2) -> 1.692307692 | BX6: 1.717948718 | BY6: 1.743589744 | BZ6: 1.769230769 | CA6: 1.794871795 | CB6: 1.820512821 | CC6: 1.846153846 | CD6: 1.871794872 | CE6: 1.897435897 | CF6: 1.923076923 | CG6: 1.948717949 | CH6: 1.974358974 | CI6: 2 | CJ6: 2.025641026 | CK6: 2.051282051 | CL6: 2.076923077 | CM6: 2.102564103 | CN6: 2.128205128 | CO6: 2.153846154 | CP6: 2.179487179 | CQ6: 2.205128205 | CR6: 2.230769231 | CS6: 2.256410256 | CT6: 2.282051282 | CU6: 2.307692308 | CV6: 2.333333333 | CW6: 2.358974359 | CX6: 2.384615385 | CY6: 2.41025641 | CZ6: 2.435897436 | DA6: 2.461538462 | DB6: 2.487179487 | DC6: 2.512820513 | DD6: 2.538461538 | DE6: 2.564102564 | DF6: 2.58974359 | DG6: 2.615384615 | DH6: 2.641025641 | DI6: 2.666666667 | DJ6: 2.692307692 | DK6: 2.717948718 | DL6: 2.743589744 | DM6: 2.769230769 | DN6: 2.794871795 | DO6: 2.820512821 | DP6: 2.846153846 | DQ6: 2.871794872 | DR6: 2.897435897 | DS6: 2.923076923 | DT6: 2.948717949 | DU6: 2.974358974 | DV6: 3 | DW6: 3.025641026 | DX6: 3.051282051 | DY6: 3.076923077 | DZ6: 3.102564103 | EA6: 3.128205128 | EB6: 3.153846154 | EC6: 3.179487179 | ED6: 3.205128205 | EE6: 3.230769231 | EF6: 3.256410256 | EG6: 3.282051282 | EH6: 3.307692308 | EI6: =IF(EI7="","",(EI7-$C$2)*($F$3-$F$2)/($C$3-$C$2)+$F$2) -> 3.333333333 | EJ6: 3.358974359 | EK6: 3.384615385 | EL6: 3.41025641 | EM6: 3.435897436 | EN6: 3.461538462 | EO6: 3.487179487 | EP6: 3.512820513 | EQ6: 3.538461538 | ER6: 3.564102564 | ES6: 3.58974359 | ET6: 3.615384615 | EU6: 3.641025641 | EV6: 3.666666667 | EW6: 3.692307692 | EX6: 3.717948718 | EY6: 3.743589744 | EZ6: 3.769230769 | FA6: 3.794871795 | FB6: 3.820512821 | FC6: 3.846153846 | FD6: 3.871794872 | FE6: 3.897435897 | FF6: 3.923076923 | FG6: 3.948717949 | FH6: 3.974358974 | FI6: 4 | FJ6: 4.025641026 | FK6: 4.051282051 | FL6: 4.076923077 | FM6: 4.102564103 | FN6: 4.128205128 | FO6: 4.153846154 | FP6: 4.179487179 | FQ6: 4.205128205 | FR6: 4.230769231 | FS6: 4.256410256 | FT6: 4.282051282 | FU6: 4.307692308 | FV6: 4.333333333 | FW6: 4.358974359 | FX6: 4.384615385 | FY6: 4.41025641 | FZ6: 4.435897436 | GA6: 4.461538462 | GB6: 4.487179487 | GC6: 4.512820513 | GD6: 4.538461538 | GE6: 4.564102564 | GF6: 4.58974359 | GG6: 4.615384615 | GH6: 4.641025641 | GI6: 4.666666667 | GJ6: 4.692307692 | GK6: 4.717948718 | GL6: 4.743589744 | GM6: 4.769230769 | GN6: 4.794871795 | GO6: 4.820512821 | GP6: 4.846153846 | GQ6: 4.871794872 | GR6: 4.897435897 | GS6: 4.923076923 | GT6: 4.948717949 | GU6: =IF(GU7="","",(GU7-$C$2)*($F$3-$F$2)/($C$3-$C$2)+$F$2) -> 4.974358974 | GV6: 5 | GW6: 5.025641026 | GX6: 5.051282051 | GY6: 5.076923077 | GZ6: 5.102564103 | HA6: 5.128205128 | HB6: 5.153846154 | HC6: 5.179487179 | HD6: 5.205128205 | HE6: 5.230769231 | HF6: 5.256410256 | HG6: 5.282051282 | HH6: 5.307692308 | HI6: 5.333333333 | HJ6: 5.358974359 | HK6: 5.384615385 | HL6: 5.41025641 | HM6: 5.435897436 | HN6: 5.461538462 | HO6: 5.487179487 | HP6: 5.512820513 | HQ6: 5.538461538 | HR6: 5.564102564 | HS6: 5.58974359 | HT6: 5.615384615 | HU6: 5.641025641 | HV6: 5.666666667 | HW6: 5.692307692 | HX6: 5.717948718 | HY6: 5.743589744 | HZ6: 5.769230769 | IA6: 5.794871795 | IB6: 5.820512821 | IC6: 5.846153846 | ID6: 5.871794872 | IE6: 5.897435897 | IF6: 5.923076923 | IG6: 5.948717949 | IH6: 5.974358974 | II6: 6 | IJ6: 6.025641026 | IK6: 6.051282051 | IL6: 6.076923077 | IM6: 6.102564103 | IN6: 6.128205128 | IO6: 6.153846154 | IP6: 6.179487179 | IQ6: 6.205128205 | IR6: 6.230769231 | IS6: 6.256410256 | IT6: 6.282051282 | IU6: 6.307692308 | IV6: 6.333333333 | IW6: 6.358974359 | IX6: 6.384615385 | IY6: 6.41025641 | IZ6: 6.435897436 | JA6: 6.461538462 | JB6: 6.487179487 | JC6: 6.512820513 | JD6: 6.538461538 | JE6: 6.564102564 | JF6: 6.58974359 | JG6: =IF(JG7="","",(JG7-$C$2)*($F$3-$F$2)/($C$3-$C$2)+$F$2) -> 6.615384615 | JH6: 6.641025641 | JI6: 6.666666667 | JJ6: 6.692307692 | JK6: 6.717948718 | JL6: 6.743589744 | JM6: 6.769230769 | JN6: 6.794871795 | JO6: 6.820512821 | JP6: 6.846153846 | JQ6: 6.871794872 | JR6: 6.897435897 | JS6: 6.923076923 | JT6: 6.948717949 | JU6: 6.974358974 | JV6: 7 | JW6: 7.025641026 | JX6: 7.051282051 | JY6: 7.076923077 | JZ6: 7.102564103 | KA6: 7.128205128 | KB6: 7.153846154 | KC6: 7.179487179 | KD6: 7.205128205 | KE6: 7.230769231 | KF6: 7.256410256 | KG6: 7.282051282 | KH6: 7.307692308 | KI6: 7.333333333 | KJ6: 7.358974359 | KK6: 7.384615385 | KL6: 7.41025641 | KM6: 7.435897436 | KN6: 7.461538462 | KO6: 7.487179487 | KP6: 7.512820513 | KQ6: 7.538461538 | KR6: 7.564102564 | KS6: 7.58974359 | KT6: 7.615384615 | KU6: 7.641025641 | KV6: 7.666666667 | KW6: 7.692307692 | KX6: 7.717948718 | KY6: 7.743589744 | KZ6: 7.769230769 | LA6: 7.794871795 | LB6: 7.820512821 | LC6: 7.846153846 | LD6: 7.871794872 | LE6: 7.897435897 | LF6: 7.923076923 | LG6: 7.948717949 | LH6: 7.974358974 | LI6: 8 | LJ6: 8.025641026 | LK6: 8.051282051 | LL6: 8.076923077 | LM6: 8.102564103 | LN6: 8.128205128 | LO6: 8.153846154 | LP6: 8.179487179 | LQ6: 8.205128205 | LR6: 8.230769231 | LS6: =IF(LS7="","",(LS7-$C$2)*($F$3-$F$2)/($C$3-$C$2)+$F$2) -> 8.256410256 | LT6: 8.282051282 | LU6: 8.307692308 | LV6: 8.333333333 | LW6: 8.358974359 | LX6: 8.384615385 | LY6: 8.41025641 | LZ6: 8.435897436 | MA6: 8.461538462 | MB6: 8.487179487 | MC6: 8.512820513 | MD6: 8.538461538 | ME6: 8.564102564 | MF6: 8.58974359 | MG6: 8.615384615 | MH6: 8.641025641 | MI6: 8.666666667 | MJ6: 8.692307692 | MK6: 8.717948718 | ML6: 8.743589744 | MM6: 8.769230769 | MN6: 8.794871795 | MO6: 8.820512821 | MP6: 8.846153846 | MQ6: 8.871794872 | MR6: 8.897435897 | MS6: 8.923076923 | MT6: 8.948717949 | MU6: 8.974358974 | MV6: 9 | MW6: 9.025641026 | MX6: 9.051282051 | MY6: 9.076923077 | MZ6: 9.102564103 | NA6: 9.128205128 | NB6: 9.153846154 | NC6: 9.179487179 | ND6: 9.205128205 | NE6: 9.230769231 | NF6: 9.256410256 | NG6: 9.282051282 | NH6: 9.307692308 | NI6: 9.333333333 | NJ6: 9.358974359 | NK6: 9.384615385 | NL6: 9.41025641 | NM6: 9.435897436 | NN6: 9.461538462 | NO6: 9.487179487 | NP6: 9.512820513 | NQ6: 9.538461538 | NR6: 9.564102564 | NS6: 9.58974359 | NT6: 9.615384615 | NU6: 9.641025641 | NV6: 9.666666667 | NW6: 9.692307692 | NX6: 9.717948718 | NY6: 9.743589744 | NZ6: 9.769230769 | OA6: 9.794871795 | OB6: 9.820512821 | OC6: 9.846153846 | OD6: 9.871794872 | OE6: =IF(OE7="","",(OE7-$C$2)*($F$3-$F$2)/($C$3-$C$2)+$F$2) -> 9.897435897 | OF6: 9.923076923 | OG6: 9.948717949 | OH6: 9.974358974 | OI6: 10
I7: =C2 -> 390 | J7: =IF(OR(I7="",I7>$C$3-1),"",I7+1) -> 391 | K7: =IF(OR(J7="",J7>$C$3-1),"",J7+1) -> 392 | L7: 393 | M7: 394 | N7: 395 | O7: 396 | P7: 397 | Q7: 398 | R7: 399 | S7: 400 | T7: 401 | U7: 402 | V7: 403 | W7: 404 | X7: 405 | Y7: 406 | Z7: 407 | AA7: 408 | AB7: 409 | AC7: 410 | AD7: 411 | AE7: 412 | AF7: 413 | AG7: 414 | AH7: 415 | AI7: 416 | AJ7: 417 | AK7: 418 | AL7: 419 | AM7: 420 | AN7: 421 | AO7: 422 | AP7: 423 | AQ7: 424 | AR7: 425 | AS7: 426 | AT7: 427 | AU7: 428 | AV7: 429 | AW7: 430 | AX7: 431 | AY7: 432 | AZ7: 433 | BA7: 434 | BB7: 435 | BC7: 436 | BD7: 437 | BE7: 438 | BF7: 439 | BG7: 440 | BH7: 441 | BI7: 442 | BJ7: 443 | BK7: 444 | BL7: 445 | BM7: 446 | BN7: 447 | BO7: 448 | BP7: 449 | BQ7: 450 | BR7: 451 | BS7: 452 | BT7: 453 | BU7: 454 | BV7: 455 | BW7: =IF(OR(BV7="",BV7>$C$3-1),"",BV7+1) -> 456 | BX7: 457 | BY7: 458 | BZ7: 459 | CA7: 460 | CB7: 461 | CC7: 462 | CD7: 463 | CE7: 464 | CF7: 465 | CG7: 466 | CH7: 467 | CI7: 468 | CJ7: 469 | CK7: 470 | CL7: 471 | CM7: 472 | CN7: 473 | CO7: 474 | CP7: 475 | CQ7: 476 | CR7: 477 | CS7: 478 | CT7: 479 | CU7: 480 | CV7: 481 | CW7: 482 | CX7: 483 | CY7: 484 | CZ7: 485 | DA7: 486 | DB7: 487 | DC7: 488 | DD7: 489 | DE7: 490 | DF7: 491 | DG7: 492 | DH7: 493 | DI7: 494 | DJ7: 495 | DK7: 496 | DL7: 497 | DM7: 498 | DN7: 499 | DO7: 500 | DP7: 501 | DQ7: 502 | DR7: 503 | DS7: 504 | DT7: 505 | DU7: 506 | DV7: 507 | DW7: 508 | DX7: 509 | DY7: 510 | DZ7: 511 | EA7: 512 | EB7: 513 | EC7: 514 | ED7: 515 | EE7: 516 | EF7: 517 | EG7: 518 | EH7: 519 | EI7: =IF(OR(EH7="",EH7>$C$3-1),"",EH7+1) -> 520 | EJ7: 521 | EK7: 522 | EL7: 523 | EM7: 524 | EN7: 525 | EO7: 526 | EP7: 527 | EQ7: 528 | ER7: 529 | ES7: 530 | ET7: 531 | EU7: 532 | EV7: 533 | EW7: 534 | EX7: 535 | EY7: 536 | EZ7: 537 | FA7: 538 | FB7: 539 | FC7: 540 | FD7: 541 | FE7: 542 | FF7: 543 | FG7: 544 | FH7: 545 | FI7: 546 | FJ7: 547 | FK7: 548 | FL7: 549 | FM7: 550 | FN7: 551 | FO7: 552 | FP7: 553 | FQ7: 554 | FR7: 555 | FS7: 556 | FT7: 557 | FU7: 558 | FV7: 559 | FW7: 560 | FX7: 561 | FY7: 562 | FZ7: 563 | GA7: 564 | GB7: 565 | GC7: 566 | GD7: 567 | GE7: 568 | GF7: 569 | GG7: 570 | GH7: 571 | GI7: 572 | GJ7: 573 | GK7: 574 | GL7: 575 | GM7: 576 | GN7: 577 | GO7: 578 | GP7: 579 | GQ7: 580 | GR7: 581 | GS7: 582 | GT7: 583 | GU7: =IF(OR(GT7="",GT7>$C$3-1),"",GT7+1) -> 584 | GV7: 585 | GW7: 586 | GX7: 587 | GY7: 588 | GZ7: 589 | HA7: 590 | HB7: 591 | HC7: 592 | HD7: 593 | HE7: 594 | HF7: 595 | HG7: 596 | HH7: 597 | HI7: 598 | HJ7: 599 | HK7: 600 | HL7: 601 | HM7: 602 | HN7: 603 | HO7: 604 | HP7: 605 | HQ7: 606 | HR7: 607 | HS7: 608 | HT7: 609 | HU7: 610 | HV7: 611 | HW7: 612 | HX7: 613 | HY7: 614 | HZ7: 615 | IA7: 616 | IB7: 617 | IC7: 618 | ID7: 619 | IE7: 620 | IF7: 621 | IG7: 622 | IH7: 623 | II7: 624 | IJ7: 625 | IK7: 626 | IL7: 627 | IM7: 628 | IN7: 629 | IO7: 630 | IP7: 631 | IQ7: 632 | IR7: 633 | IS7: 634 | IT7: 635 | IU7: 636 | IV7: 637 | IW7: 638 | IX7: 639 | IY7: 640 | IZ7: 641 | JA7: 642 | JB7: 643 | JC7: 644 | JD7: 645 | JE7: 646 | JF7: 647 | JG7: =IF(OR(JF7="",JF7>$C$3-1),"",JF7+1) -> 648 | JH7: 649 | JI7: 650 | JJ7: 651 | JK7: 652 | JL7: 653 | JM7: 654 | JN7: 655 | JO7: 656 | JP7: 657 | JQ7: 658 | JR7: 659 | JS7: 660 | JT7: 661 | JU7: 662 | JV7: 663 | JW7: 664 | JX7: 665 | JY7: 666 | JZ7: 667 | KA7: 668 | KB7: 669 | KC7: 670 | KD7: 671 | KE7: 672 | KF7: 673 | KG7: 674 | KH7: 675 | KI7: 676 | KJ7: 677 | KK7: 678 | KL7: 679 | KM7: 680 | KN7: 681 | KO7: 682 | KP7: 683 | KQ7: 684 | KR7: 685 | KS7: 686 | KT7: 687 | KU7: 688 | KV7: 689 | KW7: 690 | KX7: 691 | KY7: 692 | KZ7: 693 | LA7: 694 | LB7: 695 | LC7: 696 | LD7: 697 | LE7: 698 | LF7: 699 | LG7: 700 | LH7: 701 | LI7: 702 | LJ7: 703 | LK7: 704 | LL7: 705 | LM7: 706 | LN7: 707 | LO7: 708 | LP7: 709 | LQ7: 710 | LR7: 711 | LS7: =IF(OR(LR7="",LR7>$C$3-1),"",LR7+1) -> 712 | LT7: 713 | LU7: 714 | LV7: 715 | LW7: 716 | LX7: 717 | LY7: 718 | LZ7: 719 | MA7: 720 | MB7: 721 | MC7: 722 | MD7: 723 | ME7: 724 | MF7: 725 | MG7: 726 | MH7: 727 | MI7: 728 | MJ7: 729 | MK7: 730 | ML7: 731 | MM7: 732 | MN7: 733 | MO7: 734 | MP7: 735 | MQ7: 736 | MR7: 737 | MS7: 738 | MT7: 739 | MU7: 740 | MV7: 741 | MW7: 742 | MX7: 743 | MY7: 744 | MZ7: 745 | NA7: 746 | NB7: 747 | NC7: 748 | ND7: 749 | NE7: 750 | NF7: 751 | NG7: 752 | NH7: 753 | NI7: 754 | NJ7: 755 | NK7: 756 | NL7: 757 | NM7: 758 | NN7: 759 | NO7: 760 | NP7: 761 | NQ7: 762 | NR7: 763 | NS7: 764 | NT7: 765 | NU7: 766 | NV7: 767 | NW7: 768 | NX7: 769 | NY7: 770 | NZ7: 771 | OA7: 772 | OB7: 773 | OC7: 774 | OD7: 775 | OE7: =IF(OR(OD7="",OD7>$C$3-1),"",OD7+1) -> 776 | OF7: 777 | OG7: =IF(OR(OF7="",OF7>$C$3-1),"",OF7+1) -> 778 | OH7: =IF(OR(OG7="",OG7>$C$3-1),"",OG7+1) -> 779 | OI7: =IF(OR(OH7="",OH7>$C$3-1),"",OH7+1) -> 780
A8: =IF(Principal!M18="","",MATCH(Principal!M18,Datos!A:A,0)) -> 8 | B8: =IF(A8="","",INDIRECT("Datos!A"&Espectros!A8,TRUE)) -> Blue (465-480) XP-E2 | C8: =IF(A8="","",IF(INDIRECT("Datos!D"&Espectros!A8,TRUE)=0,"",INDIRECT("Datos!D"&Espectros!A8,TRUE))) ->  | D8: =IF(A8="","",IF(INDIRECT("Datos!E"&Espectros!A8,TRUE)=0,"",INDIRECT("Datos!E"&Espectros!A8,TRUE))) -> 464 | E8: =IF(D8="","",(D8-$C$2)*($F$3-$F$2) / ($C$3-$C$2)+$F$2) -> 1.897435897 | F8: =IF(AND(C8="",D8=""),"",IF(C8="",1,IF(1-((6000-C8)/10000)>=0.98,0.98,1-((6500-C8)/10000)))) -> 1 | G8: =IF(C8="","",1-(ABS(2000-C8)/10000)) ->  | H8: =IF(C8="","",IF(C8>6500,0,ABS(6500-C8)/10000)*1.4) ->  | I8: =IF($A8="","",IF($D8="",($F8*EXP(1)^(-(((I$6-1.41)^2)/0.2)))+($G8*EXP(1)^(-(((I$6-$H8-4.52)^2)/3))),$F8*EXP(1)^(-(((I$6-$E8)^2)/0.2)))) -> 1.520996663e-08 | J8: =IF($A8="","",IF($D8="",($F8*EXP(1)^(-(((J$6-1.41)^2)/0.2)))+($G8*EXP(1)^(-(((J$6-$H8-4.52)^2)/3))),$F8*EXP(1)^(-(((J$6-$E8)^2)/0.2)))) -> 2.466007716e-08 | K8: 3.971963773e-08 | L8: 6.355662169e-08 | M8: 1.010324787e-07 | N8: 1.595533363e-07 | O8: 2.503199419e-07 | P8: 3.901482712e-07 | Q8: 6.040996753e-07 | R8: 9.292491998e-07 | S8: 1.420039638e-06 | T8: 2.155824567e-06 | U8: 3.25140481e-06 | V8: 4.871619377e-06 | W8: 7.251374458e-06 | X8: 1.072289353e-05 | Y8: 1.575245809e-05 | Z8: 2.298949069e-05 | AA8: 3.333151433e-05 | AB8: 4.800930492e-05 | AC8: 6.86974267e-05 | AD8: 9.765628485e-05 | AE8: 0.0001379128093 | AF8: 0.0001934878462 | AG8: 0.0002696792012 | AH8: 0.0003734099568 | AI8: 0.0005136520347 | AJ8: 0.0007019348574 | AK8: 0.0009529481786 | AL8: 0.001285246521 | AM8: 0.001722059955 | AN8: 0.002292211971 | AO8: 0.003031139771 | AP8: 0.003982005243 | AQ8: 0.005196876186 | AR8: 0.006737946999 | AS8: 0.008678756208 | AT8: 0.01110534527 | AU8: 0.01411728946 | AV8: 0.01782851834 | AW8: 0.02236783046 | AX8: 0.02787899735 | AY8: 0.03452034415 | AZ8: 0.04246369296 | BA8: 0.05189255844 | BB8: 0.06299949718 | BC8: 0.07598253194 | BD8: 0.09104060127 | BE8: 0.1083680232 | BF8: 0.1281480091 | BG8: 0.1505453179 | BH8: 0.1756982036 | BI8: 0.2037098678 | BJ8: 0.2346396979 | BK8: 0.2684946229 | BL8: 0.3052209728 | BM8: 0.344697259 | BN8: 0.3867283103 | BO8: 0.4310411961 | BP8: 0.4772833351 | BQ8: 0.5250231343 | BR8: 0.5737534207 | BS8: 0.6228978234 | BT8: 0.6718201363 | BU8: 0.7198365562 | BV8: =IF($A8="","",IF($D8="",($F8*EXP(1)^(-(((BV$6-1.41)^2)/0.2)))+($G8*EXP(1)^(-(((BV$6-$H8-4.52)^2)/3))),$F8*EXP(1)^(-(((BV$6-$E8)^2)/0.2)))) -> 0.7662305393 | BW8: 0.8102698791 | BX8: 0.8512254703 | BY8: 0.8883911087 | BZ8: 0.9211035891 | CA8: 0.9487623097 | CB8: 0.9708475765 | CC8: 0.9869368297 | CD8: 0.9967180863 | CE8: 1 | CF8: 0.9967180863 | CG8: 0.9869368297 | CH8: 0.9708475765 | CI8: 0.9487623097 | CJ8: 0.9211035891 | CK8: 0.8883911087 | CL8: 0.8512254703 | CM8: 0.8102698791 | CN8: 0.7662305393 | CO8: 0.7198365562 | CP8: 0.6718201363 | CQ8: 0.6228978234 | CR8: 0.5737534207 | CS8: 0.5250231343 | CT8: 0.4772833351 | CU8: 0.4310411961 | CV8: 0.3867283103 | CW8: 0.344697259 | CX8: 0.3052209728 | CY8: 0.2684946229 | CZ8: 0.2346396979 | DA8: 0.2037098678 | DB8: 0.1756982036 | DC8: 0.1505453179 | DD8: 0.1281480091 | DE8: 0.1083680232 | DF8: 0.09104060127 | DG8: 0.07598253194 | DH8: 0.06299949718 | DI8: 0.05189255844 | DJ8: 0.04246369296 | DK8: 0.03452034415 | DL8: 0.02787899735 | DM8: 0.02236783046 | DN8: 0.01782851834 | DO8: 0.01411728946 | DP8: 0.01110534527 | DQ8: 0.008678756208 | DR8: 0.006737946999 | DS8: 0.005196876186 | DT8: 0.003982005243 | DU8: 0.003031139771 | DV8: 0.002292211971 | DW8: 0.001722059955 | DX8: 0.001285246521 | DY8: 0.0009529481786 | DZ8: 0.0007019348574 | EA8: 0.0005136520347 | EB8: 0.0003734099568 | EC8: 0.0002696792012 | ED8: 0.0001934878462 | EE8: 0.0001379128093 | EF8: 9.765628485e-05 | EG8: 6.86974267e-05 | EH8: =IF($A8="","",IF($D8="",($F8*EXP(1)^(-(((EH$6-1.41)^2)/0.2)))+($G8*EXP(1)^(-(((EH$6-$H8-4.52)^2)/3))),$F8*EXP(1)^(-(((EH$6-$E8)^2)/0.2)))) -> 4.800930492e-05 | EI8: 3.333151433e-05 | EJ8: 2.298949069e-05 | EK8: 1.575245809e-05 | EL8: 1.072289353e-05 | EM8: 7.251374458e-06 | EN8: 4.871619377e-06 | EO8: 3.25140481e-06 | EP8: 2.155824567e-06 | EQ8: 1.420039638e-06 | ER8: 9.292491998e-07 | ES8: 6.040996753e-07 | ET8: 3.901482712e-07 | EU8: 2.503199419e-07 | EV8: 1.595533363e-07 | EW8: 1.010324787e-07 | EX8: 6.355662169e-08 | EY8: 3.971963773e-08 | EZ8: 2.466007716e-08 | FA8: 1.520996663e-08 | FB8: 9.319803796e-09 | FC8: 5.673224317e-09 | FD8: 3.430819105e-09 | FE8: 2.061153622e-09 | FF8: 1.230176941e-09 | FG8: 7.294062495e-10 | FH8: 4.296512266e-10 | FI8: 2.514243349e-10 | FJ8: 1.461649498e-10 | FK8: 8.44158216e-11 | FL8: 4.843386641e-11 | FM8: 2.760699301e-11 | FN8: 1.56326912e-11 | FO8: 8.794133837e-12 | FP8: 4.91470065e-12 | FQ8: 2.728636901e-12 | FR8: 1.505009023e-12 | FS8: 8.24664192e-13 | FT8: 4.489105881e-13 | FU8: 2.42765651e-13 | FV8: 1.304245376e-13 | FW8: 6.961070805e-14 | FX8: 3.690944158e-14 | FY8: 1.944211806e-14 | FZ8: 1.017406142e-14 | GA8: 5.289197847e-15 | GB8: 2.731680785e-15 | GC8: 1.401569896e-15 | GD8: 7.144046162e-16 | GE8: 3.617582309e-16 | GF8: 1.81985702e-16 | GG8: 9.09496e-17 | GH8: 4.515532749e-17 | GI8: 2.227213638e-17 | GJ8: 1.091338399e-17 | GK8: 5.312533396e-18 | GL8: 2.569144834e-18 | GM8: 1.234298442e-18 | GN8: 5.89110077e-19 | GO8: 2.793298836e-19 | GP8: 1.315779231e-19 | GQ8: 6.157342783e-20 | GR8: 2.862518581e-20 | GS8: 1.322050288e-20 | GT8: =IF($A8="","",IF($D8="",($F8*EXP(1)^(-(((GT$6-1.41)^2)/0.2)))+($G8*EXP(1)^(-(((GT$6-$H8-4.52)^2)/3))),$F8*EXP(1)^(-(((GT$6-$E8)^2)/0.2)))) -> 6.065859035e-21 | GU8: 2.764912106e-21 | GV8: 1.252030834e-21 | GW8: 5.632398796e-22 | GX8: 2.517192606e-22 | GY8: 1.117594294e-22 | GZ8: 4.929428618e-23 | HA8: 2.159999578e-23 | HB8: 9.402761677e-24 | HC8: 4.066322961e-24 | HD8: 1.74700033e-24 | HE8: 7.456392881e-25 | HF8: 3.161616994e-25 | HG8: 1.33178589e-25 | HH8: 5.573195007e-26 | HI8: 2.316961127e-26 | HJ8: 9.569250716e-27 | HK8: 3.926284786e-27 | HL8: 1.60040662e-27 | HM8: 6.480724489e-28 | HN8: 2.607122614e-28 | HO8: 1.041943171e-28 | HP8: 4.136864406e-29 | HQ8: 1.631710912e-29 | HR8: 6.393811488e-30 | HS8: 2.488978329e-30 | HT8: 9.625583833e-31 | HU8: 3.698092112e-31 | HV8: 1.41147453e-31 | HW8: 5.351962298e-32 | HX8: 2.0160334e-32 | HY8: 7.544441202e-33 | HZ8: 2.804794916e-33 | IA8: 1.035904746e-33 | IB8: 3.800871718e-34 | IC8: 1.385451347e-34 | ID8: 5.016999117e-35 | IE8: 1.804851388e-35 | IF8: 6.450353988e-36 | IG8: 2.290183746e-36 | IH8: 8.077961613e-37 | II8: 2.830596205e-37 | IJ8: 9.853686322e-38 | IK8: 3.407722517e-38 | IL8: 1.170777568e-38 | IM8: 3.996034598e-39 | IN8: 1.354967145e-39 | IO8: 4.564287237e-40 | IP8: 1.527431871e-40 | IQ8: 5.07803169e-41 | IR8: 1.677156708e-41 | IS8: 5.502962562e-42 | IT8: 1.793759238e-42 | IU8: 5.808666217e-43 | IV8: 1.868673255e-43 | IW8: 5.972208983e-44 | IX8: 1.896187594e-44 | IY8: 5.980979079e-45 | IZ8: 1.87416552e-45 | JA8: 5.834293621e-46 | JB8: 1.8043189e-46 | JC8: 5.543486479e-47 | JD8: 1.691988336e-47 | JE8: 5.130461288e-48 | JF8: =IF($A8="","",IF($D8="",($F8*EXP(1)^(-(((JF$6-1.41)^2)/0.2)))+($G8*EXP(1)^(-(((JF$6-$H8-4.52)^2)/3))),$F8*EXP(1)^(-(((JF$6-$E8)^2)/0.2)))) -> 1.545468448e-48 | JG8: 4.624966052e-49 | JH8: 1.374996629e-49 | JI8: 4.061059901e-50 | JJ8: 1.191576242e-50 | JK8: 3.47335324e-51 | JL8: 1.005821117e-51 | JM8: 2.893591521e-52 | JN8: 8.269864143e-53 | JO8: 2.348033046e-53 | JP8: 6.622999353e-54 | JQ8: 1.855880029e-54 | JR8: 5.166420633e-55 | JS8: 1.428809417e-55 | JT8: 3.925577207e-56 | JU8: 1.071463598e-56 | JV8: 2.905333532e-57 | JW8: 7.826349714e-58 | JX8: 2.094436422e-58 | JY8: 5.568263658e-59 | JZ8: 1.470676248e-59 | KA8: 3.858860188e-60 | KB8: 1.005878874e-60 | KC8: 2.604815745e-61 | KD8: 6.701206601e-62 | KE8: 1.712669978e-62 | KF8: 4.348495651e-63 | KG8: 1.096854631e-63 | KH8: 2.748550902e-64 | KI8: 6.842316724e-65 | KJ8: 1.69218266e-65 | KK8: 4.157535684e-66 | KL8: 1.01477418e-66 | KM8: 2.460636769e-67 | KN8: 5.927482605e-68 | KO8: 1.418527452e-68 | KP8: 3.372483859e-69 | KQ8: 7.965383545e-70 | KR8: 1.868995188e-70 | KS8: 4.356666859e-71 | KT8: 1.008893209e-71 | KU8: 2.321029836e-72 | KV8: 5.304701195e-73 | KW8: 1.204441764e-73 | KX8: 2.716785589e-74 | KY8: 6.087929316e-75 | KZ8: 1.355278397e-75 | LA8: 2.997313075e-76 | LB8: 6.585372998e-77 | LC8: 1.437385723e-77 | LD8: 3.116814482e-78 | LE8: 6.714184288e-79 | LF8: 1.436879139e-79 | LG8: 3.054864135e-80 | LH8: 6.452206197e-81 | LI8: 1.353845962e-81 | LJ8: 2.822116566e-82 | LK8: 5.844203366e-83 | LL8: 1.202320827e-83 | LM8: 2.457310849e-84 | LN8: 4.989356128e-85 | LO8: 1.006406859e-85 | LP8: 2.0167281e-86 | LQ8: 4.014817324e-87 | LR8: =IF($A8="","",IF($D8="",($F8*EXP(1)^(-(((LR$6-1.41)^2)/0.2)))+($G8*EXP(1)^(-(((LR$6-$H8-4.52)^2)/3))),$F8*EXP(1)^(-(((LR$6-$E8)^2)/0.2)))) -> 7.940153662e-88 | LS8: 1.560043481e-88 | LT8: 3.045013179e-89 | LU8: 5.904543524e-90 | LV8: 1.137439112e-90 | LW8: 2.176780636e-91 | LX8: 4.138527553e-92 | LY8: 7.816668864e-93 | LZ8: 1.466703255e-93 | MA8: 2.734056438e-94 | MB8: 5.063110114e-95 | MC8: 9.314765973e-96 | MD8: 1.702437595e-96 | ME8: 3.091114787e-97 | MF8: 5.575755762e-98 | MG8: 9.991645776e-99 | MH8: 1.778750332e-99 | MI8: 3.145847295e-100 | MJ8: 5.527197184e-101 | MK8: 9.647548209e-102 | ML8: 1.672914072e-102 | MM8: 2.881874004e-103 | MN8: 4.93197677e-104 | MO8: 8.385167323e-105 | MP8: 1.416273477e-105 | MQ8: 2.376441834e-106 | MR8: 3.961429521e-107 | MS8: 6.5602646e-108 | MT8: 1.0792833e-108 | MU8: 1.763982352e-109 | MV8: 2.864162752e-110 | MW8: 4.620040972e-111 | MX8: 7.403526575e-112 | MY8: 1.178626306e-112 | MZ8: 1.864053181e-113 | NA8: 2.928769175e-114 | NB8: 4.571478372e-115 | NC8: 7.08880242e-116 | ND8: 1.092027945e-116 | NE8: 1.671241881e-117 | NF8: 2.540911546e-118 | NG8: 3.837818756e-119 | NH8: 5.758694678e-120 | NI8: 8.584367927e-121 | NJ8: 1.271268457e-121 | NK8: 1.870298379e-122 | NL8: 2.733563718e-123 | NM8: 3.969101303e-124 | NN8: 5.72532103e-125 | NO8: 8.204501171e-126 | NP8: 1.16801709e-126 | NQ8: 1.65192715e-127 | NR8: 2.321011343e-128 | NS8: 3.239726234e-129 | NT8: 4.492458153e-130 | NU8: 6.188771471e-131 | NV8: 8.469729292e-132 | NW8: 1.151540698e-132 | NX8: 1.555370046e-133 | NY8: 2.087049975e-134 | NZ8: 2.782125033e-135 | OA8: 3.68438595e-136 | OB8: 4.847281805e-137 | OC8: 6.335430022e-138 | OD8: =IF($A8="","",IF($D8="",($F8*EXP(1)^(-(((OD$6-1.41)^2)/0.2)))+($G8*EXP(1)^(-(((OD$6-$H8-4.52)^2)/3))),$F8*EXP(1)^(-(((OD$6-$E8)^2)/0.2)))) -> 8.226187528e-139 | OE8: 1.061123154e-139 | OF8: 1.359808195e-140 | OG8: 1.731147989e-141 | OH8: 2.189451931e-142 | OI8: 2.750941227e-143
A9: =IF(Principal!M19="","",MATCH(Principal!M19,Datos!A:A,0)) -> 27 | B9: =IF(A9="","",INDIRECT("Datos!A"&Espectros!A9,TRUE)) -> Blanco Frío (6000K) XP-G2 | C9: =IF(A9="","",IF(INDIRECT("Datos!D"&Espectros!A9,TRUE)=0,"",INDIRECT("Datos!D"&Espectros!A9,TRUE))) -> 6000 | D9: =IF(A9="","",IF(INDIRECT("Datos!E"&Espectros!A9,TRUE)=0,"",INDIRECT("Datos!E"&Espectros!A9,TRUE))) ->  | E9: =IF(D9="","",(D9-$C$2)*($F$3-$F$2) / ($C$3-$C$2)+$F$2) ->  | F9: =IF(AND(C9="",D9=""),"",IF(C9="",1,IF(1-((6000-C9)/10000)>=0.98,0.98,1-((6500-C9)/10000)))) -> 0.98 | G9: =IF(C9="","",1-(ABS(2000-C9)/10000)) -> 0.6 | H9: =IF(C9="","",IF(C9>6500,0,ABS(6500-C9)/10000)*1.4) -> 0.07 | I9: =IF($A9="","",IF($D9="",($F9*EXP(1)^(-(((I$6-1.41)^2)/0.2)))+($G9*EXP(1)^(-(((I$6-$H9-4.52)^2)/3))),$F9*EXP(1)^(-(((I$6-$E9)^2)/0.2)))) -> 0.0005820687943 | J9: 0.0006459407165 | K9: 0.0007212120568 | L9: 0.000811079543 | M9: 0.0009197295481 | N9: 0.001052616693 | O9: 0.001216806531 | P9: 0.001421392091 | Q9: 0.00167799393 | R9: 0.002001352573 | S9: 0.002410020601 | T9: 0.002927159006 | U9: 0.003581438494 | V9: 0.004408041098 | W9: 0.005449750511 | X9: 0.006758111046 | Y9: 0.008394624906 | Z9: 0.0104319459 | AA9: 0.01295501499 | AB9: 0.0160620698 | AC9: 0.01986544692 | AD9: 0.02449208376 | AE9: 0.03008361664 | AF9: 0.03679596506 | AG9: 0.04479829011 | AH9: 0.0542712193 | AI9: 0.06540424092 | AJ9: 0.07839219136 | AK9: 0.09343078683 | AL9: 0.110711189 | AM9: 0.1304136404 | AN9: 0.1527002587 | AO9: 0.1777071395 | AP9: 0.2055359779 | AQ9: 0.2362454811 | AR9: 0.2698429011 | AS9: 0.3062760648 | AT9: 0.3454263097 | AU9: 0.3871027539 | AV9: 0.4310383204 | AW9: 0.4768879074 | AX9: 0.524229041 | AY9: 0.5725652669 | AZ9: 0.6213324343 | BA9: 0.6699079004 | BB9: 0.7176225508 | BC9: 0.7637753827 | BD9: 0.8076502605 | BE9: 0.8485343176 | BF9: 0.8857373662 | BG9: 0.9186115926 | BH9: 0.9465707592 | BI9: 0.9691081255 | BJ9: 0.9858123258 | BK9: 0.9963805108 | BL9: 1.00062817 | BM9: 0.9984951904 | BN9: 0.9900478818 | BO9: 0.9754768658 | BP9: 0.9550909367 | BQ9: 0.9293071635 | BR9: 0.898637685 | BS9: 0.8636737814 | BT9: 0.8250679164 | BU9: 0.7835145144 | BV9: 0.7397302605 | BW9: 0.6944347005 | BX9: 0.6483318627 | BY9: 0.6020935379 | BZ9: 0.5563447399 | CA9: 0.5116517367 | CB9: 0.4685128992 | CC9: 0.4273524729 | CD9: 0.3885172385 | CE9: 0.3522759076 | CF9: 0.3188209951 | CG9: 0.2882728293 | CH9: 0.2606853094 | CI9: 0.2360529862 | CJ9: 0.2143190426 | CK9: 0.1953837619 | CL9: 0.1791131092 | CM9: 0.1653470979 | CN9: 0.1539076703 | CO9: 0.1446058827 | CP9: 0.1372482469 | CQ9: 0.1316421406 | CR9: 0.1276002511 | CS9: 0.1249440639 | CT9: 0.1235064461 | CU9: 0.1231334001 | CV9: 0.1236850871 | CW9: 0.1250362253 | CX9: 0.1270759785 | CY9: 0.1297074411 | CZ9: 0.1328468263 | DA9: 0.1364224482 | DB9: 0.140373579 | DC9: 0.1446492506 | DD9: 0.1492070522 | DE9: 0.1540119686 | DF9: 0.1590352862 | DG9: 0.1642535898 | DH9: 0.1696478588 | DI9: 0.1752026692 | DJ9: 0.1809054997 | DK9: 0.1867461385 | DL9: 0.1927161809 | DM9: 0.1988086124 | DN9: 0.2050174642 | DO9: 0.2113375339 | DP9: 0.217764161 | DQ9: 0.2242930475 | DR9: 0.2309201179 | DS9: 0.2376414099 | DT9: 0.2444529901 | DU9: 0.2513508903 | DV9: 0.2583310597 | DW9: 0.2653893296 | DX9: 0.2725213878 | DY9: 0.2797227606 | DZ9: 0.2869888006 | EA9: 0.2943146794 | EB9: 0.3016953826 | EC9: 0.3091257091 | ED9: 0.3166002711 | EE9: 0.3241134963 | EF9: 0.3316596317 | EG9: 0.3392327477 | EH9: 0.3468267441 | EI9: 0.3544353561 | EJ9: 0.3620521616 | EK9: 0.3696705883 | EL9: 0.3772839227 | EM9: 0.3848853184 | EN9: 0.3924678053 | EO9: 0.4000242999 | EP9: 0.4075476153 | EQ9: 0.4150304718 | ER9: 0.4224655081 | ES9: 0.4298452929 | ET9: 0.4371623367 | EU9: 0.4444091041 | EV9: 0.4515780263 | EW9: 0.4586615139 | EX9: 0.4656519697 | EY9: 0.4725418028 | EZ9: 0.4793234411 | FA9: 0.4859893456 | FB9: 0.4925320241 | FC9: 0.4989440449 | FD9: 0.5052180508 | FE9: 0.511346773 | FF9: 0.5173230452 | FG9: 0.5231398173 | FH9: 0.5287901693 | FI9: 0.5342673248 | FJ9: 0.5395646647 | FK9: 0.5446757404 | FL9: 0.5495942867 | FM9: 0.554314235 | FN9: 0.5588297252 | FO9: 0.5631351181 | FP9: 0.5672250073 | FQ9: 0.57109423 | FR9: 0.5747378785 | FS9: 0.5781513099 | FT9: 0.5813301564 | FU9: 0.5842703346 | FV9: 0.5869680541 | FW9: 0.5894198254 | FX9: 0.591622468 | FY9: 0.5935731169 | FZ9: 0.5952692287 | GA9: 0.5967085876 | GB9: 0.5978893097 | GC9: 0.5988098473 | GD9: 0.5994689925 | GE9: 0.5998658796 | GF9: 0.5999999869 | GG9: 0.5998711381 | GH9: 0.5994795027 | GI9: 0.5988255953 | GJ9: 0.5979102748 | GK9: 0.5967347424 | GL9: 0.5953005389 | GM9: 0.5936095415 | GN9: 0.5916639595 | GO9: 0.5894663298 | GP9: 0.5870195109 | GQ9: 0.5843266773 | GR9: 0.5813913121 | GS9: 0.5782171998 | GT9: 0.5748084183 | GU9: 0.5711693296 | GV9: 0.5673045711 | GW9: 0.5632190455 | GX9: 0.5589179104 | GY9: 0.5544065677 | GZ9: 0.5496906518 | HA9: 0.5447760186 | HB9: 0.5396687328 | HC9: 0.5343750555 | HD9: 0.528901432 | HE9: 0.5232544781 | HF9: 0.517440967 | HG9: 0.5114678162 | HH9: 0.5053420731 | HI9: 0.499070902 | HJ9: 0.4926615696 | HK9: 0.4861214317 | HL9: 0.4794579184 | HM9: 0.472678521 | HN9: 0.4657907778 | HO9: 0.45880226 | HP9: 0.4517205587 | HQ9: 0.4445532707 | HR9: 0.4373079859 | HS9: 0.4299922736 | HT9: 0.42261367 | HU9: 0.4151796657 | HV9: 0.4076976931 | HW9: 0.4001751151 | HX9: 0.392619213 | HY9: 0.3850371756 | HZ9: 0.3774360887 | IA9: 0.3698229242 | IB9: 0.3622045309 | IC9: 0.3545876246 | ID9: 0.3469787796 | IE9: 0.3393844198 | IF9: 0.3318108113 | IG9: 0.3242640546 | IH9: 0.3167500779 | II9: 0.3092746309 | IJ9: 0.3018432784 | IK9: 0.2944613958 | IL9: 0.2871341638 | IM9: 0.2798665644 | IN9: 0.272663377 | IO9: 0.2655291757 | IP9: 0.2584683262 | IQ9: 0.2514849841 | IR9: 0.2445830928 | IS9: 0.237766383 | IT9: 0.2310383717 | IU9: 0.2244023623 | IV9: 0.2178614445 | IW9: 0.2114184957 | IX9: 0.2050761819 | IY9: 0.1988369593 | IZ9: 0.1927030765 | JA9: 0.1866765769 | JB9: 0.1807593014 | JC9: 0.1749528916 | JD9: 0.1692587935 | JE9: 0.1636782609 | JF9: 0.1582123599 | JG9: 0.1528619727 | JH9: 0.147627803 | JI9: 0.1425103802 | JJ9: 0.1375100645 | JK9: 0.1326270525 | JL9: 0.1278613824 | JM9: 0.1232129394 | JN9: 0.1186814617 | JO9: 0.1142665459 | JP9: 0.1099676534 | JQ9: 0.105784116 | JR9: 0.1017151421 | JS9: 0.09775982242 | JT9: 0.0939171366 | JU9: 0.09018595893 | JV9: 0.0865650645 | JW9: 0.08305313524 | JX9: 0.07964876598 | JY9: 0.07635047032 | JZ9: 0.07315668655 | KA9: 0.07006578345 | KB9: 0.06707606597 | KC9: 0.06418578086 | KD9: 0.06139312217 | KE9: 0.05869623657 | KF9: 0.05609322863 | KG9: 0.05358216589 | KH9: 0.05116108386 | KI9: 0.04882799075 | KJ9: 0.04658087217 | KK9: 0.04441769558 | KL9: 0.04233641464 | KM9: 0.04033497331 | KN9: 0.03841130984 | KO9: 0.03656336057 | KP9: 0.03478906356 | KQ9: 0.03308636202 | KR9: 0.03145320759 | KS9: 0.02988756339 | KT9: 0.02838740701 | KU9: 0.02695073315 | KV9: 0.02557555628 | KW9: 0.02425991297 | KX9: 0.02300186412 | KY9: 0.02179949705 | KZ9: 0.02065092737 | LA9: 0.01955430072 | LB9: 0.01850779437 | LC9: 0.01750961862 | LD9: 0.0165580181 | LE9: 0.01565127291 | LF9: 0.01478769965 | LG9: 0.01396565222 | LH9: 0.01318352265 | LI9: 0.01243974168 | LJ9: 0.01173277925 | LK9: 0.01106114491 | LL9: 0.01042338814 | LM9: 0.009818098456 | LN9: 0.009243905586 | LO9: 0.008699479409 | LP9: 0.008183529892 | LQ9: 0.00769480692 | LR9: 0.007232100055 | LS9: 0.00679423822 | LT9: 0.00638008933 | LU9: 0.005988559847 | LV9: 0.005618594294 | LW9: 0.005269174711 | LX9: 0.004939320064 | LY9: 0.004628085615 | LZ9: 0.004334562256 | MA9: 0.004057875803 | MB9: 0.003797186268 | MC9: 0.0035516871 | MD9: 0.003320604401 | ME9: 0.003103196136 | MF9: 0.002898751308 | MG9: 0.002706589137 | MH9: 0.002526058225 | MI9: 0.002356535703 | MJ9: 0.002197426393 | MK9: 0.002048161953 | ML9: 0.001908200025 | MM9: 0.001777023395 | MN9: 0.001654139143 | MO9: 0.001539077812 | MP9: 0.001431392578 | MQ9: 0.001330658431 | MR9: 0.001236471368 | MS9: 0.001148447597 | MT9: 0.001066222758 | MU9: 0.0009894511501 | MV9: 0.0009178049857 | MW9: 0.0008509736502 | MX9: 0.0007886629846 | MY9: 0.0007305945842 | MZ9: 0.0006765051144 | NA9: 0.0006261456462 | NB9: 0.0005792810094 | NC9: 0.0005356891653 | ND9: 0.0004951605983 | NE9: 0.000457497727 | NF9: 0.0004225143344 | NG9: 0.0003900350173 | NH9: 0.0003598946552 | NI9: 0.000331937898 | NJ9: 0.0003060186727 | NK9: 0.0002819997089 | NL9: 0.0002597520825 | NM9: 0.0002391547777 | NN9: 0.0002200942668 | NO9: 0.0002024641076 | NP9: 0.0001861645575 | NQ9: 0.0001711022051 | NR9: 0.000157189617 | NS9: 0.0001443450018 | NT9: 0.0001324918883 | NU9: 0.0001215588197 | NV9: 0.0001114790617 | NW9: 0.0001021903249 | NX9: 9.363450102e-05 | NY9: 8.575741196e-05 | NZ9: 7.850857181e-05 | OA9: 7.184096098e-05 | OB9: 6.571081206e-05 | OC9: 6.007740712e-05 | OD9: 5.490288579e-05 | OE9: 5.015206378e-05 | OF9: 4.57922614e-05 | OG9: 4.17931416e-05 | OH9: 3.812655722e-05 | OI9: 3.476640687e-05
A10: =IF(Principal!M20="","",MATCH(Principal!M20,Datos!A:A,0)) -> 24 | B10: =IF(A10="","",INDIRECT("Datos!A"&Espectros!A10,TRUE)) -> Royal Blue (440-450) XT-E | C10: =IF(A10="","",IF(INDIRECT("Datos!D"&Espectros!A10,TRUE)=0,"",INDIRECT("Datos!D"&Espectros!A10,TRUE))) ->  | D10: =IF(A10="","",IF(INDIRECT("Datos!E"&Espectros!A10,TRUE)=0,"",INDIRECT("Datos!E"&Espectros!A10,TRUE))) -> 450 | E10: =IF(D10="","",(D10-$C$2)*($F$3-$F$2) / ($C$3-$C$2)+$F$2) -> 1.538461538 | F10: 1 | I10: 7.251374458e-06 | J10: 1.072289353e-05 | K10: 1.575245809e-05 | L10: 2.298949069e-05 | M10: 3.333151433e-05 | N10: 4.800930492e-05 | O10: 6.86974267e-05 | P10: 9.765628485e-05 | Q10: 0.0001379128093 | R10: 0.0001934878462 | S10: 0.0002696792012 | T10: 0.0003734099568 | U10: 0.0005136520347 | V10: 0.0007019348574 | W10: 0.0009529481786 | X10: 0.001285246521 | Y10: 0.001722059955 | Z10: 0.002292211971 | AA10: 0.003031139771 | AB10: 0.003982005243 | AC10: 0.005196876186 | AD10: 0.006737946999 | AE10: 0.008678756208 | AF10: 0.01110534527 | AG10: 0.01411728946 | AH10: 0.01782851834 | AI10: 0.02236783046 | AJ10: 0.02787899735 | AK10: 0.03452034415 | AL10: 0.04246369296 | AM10: 0.05189255844 | AN10: 0.06299949718 | AO10: 0.07598253194 | AP10: 0.09104060127 | AQ10: 0.1083680232 | AR10: 0.1281480091 | AS10: 0.1505453179 | AT10: 0.1756982036 | AU10: 0.2037098678 | AV10: 0.2346396979 | AW10: 0.2684946229 | AX10: 0.3052209728 | AY10: 0.344697259 | AZ10: 0.3867283103 | BA10: 0.4310411961 | BB10: 0.4772833351 | BC10: 0.5250231343 | BD10: 0.5737534207 | BE10: 0.6228978234 | BF10: 0.6718201363 | BG10: 0.7198365562 | BH10: 0.7662305393 | BI10: 0.8102698791 | BJ10: 0.8512254703 | BK10: 0.8883911087 | BL10: 0.9211035891 | BM10: 0.9487623097 | BN10: 0.9708475765 | BO10: 0.9869368297 | BP10: 0.9967180863 | BQ10: 1 | BR10: 0.9967180863 | BS10: 0.9869368297 | BT10: 0.9708475765 | BU10: 0.9487623097 | BV10: 0.9211035891 | BW10: 0.8883911087 | BX10: 0.8512254703 | BY10: 0.8102698791 | BZ10: 0.7662305393 | CA10: 0.7198365562 | CB10: 0.6718201363 | CC10: 0.6228978234 | CD10: 0.5737534207 | CE10: 0.5250231343 | CF10: 0.4772833351 | CG10: 0.4310411961 | CH10: 0.3867283103 | CI10: 0.344697259 | CJ10: 0.3052209728 | CK10: 0.2684946229 | CL10: 0.2346396979 | CM10: 0.2037098678 | CN10: 0.1756982036 | CO10: 0.1505453179 | CP10: 0.1281480091 | CQ10: 0.1083680232 | CR10: 0.09104060127 | CS10: 0.07598253194 | CT10: 0.06299949718 | CU10: 0.05189255844 | CV10: 0.04246369296 | CW10: 0.03452034415 | CX10: 0.02787899735 | CY10: 0.02236783046 | CZ10: 0.01782851834 | DA10: 0.01411728946 | DB10: 0.01110534527 | DC10: 0.008678756208 | DD10: 0.006737946999 | DE10: 0.005196876186 | DF10: 0.003982005243 | DG10: 0.003031139771 | DH10: 0.002292211971 | DI10: 0.001722059955 | DJ10: 0.001285246521 | DK10: 0.0009529481786 | DL10: 0.0007019348574 | DM10: 0.0005136520347 | DN10: 0.0003734099568 | DO10: 0.0002696792012 | DP10: 0.0001934878462 | DQ10: 0.0001379128093 | DR10: 9.765628485e-05 | DS10: 6.86974267e-05 | DT10: 4.800930492e-05 | DU10: 3.333151433e-05 | DV10: 2.298949069e-05 | DW10: 1.575245809e-05 | DX10: 1.072289353e-05 | DY10: 7.251374458e-06 | DZ10: 4.871619377e-06 | EA10: 3.25140481e-06 | EB10: 2.155824567e-06 | EC10: 1.420039638e-06 | ED10: 9.292491998e-07 | EE10: 6.040996753e-07 | EF10: 3.901482712e-07 | EG10: 2.503199419e-07 | EH10: 1.595533363e-07 | EI10: 1.010324787e-07 | EJ10: 6.355662169e-08 | EK10: 3.971963773e-08 | EL10: 2.466007716e-08 | EM10: 1.520996663e-08 | EN10: 9.319803796e-09 | EO10: 5.673224317e-09 | EP10: 3.430819105e-09 | EQ10: 2.061153622e-09 | ER10: 1.230176941e-09 | ES10: 7.294062495e-10 | ET10: 4.296512266e-10 | EU10: 2.514243349e-10 | EV10: 1.461649498e-10 | EW10: 8.44158216e-11 | EX10: 4.843386641e-11 | EY10: 2.760699301e-11 | EZ10: 1.56326912e-11 | FA10: 8.794133837e-12 | FB10: 4.91470065e-12 | FC10: 2.728636901e-12 | FD10: 1.505009023e-12 | FE10: 8.24664192e-13 | FF10: 4.489105881e-13 | FG10: 2.42765651e-13 | FH10: 1.304245376e-13 | FI10: 6.961070805e-14 | FJ10: 3.690944158e-14 | FK10: 1.944211806e-14 | FL10: 1.017406142e-14 | FM10: 5.289197847e-15 | FN10: 2.731680785e-15 | FO10: 1.401569896e-15 | FP10: 7.144046162e-16 | FQ10: 3.617582309e-16 | FR10: 1.81985702e-16 | FS10: 9.09496e-17 | FT10: 4.515532749e-17 | FU10: 2.227213638e-17 | FV10: 1.091338399e-17 | FW10: 5.312533396e-18 | FX10: 2.569144834e-18 | FY10: 1.234298442e-18 | FZ10: 5.89110077e-19 | GA10: 2.793298836e-19 | GB10: 1.315779231e-19 | GC10: 6.157342783e-20 | GD10: 2.862518581e-20 | GE10: 1.322050288e-20 | GF10: 6.065859035e-21 | GG10: 2.764912106e-21 | GH10: 1.252030834e-21 | GI10: 5.632398796e-22 | GJ10: 2.517192606e-22 | GK10: 1.117594294e-22 | GL10: 4.929428618e-23 | GM10: 2.159999578e-23 | GN10: 9.402761677e-24 | GO10: 4.066322961e-24 | GP10: 1.74700033e-24 | GQ10: 7.456392881e-25 | GR10: 3.161616994e-25 | GS10: 1.33178589e-25 | GT10: 5.573195007e-26 | GU10: 2.316961127e-26 | GV10: 9.569250716e-27 | GW10: 3.926284786e-27 | GX10: 1.60040662e-27 | GY10: 6.480724489e-28 | GZ10: 2.607122614e-28 | HA10: 1.041943171e-28 | HB10: 4.136864406e-29 | HC10: 1.631710912e-29 | HD10: 6.393811488e-30 | HE10: 2.488978329e-30 | HF10: 9.625583833e-31 | HG10: 3.698092112e-31 | HH10: 1.41147453e-31 | HI10: 5.351962298e-32 | HJ10: 2.0160334e-32 | HK10: 7.544441202e-33 | HL10: 2.804794916e-33 | HM10: 1.035904746e-33 | HN10: 3.800871718e-34 | HO10: 1.385451347e-34 | HP10: 5.016999117e-35 | HQ10: 1.804851388e-35 | HR10: 6.450353988e-36 | HS10: 2.290183746e-36 | HT10: 8.077961613e-37 | HU10: 2.830596205e-37 | HV10: 9.853686322e-38 | HW10: 3.407722517e-38 | HX10: 1.170777568e-38 | HY10: 3.996034598e-39 | HZ10: 1.354967145e-39 | IA10: 4.564287237e-40 | IB10: 1.527431871e-40 | IC10: 5.07803169e-41 | ID10: 1.677156708e-41 | IE10: 5.502962562e-42 | IF10: 1.793759238e-42 | IG10: 5.808666217e-43 | IH10: 1.868673255e-43 | II10: 5.972208983e-44 | IJ10: 1.896187594e-44 | IK10: 5.980979079e-45 | IL10: 1.87416552e-45 | IM10: 5.834293621e-46 | IN10: 1.8043189e-46 | IO10: 5.543486479e-47 | IP10: 1.691988336e-47 | IQ10: 5.130461288e-48 | IR10: 1.545468448e-48 | IS10: 4.624966052e-49 | IT10: 1.374996629e-49 | IU10: 4.061059901e-50 | IV10: 1.191576242e-50 | IW10: 3.47335324e-51 | IX10: 1.005821117e-51 | IY10: 2.893591521e-52 | IZ10: 8.269864143e-53 | JA10: 2.348033046e-53 | JB10: 6.622999353e-54 | JC10: 1.855880029e-54 | JD10: 5.166420633e-55 | JE10: 1.428809417e-55 | JF10: 3.925577207e-56 | JG10: 1.071463598e-56 | JH10: 2.905333532e-57 | JI10: 7.826349714e-58 | JJ10: 2.094436422e-58 | JK10: 5.568263658e-59 | JL10: 1.470676248e-59 | JM10: 3.858860188e-60 | JN10: 1.005878874e-60 | JO10: 2.604815745e-61 | JP10: 6.701206601e-62 | JQ10: 1.712669978e-62 | JR10: 4.348495651e-63 | JS10: 1.096854631e-63 | JT10: 2.748550902e-64 | JU10: 6.842316724e-65 | JV10: 1.69218266e-65 | JW10: 4.157535684e-66 | JX10: 1.01477418e-66 | JY10: 2.460636769e-67 | JZ10: 5.927482605e-68 | KA10: 1.418527452e-68 | KB10: 3.372483859e-69 | KC10: 7.965383545e-70 | KD10: 1.868995188e-70 | KE10: 4.356666859e-71 | KF10: 1.008893209e-71 | KG10: 2.321029836e-72 | KH10: 5.304701195e-73 | KI10: 1.204441764e-73 | KJ10: 2.716785589e-74 | KK10: 6.087929316e-75 | KL10: 1.355278397e-75 | KM10: 2.997313075e-76 | KN10: 6.585372998e-77 | KO10: 1.437385723e-77 | KP10: 3.116814482e-78 | KQ10: 6.714184288e-79 | KR10: 1.436879139e-79 | KS10: 3.054864135e-80 | KT10: 6.452206197e-81 | KU10: 1.353845962e-81 | KV10: 2.822116566e-82 | KW10: 5.844203366e-83 | KX10: 1.202320827e-83 | KY10: 2.457310849e-84 | KZ10: 4.989356128e-85 | LA10: 1.006406859e-85 | LB10: 2.0167281e-86 | LC10: 4.014817324e-87 | LD10: 7.940153662e-88 | LE10: 1.560043481e-88 | LF10: 3.045013179e-89 | LG10: 5.904543524e-90 | LH10: 1.137439112e-90 | LI10: 2.176780636e-91 | LJ10: 4.138527553e-92 | LK10: 7.816668864e-93 | LL10: 1.466703255e-93 | LM10: 2.734056438e-94 | LN10: 5.063110114e-95 | LO10: 9.314765973e-96 | LP10: 1.702437595e-96 | LQ10: 3.091114787e-97 | LR10: 5.575755762e-98 | LS10: 9.991645776e-99 | LT10: 1.778750332e-99 | LU10: 3.145847295e-100 | LV10: 5.527197184e-101 | LW10: 9.647548209e-102 | LX10: 1.672914072e-102 | LY10: 2.881874004e-103 | LZ10: 4.93197677e-104 | MA10: 8.385167323e-105 | MB10: 1.416273477e-105 | MC10: 2.376441834e-106 | MD10: 3.961429521e-107 | ME10: 6.5602646e-108 | MF10: 1.0792833e-108 | MG10: 1.763982352e-109 | MH10: 2.864162752e-110 | MI10: 4.620040972e-111 | MJ10: 7.403526575e-112 | MK10: 1.178626306e-112 | ML10: 1.864053181e-113 | MM10: 2.928769175e-114 | MN10: 4.571478372e-115 | MO10: 7.08880242e-116 | MP10: 1.092027945e-116 | MQ10: 1.671241881e-117 | MR10: 2.540911546e-118 | MS10: 3.837818756e-119 | MT10: 5.758694678e-120 | MU10: 8.584367927e-121 | MV10: 1.271268457e-121 | MW10: 1.870298379e-122 | MX10: 2.733563718e-123 | MY10: 3.969101303e-124 | MZ10: 5.72532103e-125 | NA10: 8.204501171e-126 | NB10: 1.16801709e-126 | NC10: 1.65192715e-127 | ND10: 2.321011343e-128 | NE10: 3.239726234e-129 | NF10: 4.492458153e-130 | NG10: 6.188771471e-131 | NH10: 8.469729292e-132 | NI10: 1.151540698e-132 | NJ10: 1.555370046e-133 | NK10: 2.087049975e-134 | NL10: 2.782125033e-135 | NM10: 3.68438595e-136 | NN10: 4.847281805e-137 | NO10: 6.335430022e-138 | NP10: 8.226187528e-139 | NQ10: 1.061123154e-139 | NR10: 1.359808195e-140 | NS10: 1.731147989e-141 | NT10: 2.189451931e-142 | NU10: 2.750941227e-143 | NV10: 3.433775416e-144 | NW10: 4.25801454e-145 | NX10: 5.245502171e-146 | NY10: 6.419654867e-147 | NZ10: 7.805144849e-148 | OA10: 9.427465073e-149 | OB10: 1.131236931e-149 | OC10: 1.34851846e-150 | OD10: 1.596999921e-151 | OE10: 1.878873632e-152 | OF10: 2.196013099e-153 | OG10: 2.549863657e-154 | OH10: 2.941329439e-155 | OI10: 3.370660862e-156
A11: =IF(Principal!M21="","",MATCH(Principal!M21,Datos!A:A,0)) -> 10 | B11: =IF(A11="","",INDIRECT("Datos!A"&Espectros!A11,TRUE)) -> Green (520-525) XP-E | C11: =IF(A11="","",IF(INDIRECT("Datos!D"&Espectros!A11,TRUE)=0,"",INDIRECT("Datos!D"&Espectros!A11,TRUE))) ->  | D11: =IF(A11="","",IF(INDIRECT("Datos!E"&Espectros!A11,TRUE)=0,"",INDIRECT("Datos!E"&Espectros!A11,TRUE))) -> 520 | E11: =IF(D11="","",(D11-$C$2)*($F$3-$F$2) / ($C$3-$C$2)+$F$2) -> 3.333333333 | F11: 1 | I11: 7.456392881e-25 | J11: 1.74700033e-24 | K11: 4.066322961e-24 | L11: 9.402761677e-24 | M11: 2.159999578e-23 | N11: 4.929428618e-23 | O11: 1.117594294e-22 | P11: 2.517192606e-22 | Q11: 5.632398796e-22 | R11: 1.252030834e-21 | S11: 2.764912106e-21 | T11: 6.065859035e-21 | U11: 1.322050288e-20 | V11: 2.862518581e-20 | W11: 6.157342783e-20 | X11: 1.315779231e-19 | Y11: 2.793298836e-19 | Z11: 5.89110077e-19 | AA11: 1.234298442e-18 | AB11: 2.569144834e-18 | AC11: 5.312533396e-18 | AD11: 1.091338399e-17 | AE11: 2.227213638e-17 | AF11: 4.515532749e-17 | AG11: 9.09496e-17 | AH11: 1.81985702e-16 | AI11: 3.617582309e-16 | AJ11: 7.144046162e-16 | AK11: 1.401569896e-15 | AL11: 2.731680785e-15 | AM11: 5.289197847e-15 | AN11: 1.017406142e-14 | AO11: 1.944211806e-14 | AP11: 3.690944158e-14 | AQ11: 6.961070805e-14 | AR11: 1.304245376e-13 | AS11: 2.42765651e-13 | AT11: 4.489105881e-13 | AU11: 8.24664192e-13 | AV11: 1.505009023e-12 | AW11: 2.728636901e-12 | AX11: 4.91470065e-12 | AY11: 8.794133837e-12 | AZ11: 1.56326912e-11 | BA11: 2.760699301e-11 | BB11: 4.843386641e-11 | BC11: 8.44158216e-11 | BD11: 1.461649498e-10 | BE11: 2.514243349e-10 | BF11: 4.296512266e-10 | BG11: 7.294062495e-10 | BH11: 1.230176941e-09 | BI11: 2.061153622e-09 | BJ11: 3.430819105e-09 | BK11: 5.673224317e-09 | BL11: 9.319803796e-09 | BM11: 1.520996663e-08 | BN11: 2.466007716e-08 | BO11: 3.971963773e-08 | BP11: 6.355662169e-08 | BQ11: 1.010324787e-07 | BR11: 1.595533363e-07 | BS11: 2.503199419e-07 | BT11: 3.901482712e-07 | BU11: =IF($A11="","",IF($D11="",($F11*EXP(1)^(-(((BU$6-1.41)^2)/0.2)))+($G11*EXP(1)^(-(((BU$6-$H11-4.52)^2)/3))),$F11*EXP(1)^(-(((BU$6-$E11)^2)/0.2)))) -> 6.040996753e-07 | BV11: 9.292491998e-07 | BW11: 1.420039638e-06 | BX11: 2.155824567e-06 | BY11: 3.25140481e-06 | BZ11: 4.871619377e-06 | CA11: 7.251374458e-06 | CB11: 1.072289353e-05 | CC11: 1.575245809e-05 | CD11: 2.298949069e-05 | CE11: 3.333151433e-05 | CF11: 4.800930492e-05 | CG11: 6.86974267e-05 | CH11: 9.765628485e-05 | CI11: 0.0001379128093 | CJ11: 0.0001934878462 | CK11: 0.0002696792012 | CL11: 0.0003734099568 | CM11: 0.0005136520347 | CN11: 0.0007019348574 | CO11: 0.0009529481786 | CP11: 0.001285246521 | CQ11: 0.001722059955 | CR11: 0.002292211971 | CS11: 0.003031139771 | CT11: 0.003982005243 | CU11: 0.005196876186 | CV11: 0.006737946999 | CW11: 0.008678756208 | CX11: 0.01110534527 | CY11: 0.01411728946 | CZ11: 0.01782851834 | DA11: 0.02236783046 | DB11: 0.02787899735 | DC11: 0.03452034415 | DD11: 0.04246369296 | DE11: 0.05189255844 | DF11: 0.06299949718 | DG11: 0.07598253194 | DH11: 0.09104060127 | DI11: 0.1083680232 | DJ11: 0.1281480091 | DK11: 0.1505453179 | DL11: 0.1756982036 | DM11: 0.2037098678 | DN11: 0.2346396979 | DO11: 0.2684946229 | DP11: 0.3052209728 | DQ11: 0.344697259 | DR11: 0.3867283103 | DS11: 0.4310411961 | DT11: 0.4772833351 | DU11: 0.5250231343 | DV11: 0.5737534207 | DW11: 0.6228978234 | DX11: 0.6718201363 | DY11: 0.7198365562 | DZ11: 0.7662305393 | EA11: 0.8102698791 | EB11: 0.8512254703 | EC11: 0.8883911087 | ED11: 0.9211035891 | EE11: 0.9487623097 | EF11: 0.9708475765 | EG11: =IF($A11="","",IF($D11="",($F11*EXP(1)^(-(((EG$6-1.41)^2)/0.2)))+($G11*EXP(1)^(-(((EG$6-$H11-4.52)^2)/3))),$F11*EXP(1)^(-(((EG$6-$E11)^2)/0.2)))) -> 0.9869368297 | EH11: 0.9967180863 | EI11: 1 | EJ11: 0.9967180863 | EK11: 0.9869368297 | EL11: 0.9708475765 | EM11: 0.9487623097 | EN11: 0.9211035891 | EO11: 0.8883911087 | EP11: 0.8512254703 | EQ11: 0.8102698791 | ER11: 0.7662305393 | ES11: 0.7198365562 | ET11: 0.6718201363 | EU11: 0.6228978234 | EV11: 0.5737534207 | EW11: 0.5250231343 | EX11: 0.4772833351 | EY11: 0.4310411961 | EZ11: 0.3867283103 | FA11: 0.344697259 | FB11: 0.3052209728 | FC11: 0.2684946229 | FD11: 0.2346396979 | FE11: 0.2037098678 | FF11: 0.1756982036 | FG11: 0.1505453179 | FH11: 0.1281480091 | FI11: 0.1083680232 | FJ11: 0.09104060127 | FK11: 0.07598253194 | FL11: 0.06299949718 | FM11: 0.05189255844 | FN11: 0.04246369296 | FO11: 0.03452034415 | FP11: 0.02787899735 | FQ11: 0.02236783046 | FR11: 0.01782851834 | FS11: 0.01411728946 | FT11: 0.01110534527 | FU11: 0.008678756208 | FV11: 0.006737946999 | FW11: 0.005196876186 | FX11: 0.003982005243 | FY11: 0.003031139771 | FZ11: 0.002292211971 | GA11: 0.001722059955 | GB11: 0.001285246521 | GC11: 0.0009529481786 | GD11: 0.0007019348574 | GE11: 0.0005136520347 | GF11: 0.0003734099568 | GG11: 0.0002696792012 | GH11: 0.0001934878462 | GI11: 0.0001379128093 | GJ11: 9.765628485e-05 | GK11: 6.86974267e-05 | GL11: 4.800930492e-05 | GM11: 3.333151433e-05 | GN11: 2.298949069e-05 | GO11: 1.575245809e-05 | GP11: 1.072289353e-05 | GQ11: 7.251374458e-06 | GR11: 4.871619377e-06 | GS11: =IF($A11="","",IF($D11="",($F11*EXP(1)^(-(((GS$6-1.41)^2)/0.2)))+($G11*EXP(1)^(-(((GS$6-$H11-4.52)^2)/3))),$F11*EXP(1)^(-(((GS$6-$E11)^2)/0.2)))) -> 3.25140481e-06 | GT11: 2.155824567e-06 | GU11: 1.420039638e-06 | GV11: 9.292491998e-07 | GW11: 6.040996753e-07 | GX11: 3.901482712e-07 | GY11: 2.503199419e-07 | GZ11: 1.595533363e-07 | HA11: 1.010324787e-07 | HB11: 6.355662169e-08 | HC11: 3.971963773e-08 | HD11: 2.466007716e-08 | HE11: 1.520996663e-08 | HF11: 9.319803796e-09 | HG11: 5.673224317e-09 | HH11: 3.430819105e-09 | HI11: 2.061153622e-09 | HJ11: 1.230176941e-09 | HK11: 7.294062495e-10 | HL11: 4.296512266e-10 | HM11: 2.514243349e-10 | HN11: 1.461649498e-10 | HO11: 8.44158216e-11 | HP11: 4.843386641e-11 | HQ11: 2.760699301e-11 | HR11: 1.56326912e-11 | HS11: 8.794133837e-12 | HT11: 4.91470065e-12 | HU11: 2.728636901e-12 | HV11: 1.505009023e-12 | HW11: 8.24664192e-13 | HX11: 4.489105881e-13 | HY11: 2.42765651e-13 | HZ11: 1.304245376e-13 | IA11: 6.961070805e-14 | IB11: 3.690944158e-14 | IC11: 1.944211806e-14 | ID11: 1.017406142e-14 | IE11: 5.289197847e-15 | IF11: 2.731680785e-15 | IG11: 1.401569896e-15 | IH11: 7.144046162e-16 | II11: 3.617582309e-16 | IJ11: 1.81985702e-16 | IK11: 9.09496e-17 | IL11: 4.515532749e-17 | IM11: 2.227213638e-17 | IN11: 1.091338399e-17 | IO11: 5.312533396e-18 | IP11: 2.569144834e-18 | IQ11: 1.234298442e-18 | IR11: 5.89110077e-19 | IS11: 2.793298836e-19 | IT11: 1.315779231e-19 | IU11: 6.157342783e-20 | IV11: 2.862518581e-20 | IW11: 1.322050288e-20 | IX11: 6.065859035e-21 | IY11: 2.764912106e-21 | IZ11: 1.252030834e-21 | JA11: 5.632398796e-22 | JB11: 2.517192606e-22 | JC11: 1.117594294e-22 | JD11: 4.929428618e-23 | JE11: =IF($A11="","",IF($D11="",($F11*EXP(1)^(-(((JE$6-1.41)^2)/0.2)))+($G11*EXP(1)^(-(((JE$6-$H11-4.52)^2)/3))),$F11*EXP(1)^(-(((JE$6-$E11)^2)/0.2)))) -> 2.159999578e-23 | JF11: 9.402761677e-24 | JG11: 4.066322961e-24 | JH11: 1.74700033e-24 | JI11: 7.456392881e-25 | JJ11: 3.161616994e-25 | JK11: 1.33178589e-25 | JL11: 5.573195007e-26 | JM11: 2.316961127e-26 | JN11: 9.569250716e-27 | JO11: 3.926284786e-27 | JP11: 1.60040662e-27 | JQ11: 6.480724489e-28 | JR11: 2.607122614e-28 | JS11: 1.041943171e-28 | JT11: 4.136864406e-29 | JU11: 1.631710912e-29 | JV11: 6.393811488e-30 | JW11: 2.488978329e-30 | JX11: 9.625583833e-31 | JY11: 3.698092112e-31 | JZ11: 1.41147453e-31 | KA11: 5.351962298e-32 | KB11: 2.0160334e-32 | KC11: 7.544441202e-33 | KD11: 2.804794916e-33 | KE11: 1.035904746e-33 | KF11: 3.800871718e-34 | KG11: 1.385451347e-34 | KH11: 5.016999117e-35 | KI11: 1.804851388e-35 | KJ11: 6.450353988e-36 | KK11: 2.290183746e-36 | KL11: 8.077961613e-37 | KM11: 2.830596205e-37 | KN11: 9.853686322e-38 | KO11: 3.407722517e-38 | KP11: 1.170777568e-38 | KQ11: 3.996034598e-39 | KR11: 1.354967145e-39 | KS11: 4.564287237e-40 | KT11: 1.527431871e-40 | KU11: 5.07803169e-41 | KV11: 1.677156708e-41 | KW11: 5.502962562e-42 | KX11: 1.793759238e-42 | KY11: 5.808666217e-43 | KZ11: 1.868673255e-43 | LA11: 5.972208983e-44 | LB11: 1.896187594e-44 | LC11: 5.980979079e-45 | LD11: 1.87416552e-45 | LE11: 5.834293621e-46 | LF11: 1.8043189e-46 | LG11: 5.543486479e-47 | LH11: 1.691988336e-47 | LI11: 5.130461288e-48 | LJ11: 1.545468448e-48 | LK11: 4.624966052e-49 | LL11: 1.374996629e-49 | LM11: 4.061059901e-50 | LN11: 1.191576242e-50 | LO11: 3.47335324e-51 | LP11: 1.005821117e-51 | LQ11: =IF($A11="","",IF($D11="",($F11*EXP(1)^(-(((LQ$6-1.41)^2)/0.2)))+($G11*EXP(1)^(-(((LQ$6-$H11-4.52)^2)/3))),$F11*EXP(1)^(-(((LQ$6-$E11)^2)/0.2)))) -> 2.893591521e-52 | LR11: 8.269864143e-53 | LS11: 2.348033046e-53 | LT11: 6.622999353e-54 | LU11: 1.855880029e-54 | LV11: 5.166420633e-55 | LW11: 1.428809417e-55 | LX11: 3.925577207e-56 | LY11: 1.071463598e-56 | LZ11: 2.905333532e-57 | MA11: 7.826349714e-58 | MB11: 2.094436422e-58 | MC11: 5.568263658e-59 | MD11: 1.470676248e-59 | ME11: 3.858860188e-60 | MF11: 1.005878874e-60 | MG11: 2.604815745e-61 | MH11: 6.701206601e-62 | MI11: 1.712669978e-62 | MJ11: 4.348495651e-63 | MK11: 1.096854631e-63 | ML11: 2.748550902e-64 | MM11: 6.842316724e-65 | MN11: 1.69218266e-65 | MO11: 4.157535684e-66 | MP11: 1.01477418e-66 | MQ11: 2.460636769e-67 | MR11: 5.927482605e-68 | MS11: 1.418527452e-68 | MT11: 3.372483859e-69 | MU11: 7.965383545e-70 | MV11: 1.868995188e-70 | MW11: 4.356666859e-71 | MX11: 1.008893209e-71 | MY11: 2.321029836e-72 | MZ11: 5.304701195e-73 | NA11: 1.204441764e-73 | NB11: 2.716785589e-74 | NC11: 6.087929316e-75 | ND11: 1.355278397e-75 | NE11: 2.997313075e-76 | NF11: 6.585372998e-77 | NG11: 1.437385723e-77 | NH11: 3.116814482e-78 | NI11: 6.714184288e-79 | NJ11: 1.436879139e-79 | NK11: 3.054864135e-80 | NL11: 6.452206197e-81 | NM11: 1.353845962e-81 | NN11: 2.822116566e-82 | NO11: 5.844203366e-83 | NP11: 1.202320827e-83 | NQ11: 2.457310849e-84 | NR11: 4.989356128e-85 | NS11: 1.006406859e-85 | NT11: 2.0167281e-86 | NU11: 4.014817324e-87 | NV11: 7.940153662e-88 | NW11: 1.560043481e-88 | NX11: 3.045013179e-89 | NY11: 5.904543524e-90 | NZ11: 1.137439112e-90 | OA11: 2.176780636e-91 | OB11: 4.138527553e-92 | OC11: =IF($A11="","",IF($D11="",($F11*EXP(1)^(-(((OC$6-1.41)^2)/0.2)))+($G11*EXP(1)^(-(((OC$6-$H11-4.52)^2)/3))),$F11*EXP(1)^(-(((OC$6-$E11)^2)/0.2)))) -> 7.816668864e-93 | OD11: 1.466703255e-93 | OE11: 2.734056438e-94 | OF11: 5.063110114e-95 | OG11: 9.314765973e-96 | OH11: 1.702437595e-96 | OI11: 3.091114787e-97
A12: =IF(Principal!M22="","",MATCH(Principal!M22,Datos!A:A,0)) -> 23 | B12: =IF(A12="","",INDIRECT("Datos!A"&Espectros!A12,TRUE)) -> UV (410-420) Semiled | C12: =IF(A12="","",IF(INDIRECT("Datos!D"&Espectros!A12,TRUE)=0,"",INDIRECT("Datos!D"&Espectros!A12,TRUE))) ->  | D12: =IF(A12="","",IF(INDIRECT("Datos!E"&Espectros!A12,TRUE)=0,"",INDIRECT("Datos!E"&Espectros!A12,TRUE))) -> 420 | E12: 0.7692307692 | F12: 1 | I12: 0.05189255844 | J12: 0.06299949718 | K12: 0.07598253194 | L12: 0.09104060127 | M12: 0.1083680232 | N12: 0.1281480091 | O12: 0.1505453179 | P12: 0.1756982036 | Q12: 0.2037098678 | R12: 0.2346396979 | S12: 0.2684946229 | T12: 0.3052209728 | U12: 0.344697259 | V12: 0.3867283103 | W12: 0.4310411961 | X12: 0.4772833351 | Y12: 0.5250231343 | Z12: 0.5737534207 | AA12: 0.6228978234 | AB12: 0.6718201363 | AC12: 0.7198365562 | AD12: 0.7662305393 | AE12: 0.8102698791 | AF12: 0.8512254703 | AG12: 0.8883911087 | AH12: 0.9211035891 | AI12: 0.9487623097 | AJ12: 0.9708475765 | AK12: 0.9869368297 | AL12: 0.9967180863 | AM12: 1 | AN12: 0.9967180863 | AO12: 0.9869368297 | AP12: 0.9708475765 | AQ12: 0.9487623097 | AR12: 0.9211035891 | AS12: 0.8883911087 | AT12: 0.8512254703 | AU12: 0.8102698791 | AV12: 0.7662305393 | AW12: 0.7198365562 | AX12: 0.6718201363 | AY12: 0.6228978234 | AZ12: 0.5737534207 | BA12: 0.5250231343 | BB12: 0.4772833351 | BC12: 0.4310411961 | BD12: 0.3867283103 | BE12: 0.344697259 | BF12: 0.3052209728 | BG12: 0.2684946229 | BH12: 0.2346396979 | BI12: 0.2037098678 | BJ12: 0.1756982036 | BK12: 0.1505453179 | BL12: 0.1281480091 | BM12: 0.1083680232 | BN12: 0.09104060127 | BO12: 0.07598253194 | BP12: 0.06299949718 | BQ12: 0.05189255844 | BR12: 0.04246369296 | BS12: 0.03452034415 | BT12: 0.02787899735 | BU12: 0.02236783046 | BV12: 0.01782851834 | BW12: 0.01411728946 | BX12: 0.01110534527 | BY12: 0.008678756208 | BZ12: 0.006737946999 | CA12: 0.005196876186 | CB12: 0.003982005243 | CC12: 0.003031139771 | CD12: 0.002292211971 | CE12: 0.001722059955 | CF12: 0.001285246521 | CG12: 0.0009529481786 | CH12: 0.0007019348574 | CI12: 0.0005136520347 | CJ12: 0.0003734099568 | CK12: 0.0002696792012 | CL12: 0.0001934878462 | CM12: 0.0001379128093 | CN12: 9.765628485e-05 | CO12: 6.86974267e-05 | CP12: 4.800930492e-05 | CQ12: 3.333151433e-05 | CR12: 2.298949069e-05 | CS12: 1.575245809e-05 | CT12: 1.072289353e-05 | CU12: 7.251374458e-06 | CV12: 4.871619377e-06 | CW12: 3.25140481e-06 | CX12: 2.155824567e-06 | CY12: 1.420039638e-06 | CZ12: 9.292491998e-07 | DA12: 6.040996753e-07 | DB12: 3.901482712e-07 | DC12: 2.503199419e-07 | DD12: 1.595533363e-07 | DE12: 1.010324787e-07 | DF12: 6.355662169e-08 | DG12: 3.971963773e-08 | DH12: 2.466007716e-08 | DI12: 1.520996663e-08 | DJ12: 9.319803796e-09 | DK12: 5.673224317e-09 | DL12: 3.430819105e-09 | DM12: 2.061153622e-09 | DN12: 1.230176941e-09 | DO12: 7.294062495e-10 | DP12: 4.296512266e-10 | DQ12: 2.514243349e-10 | DR12: 1.461649498e-10 | DS12: 8.44158216e-11 | DT12: 4.843386641e-11 | DU12: 2.760699301e-11 | DV12: 1.56326912e-11 | DW12: 8.794133837e-12 | DX12: 4.91470065e-12 | DY12: 2.728636901e-12 | DZ12: 1.505009023e-12 | EA12: 8.24664192e-13 | EB12: 4.489105881e-13 | EC12: 2.42765651e-13 | ED12: 1.304245376e-13 | EE12: 6.961070805e-14 | EF12: 3.690944158e-14 | EG12: 1.944211806e-14 | EH12: 1.017406142e-14 | EI12: 5.289197847e-15 | EJ12: 2.731680785e-15 | EK12: 1.401569896e-15 | EL12: 7.144046162e-16 | EM12: 3.617582309e-16 | EN12: 1.81985702e-16 | EO12: 9.09496e-17 | EP12: 4.515532749e-17 | EQ12: 2.227213638e-17 | ER12: 1.091338399e-17 | ES12: 5.312533396e-18 | ET12: 2.569144834e-18 | EU12: 1.234298442e-18 | EV12: 5.89110077e-19 | EW12: 2.793298836e-19 | EX12: 1.315779231e-19 | EY12: 6.157342783e-20 | EZ12: 2.862518581e-20 | FA12: 1.322050288e-20 | FB12: 6.065859035e-21 | FC12: 2.764912106e-21 | FD12: 1.252030834e-21 | FE12: 5.632398796e-22 | FF12: 2.517192606e-22 | FG12: 1.117594294e-22 | FH12: 4.929428618e-23 | FI12: 2.159999578e-23 | FJ12: 9.402761677e-24 | FK12: 4.066322961e-24 | FL12: 1.74700033e-24 | FM12: 7.456392881e-25 | FN12: 3.161616994e-25 | FO12: 1.33178589e-25 | FP12: 5.573195007e-26 | FQ12: 2.316961127e-26 | FR12: 9.569250716e-27 | FS12: 3.926284786e-27 | FT12: 1.60040662e-27 | FU12: 6.480724489e-28 | FV12: 2.607122614e-28 | FW12: 1.041943171e-28 | FX12: 4.136864406e-29 | FY12: 1.631710912e-29 | FZ12: 6.393811488e-30 | GA12: 2.488978329e-30 | GB12: 9.625583833e-31 | GC12: 3.698092112e-31 | GD12: 1.41147453e-31 | GE12: 5.351962298e-32 | GF12: 2.0160334e-32 | GG12: 7.544441202e-33 | GH12: 2.804794916e-33 | GI12: 1.035904746e-33 | GJ12: 3.800871718e-34 | GK12: 1.385451347e-34 | GL12: 5.016999117e-35 | GM12: 1.804851388e-35 | GN12: 6.450353988e-36 | GO12: 2.290183746e-36 | GP12: 8.077961613e-37 | GQ12: 2.830596205e-37 | GR12: 9.853686322e-38 | GS12: 3.407722517e-38 | GT12: 1.170777568e-38 | GU12: 3.996034598e-39 | GV12: 1.354967145e-39 | GW12: 4.564287237e-40 | GX12: 1.527431871e-40 | GY12: 5.07803169e-41 | GZ12: 1.677156708e-41 | HA12: 5.502962562e-42 | HB12: 1.793759238e-42 | HC12: 5.808666217e-43 | HD12: 1.868673255e-43 | HE12: 5.972208983e-44 | HF12: 1.896187594e-44 | HG12: 5.980979079e-45 | HH12: 1.87416552e-45 | HI12: 5.834293621e-46 | HJ12: 1.8043189e-46 | HK12: 5.543486479e-47 | HL12: 1.691988336e-47 | HM12: 5.130461288e-48 | HN12: 1.545468448e-48 | HO12: 4.624966052e-49 | HP12: 1.374996629e-49 | HQ12: 4.061059901e-50 | HR12: 1.191576242e-50 | HS12: 3.47335324e-51 | HT12: 1.005821117e-51 | HU12: 2.893591521e-52 | HV12: 8.269864143e-53 | HW12: 2.348033046e-53 | HX12: 6.622999353e-54 | HY12: 1.855880029e-54 | HZ12: 5.166420633e-55 | IA12: 1.428809417e-55 | IB12: 3.925577207e-56 | IC12: 1.071463598e-56 | ID12: 2.905333532e-57 | IE12: 7.826349714e-58 | IF12: 2.094436422e-58 | IG12: 5.568263658e-59 | IH12: 1.470676248e-59 | II12: 3.858860188e-60 | IJ12: 1.005878874e-60 | IK12: 2.604815745e-61 | IL12: 6.701206601e-62 | IM12: 1.712669978e-62 | IN12: 4.348495651e-63 | IO12: 1.096854631e-63 | IP12: 2.748550902e-64 | IQ12: 6.842316724e-65 | IR12: 1.69218266e-65 | IS12: 4.157535684e-66 | IT12: 1.01477418e-66 | IU12: 2.460636769e-67 | IV12: 5.927482605e-68 | IW12: 1.418527452e-68 | IX12: 3.372483859e-69 | IY12: 7.965383545e-70 | IZ12: 1.868995188e-70 | JA12: 4.356666859e-71 | JB12: 1.008893209e-71 | JC12: 2.321029836e-72 | JD12: 5.304701195e-73 | JE12: 1.204441764e-73 | JF12: 2.716785589e-74 | JG12: 6.087929316e-75 | JH12: 1.355278397e-75 | JI12: 2.997313075e-76 | JJ12: 6.585372998e-77 | JK12: 1.437385723e-77 | JL12: 3.116814482e-78 | JM12: 6.714184288e-79 | JN12: 1.436879139e-79 | JO12: 3.054864135e-80 | JP12: 6.452206197e-81 | JQ12: 1.353845962e-81 | JR12: 2.822116566e-82 | JS12: 5.844203366e-83 | JT12: 1.202320827e-83 | JU12: 2.457310849e-84 | JV12: 4.989356128e-85 | JW12: 1.006406859e-85 | JX12: 2.0167281e-86 | JY12: 4.014817324e-87 | JZ12: 7.940153662e-88 | KA12: 1.560043481e-88 | KB12: 3.045013179e-89 | KC12: 5.904543524e-90 | KD12: 1.137439112e-90 | KE12: 2.176780636e-91 | KF12: 4.138527553e-92 | KG12: 7.816668864e-93 | KH12: 1.466703255e-93 | KI12: 2.734056438e-94 | KJ12: 5.063110114e-95 | KK12: 9.314765973e-96 | KL12: 1.702437595e-96 | KM12: 3.091114787e-97 | KN12: 5.575755762e-98 | KO12: 9.991645776e-99 | KP12: 1.778750332e-99 | KQ12: 3.145847295e-100 | KR12: 5.527197184e-101 | KS12: 9.647548209e-102 | KT12: 1.672914072e-102 | KU12: 2.881874004e-103 | KV12: 4.93197677e-104 | KW12: 8.385167323e-105 | KX12: 1.416273477e-105 | KY12: 2.376441834e-106 | KZ12: 3.961429521e-107 | LA12: 6.5602646e-108 | LB12: 1.0792833e-108 | LC12: 1.763982352e-109 | LD12: 2.864162752e-110 | LE12: 4.620040972e-111 | LF12: 7.403526575e-112 | LG12: 1.178626306e-112 | LH12: 1.864053181e-113 | LI12: 2.928769175e-114 | LJ12: 4.571478372e-115 | LK12: 7.08880242e-116 | LL12: 1.092027945e-116 | LM12: 1.671241881e-117 | LN12: 2.540911546e-118 | LO12: 3.837818756e-119 | LP12: 5.758694678e-120 | LQ12: 8.584367927e-121 | LR12: 1.271268457e-121 | LS12: 1.870298379e-122 | LT12: 2.733563718e-123 | LU12: 3.969101303e-124 | LV12: 5.72532103e-125 | LW12: 8.204501171e-126 | LX12: 1.16801709e-126 | LY12: 1.65192715e-127 | LZ12: 2.321011343e-128 | MA12: 3.239726234e-129 | MB12: 4.492458153e-130 | MC12: 6.188771471e-131 | MD12: 8.469729292e-132 | ME12: 1.151540698e-132 | MF12: 1.555370046e-133 | MG12: 2.087049975e-134 | MH12: 2.782125033e-135 | MI12: 3.68438595e-136 | MJ12: 4.847281805e-137 | MK12: 6.335430022e-138 | ML12: 8.226187528e-139 | MM12: 1.061123154e-139 | MN12: 1.359808195e-140 | MO12: 1.731147989e-141 | MP12: 2.189451931e-142 | MQ12: 2.750941227e-143 | MR12: 3.433775416e-144 | MS12: 4.25801454e-145 | MT12: 5.245502171e-146 | MU12: 6.419654867e-147 | MV12: 7.805144849e-148 | MW12: 9.427465073e-149 | MX12: 1.131236931e-149 | MY12: 1.34851846e-150 | MZ12: 1.596999921e-151 | NA12: 1.878873632e-152 | NB12: 2.196013099e-153 | NC12: 2.549863657e-154 | ND12: 2.941329439e-155 | NE12: 3.370660862e-156 | NF12: 3.837347459e-157 | NG12: 4.340021385e-158 | NH12: 4.8763772e-159 | NI12: 5.443113527e-160 | NJ12: 6.035901876e-161 | NK12: 6.649387266e-162 | NL12: 7.277224312e-163 | NM12: 7.91215113e-164 | NN12: 8.546101852e-165 | NO12: 9.170356783e-166 | NP12: 9.775727317e-167 | NQ12: 1.035277089e-167 | NR12: 1.089202941e-168 | NS12: 1.138428306e-169 | NT12: 1.182081018e-170 | NU12: 1.21936431e-171 | NV12: 1.249580944e-172 | NW12: 1.272154872e-173 | NX12: 1.2866495e-174 | NY12: 1.292781722e-175 | NZ12: 1.290431124e-176 | OA12: 1.279643907e-177 | OB12: 1.260631384e-178 | OC12: 1.233763093e-179 | OD12: 1.199554853e-180 | OE12: 1.1586523e-181 | OF12: 1.111810629e-182 | OG12: 1.059871449e-183 | OH12: 1.003737715e-184 | OI12: 9.443477942e-186
A13: =IF(Principal!M23="","",MATCH(Principal!M23,Datos!A:A,0)) -> 15 | B13: =IF(A13="","",INDIRECT("Datos!A"&Espectros!A13,TRUE)) -> Photo Red (650-665) XP-E2 | C13: =IF(A13="","",IF(INDIRECT("Datos!D"&Espectros!A13,TRUE)=0,"",INDIRECT("Datos!D"&Espectros!A13,TRUE))) ->  | D13: =IF(A13="","",IF(INDIRECT("Datos!E"&Espectros!A13,TRUE)=0,"",INDIRECT("Datos!E"&Espectros!A13,TRUE))) -> 660 | E13: 6.923076923 | F13: 1 | I13: 8.385167323e-105 | J13: 4.93197677e-104 | K13: 2.881874004e-103 | L13: 1.672914072e-102 | M13: 9.647548209e-102 | N13: 5.527197184e-101 | O13: 3.145847295e-100 | P13: 1.778750332e-99 | Q13: 9.991645776e-99 | R13: 5.575755762e-98 | S13: 3.091114787e-97 | T13: 1.702437595e-96 | U13: 9.314765973e-96 | V13: 5.063110114e-95 | W13: 2.734056438e-94 | X13: 1.466703255e-93 | Y13: 7.816668864e-93 | Z13: 4.138527553e-92 | AA13: 2.176780636e-91 | AB13: 1.137439112e-90 | AC13: 5.904543524e-90 | AD13: 3.045013179e-89 | AE13: 1.560043481e-88 | AF13: 7.940153662e-88 | AG13: 4.014817324e-87 | AH13: 2.0167281e-86 | AI13: 1.006406859e-85 | AJ13: 4.989356128e-85 | AK13: 2.457310849e-84 | AL13: 1.202320827e-83 | AM13: 5.844203366e-83 | AN13: 2.822116566e-82 | AO13: 1.353845962e-81 | AP13: 6.452206197e-81 | AQ13: 3.054864135e-80 | AR13: 1.436879139e-79 | AS13: 6.714184288e-79 | AT13: 3.116814482e-78 | AU13: 1.437385723e-77 | AV13: 6.585372998e-77 | AW13: 2.997313075e-76 | AX13: 1.355278397e-75 | AY13: 6.087929316e-75 | AZ13: 2.716785589e-74 | BA13: 1.204441764e-73 | BB13: 5.304701195e-73 | BC13: 2.321029836e-72 | BD13: 1.008893209e-71 | BE13: 4.356666859e-71 | BF13: 1.868995188e-70 | BG13: 7.965383545e-70 | BH13: 3.372483859e-69 | BI13: 1.418527452e-68 | BJ13: 5.927482605e-68 | BK13: 2.460636769e-67 | BL13: 1.01477418e-66 | BM13: 4.157535684e-66 | BN13: 1.69218266e-65 | BO13: 6.842316724e-65 | BP13: 2.748550902e-64 | BQ13: 1.096854631e-63 | BR13: 4.348495651e-63 | BS13: 1.712669978e-62 | BT13: 6.701206601e-62 | BU13: 2.604815745e-61 | BV13: 1.005878874e-60 | BW13: 3.858860188e-60 | BX13: 1.470676248e-59 | BY13: 5.568263658e-59 | BZ13: 2.094436422e-58 | CA13: 7.826349714e-58 | CB13: 2.905333532e-57 | CC13: 1.071463598e-56 | CD13: 3.925577207e-56 | CE13: 1.428809417e-55 | CF13: 5.166420633e-55 | CG13: 1.855880029e-54 | CH13: 6.622999353e-54 | CI13: 2.348033046e-53 | CJ13: 8.269864143e-53 | CK13: 2.893591521e-52 | CL13: 1.005821117e-51 | CM13: 3.47335324e-51 | CN13: 1.191576242e-50 | CO13: 4.061059901e-50 | CP13: 1.374996629e-49 | CQ13: 4.624966052e-49 | CR13: 1.545468448e-48 | CS13: 5.130461288e-48 | CT13: 1.691988336e-47 | CU13: 5.543486479e-47 | CV13: 1.8043189e-46 | CW13: 5.834293621e-46 | CX13: 1.87416552e-45 | CY13: 5.980979079e-45 | CZ13: 1.896187594e-44 | DA13: 5.972208983e-44 | DB13: 1.868673255e-43 | DC13: 5.808666217e-43 | DD13: 1.793759238e-42 | DE13: 5.502962562e-42 | DF13: 1.677156708e-41 | DG13: 5.07803169e-41 | DH13: 1.527431871e-40 | DI13: 4.564287237e-40 | DJ13: 1.354967145e-39 | DK13: 3.996034598e-39 | DL13: 1.170777568e-38 | DM13: 3.407722517e-38 | DN13: 9.853686322e-38 | DO13: 2.830596205e-37 | DP13: 8.077961613e-37 | DQ13: 2.290183746e-36 | DR13: 6.450353988e-36 | DS13: 1.804851388e-35 | DT13: 5.016999117e-35 | DU13: 1.385451347e-34 | DV13: 3.800871718e-34 | DW13: 1.035904746e-33 | DX13: 2.804794916e-33 | DY13: 7.544441202e-33 | DZ13: 2.0160334e-32 | EA13: 5.351962298e-32 | EB13: 1.41147453e-31 | EC13: 3.698092112e-31 | ED13: 9.625583833e-31 | EE13: 2.488978329e-30 | EF13: 6.393811488e-30 | EG13: 1.631710912e-29 | EH13: 4.136864406e-29 | EI13: 1.041943171e-28 | EJ13: 2.607122614e-28 | EK13: 6.480724489e-28 | EL13: 1.60040662e-27 | EM13: 3.926284786e-27 | EN13: 9.569250716e-27 | EO13: 2.316961127e-26 | EP13: 5.573195007e-26 | EQ13: 1.33178589e-25 | ER13: 3.161616994e-25 | ES13: 7.456392881e-25 | ET13: 1.74700033e-24 | EU13: 4.066322961e-24 | EV13: 9.402761677e-24 | EW13: 2.159999578e-23 | EX13: 4.929428618e-23 | EY13: 1.117594294e-22 | EZ13: 2.517192606e-22 | FA13: 5.632398796e-22 | FB13: 1.252030834e-21 | FC13: 2.764912106e-21 | FD13: 6.065859035e-21 | FE13: 1.322050288e-20 | FF13: 2.862518581e-20 | FG13: 6.157342783e-20 | FH13: 1.315779231e-19 | FI13: 2.793298836e-19 | FJ13: 5.89110077e-19 | FK13: 1.234298442e-18 | FL13: 2.569144834e-18 | FM13: 5.312533396e-18 | FN13: 1.091338399e-17 | FO13: 2.227213638e-17 | FP13: 4.515532749e-17 | FQ13: 9.09496e-17 | FR13: 1.81985702e-16 | FS13: 3.617582309e-16 | FT13: 7.144046162e-16 | FU13: 1.401569896e-15 | FV13: 2.731680785e-15 | FW13: 5.289197847e-15 | FX13: 1.017406142e-14 | FY13: 1.944211806e-14 | FZ13: 3.690944158e-14 | GA13: 6.961070805e-14 | GB13: 1.304245376e-13 | GC13: 2.42765651e-13 | GD13: 4.489105881e-13 | GE13: 8.24664192e-13 | GF13: 1.505009023e-12 | GG13: 2.728636901e-12 | GH13: 4.91470065e-12 | GI13: 8.794133837e-12 | GJ13: 1.56326912e-11 | GK13: 2.760699301e-11 | GL13: 4.843386641e-11 | GM13: 8.44158216e-11 | GN13: 1.461649498e-10 | GO13: 2.514243349e-10 | GP13: 4.296512266e-10 | GQ13: 7.294062495e-10 | GR13: 1.230176941e-09 | GS13: 2.061153622e-09 | GT13: 3.430819105e-09 | GU13: 5.673224317e-09 | GV13: 9.319803796e-09 | GW13: 1.520996663e-08 | GX13: 2.466007716e-08 | GY13: 3.971963773e-08 | GZ13: 6.355662169e-08 | HA13: 1.010324787e-07 | HB13: 1.595533363e-07 | HC13: 2.503199419e-07 | HD13: 3.901482712e-07 | HE13: 6.040996753e-07 | HF13: 9.292491998e-07 | HG13: 1.420039638e-06 | HH13: 2.155824567e-06 | HI13: 3.25140481e-06 | HJ13: 4.871619377e-06 | HK13: 7.251374458e-06 | HL13: 1.072289353e-05 | HM13: 1.575245809e-05 | HN13: 2.298949069e-05 | HO13: 3.333151433e-05 | HP13: 4.800930492e-05 | HQ13: 6.86974267e-05 | HR13: 9.765628485e-05 | HS13: 0.0001379128093 | HT13: 0.0001934878462 | HU13: 0.0002696792012 | HV13: 0.0003734099568 | HW13: 0.0005136520347 | HX13: 0.0007019348574 | HY13: 0.0009529481786 | HZ13: 0.001285246521 | IA13: 0.001722059955 | IB13: 0.002292211971 | IC13: 0.003031139771 | ID13: 0.003982005243 | IE13: 0.005196876186 | IF13: 0.006737946999 | IG13: 0.008678756208 | IH13: 0.01110534527 | II13: 0.01411728946 | IJ13: 0.01782851834 | IK13: 0.02236783046 | IL13: 0.02787899735 | IM13: 0.03452034415 | IN13: 0.04246369296 | IO13: 0.05189255844 | IP13: 0.06299949718 | IQ13: 0.07598253194 | IR13: 0.09104060127 | IS13: 0.1083680232 | IT13: 0.1281480091 | IU13: 0.1505453179 | IV13: 0.1756982036 | IW13: 0.2037098678 | IX13: 0.2346396979 | IY13: 0.2684946229 | IZ13: 0.3052209728 | JA13: 0.344697259 | JB13: 0.3867283103 | JC13: 0.4310411961 | JD13: 0.4772833351 | JE13: 0.5250231343 | JF13: 0.5737534207 | JG13: 0.6228978234 | JH13: 0.6718201363 | JI13: 0.7198365562 | JJ13: 0.7662305393 | JK13: 0.8102698791 | JL13: 0.8512254703 | JM13: 0.8883911087 | JN13: 0.9211035891 | JO13: 0.9487623097 | JP13: 0.9708475765 | JQ13: 0.9869368297 | JR13: 0.9967180863 | JS13: 1 | JT13: 0.9967180863 | JU13: 0.9869368297 | JV13: 0.9708475765 | JW13: 0.9487623097 | JX13: 0.9211035891 | JY13: 0.8883911087 | JZ13: 0.8512254703 | KA13: 0.8102698791 | KB13: 0.7662305393 | KC13: 0.7198365562 | KD13: 0.6718201363 | KE13: 0.6228978234 | KF13: 0.5737534207 | KG13: 0.5250231343 | KH13: 0.4772833351 | KI13: 0.4310411961 | KJ13: 0.3867283103 | KK13: 0.344697259 | KL13: 0.3052209728 | KM13: 0.2684946229 | KN13: 0.2346396979 | KO13: 0.2037098678 | KP13: 0.1756982036 | KQ13: 0.1505453179 | KR13: 0.1281480091 | KS13: 0.1083680232 | KT13: 0.09104060127 | KU13: 0.07598253194 | KV13: 0.06299949718 | KW13: 0.05189255844 | KX13: 0.04246369296 | KY13: 0.03452034415 | KZ13: 0.02787899735 | LA13: 0.02236783046 | LB13: 0.01782851834 | LC13: 0.01411728946 | LD13: 0.01110534527 | LE13: 0.008678756208 | LF13: 0.006737946999 | LG13: 0.005196876186 | LH13: 0.003982005243 | LI13: 0.003031139771 | LJ13: 0.002292211971 | LK13: 0.001722059955 | LL13: 0.001285246521 | LM13: 0.0009529481786 | LN13: 0.0007019348574 | LO13: 0.0005136520347 | LP13: 0.0003734099568 | LQ13: 0.0002696792012 | LR13: 0.0001934878462 | LS13: 0.0001379128093 | LT13: 9.765628485e-05 | LU13: 6.86974267e-05 | LV13: 4.800930492e-05 | LW13: 3.333151433e-05 | LX13: 2.298949069e-05 | LY13: 1.575245809e-05 | LZ13: 1.072289353e-05 | MA13: 7.251374458e-06 | MB13: 4.871619377e-06 | MC13: 3.25140481e-06 | MD13: 2.155824567e-06 | ME13: 1.420039638e-06 | MF13: 9.292491998e-07 | MG13: 6.040996753e-07 | MH13: 3.901482712e-07 | MI13: 2.503199419e-07 | MJ13: 1.595533363e-07 | MK13: 1.010324787e-07 | ML13: 6.355662169e-08 | MM13: 3.971963773e-08 | MN13: 2.466007716e-08 | MO13: 1.520996663e-08 | MP13: 9.319803796e-09 | MQ13: 5.673224317e-09 | MR13: 3.430819105e-09 | MS13: 2.061153622e-09 | MT13: 1.230176941e-09 | MU13: 7.294062495e-10 | MV13: 4.296512266e-10 | MW13: 2.514243349e-10 | MX13: 1.461649498e-10 | MY13: 8.44158216e-11 | MZ13: 4.843386641e-11 | NA13: 2.760699301e-11 | NB13: 1.56326912e-11 | NC13: 8.794133837e-12 | ND13: 4.91470065e-12 | NE13: 2.728636901e-12 | NF13: 1.505009023e-12 | NG13: 8.24664192e-13 | NH13: 4.489105881e-13 | NI13: 2.42765651e-13 | NJ13: 1.304245376e-13 | NK13: 6.961070805e-14 | NL13: 3.690944158e-14 | NM13: 1.944211806e-14 | NN13: 1.017406142e-14 | NO13: 5.289197847e-15 | NP13: 2.731680785e-15 | NQ13: 1.401569896e-15 | NR13: 7.144046162e-16 | NS13: 3.617582309e-16 | NT13: 1.81985702e-16 | NU13: 9.09496e-17 | NV13: 4.515532749e-17 | NW13: 2.227213638e-17 | NX13: 1.091338399e-17 | NY13: 5.312533396e-18 | NZ13: 2.569144834e-18 | OA13: 1.234298442e-18 | OB13: 5.89110077e-19 | OC13: 2.793298836e-19 | OD13: 1.315779231e-19 | OE13: 6.157342783e-20 | OF13: 2.862518581e-20 | OG13: 1.322050288e-20 | OH13: 6.065859035e-21 | OI13: 2.764912106e-21
A14: =IF(Principal!M24="","",MATCH(Principal!M24,Datos!A:A,0)) -> 22 | B14: =IF(A14="","",INDIRECT("Datos!A"&Espectros!A14,TRUE)) -> UV (405-410) Semiled | C14: =IF(A14="","",IF(INDIRECT("Datos!D"&Espectros!A14,TRUE)=0,"",INDIRECT("Datos!D"&Espectros!A14,TRUE))) ->  | D14: =IF(A14="","",IF(INDIRECT("Datos!E"&Espectros!A14,TRUE)=0,"",INDIRECT("Datos!E"&Espectros!A14,TRUE))) -> 410 | E14: 0.5128205128 | F14: 1 | I14: 0.2684946229 | J14: 0.3052209728 | K14: 0.344697259 | L14: 0.3867283103 | M14: 0.4310411961 | N14: 0.4772833351 | O14: 0.5250231343 | P14: 0.5737534207 | Q14: 0.6228978234 | R14: 0.6718201363 | S14: 0.7198365562 | T14: 0.7662305393 | U14: 0.8102698791 | V14: 0.8512254703 | W14: 0.8883911087 | X14: 0.9211035891 | Y14: 0.9487623097 | Z14: 0.9708475765 | AA14: 0.9869368297 | AB14: 0.9967180863 | AC14: 1 | AD14: 0.9967180863 | AE14: 0.9869368297 | AF14: 0.9708475765 | AG14: 0.9487623097 | AH14: 0.9211035891 | AI14: 0.8883911087 | AJ14: 0.8512254703 | AK14: 0.8102698791 | AL14: 0.7662305393 | AM14: 0.7198365562 | AN14: 0.6718201363 | AO14: 0.6228978234 | AP14: 0.5737534207 | AQ14: 0.5250231343 | AR14: 0.4772833351 | AS14: 0.4310411961 | AT14: 0.3867283103 | AU14: 0.344697259 | AV14: 0.3052209728 | AW14: 0.2684946229 | AX14: 0.2346396979 | AY14: 0.2037098678 | AZ14: 0.1756982036 | BA14: 0.1505453179 | BB14: 0.1281480091 | BC14: 0.1083680232 | BD14: 0.09104060127 | BE14: 0.07598253194 | BF14: 0.06299949718 | BG14: 0.05189255844 | BH14: 0.04246369296 | BI14: 0.03452034415 | BJ14: 0.02787899735 | BK14: 0.02236783046 | BL14: 0.01782851834 | BM14: 0.01411728946 | BN14: 0.01110534527 | BO14: 0.008678756208 | BP14: 0.006737946999 | BQ14: 0.005196876186 | BR14: 0.003982005243 | BS14: 0.003031139771 | BT14: 0.002292211971 | BU14: 0.001722059955 | BV14: 0.001285246521 | BW14: 0.0009529481786 | BX14: 0.0007019348574 | BY14: 0.0005136520347 | BZ14: 0.0003734099568 | CA14: 0.0002696792012 | CB14: 0.0001934878462 | CC14: 0.0001379128093 | CD14: 9.765628485e-05 | CE14: 6.86974267e-05 | CF14: 4.800930492e-05 | CG14: 3.333151433e-05 | CH14: 2.298949069e-05 | CI14: 1.575245809e-05 | CJ14: 1.072289353e-05 | CK14: 7.251374458e-06 | CL14: 4.871619377e-06 | CM14: 3.25140481e-06 | CN14: 2.155824567e-06 | CO14: 1.420039638e-06 | CP14: 9.292491998e-07 | CQ14: 6.040996753e-07 | CR14: 3.901482712e-07 | CS14: 2.503199419e-07 | CT14: 1.595533363e-07 | CU14: 1.010324787e-07 | CV14: 6.355662169e-08 | CW14: 3.971963773e-08 | CX14: 2.466007716e-08 | CY14: 1.520996663e-08 | CZ14: 9.319803796e-09 | DA14: 5.673224317e-09 | DB14: 3.430819105e-09 | DC14: 2.061153622e-09 | DD14: 1.230176941e-09 | DE14: 7.294062495e-10 | DF14: 4.296512266e-10 | DG14: 2.514243349e-10 | DH14: 1.461649498e-10 | DI14: 8.44158216e-11 | DJ14: 4.843386641e-11 | DK14: 2.760699301e-11 | DL14: 1.56326912e-11 | DM14: 8.794133837e-12 | DN14: 4.91470065e-12 | DO14: 2.728636901e-12 | DP14: 1.505009023e-12 | DQ14: 8.24664192e-13 | DR14: 4.489105881e-13 | DS14: 2.42765651e-13 | DT14: 1.304245376e-13 | DU14: 6.961070805e-14 | DV14: 3.690944158e-14 | DW14: 1.944211806e-14 | DX14: 1.017406142e-14 | DY14: 5.289197847e-15 | DZ14: 2.731680785e-15 | EA14: 1.401569896e-15 | EB14: 7.144046162e-16 | EC14: 3.617582309e-16 | ED14: 1.81985702e-16 | EE14: 9.09496e-17 | EF14: 4.515532749e-17 | EG14: 2.227213638e-17 | EH14: 1.091338399e-17 | EI14: 5.312533396e-18 | EJ14: 2.569144834e-18 | EK14: 1.234298442e-18 | EL14: 5.89110077e-19 | EM14: 2.793298836e-19 | EN14: 1.315779231e-19 | EO14: 6.157342783e-20 | EP14: 2.862518581e-20 | EQ14: 1.322050288e-20 | ER14: 6.065859035e-21 | ES14: 2.764912106e-21 | ET14: 1.252030834e-21 | EU14: 5.632398796e-22 | EV14: 2.517192606e-22 | EW14: 1.117594294e-22 | EX14: 4.929428618e-23 | EY14: 2.159999578e-23 | EZ14: 9.402761677e-24 | FA14: 4.066322961e-24 | FB14: 1.74700033e-24 | FC14: 7.456392881e-25 | FD14: 3.161616994e-25 | FE14: 1.33178589e-25 | FF14: 5.573195007e-26 | FG14: 2.316961127e-26 | FH14: 9.569250716e-27 | FI14: 3.926284786e-27 | FJ14: 1.60040662e-27 | FK14: 6.480724489e-28 | FL14: 2.607122614e-28 | FM14: 1.041943171e-28 | FN14: 4.136864406e-29 | FO14: 1.631710912e-29 | FP14: 6.393811488e-30 | FQ14: 2.488978329e-30 | FR14: 9.625583833e-31 | FS14: 3.698092112e-31 | FT14: 1.41147453e-31 | FU14: 5.351962298e-32 | FV14: 2.0160334e-32 | FW14: 7.544441202e-33 | FX14: 2.804794916e-33 | FY14: 1.035904746e-33 | FZ14: 3.800871718e-34 | GA14: 1.385451347e-34 | GB14: 5.016999117e-35 | GC14: 1.804851388e-35 | GD14: 6.450353988e-36 | GE14: 2.290183746e-36 | GF14: 8.077961613e-37 | GG14: 2.830596205e-37 | GH14: 9.853686322e-38 | GI14: 3.407722517e-38 | GJ14: 1.170777568e-38 | GK14: 3.996034598e-39 | GL14: 1.354967145e-39 | GM14: 4.564287237e-40 | GN14: 1.527431871e-40 | GO14: 5.07803169e-41 | GP14: 1.677156708e-41 | GQ14: 5.502962562e-42 | GR14: 1.793759238e-42 | GS14: 5.808666217e-43 | GT14: 1.868673255e-43 | GU14: 5.972208983e-44 | GV14: 1.896187594e-44 | GW14: 5.980979079e-45 | GX14: 1.87416552e-45 | GY14: 5.834293621e-46 | GZ14: 1.8043189e-46 | HA14: 5.543486479e-47 | HB14: 1.691988336e-47 | HC14: 5.130461288e-48 | HD14: 1.545468448e-48 | HE14: 4.624966052e-49 | HF14: 1.374996629e-49 | HG14: 4.061059901e-50 | HH14: 1.191576242e-50 | HI14: 3.47335324e-51 | HJ14: 1.005821117e-51 | HK14: 2.893591521e-52 | HL14: 8.269864143e-53 | HM14: 2.348033046e-53 | HN14: 6.622999353e-54 | HO14: 1.855880029e-54 | HP14: 5.166420633e-55 | HQ14: 1.428809417e-55 | HR14: 3.925577207e-56 | HS14: 1.071463598e-56 | HT14: 2.905333532e-57 | HU14: 7.826349714e-58 | HV14: 2.094436422e-58 | HW14: 5.568263658e-59 | HX14: 1.470676248e-59 | HY14: 3.858860188e-60 | HZ14: 1.005878874e-60 | IA14: 2.604815745e-61 | IB14: 6.701206601e-62 | IC14: 1.712669978e-62 | ID14: 4.348495651e-63 | IE14: 1.096854631e-63 | IF14: 2.748550902e-64 | IG14: 6.842316724e-65 | IH14: 1.69218266e-65 | II14: 4.157535684e-66 | IJ14: 1.01477418e-66 | IK14: 2.460636769e-67 | IL14: 5.927482605e-68 | IM14: 1.418527452e-68 | IN14: 3.372483859e-69 | IO14: 7.965383545e-70 | IP14: 1.868995188e-70 | IQ14: 4.356666859e-71 | IR14: 1.008893209e-71 | IS14: 2.321029836e-72 | IT14: 5.304701195e-73 | IU14: 1.204441764e-73 | IV14: 2.716785589e-74 | IW14: 6.087929316e-75 | IX14: 1.355278397e-75 | IY14: 2.997313075e-76 | IZ14: 6.585372998e-77 | JA14: 1.437385723e-77 | JB14: 3.116814482e-78 | JC14: 6.714184288e-79 | JD14: 1.436879139e-79 | JE14: 3.054864135e-80 | JF14: 6.452206197e-81 | JG14: 1.353845962e-81 | JH14: 2.822116566e-82 | JI14: 5.844203366e-83 | JJ14: 1.202320827e-83 | JK14: 2.457310849e-84 | JL14: 4.989356128e-85 | JM14: 1.006406859e-85 | JN14: 2.0167281e-86 | JO14: 4.014817324e-87 | JP14: 7.940153662e-88 | JQ14: 1.560043481e-88 | JR14: 3.045013179e-89 | JS14: 5.904543524e-90 | JT14: 1.137439112e-90 | JU14: 2.176780636e-91 | JV14: 4.138527553e-92 | JW14: 7.816668864e-93 | JX14: 1.466703255e-93 | JY14: 2.734056438e-94 | JZ14: 5.063110114e-95 | KA14: 9.314765973e-96 | KB14: 1.702437595e-96 | KC14: 3.091114787e-97 | KD14: 5.575755762e-98 | KE14: 9.991645776e-99 | KF14: 1.778750332e-99 | KG14: 3.145847295e-100 | KH14: 5.527197184e-101 | KI14: 9.647548209e-102 | KJ14: 1.672914072e-102 | KK14: 2.881874004e-103 | KL14: 4.93197677e-104 | KM14: 8.385167323e-105 | KN14: 1.416273477e-105 | KO14: 2.376441834e-106 | KP14: 3.961429521e-107 | KQ14: 6.5602646e-108 | KR14: 1.0792833e-108 | KS14: 1.763982352e-109 | KT14: 2.864162752e-110 | KU14: 4.620040972e-111 | KV14: 7.403526575e-112 | KW14: 1.178626306e-112 | KX14: 1.864053181e-113 | KY14: 2.928769175e-114 | KZ14: 4.571478372e-115 | LA14: 7.08880242e-116 | LB14: 1.092027945e-116 | LC14: 1.671241881e-117 | LD14: 2.540911546e-118 | LE14: 3.837818756e-119 | LF14: 5.758694678e-120 | LG14: 8.584367927e-121 | LH14: 1.271268457e-121 | LI14: 1.870298379e-122 | LJ14: 2.733563718e-123 | LK14: 3.969101303e-124 | LL14: 5.72532103e-125 | LM14: 8.204501171e-126 | LN14: 1.16801709e-126 | LO14: 1.65192715e-127 | LP14: 2.321011343e-128 | LQ14: 3.239726234e-129 | LR14: 4.492458153e-130 | LS14: 6.188771471e-131 | LT14: 8.469729292e-132 | LU14: 1.151540698e-132 | LV14: 1.555370046e-133 | LW14: 2.087049975e-134 | LX14: 2.782125033e-135 | LY14: 3.68438595e-136 | LZ14: 4.847281805e-137 | MA14: 6.335430022e-138 | MB14: 8.226187528e-139 | MC14: 1.061123154e-139 | MD14: 1.359808195e-140 | ME14: 1.731147989e-141 | MF14: 2.189451931e-142 | MG14: 2.750941227e-143 | MH14: 3.433775416e-144 | MI14: 4.25801454e-145 | MJ14: 5.245502171e-146 | MK14: 6.419654867e-147 | ML14: 7.805144849e-148 | MM14: 9.427465073e-149 | MN14: 1.131236931e-149 | MO14: 1.34851846e-150 | MP14: 1.596999921e-151 | MQ14: 1.878873632e-152 | MR14: 2.196013099e-153 | MS14: 2.549863657e-154 | MT14: 2.941329439e-155 | MU14: 3.370660862e-156 | MV14: 3.837347459e-157 | MW14: 4.340021385e-158 | MX14: 4.8763772e-159 | MY14: 5.443113527e-160 | MZ14: 6.035901876e-161 | NA14: 6.649387266e-162 | NB14: 7.277224312e-163 | NC14: 7.91215113e-164 | ND14: 8.546101852e-165 | NE14: 9.170356783e-166 | NF14: 9.775727317e-167 | NG14: 1.035277089e-167 | NH14: 1.089202941e-168 | NI14: 1.138428306e-169 | NJ14: 1.182081018e-170 | NK14: 1.21936431e-171 | NL14: 1.249580944e-172 | NM14: 1.272154872e-173 | NN14: 1.2866495e-174 | NO14: 1.292781722e-175 | NP14: 1.290431124e-176 | NQ14: 1.279643907e-177 | NR14: 1.260631384e-178 | NS14: 1.233763093e-179 | NT14: 1.199554853e-180 | NU14: 1.1586523e-181 | NV14: 1.111810629e-182 | NW14: 1.059871449e-183 | NX14: 1.003737715e-184 | NY14: 9.443477942e-186 | NZ14: 8.826496954e-187 | OA14: 8.195764281e-188 | OB14: 7.560233701e-189 | OC14: 6.928283652e-190 | OD14: 6.307551095e-191 | OE14: 5.704801959e-192 | OF14: 5.12584e-193 | OG14: 4.575454037e-194 | OH14: 4.057401881e-195 | OI14: 3.574427834e-196
A15: =IF(Principal!M25="","",MATCH(Principal!M25,Datos!A:A,0)) ->  | B15: =IF(A15="","",INDIRECT("Datos!A"&Espectros!A15,TRUE)) ->  | C15: =IF(A15="","",IF(INDIRECT("Datos!D"&Espectros!A15,TRUE)=0,"",INDIRECT("Datos!D"&Espectros!A15,TRUE))) ->  | D15: =IF(A15="","",IF(INDIRECT("Datos!E"&Espectros!A15,TRUE)=0,"",INDIRECT("Datos!E"&Espectros!A15,TRUE))) ->  | BT15: =IF($A15="","",IF($D15="",($F15*EXP(1)^(-(((BT$6-1.41)^2)/0.2)))+($G15*EXP(1)^(-(((BT$6-$H15-4.52)^2)/3))),$F15*EXP(1)^(-(((BT$6-$E15)^2)/0.2)))) ->  | EF15: =IF($A15="","",IF($D15="",($F15*EXP(1)^(-(((EF$6-1.41)^2)/0.2)))+($G15*EXP(1)^(-(((EF$6-$H15-4.52)^2)/3))),$F15*EXP(1)^(-(((EF$6-$E15)^2)/0.2)))) ->  | GR15: =IF($A15="","",IF($D15="",($F15*EXP(1)^(-(((GR$6-1.41)^2)/0.2)))+($G15*EXP(1)^(-(((GR$6-$H15-4.52)^2)/3))),$F15*EXP(1)^(-(((GR$6-$E15)^2)/0.2)))) ->  | JD15: =IF($A15="","",IF($D15="",($F15*EXP(1)^(-(((JD$6-1.41)^2)/0.2)))+($G15*EXP(1)^(-(((JD$6-$H15-4.52)^2)/3))),$F15*EXP(1)^(-(((JD$6-$E15)^2)/0.2)))) ->  | LP15: =IF($A15="","",IF($D15="",($F15*EXP(1)^(-(((LP$6-1.41)^2)/0.2)))+($G15*EXP(1)^(-(((LP$6-$H15-4.52)^2)/3))),$F15*EXP(1)^(-(((LP$6-$E15)^2)/0.2)))) ->  | OB15: =IF($A15="","",IF($D15="",($F15*EXP(1)^(-(((OB$6-1.41)^2)/0.2)))+($G15*EXP(1)^(-(((OB$6-$H15-4.52)^2)/3))),$F15*EXP(1)^(-(((OB$6-$E15)^2)/0.2)))) -> 
A16: =IF(Principal!M26="","",MATCH(Principal!M26,Datos!A:A,0)) ->  | B16: =IF(A16="","",INDIRECT("Datos!A"&Espectros!A16,TRUE)) ->  | C16: =IF(A16="","",IF(INDIRECT("Datos!D"&Espectros!A16,TRUE)=0,"",INDIRECT("Datos!D"&Espectros!A16,TRUE))) ->  | D16: =IF(A16="","",IF(INDIRECT("Datos!E"&Espectros!A16,TRUE)=0,"",INDIRECT("Datos!E"&Espectros!A16,TRUE))) ->  | Y16: =IF($A16="","",IF($D16="",($F16*EXP(1)^(-(((Y$6-1.41)^2)/0.2)))+($G16*EXP(1)^(-(((Y$6-$H16-4.52)^2)/3))),$F16*EXP(1)^(-(((Y$6-$E16)^2)/0.2)))) ->  | AO16: =IF($A16="","",IF($D16="",($F16*EXP(1)^(-(((AO$6-1.41)^2)/0.2)))+($G16*EXP(1)^(-(((AO$6-$H16-4.52)^2)/3))),$F16*EXP(1)^(-(((AO$6-$E16)^2)/0.2)))) ->  | BE16: =IF($A16="","",IF($D16="",($F16*EXP(1)^(-(((BE$6-1.41)^2)/0.2)))+($G16*EXP(1)^(-(((BE$6-$H16-4.52)^2)/3))),$F16*EXP(1)^(-(((BE$6-$E16)^2)/0.2)))) ->  | CJ16: =IF($A16="","",IF($D16="",($F16*EXP(1)^(-(((CJ$6-1.41)^2)/0.2)))+($G16*EXP(1)^(-(((CJ$6-$H16-4.52)^2)/3))),$F16*EXP(1)^(-(((CJ$6-$E16)^2)/0.2)))) ->  | CZ16: =IF($A16="","",IF($D16="",($F16*EXP(1)^(-(((CZ$6-1.41)^2)/0.2)))+($G16*EXP(1)^(-(((CZ$6-$H16-4.52)^2)/3))),$F16*EXP(1)^(-(((CZ$6-$E16)^2)/0.2)))) ->  | DP16: =IF($A16="","",IF($D16="",($F16*EXP(1)^(-(((DP$6-1.41)^2)/0.2)))+($G16*EXP(1)^(-(((DP$6-$H16-4.52)^2)/3))),$F16*EXP(1)^(-(((DP$6-$E16)^2)/0.2)))) ->  | EV16: =IF($A16="","",IF($D16="",($F16*EXP(1)^(-(((EV$6-1.41)^2)/0.2)))+($G16*EXP(1)^(-(((EV$6-$H16-4.52)^2)/3))),$F16*EXP(1)^(-(((EV$6-$E16)^2)/0.2)))) ->  | FL16: =IF($A16="","",IF($D16="",($F16*EXP(1)^(-(((FL$6-1.41)^2)/0.2)))+($G16*EXP(1)^(-(((FL$6-$H16-4.52)^2)/3))),$F16*EXP(1)^(-(((FL$6-$E16)^2)/0.2)))) ->  | GB16: =IF($A16="","",IF($D16="",($F16*EXP(1)^(-(((GB$6-1.41)^2)/0.2)))+($G16*EXP(1)^(-(((GB$6-$H16-4.52)^2)/3))),$F16*EXP(1)^(-(((GB$6-$E16)^2)/0.2)))) ->  | HH16: =IF($A16="","",IF($D16="",($F16*EXP(1)^(-(((HH$6-1.41)^2)/0.2)))+($G16*EXP(1)^(-(((HH$6-$H16-4.52)^2)/3))),$F16*EXP(1)^(-(((HH$6-$E16)^2)/0.2)))) ->  | HX16: =IF($A16="","",IF($D16="",($F16*EXP(1)^(-(((HX$6-1.41)^2)/0.2)))+($G16*EXP(1)^(-(((HX$6-$H16-4.52)^2)/3))),$F16*EXP(1)^(-(((HX$6-$E16)^2)/0.2)))) ->  | IN16: =IF($A16="","",IF($D16="",($F16*EXP(1)^(-(((IN$6-1.41)^2)/0.2)))+($G16*EXP(1)^(-(((IN$6-$H16-4.52)^2)/3))),$F16*EXP(1)^(-(((IN$6-$E16)^2)/0.2)))) ->  | JT16: =IF($A16="","",IF($D16="",($F16*EXP(1)^(-(((JT$6-1.41)^2)/0.2)))+($G16*EXP(1)^(-(((JT$6-$H16-4.52)^2)/3))),$F16*EXP(1)^(-(((JT$6-$E16)^2)/0.2)))) ->  | KJ16: =IF($A16="","",IF($D16="",($F16*EXP(1)^(-(((KJ$6-1.41)^2)/0.2)))+($G16*EXP(1)^(-(((KJ$6-$H16-4.52)^2)/3))),$F16*EXP(1)^(-(((KJ$6-$E16)^2)/0.2)))) ->  | KZ16: =IF($A16="","",IF($D16="",($F16*EXP(1)^(-(((KZ$6-1.41)^2)/0.2)))+($G16*EXP(1)^(-(((KZ$6-$H16-4.52)^2)/3))),$F16*EXP(1)^(-(((KZ$6-$E16)^2)/0.2)))) ->  | MF16: =IF($A16="","",IF($D16="",($F16*EXP(1)^(-(((MF$6-1.41)^2)/0.2)))+($G16*EXP(1)^(-(((MF$6-$H16-4.52)^2)/3))),$F16*EXP(1)^(-(((MF$6-$E16)^2)/0.2)))) ->  | MV16: =IF($A16="","",IF($D16="",($F16*EXP(1)^(-(((MV$6-1.41)^2)/0.2)))+($G16*EXP(1)^(-(((MV$6-$H16-4.52)^2)/3))),$F16*EXP(1)^(-(((MV$6-$E16)^2)/0.2)))) ->  | NL16: =IF($A16="","",IF($D16="",($F16*EXP(1)^(-(((NL$6-1.41)^2)/0.2)))+($G16*EXP(1)^(-(((NL$6-$H16-4.52)^2)/3))),$F16*EXP(1)^(-(((NL$6-$E16)^2)/0.2)))) -> 
A17: =IF(Principal!M27="","",MATCH(Principal!M27,Datos!A:A,0)) ->  | B17: =IF(A17="","",INDIRECT("Datos!A"&Espectros!A17,TRUE)) ->  | C17: =IF(A17="","",IF(INDIRECT("Datos!D"&Espectros!A17,TRUE)=0,"",INDIRECT("Datos!D"&Espectros!A17,TRUE))) ->  | D17: =IF(A17="","",IF(INDIRECT("Datos!E"&Espectros!A17,TRUE)=0,"",INDIRECT("Datos!E"&Espectros!A17,TRUE))) -> 
A18: =IF(Principal!M28="","",MATCH(Principal!M28,Datos!A:A,0)) ->  | B18: =IF(A18="","",INDIRECT("Datos!A"&Espectros!A18,TRUE)) ->  | C18: =IF(A18="","",IF(INDIRECT("Datos!D"&Espectros!A18,TRUE)=0,"",INDIRECT("Datos!D"&Espectros!A18,TRUE))) ->  | D18: =IF(A18="","",IF(INDIRECT("Datos!E"&Espectros!A18,TRUE)=0,"",INDIRECT("Datos!E"&Espectros!A18,TRUE))) ->  | G18: =IF(C18="","",1-(ABS(2000-C18)/10000)) -> 
A19: =IF(Principal!M29="","",MATCH(Principal!M29,Datos!A:A,0)) ->  | B19: =IF(A19="","",INDIRECT("Datos!A"&Espectros!A19,TRUE)) ->  | C19: =IF(A19="","",IF(INDIRECT("Datos!D"&Espectros!A19,TRUE)=0,"",INDIRECT("Datos!D"&Espectros!A19,TRUE))) ->  | D19: =IF(A19="","",IF(INDIRECT("Datos!E"&Espectros!A19,TRUE)=0,"",INDIRECT("Datos!E"&Espectros!A19,TRUE))) -> 
A20: =IF(Principal!M30="","",MATCH(Principal!M30,Datos!A:A,0)) ->  | B20: =IF(A20="","",INDIRECT("Datos!A"&Espectros!A20,TRUE)) ->  | C20: =IF(A20="","",IF(INDIRECT("Datos!D"&Espectros!A20,TRUE)=0,"",INDIRECT("Datos!D"&Espectros!A20,TRUE))) ->  | D20: =IF(A20="","",IF(INDIRECT("Datos!E"&Espectros!A20,TRUE)=0,"",INDIRECT("Datos!E"&Espectros!A20,TRUE))) -> 
A21: =IF(Principal!M31="","",MATCH(Principal!M31,Datos!A:A,0)) ->  | C21: =IF(A21="","",IF(INDIRECT("Datos!D"&Espectros!A21,TRUE)=0,"",INDIRECT("Datos!D"&Espectros!A21,TRUE))) ->  | D21: =IF(A21="","",IF(INDIRECT("Datos!E"&Espectros!A21,TRUE)=0,"",INDIRECT("Datos!E"&Espectros!A21,TRUE))) -> 
A22: =IF(Principal!M32="","",MATCH(Principal!M32,Datos!A:A,0)) ->  | C22: =IF(A22="","",IF(INDIRECT("Datos!D"&Espectros!A22,TRUE)=0,"",INDIRECT("Datos!D"&Espectros!A22,TRUE))) ->  | D22: =IF(A22="","",IF(INDIRECT("Datos!E"&Espectros!A22,TRUE)=0,"",INDIRECT("Datos!E"&Espectros!A22,TRUE))) -> 
A23: =IF(Principal!M33="","",MATCH(Principal!M33,Datos!A:A,0)) ->  | C23: =IF(A23="","",IF(INDIRECT("Datos!D"&Espectros!A23,TRUE)=0,"",INDIRECT("Datos!D"&Espectros!A23,TRUE))) ->  | D23: =IF(A23="","",IF(INDIRECT("Datos!E"&Espectros!A23,TRUE)=0,"",INDIRECT("Datos!E"&Espectros!A23,TRUE))) -> 
A24: =IF(Principal!M34="","",MATCH(Principal!M34,Datos!A:A,0)) ->  | C24: =IF(A24="","",IF(INDIRECT("Datos!D"&Espectros!A24,TRUE)=0,"",INDIRECT("Datos!D"&Espectros!A24,TRUE))) ->  | D24: =IF(A24="","",IF(INDIRECT("Datos!E"&Espectros!A24,TRUE)=0,"",INDIRECT("Datos!E"&Espectros!A24,TRUE))) -> 
A25: =IF(Principal!M35="","",MATCH(Principal!M35,Datos!A:A,0)) ->  | C25: =IF(A25="","",IF(INDIRECT("Datos!D"&Espectros!A25,TRUE)=0,"",INDIRECT("Datos!D"&Espectros!A25,TRUE))) ->  | D25: =IF(A25="","",IF(INDIRECT("Datos!E"&Espectros!A25,TRUE)=0,"",INDIRECT("Datos!E"&Espectros!A25,TRUE))) -> 
A26: =IF(Principal!M36="","",MATCH(Principal!M36,Datos!A:A,0)) ->  | C26: =IF(A26="","",IF(INDIRECT("Datos!D"&Espectros!A26,TRUE)=0,"",INDIRECT("Datos!D"&Espectros!A26,TRUE))) ->  | D26: =IF(A26="","",IF(INDIRECT("Datos!E"&Espectros!A26,TRUE)=0,"",INDIRECT("Datos!E"&Espectros!A26,TRUE))) -> 
A27: =IF(Principal!M37="","",MATCH(Principal!M37,Datos!A:A,0)) ->  | C27: =IF(A27="","",IF(INDIRECT("Datos!D"&Espectros!A27,TRUE)=0,"",INDIRECT("Datos!D"&Espectros!A27,TRUE))) ->  | D27: =IF(A27="","",IF(INDIRECT("Datos!E"&Espectros!A27,TRUE)=0,"",INDIRECT("Datos!E"&Espectros!A27,TRUE))) -> 
A28: =IF(Principal!M38="","",MATCH(Principal!M38,Datos!A:A,0)) ->  | C28: =IF(A28="","",IF(INDIRECT("Datos!D"&Espectros!A28,TRUE)=0,"",INDIRECT("Datos!D"&Espectros!A28,TRUE))) ->  | D28: =IF(A28="","",IF(INDIRECT("Datos!E"&Espectros!A28,TRUE)=0,"",INDIRECT("Datos!E"&Espectros!A28,TRUE))) -> 
A29: =IF(Principal!M39="","",MATCH(Principal!M39,Datos!A:A,0)) ->  | B29: =IF(A29="","",INDIRECT("Datos!A"&Espectros!A29,TRUE)) ->  | C29: =IF(A29="","",IF(INDIRECT("Datos!D"&Espectros!A29,TRUE)=0,"",INDIRECT("Datos!D"&Espectros!A29,TRUE))) ->  | D29: =IF(A29="","",IF(INDIRECT("Datos!E"&Espectros!A29,TRUE)=0,"",INDIRECT("Datos!E"&Espectros!A29,TRUE))) ->  | H29: =IF(C29="","",IF(C29>6500,0,ABS(6500-C29)/10000)*1.4) ->  | I29: =IF($A29="","",IF($D29="",($F29*EXP(1)^(-(((I$6-1.41)^2)/0.2)))+($G29*EXP(1)^(-(((I$6-$H29-4.5)^2)/3))),$F29*EXP(1)^(-(((I$6-$E29)^2)/0.2)))) ->  | J29: =IF($A29="","",IF($D29="",($F29*EXP(1)^(-(((J$6-1.41)^2)/0.2)))+($G29*EXP(1)^(-(((J$6-$H29-4.5)^2)/3))),$F29*EXP(1)^(-(((J$6-$E29)^2)/0.2)))) ->  | BU29: =IF($A29="","",IF($D29="",($F29*EXP(1)^(-(((BU$6-1.41)^2)/0.2)))+($G29*EXP(1)^(-(((BU$6-$H29-4.5)^2)/3))),$F29*EXP(1)^(-(((BU$6-$E29)^2)/0.2)))) ->  | EG29: =IF($A29="","",IF($D29="",($F29*EXP(1)^(-(((EG$6-1.41)^2)/0.2)))+($G29*EXP(1)^(-(((EG$6-$H29-4.5)^2)/3))),$F29*EXP(1)^(-(((EG$6-$E29)^2)/0.2)))) ->  | GS29: =IF($A29="","",IF($D29="",($F29*EXP(1)^(-(((GS$6-1.41)^2)/0.2)))+($G29*EXP(1)^(-(((GS$6-$H29-4.5)^2)/3))),$F29*EXP(1)^(-(((GS$6-$E29)^2)/0.2)))) ->  | JE29: =IF($A29="","",IF($D29="",($F29*EXP(1)^(-(((JE$6-1.41)^2)/0.2)))+($G29*EXP(1)^(-(((JE$6-$H29-4.5)^2)/3))),$F29*EXP(1)^(-(((JE$6-$E29)^2)/0.2)))) ->  | JH29: =IF($A29="","",IF($D29="",($F29*EXP(1)^(-(((JH$6-1.41)^2)/0.2)))+($G29*EXP(1)^(-(((JH$6-$H29-4.5)^2)/3))),$F29*EXP(1)^(-(((JH$6-$E29)^2)/0.2)))) ->  | JI29: =IF($A29="","",IF($D29="",($F29*EXP(1)^(-(((JI$6-1.41)^2)/0.2)))+($G29*EXP(1)^(-(((JI$6-$H29-4.5)^2)/3))),$F29*EXP(1)^(-(((JI$6-$E29)^2)/0.2)))) ->  | LU29: =IF($A29="","",IF($D29="",($F29*EXP(1)^(-(((LU$6-1.41)^2)/0.2)))+($G29*EXP(1)^(-(((LU$6-$H29-4.5)^2)/3))),$F29*EXP(1)^(-(((LU$6-$E29)^2)/0.2)))) ->  | OF29: =IF($A29="","",IF($D29="",($F29*EXP(1)^(-(((OF$6-1.41)^2)/0.2)))+($G29*EXP(1)^(-(((OF$6-$H29-4.5)^2)/3))),$F29*EXP(1)^(-(((OF$6-$E29)^2)/0.2)))) ->  | OI29: =IF($A29="","",IF($D29="",($F29*EXP(1)^(-(((OI$6-1.41)^2)/0.2)))+($G29*EXP(1)^(-(((OI$6-$H29-4.5)^2)/3))),$F29*EXP(1)^(-(((OI$6-$E29)^2)/0.2)))) -> 
A31: Espectro ponderado por "radion flux" para cada tipo de led | I31: =IF(G31="","",(G31-$C$2)*($F$3-$F$2) / ($C$3-$C$2)+$F$2) ->  | L31: =IF($G31="","",$J$2*EXP(1)^(-(((I$6-$I31)^2)/0.2))) ->  | BX31: =IF($G31="","",$J$2*EXP(1)^(-(((BU$6-$I31)^2)/0.2))) ->  | EJ31: =IF($G31="","",$J$2*EXP(1)^(-(((EG$6-$I31)^2)/0.2))) ->  | GV31: =IF($G31="","",$J$2*EXP(1)^(-(((GS$6-$I31)^2)/0.2))) ->  | JH31: =IF($G31="","",$J$2*EXP(1)^(-(((JE$6-$I31)^2)/0.2))) ->  | LT31: =IF($G31="","",$J$2*EXP(1)^(-(((LQ$6-$I31)^2)/0.2))) ->  | OF31: =IF($G31="","",$J$2*EXP(1)^(-(((OC$6-$I31)^2)/0.2))) -> 
A32: FILA | B32: Nombre | C32: W/Led | D32: Nº Led | E32: Watios | F32: =I$7 -> 390 | G32: =J$7 -> 391 | H32: 392 | I32: 393 | J32: 394 | K32: 395 | L32: 396 | M32: 397 | N32: 398 | O32: 399 | P32: 400 | Q32: 401 | R32: 402 | S32: 403 | T32: 404 | U32: 405 | V32: 406 | W32: 407 | X32: 408 | Y32: 409 | Z32: 410 | AA32: 411 | AB32: 412 | AC32: 413 | AD32: 414 | AE32: 415 | AF32: 416 | AG32: 417 | AH32: 418 | AI32: 419 | AJ32: 420 | AK32: 421 | AL32: 422 | AM32: 423 | AN32: 424 | AO32: 425 | AP32: 426 | AQ32: 427 | AR32: 428 | AS32: 429 | AT32: 430 | AU32: 431 | AV32: 432 | AW32: 433 | AX32: 434 | AY32: 435 | AZ32: 436 | BA32: 437 | BB32: 438 | BC32: 439 | BD32: 440 | BE32: 441 | BF32: 442 | BG32: 443 | BH32: 444 | BI32: 445 | BJ32: 446 | BK32: 447 | BL32: 448 | BM32: 449 | BN32: 450 | BO32: 451 | BP32: 452 | BQ32: 453 | BR32: 454 | BS32: =BV$7 -> 455 | BT32: 456 | BU32: 457 | BV32: 458 | BW32: 459 | BX32: 460 | BY32: 461 | BZ32: 462 | CA32: 463 | CB32: 464 | CC32: 465 | CD32: 466 | CE32: 467 | CF32: 468 | CG32: 469 | CH32: 470 | CI32: 471 | CJ32: 472 | CK32: 473 | CL32: 474 | CM32: 475 | CN32: 476 | CO32: 477 | CP32: 478 | CQ32: 479 | CR32: 480 | CS32: 481 | CT32: 482 | CU32: 483 | CV32: 484 | CW32: 485 | CX32: 486 | CY32: 487 | CZ32: 488 | DA32: 489 | DB32: 490 | DC32: 491 | DD32: 492 | DE32: 493 | DF32: 494 | DG32: 495 | DH32: 496 | DI32: 497 | DJ32: 498 | DK32: 499 | DL32: 500 | DM32: 501 | DN32: 502 | DO32: 503 | DP32: 504 | DQ32: 505 | DR32: 506 | DS32: 507 | DT32: 508 | DU32: 509 | DV32: 510 | DW32: 511 | DX32: 512 | DY32: 513 | DZ32: 514 | EA32: 515 | EB32: 516 | EC32: 517 | ED32: 518 | EE32: =EH$7 -> 519 | EF32: 520 | EG32: 521 | EH32: 522 | EI32: 523 | EJ32: 524 | EK32: 525 | EL32: 526 | EM32: 527 | EN32: 528 | EO32: 529 | EP32: 530 | EQ32: 531 | ER32: 532 | ES32: 533 | ET32: 534 | EU32: 535 | EV32: 536 | EW32: 537 | EX32: 538 | EY32: 539 | EZ32: 540 | FA32: 541 | FB32: 542 | FC32: 543 | FD32: 544 | FE32: 545 | FF32: 546 | FG32: 547 | FH32: 548 | FI32: 549 | FJ32: 550 | FK32: 551 | FL32: 552 | FM32: 553 | FN32: 554 | FO32: 555 | FP32: 556 | FQ32: 557 | FR32: 558 | FS32: 559 | FT32: 560 | FU32: 561 | FV32: 562 | FW32: 563 | FX32: 564 | FY32: 565 | FZ32: 566 | GA32: 567 | GB32: 568 | GC32: 569 | GD32: 570 | GE32: 571 | GF32: 572 | GG32: 573 | GH32: 574 | GI32: 575 | GJ32: 576 | GK32: 577 | GL32: 578 | GM32: 579 | GN32: 580 | GO32: 581 | GP32: 582 | GQ32: =GT$7 -> 583 | GR32: 584 | GS32: 585 | GT32: 586 | GU32: 587 | GV32: 588 | GW32: 589 | GX32: 590 | GY32: 591 | GZ32: 592 | HA32: 593 | HB32: 594 | HC32: 595 | HD32: 596 | HE32: 597 | HF32: 598 | HG32: 599 | HH32: 600 | HI32: 601 | HJ32: 602 | HK32: 603 | HL32: 604 | HM32: 605 | HN32: 606 | HO32: 607 | HP32: 608 | HQ32: 609 | HR32: 610 | HS32: 611 | HT32: 612 | HU32: 613 | HV32: 614 | HW32: 615 | HX32: 616 | HY32: 617 | HZ32: 618 | IA32: 619 | IB32: 620 | IC32: 621 | ID32: 622 | IE32: 623 | IF32: 624 | IG32: 625 | IH32: 626 | II32: 627 | IJ32: 628 | IK32: 629 | IL32: 630 | IM32: 631 | IN32: 632 | IO32: 633 | IP32: 634 | IQ32: 635 | IR32: 636 | IS32: 637 | IT32: 638 | IU32: 639 | IV32: 640 | IW32: 641 | IX32: 642 | IY32: 643 | IZ32: 644 | JA32: 645 | JB32: 646 | JC32: =JF$7 -> 647 | JD32: 648 | JE32: 649 | JF32: 650 | JG32: 651 | JH32: 652 | JI32: 653 | JJ32: 654 | JK32: 655 | JL32: 656 | JM32: 657 | JN32: 658 | JO32: 659 | JP32: 660 | JQ32: 661 | JR32: 662 | JS32: 663 | JT32: 664 | JU32: 665 | JV32: 666 | JW32: 667 | JX32: 668 | JY32: 669 | JZ32: 670 | KA32: 671 | KB32: 672 | KC32: 673 | KD32: 674 | KE32: 675 | KF32: 676 | KG32: 677 | KH32: 678 | KI32: 679 | KJ32: 680 | KK32: 681 | KL32: 682 | KM32: 683 | KN32: 684 | KO32: 685 | KP32: 686 | KQ32: 687 | KR32: 688 | KS32: 689 | KT32: 690 | KU32: 691 | KV32: 692 | KW32: 693 | KX32: 694 | KY32: 695 | KZ32: 696 | LA32: 697 | LB32: 698 | LC32: 699 | LD32: 700 | LE32: 701 | LF32: 702 | LG32: 703 | LH32: 704 | LI32: 705 | LJ32: 706 | LK32: 707 | LL32: 708 | LM32: 709 | LN32: 710 | LO32: =LR$7 -> 711 | LP32: 712 | LQ32: 713 | LR32: 714 | LS32: 715 | LT32: 716 | LU32: 717 | LV32: 718 | LW32: 719 | LX32: 720 | LY32: 721 | LZ32: 722 | MA32: 723 | MB32: 724 | MC32: 725 | MD32: 726 | ME32: 727 | MF32: 728 | MG32: 729 | MH32: 730 | MI32: 731 | MJ32: 732 | MK32: 733 | ML32: 734 | MM32: 735 | MN32: 736 | MO32: 737 | MP32: 738 | MQ32: 739 | MR32: 740 | MS32: 741 | MT32: 742 | MU32: 743 | MV32: 744 | MW32: 745 | MX32: 746 | MY32: 747 | MZ32: 748 | NA32: 749 | NB32: 750 | NC32: 751 | ND32: 752 | NE32: 753 | NF32: 754 | NG32: 755 | NH32: 756 | NI32: 757 | NJ32: 758 | NK32: 759 | NL32: 760 | NM32: 761 | NN32: 762 | NO32: 763 | NP32: 764 | NQ32: 765 | NR32: 766 | NS32: 767 | NT32: 768 | NU32: 769 | NV32: 770 | NW32: 771 | NX32: 772 | NY32: 773 | NZ32: 774 | OA32: =OD$7 -> 775 | OB32: 776 | OC32: 777 | OD32: 778 | OE32: 779 | OF32: 780
E33: =SUM(E34:E54) -> 56.77166646 | F33: =IF($E33=0,0,SUM(F34:F54)/$E33) -> 0.01649685886 | G33: =IF($E33=0,0,SUM(G34:G54)/$E33) -> 0.01896496198 | H33: =IF($E33=0,0,SUM(H34:H54)/$E33) -> 0.02167658807 | I33: 0.02463382094 | J33: 0.02783496156 | K33: 0.03127419416 | L33: 0.03494136033 | M33: 0.03882186724 | N33: 0.04289675423 | O33: 0.04714293947 | P33: 0.05153366378 | Q33: 0.05603914361 | R33: 0.06062743851 | S33: 0.06526553088 | T33: 0.0699206072 | U33: 0.07456152116 | V33: 0.07916040924 | W33: 0.08369441971 | X33: 0.08814750668 | Y33: 0.09251223146 | Z33: 0.09679150566 | AA33: 0.1010002032 | AB33: 0.1051665633 | AC33: 0.1093333044 | AD33: 0.1135583659 | AE33: 0.1179152015 | AF33: 0.1224925505 | AG33: 0.1273936251 | AH33: 0.1327346665 | AI33: 0.1386428407 | AJ33: 0.1452534674 | AK33: 0.1527066006 | AL33: 0.1611430122 | AM33: 0.1706996562 | AN33: 0.1815047267 | AO33: 0.1936724521 | AP33: 0.2072977956 | AQ33: 0.2224512567 | AR33: 0.2391739836 | AS33: 0.2574734163 | AT33: 0.2773196764 | AU33: 0.2986429095 | AV33: 0.3213317589 | AW33: 0.3452331157 | AX33: 0.3701532434 | AY33: 0.3958603194 | AZ33: 0.4220883758 | BA33: 0.448542555 | BB33: 0.4749055353 | BC33: 0.5008449155 | BD33: 0.5260213027 | BE33: 0.5500967991 | BF33: 0.5727435655 | BG33: 0.5936521225 | BH33: 0.6125390647 | BI33: 0.6291538854 | BJ33: 0.643284656 | BK33: 0.6547623571 | BL33: 0.6634637306 | BM33: 0.6693125925 | BN33: 0.6722796257 | BO33: 0.672380742 | BP33: 0.6696741704 | BQ33: 0.6642564822 | BR33: 0.6562577996 | BS33: =IF($E33=0,0,SUM(BS34:BS54)/$E33) -> 0.6458364622 | BT33: 0.6331734242 | BU33: 0.6184666472 | BV33: 0.6019257247 | BW33: 0.5837669338 | BX33: 0.5642088618 | BY33: 0.5434687034 | BZ33: 0.5217592674 | CA33: 0.4992866858 | CB33: 0.4762487703 | CC33: 0.452833932 | CD33: 0.4292205532 | CE33: 0.4055766914 | CF33: 0.3820599949 | CG33: 0.3588177211 | CH33: 0.3359867638 | CI33: 0.3136936239 | CJ33: 0.2920542804 | CK33: 0.2711739499 | CL33: 0.2511467445 | CM33: 0.2320552597 | CN33: 0.2139701404 | CO33: 0.1969496796 | CP33: 0.1810395087 | CQ33: 0.166272433 | CR33: 0.1526684589 | CS33: 0.1402350433 | CT33: 0.1289675841 | CU33: 0.118850152 | CV33: 0.1098564478 | CW33: 0.1019509563 | CX33: 0.09509025742 | CY33: 0.0892244428 | CZ33: 0.08429858712 | DA33: 0.08025421797 | DB33: 0.07703073287 | DC33: 0.07456671648 | DD33: 0.07280111891 | DE33: 0.07167426483 | DF33: 0.07112867355 | DG33: 0.07110967994 | DH33: 0.07156585624 | DI33: 0.0724492435 | DJ33: 0.07371540924 | DK33: 0.07532335388 | DL33: 0.07723529341 | DM33: 0.07941634834 | DN33: 0.0818341704 | DO33: 0.08445853827 | DP33: 0.08726095189 | DQ33: 0.09021425225 | DR33: 0.0932922896 | DS33: 0.09646965872 | DT33: 0.09972151439 | DU33: 0.1030234753 | DV33: 0.1063516188 | DW33: 0.1096825632 | DX33: 0.1129936301 | DY33: 0.116263075 | DZ33: 0.1194703682 | EA33: 0.1225965098 | EB33: 0.1256243567 | EC33: 0.1285389409 | ED33: 0.1313277591 | EE33: =IF($E33=0,0,SUM(EE34:EE54)/$E33) -> 0.133981015 | EF33: 0.136491797 | EG33: 0.1388561803 | EH33: 0.1410732444 | EI33: 0.1431450011 | EJ33: 0.1450762352 | EK33: 0.1468742626 | EL33: 0.148548614 | EM33: 0.1501106595 | EN33: 0.1515731866 | EO33: 0.1529499513 | EP33: 0.1542552188 | EQ33: 0.1555033124 | ER33: 0.1567081868 | ES33: 0.1578830401 | ET33: 0.1590399781 | EU33: 0.1601897375 | EV33: 0.1613414761 | EW33: 0.1625026308 | EX33: 0.1636788433 | EY33: 0.1648739502 | EZ33: 0.1660900297 | FA33: 0.1673275003 | FB33: 0.1685852582 | FC33: 0.1698608478 | FD33: 0.1711506512 | FE33: 0.172450091 | FF33: 0.1737538346 | FG33: 0.1750559938 | FH33: 0.1763503135 | FI33: 0.1776303434 | FJ33: 0.1788895905 | FK33: 0.1801216499 | FL33: 0.1813203121 | FM33: 0.182479649 | FN33: 0.1835940782 | FO33: 0.1846584071 | FP33: 0.185667861 | FQ33: 0.1866180956 | FR33: 0.1875051975 | FS33: 0.1883256754 | FT33: 0.1890764441 | FU33: 0.1897548028 | FV33: 0.1903584115 | FW33: 0.1908852645 | FX33: 0.1913336651 | FY33: 0.191702199 | FZ33: 0.1919897115 | GA33: 0.1921952841 | GB33: 0.1923182153 | GC33: 0.1923580021 | GD33: 0.1923143243 | GE33: 0.1921870313 | GF33: 0.1919761297 | GG33: 0.1916817738 | GH33: 0.1913042568 | GI33: 0.1908440034 | GJ33: 0.1903015638 | GK33: 0.189677608 | GL33: 0.1889729211 | GM33: 0.1881883989 | GN33: 0.1873250444 | GO33: 0.1863839634 | GP33: 0.1853663618 | GQ33: =IF($E33=0,0,SUM(GQ34:GQ54)/$E33) -> 0.1842735413 | GR33: 0.1831068966 | GS33: 0.1818679119 | GT33: 0.1805581571 | GU33: 0.1791792845 | GV33: 0.177733025 | GW33: 0.1762211848 | GX33: 0.1746456409 | GY33: 0.173008338 | GZ33: 0.1713112838 | HA33: 0.1695565457 | HB33: 0.1677462463 | HC33: 0.1658825595 | HD33: 0.1639677068 | HE33: 0.162003953 | HF33: 0.1599936031 | HG33: 0.1579389981 | HH33: 0.1558425129 | HI33: 0.153706553 | HJ33: 0.1515335528 | HK33: 0.1493259749 | HL33: 0.14708631 | HM33: 0.1448170786 | HN33: 0.1425208347 | HO33: 0.1402001711 | HP33: 0.1378577285 | HQ33: 0.1354962073 | HR33: 0.1331183832 | HS33: 0.1307271286 | HT33: 0.1283254383 | HU33: 0.1259164616 | HV33: 0.1235035419 | HW33: 0.1210902628 | HX33: 0.1186805017 | HY33: 0.1162784924 | HZ33: 0.1138888934 | IA33: 0.1115168643 | IB33: 0.109168146 | IC33: 0.1068491449 | ID33: 0.1045670164 | IE33: 0.1023297447 | IF33: 0.1001462138 | IG33: 0.09802626337 | IH33: 0.09598072357 | II33: 0.09402142096 | IJ33: 0.09216114739 | IK33: 0.09041358417 | IL33: 0.08879317344 | IM33: 0.08731492996 | IN33: 0.08599418752 | IO33: 0.08484627677 | IP33: 0.08388613336 | IQ33: 0.08312783915 | IR33: 0.08258410278 | IS33: 0.08226569035 | IT33: 0.08218082141 | IU33: 0.08233454971 | IV33: 0.08272815263 | IW33: 0.08335855617 | IX33: 0.08421782526 | IY33: 0.08529275006 | IZ33: 0.08656455869 | JA33: 0.08800878462 | JB33: 0.08959531307 | JC33: =IF($E33=0,0,SUM(JC34:JC54)/$E33) -> 0.091288625 | JD33: 0.09304824968 | JE33: 0.09482942828 | JF33: 0.09658398068 | JG33: 0.09826135756 | JH33: 0.09980984964 | JI33: 0.1011779161 | JJ33: 0.1023155864 | JK33: 0.1031758833 | JL33: 0.1037162105 | JM33: 0.1038996492 | JN33: 0.1036961071 | JO33: 0.1030832711 | JP33: 0.1020473201 | JQ33: 0.1005833674 | JR33: 0.09869561168 | JS33: 0.09639718983 | JT33: 0.09370973876 | JU33: 0.09066268601 | JV33: 0.08729230121 | JW33: 0.0836405506 | JX33: 0.07975380463 | JY33: 0.07568145366 | JZ33: 0.07147448864 | KA33: 0.06718410291 | KB33: 0.06286036715 | KC33: 0.05855102358 | KD33: 0.05430043705 | KE33: 0.05014873136 | KF33: 0.04613112879 | KG33: 0.0422775003 | KH33: 0.03861212436 | KI33: 0.03515364311 | KJ33: 0.03191519743 | KK33: 0.02890471649 | KL33: 0.02612533357 | KM33: 0.02357589772 | KN33: 0.02125155045 | KO33: 0.01914433798 | KP33: 0.01724383179 | KQ33: 0.01553773386 | KR33: 0.01401244696 | KS33: 0.01265359488 | KT33: 0.01144648177 | KU33: 0.01037648437 | KV33: 0.009429374341 | KW33: 0.008591571778 | KX33: 0.007850333139 | KY33: 0.007193879351 | KZ33: 0.006611470984 | LA33: 0.006093438305 | LB33: 0.005631174305 | LC33: 0.005217098614 | LD33: 0.004844599777 | LE33: 0.004507962596 | LF33: 0.004202286399 | LG33: 0.003923399106 | LH33: 0.003667771051 | LI33: 0.003432431549 | LJ33: 0.003214890402 | LK33: 0.003013065786 | LL33: 0.00282521935 | LM33: 0.002649898859 | LN33: 0.002485888336 | LO33: =IF($E33=0,0,SUM(LO34:LO54)/$E33) -> 0.002332165355 | LP33: 0.002187864977 | LQ33: 0.002052249683 | LR33: 0.001924684601 | LS33: 0.001804617337 | LT33: 0.001691561725 | LU33: 0.001585084857 | LV33: 0.001484796844 | LW33: 0.001390342779 | LX33: 0.001301396497 | LY33: 0.001217655741 | LZ33: 0.001138838455 | MA33: 0.001064679931 | MB33: 0.0009949306312 | MC33: 0.0009293545046 | MD33: 0.0008677276946 | ME33: 0.0008098375241 | MF33: 0.0007554816917 | MG33: 0.0007044676214 | MH33: 0.0006566119232 | MI33: 0.0006117399356 | MJ33: 0.0005696853244 | MK33: 0.0005302897249 | ML33: 0.0004934024132 | MM33: 0.0004588800004 | MN33: 0.0004265861428 | MO33: 0.0003963912646 | MP33: 0.0003681722916 | MQ33: 0.0003418123922 | MR33: 0.0003172007267 | MS33: 0.0002942322025 | MT33: 0.0002728072366 | MU33: 0.0002528315232 | MV33: 0.0002342158087 | MW33: 0.0002168756713 | MX33: 0.0002007313081 | MY33: 0.0001857073271 | MZ33: 0.0001717325464 | NA33: 0.0001587397987 | NB33: 0.000146665743 | NC33: 0.0001354506811 | ND33: 0.000125038382 | NE33: 0.0001153759108 | NF33: 0.000106413465 | NG33: 9.810421625e-05 | NH33: 9.040415796e-05 | NI33: 8.327195935e-05 | NJ33: 7.666882488e-05 | NK33: 7.055835958e-05 | NL33: 6.490643991e-05 | NM33: 5.968109019e-05 | NN33: 5.485236432e-05 | NO33: 5.039223274e-05 | NP33: 4.627447451e-05 | NQ33: 4.247457434e-05 | NR33: 3.896962441e-05 | NS33: 3.573823088e-05 | NT33: 3.276042486e-05 | NU33: 3.001757786e-05 | NV33: 2.749232134e-05 | NW33: 2.51684704e-05 | NX33: 2.303095137e-05 | NY33: 2.106573321e-05 | NZ33: 1.925976244e-05 | OA33: =IF($E33=0,0,SUM(OA34:OA54)/$E33) -> 1.760090171e-05 | OB33: 1.607787155e-05 | OC33: 1.468019541e-05 | OD33: 1.339814778e-05 | OE33: 1.222270517e-05 | OF33: 1.114549994e-05
A34: =IF(Principal!M18="","",MATCH(Principal!M18,Datos!A:A,0)) -> 8 | B34: =IF(A34="","",INDIRECT("Datos!A"&Espectros!A8,TRUE)) -> Blue (465-480) XP-E2 | C34: =IF(A34="","",INDIRECT("Datos!O"&Espectros!A8,TRUE)) -> 3.14 | D34: =IF(B34="","",INDIRECT(ADDRESS(17+MATCH(B34,Principal!$M$18:$M$30,0),15+MATCH("X",Principal!$P$17:$R$17,0),1,1,"Principal"),TRUE)/C34) -> 5.732484076 | E34: =IF(A34="","",INDIRECT("Datos!N"&Espectros!A8,TRUE)*D34) -> 13.1887779 | F34: =IF($E34="","",$E34*I8) -> 2.006008719e-07 | G34: =IF($E34="","",$E34*J8) -> 3.252362807e-07 | H34: =IF($E34="","",$E34*K8) -> 5.238534805e-07 | I34: =IF($E34="","",$E34*L8) -> 8.382341678e-07 | J34: =IF($E34="","",$E34*M8) -> 1.332494923e-06 | K34: 2.104313516e-06 | L34: 3.301414118e-06 | M34: 5.145578899e-06 | N34: 7.96733645e-06 | O34: 1.225566131e-05 | P34: 1.87285874e-05 | Q34: 2.843269141e-05 | R34: 4.288205592e-05 | S34: 6.4250706e-05 | T34: 9.563676723e-05 | U34: 0.0001414218612 | V34: 0.0002077556712 | W34: 0.0003032032869 | X34: 0.0004396019398 | Y34: 0.0006331840599 | Z34: 0.0009060351033 | AA34: 0.001287967052 | AB34: 0.001818901412 | AC34: 0.00255186823 | AD34: 0.00355673909 | AE34: 0.004924820987 | AF34: 0.006774442606 | AG34: 0.009257662937 | AH34: 0.01256822188 | AI34: 0.01695083092 | AJ34: 0.02271186628 | AK34: 0.0302314746 | AL34: 0.03997702924 | AM34: 0.05251778276 | AN34: 0.06854044581 | AO34: 0.0888652865 | AP34: 0.1144621881 | AQ34: 0.1464659323 | AR34: 0.1861897954 | AS34: 0.2351363687 | AT34: 0.2950043482 | AU34: 0.3676899042 | AV34: 0.4552811522 | AW34: 0.5600442155 | AX34: 0.6843994282 | AY34: 0.8308863764 | AZ34: 1.002116738 | BA34: 1.20071427 | BB34: 1.42924179 | BC34: 1.69011563 | BD34: 1.985508763 | BE34: 2.317244585 | BF34: 2.686684203 | BG34: 3.094610862 | BH34: 3.541115949 | BI34: 4.025491622 | BJ34: 4.546135593 | BK34: 5.100473794 | BL34: 5.684906603 | BM34: 6.294783905 | BN34: 6.924413513 | BO34: 7.567106438 | BP34: 8.215261049 | BQ34: 8.86048657 | BR34: 9.493764468 | BS34: =IF($E34="","",$E34*BV8) -> 10.10564441 | BT34: 10.68646948 | BU34: 11.22662367 | BV34: 11.71679302 | BW34: 12.14823066 | BX34: 12.51301539 | BY34: 12.80429307 | BZ34: 13.01649065 | CA34: 13.14549347 | CB34: 13.1887779 | CC34: 13.14549347 | CD34: 13.01649065 | CE34: 12.80429307 | CF34: 12.51301539 | CG34: 12.14823066 | CH34: 11.71679302 | CI34: 11.22662367 | CJ34: 10.68646948 | CK34: 10.10564441 | CL34: 9.493764468 | CM34: 8.86048657 | CN34: 8.215261049 | CO34: 7.567106438 | CP34: 6.924413513 | CQ34: 6.294783905 | CR34: 5.684906603 | CS34: 5.100473794 | CT34: 4.546135593 | CU34: 4.025491622 | CV34: 3.541115949 | CW34: 3.094610862 | CX34: 2.686684203 | CY34: 2.317244585 | CZ34: 1.985508763 | DA34: 1.69011563 | DB34: 1.42924179 | DC34: 1.20071427 | DD34: 1.002116738 | DE34: 0.8308863764 | DF34: 0.6843994282 | DG34: 0.5600442155 | DH34: 0.4552811522 | DI34: 0.3676899042 | DJ34: 0.2950043482 | DK34: 0.2351363687 | DL34: 0.1861897954 | DM34: 0.1464659323 | DN34: 0.1144621881 | DO34: 0.0888652865 | DP34: 0.06854044581 | DQ34: 0.05251778276 | DR34: 0.03997702924 | DS34: 0.0302314746 | DT34: 0.02271186628 | DU34: 0.01695083092 | DV34: 0.01256822188 | DW34: 0.009257662937 | DX34: 0.006774442606 | DY34: 0.004924820987 | DZ34: 0.00355673909 | EA34: 0.00255186823 | EB34: 0.001818901412 | EC34: 0.001287967052 | ED34: 0.0009060351033 | EE34: =IF($E34="","",$E34*EH8) -> 0.0006331840599 | EF34: 0.0004396019398 | EG34: 0.0003032032869 | EH34: 0.0002077556712 | EI34: 0.0001414218612 | EJ34: 9.563676723e-05 | EK34: 6.4250706e-05 | EL34: 4.288205592e-05 | EM34: 2.843269141e-05 | EN34: 1.87285874e-05 | EO34: 1.225566131e-05 | EP34: 7.96733645e-06 | EQ34: 5.145578899e-06 | ER34: 3.301414118e-06 | ES34: 2.104313516e-06 | ET34: 1.332494923e-06 | EU34: 8.382341678e-07 | EV34: 5.238534805e-07 | EW34: 3.252362807e-07 | EX34: 2.006008719e-07 | EY34: 1.229168224e-07 | EZ34: 7.482289551e-08 | FA34: 4.52483112e-08 | FB34: 2.718409735e-08 | FC34: 1.622453045e-08 | FD34: 9.619977027e-09 | FE34: 5.666574604e-09 | FF34: 3.315979713e-09 | FG34: 1.927737061e-09 | FH34: 1.113341523e-09 | FI34: 6.387835071e-10 | FJ34: 3.641024994e-10 | FK34: 2.061760923e-10 | FL34: 1.15983878e-10 | FM34: 6.481889534e-11 | FN34: 3.598738607e-11 | FO34: 1.984922975e-11 | FP34: 1.087631287e-11 | FQ34: 5.920582045e-12 | FR34: 3.201782254e-12 | FS34: 1.72014026e-12 | FT34: 9.180801682e-13 | FU34: 4.867904276e-13 | FV34: 2.56417777e-13 | FW34: 1.341834365e-13 | FX34: 6.97580557e-14 | FY34: 3.602753117e-14 | FZ34: 1.848499408e-14 | GA34: 9.422123816e-15 | GB34: 4.771148963e-15 | GC34: 2.400169006e-15 | GD34: 1.199514075e-15 | GE34: 5.955435854e-16 | GF34: 2.937422602e-16 | GG34: 1.439341976e-16 | GH34: 7.006582307e-17 | GI34: 3.388388062e-17 | GJ34: 1.627888802e-17 | GK34: 7.769641967e-18 | GL34: 3.684019796e-18 | GM34: 1.735352005e-18 | GN34: 8.120782645e-19 | GO34: 3.775312181e-19 | GP34: 1.743622762e-19 | GQ34: =IF($E34="","",$E34*GT8) -> 8.000126761e-20 | GR34: 3.646581169e-20 | GS34: 1.65127566e-20 | GT34: 7.428445678e-21 | GU34: 3.319869422e-21 | GV34: 1.473970293e-21 | GW34: 6.501313923e-22 | GX34: 2.848775471e-22 | GY34: 1.240109354e-22 | GZ34: 5.362983042e-23 | HA34: 2.304079935e-23 | HB34: 9.834070968e-24 | HC34: 4.169786435e-24 | HD34: 1.756462832e-24 | HE34: 7.350363116e-25 | HF34: 3.055788571e-25 | HG34: 1.262067224e-25 | HH34: 5.178289804e-26 | HI34: 2.110740747e-26 | HJ34: 8.547283594e-27 | HK34: 3.438476113e-27 | HL34: 1.374195707e-27 | HM34: 5.456018587e-28 | HN34: 2.152027283e-28 | HO34: 8.432655968e-29 | HP34: 3.282658238e-29 | HQ34: 1.269496874e-29 | HR34: 4.877331553e-30 | HS34: 1.86156241e-30 | HT34: 7.058584209e-31 | HU34: 2.658901675e-31 | HV34: 9.950195942e-32 | HW34: 3.699181721e-32 | HX34: 1.366231763e-32 | HY34: 5.012885293e-33 | HZ34: 1.827241012e-33 | IA34: 6.61680871e-34 | IB34: 2.38037841e-34 | IC34: 8.507228615e-35 | ID34: 3.020472478e-35 | IE34: 1.065384416e-35 | IF34: 3.733210468e-36 | IG34: 1.299580804e-36 | IH34: 4.494369544e-37 | II34: 1.544112532e-37 | IJ34: 5.270281281e-38 | IK34: 1.787036074e-38 | IL34: 6.019737066e-39 | IM34: 2.014495971e-39 | IN34: 6.697303216e-40 | IO34: 2.211964733e-40 | IP34: 7.257735104e-41 | IQ34: 2.365749221e-41 | IR34: 7.660920865e-42 | IS34: 2.464551654e-42 | IT34: 7.876613787e-43 | IU34: 2.500839704e-43 | IV34: 7.888180472e-44 | IW34: 2.47179528e-44 | IX34: 7.69472028e-45 | IY34: 2.379676124e-45 | IZ34: 7.311181198e-46 | JA34: 2.231525838e-46 | JB34: 6.766451447e-47 | JC34: =IF($E34="","",$E34*JF8) -> 2.038284012e-47 | JD34: 6.099765007e-48 | JE34: 1.813452515e-48 | JF34: 5.356041708e-49 | JG34: 1.571543441e-49 | JH34: 4.580928447e-50 | JI34: 1.326555132e-50 | JJ34: 3.816293592e-51 | JK34: 1.090694015e-51 | JL34: 3.096768636e-52 | JM34: 8.734926753e-53 | JN34: 2.447678952e-53 | JO34: 6.813877429e-54 | JP34: 1.884425006e-54 | JQ34: 5.177356593e-55 | JR34: 1.413129543e-55 | JS34: 3.831779869e-56 | JT34: 1.032199882e-56 | JU34: 2.76230568e-57 | JV34: 7.34385927e-58 | JW34: 1.93964224e-58 | JX34: 5.089364998e-59 | JY34: 1.326631307e-59 | JZ34: 3.435433635e-60 | KA34: 8.838072556e-61 | KB34: 2.258802396e-61 | KC34: 5.735134336e-62 | KD34: 1.446617212e-62 | KE34: 3.62500274e-63 | KF34: 9.024179562e-64 | KG34: 2.231782127e-64 | KH34: 5.483281476e-65 | KI34: 1.338363128e-65 | KJ34: 3.245279184e-66 | KK34: 7.817625161e-67 | KL34: 1.870864352e-67 | KM34: 4.44789406e-68 | KN34: 1.050536745e-68 | KO34: 2.464976244e-69 | KP34: 5.74591116e-70 | KQ34: 1.330606846e-70 | KR34: 3.061154702e-71 | KS34: 6.996252591e-72 | KT34: 1.588511493e-72 | KU34: 3.583108175e-73 | KV34: 8.029234764e-74 | KW34: 1.787446578e-74 | KX34: 3.953089646e-75 | KY34: 8.685302188e-76 | KZ34: 1.895736106e-76 | LA34: 4.110697398e-77 | LB34: 8.855188538e-78 | LC34: 1.895067984e-78 | LD34: 4.028992461e-79 | LE34: 8.509671452e-80 | LF34: 1.785557371e-80 | LG34: 3.722026861e-81 | LH34: 7.707790023e-82 | LI34: 1.585714235e-82 | LJ34: 3.240892703e-83 | LK34: 6.580350986e-84 | LL34: 1.327327654e-84 | LM34: 2.659817901e-85 | LN34: 5.295053401e-86 | LO34: =IF($E34="","",$E34*LR8) -> 1.047209232e-86 | LP34: 2.057506699e-87 | LQ34: 4.016000253e-88 | LR34: 7.787371316e-89 | LS34: 1.500143183e-89 | LT34: 2.870907635e-90 | LU34: 5.458212075e-91 | LV34: 1.030923096e-91 | LW34: 1.934402349e-92 | LX34: 3.605886314e-93 | LY34: 6.67762348e-94 | LZ34: 1.228503796e-94 | MA34: 2.245307134e-95 | MB34: 4.07680264e-96 | MC34: 7.353740439e-97 | MD34: 1.31777597e-97 | ME34: 2.345954308e-98 | MF34: 4.148988129e-99 | MG34: 7.289697609e-100 | MH34: 1.272393707e-100 | MI34: 2.206369215e-101 | MJ34: 3.800839618e-102 | MK34: 6.504674624e-103 | ML34: 1.105901095e-103 | MM34: 1.867891634e-104 | MN34: 3.134236355e-105 | MO34: 5.224641414e-106 | MP34: 8.65218728e-107 | MQ34: 1.423442774e-107 | MR34: 2.326477147e-108 | MS34: 3.777480641e-109 | MT34: 6.093269429e-110 | MU34: 9.76434677e-111 | MV34: 1.554464059e-111 | MW34: 2.458458341e-112 | MX34: 3.862688619e-113 | MY34: 6.029221295e-114 | MZ34: 9.349264073e-115 | NA34: 1.440251403e-115 | NB34: 2.204163799e-116 | NC34: 3.351151806e-117 | ND34: 5.06161392e-118 | NE34: 7.595014512e-119 | NF34: 1.13217322e-119 | NG34: 1.676647734e-120 | NH34: 2.466694993e-121 | NI34: 3.605236476e-122 | NJ34: 5.234759556e-123 | NK34: 7.550998749e-124 | NL34: 1.082073438e-124 | NM34: 1.540471799e-125 | NN34: 2.17869003e-126 | NO34: 3.061130311e-127 | NP34: 4.272802977e-128 | NQ34: 5.925003282e-129 | NR34: 8.162233243e-130 | NS34: 1.117053785e-130 | NT34: 1.518741451e-131 | NU34: 2.05134301e-132 | NV34: 2.752563859e-133 | NW34: 3.669282916e-134 | NX34: 4.8592548e-135 | NY34: 6.392972316e-136 | NZ34: 8.355657949e-137 | OA34: =IF($E34="","",$E34*OD8) -> 1.084933603e-137 | OB34: 1.39949176e-138 | OC34: 1.793420828e-139 | OD34: 2.283172634e-140 | OE34: 2.887619524e-141 | OF34: 3.628155287e-142
A35: =IF(Principal!M19="","",MATCH(Principal!M19,Datos!A:A,0)) -> 27 | B35: =IF(A35="","",INDIRECT("Datos!A"&Espectros!A9,TRUE)) -> Blanco Frío (6000K) XP-G2 | C35: =IF(A35="","",INDIRECT("Datos!O"&Espectros!A9,TRUE)) -> 4.53 | D35: =IF(B35="","",INDIRECT(ADDRESS(17+MATCH(B35,Principal!$M$18:$M$30,0),15+MATCH("X",Principal!$P$17:$R$17,0),1,1,"Principal"),TRUE)/C35) -> 5.739514349 | E35: =IF(A35="","",INDIRECT("Datos!N"&Espectros!A9,TRUE)*D35) -> 18.2 | F35: =IF($E35="","",$E35*I9) -> 0.01059365206 | G35: =IF($E35="","",$E35*J9) -> 0.01175612104 | H35: 0.01312605943 | I35: 0.01476164768 | J35: 0.01673907778 | K35: 0.01915762381 | L35: 0.02214587886 | M35: 0.02586933605 | N35: 0.03053948953 | O35: 0.03642461683 | P35: 0.04386237493 | Q35: =IF($E35="","",$E35*T9) -> 0.0532742939 | R35: 0.0651821806 | S35: 0.08022634798 | T35: 0.0991854593 | U35: 0.122997621 | V35: 0.1527821733 | W35: 0.1898614154 | X35: 0.2357812728 | Y35: 0.2923296704 | Z35: 0.3615511339 | AA35: 0.4457559244 | AB35: 0.5475218229 | AC35: 0.669686564 | AD35: 0.8153288801 | AE35: 0.9877361913 | AF35: 1.190357185 | AG35: 1.426737883 | AH35: 1.70044032 | AI35: 2.01494364 | AJ35: 2.373528255 | AK35: 2.779144708 | AL35: 3.234269939 | AM35: 3.740754798 | AN35: 4.299667755 | AO35: 4.911140801 | AP35: 5.57422438 | AQ35: 6.286758836 | AR35: 7.04527012 | AS35: 7.844897431 | AT35: 8.679359915 | AU35: 9.540968545 | AV35: 10.42068786 | AW35: 11.3082503 | AX35: 12.19232379 | AY35: 13.06073042 | AZ35: 13.90071197 | BA35: 14.69923474 | BB35: 15.44332458 | BC35: 16.12042007 | BD35: 16.71873099 | BE35: 17.22758782 | BF35: 17.63776788 | BG35: 17.94178433 | BH35: 18.1341253 | BI35: 18.21143269 | BJ35: 18.17261247 | BK35: 18.01887145 | BL35: 17.75367896 | BM35: 17.38265505 | BN35: 16.91339037 | BO35: 16.35520587 | BP35: 15.71886282 | BQ35: 15.01623608 | BR35: 14.25996416 | BS35: 13.46309074 | BT35: 12.63871155 | BU35: 11.7996399 | BV35: 10.95810239 | BW35: 10.12547427 | BX35: 9.312061608 | BY35: 8.526934766 | BZ35: 7.777815007 | CA35: 7.07101374 | CB35: 6.411421518 | CC35: 5.80254211 | CD35: 5.246565494 | CE35: 4.744472631 | CF35: 4.296164348 | CG35: 3.900606575 | CH35: 3.555984466 | CI35: 3.259858587 | CJ35: 3.009317182 | CK35: 2.8011196 | CL35: 2.631827065 | CM35: 2.497918094 | CN35: 2.395886959 | CO35: 2.32232457 | CP35: 2.273981964 | CQ35: 2.247817319 | CR35: 2.241027882 | CS35: 2.251068584 | CT35: 2.275659301 | CU35: 2.312782808 | CV35: 2.360675427 | CW35: 2.417812239 | CX35: 2.482888556 | CY35: 2.554799138 | CZ35: 2.632616361 | DA35: 2.715568351 | DB35: 2.803017828 | DC35: 2.894442209 | DD35: 2.989415335 | DE35: 3.087591031 | DF35: 3.188688579 | DG35: 3.292480095 | DH35: 3.398779721 | DI35: 3.507434493 | DJ35: 3.618316745 | DK35: 3.731317848 | DL35: 3.846343117 | DM35: 3.96330773 | DN35: 4.082133464 | DO35: 4.202746147 | DP35: 4.325073661 | DQ35: 4.44904442 | DR35: 4.574586204 | DS35: 4.701625287 | DT35: 4.830085799 | DU35: 4.959889258 | DV35: 5.090954243 | DW35: 5.223196172 | DX35: 5.356527164 | DY35: 5.490855963 | DZ35: 5.626087906 | EA35: 5.762124934 | EB35: 5.898865634 | EC35: 6.036205297 | ED35: 6.174036008 | EE35: 6.312246743 | EF35: 6.450723482 | EG35: 6.589349341 | EH35: 6.728004708 | EI35: 6.866567394 | EJ35: 7.004912794 | EK35: 7.142914056 | EL35: 7.280442259 | EM35: 7.417366599 | EN35: 7.553554587 | EO35: 7.688872247 | EP35: 7.82318433 | EQ35: 7.956354528 | ER35: 8.088245695 | ES35: 8.218720079 | ET35: 8.347639552 | EU35: 8.474865849 | EV35: 8.60026081 | EW35: 8.723686627 | EX35: 8.84500609 | EY35: 8.964082839 | EZ35: 9.080781617 | FA35: 9.194968524 | FB35: 9.306511269 | FC35: 9.415279423 | FD35: 9.521144675 | FE35: 9.623981081 | FF35: 9.723665311 | FG35: 9.820076897 | FH35: 9.913098475 | FI35: 10.00261602 | FJ35: 10.08851908 | FK35: 10.170701 | FL35: 10.24905915 | FM35: 10.32349513 | FN35: 10.39391499 | FO35: 10.46022939 | FP35: 10.52235384 | FQ35: 10.58020885 | FR35: 10.63372009 | FS35: 10.68281858 | FT35: 10.72744082 | FU35: 10.76752892 | FV35: 10.80303073 | FW35: 10.83389996 | FX35: 10.86009629 | FY35: 10.88158544 | FZ35: 10.89833922 | GA35: 10.91033566 | GB35: 10.91755901 | GC35: 10.91999976 | GD35: 10.91765471 | GE35: 10.91052695 | GF35: 10.89862583 | GG35: 10.881967 | GH35: 10.86057231 | GI35: 10.83446981 | GJ35: 10.80369366 | GK35: 10.76828406 | GL35: 10.7282872 | GM35: 10.6837551 | GN35: 10.63474553 | GO35: 10.58132188 | GP35: 10.52355304 | GQ35: 10.46151321 | GR35: 10.3952818 | GS35: 10.32494319 | GT35: 10.25058663 | GU35: 10.17230597 | GV35: 10.09019953 | GW35: 10.00436986 | GX35: 9.914923539 | GY35: 9.821970936 | GZ35: 9.725626011 | HA35: 9.626006063 | HB35: 9.523231501 | HC35: 9.4174256 | HD35: 9.308714254 | HE35: 9.19722573 | HF35: 9.083090415 | HG35: 8.966440567 | HH35: 8.847410056 | HI35: 8.726134115 | HJ35: 8.602749083 | HK35: 8.477392155 | HL35: 8.350201132 | HM35: 8.221314168 | HN35: 8.090869527 | HO35: 7.959005343 | HP35: 7.825859379 | HQ35: 7.691568794 | HR35: 7.556269915 | HS35: 7.420098015 | HT35: 7.283187095 | HU35: 7.145669676 | HV35: 7.007676597 | HW35: 6.869336814 | HX35: 6.730777221 | HY35: 6.592122462 | HZ35: 6.453494768 | IA35: 6.315013788 | IB35: 6.17679644 | IC35: 6.038956765 | ID35: 5.901605793 | IE35: 5.764851418 | IF35: 5.628798282 | IG35: 5.493547667 | IH35: 5.359197404 | II35: 5.225841782 | IJ35: 5.093571472 | IK35: 4.962473461 | IL35: 4.832630998 | IM35: 4.704123537 | IN35: 4.57702671 | IO35: 4.451412289 | IP35: 4.327348171 | IQ35: 4.204898366 | IR35: 4.084122993 | IS35: 3.965078289 | IT35: 3.847816621 | IU35: 3.73238651 | IV35: 3.618832659 | IW35: 3.507195993 | IX35: 3.3975137 | IY35: 3.289819285 | IZ35: 3.184142628 | JA35: 3.080510042 | JB35: 2.978944349 | JC35: 2.879464949 | JD35: 2.782087904 | JE35: 2.686826015 | JF35: 2.593688919 | JG35: 2.502683174 | JH35: 2.413812356 | JI35: 2.32707716 | JJ35: 2.242475497 | JK35: 2.160002602 | JL35: 2.079651135 | JM35: 2.001411292 | JN35: 1.925270912 | JO35: 1.851215586 | JP35: 1.779228768 | JQ35: 1.709291886 | JR35: 1.641384453 | JS35: 1.575484174 | JT35: 1.511567061 | JU35: 1.449607541 | JV35: 1.38957856 | JW35: 1.331451695 | JX35: 1.275197259 | JY35: 1.220784401 | JZ35: 1.168181212 | KA35: 1.117354824 | KB35: 1.068271506 | KC35: 1.020896761 | KD35: 0.9751954192 | KE35: 0.9311317262 | KF35: 0.8886694316 | KG35: 0.8477718734 | KH35: 0.8084020596 | KI35: 0.7705227465 | KJ35: 0.7340965142 | KK35: 0.699085839 | KL35: 0.6654531623 | KM35: 0.6331609568 | KN35: 0.6021717888 | KO35: 0.5724483781 | KP35: 0.5439536537 | KQ35: 0.5166508075 | KR35: 0.4905033434 | KS35: 0.4654751243 | KT35: 0.441530416 | KU35: 0.4186339269 | KV35: 0.3967508462 | KW35: 0.3758468781 | KX35: 0.3558882731 | KY35: 0.3368418576 | KZ35: 0.3186750589 | LA35: 0.3013559294 | LB35: 0.284853167 | LC35: 0.2691361335 | LD35: 0.2541748704 | LE35: 0.2399401123 | LF35: 0.2264032986 | LG35: 0.2135365823 | LH35: 0.2013128374 | LI35: 0.1897056641 | LJ35: 0.1786893919 | LK35: 0.1682390817 | LL35: 0.1583305252 | LM35: 0.148940244 | LN35: 0.1400454859 | LO35: 0.131624221 | LP35: 0.1236551356 | LQ35: 0.1161176258 | LR35: 0.1089917892 | LS35: 0.1022584162 | LT35: 0.09589897975 | LU35: 0.08989562516 | LV35: 0.08423115819 | LW35: 0.07888903305 | LX35: 0.07385333962 | LY35: 0.06910879009 | LZ35: 0.06464070521 | MA35: 0.06043500011 | MB35: 0.05647816967 | MC35: 0.0527572738 | MD35: 0.0492599223 | ME35: 0.04597425969 | MF35: 0.0428889498 | MG35: 0.03999316036 | MH35: 0.03727654754 | MI35: 0.03472924046 | MJ35: 0.03234182578 | MK35: 0.0301053324 | ML35: 0.02801121618 | MM35: 0.02605134492 | MN35: 0.02421798344 | MO35: 0.02250377889 | MP35: 0.02090174627 | MQ35: 0.01940525419 | MR35: 0.01800801093 | MS35: 0.01670405074 | MT35: 0.01548772043 | MU35: 0.01435366632 | MV35: 0.01329682143 | MW35: 0.01231239308 | MX35: 0.01139585076 | MY35: 0.01054291437 | MZ35: 0.009749542808 | NA35: 0.009011922889 | NB35: 0.008326458632 | NC35: 0.007689760886 | ND35: 0.007098637315 | NE35: 0.006550082725 | NF35: 0.006041269743 | NG35: 0.005569539843 | NH35: 0.005132394702 | NI35: 0.004727487902 | NJ35: 0.004352616954 | NK35: 0.004005715656 | NL35: 0.003684846758 | NM35: 0.003388194947 | NN35: 0.003114060132 | NO35: 0.002860851029 | NP35: 0.002627079032 | NQ35: 0.002411352367 | NR35: 0.002212370519 | NS35: 0.002028918923 | NT35: 0.001859863914 | NU35: 0.001704147919 | NV35: 0.001560784898 | NW35: 0.001428856007 | NX35: 0.00130750549 | NY35: 0.001195936779 | NZ35: 0.00109340881 | OA35: 0.0009992325214 | OB35: 0.0009127675608 | OC35: 0.0008334191574 | OD35: 0.0007606351772 | OE35: 0.0006939033415 | OF35: 0.0006327486051
A36: =IF(Principal!M20="","",MATCH(Principal!M20,Datos!A:A,0)) -> 24 | B36: =IF(A36="","",INDIRECT("Datos!A"&Espectros!A10,TRUE)) -> Royal Blue (440-450) XT-E | C36: =IF(A36="","",INDIRECT("Datos!O"&Espectros!A10,TRUE)) -> 4.92 | D36: =IF(B36="","",INDIRECT(ADDRESS(17+MATCH(B36,Principal!$M$18:$M$30,0),15+MATCH("X",Principal!$P$17:$R$17,0),1,1,"Principal"),TRUE)/C36) -> 5.284552846 | E36: =IF(A36="","",INDIRECT("Datos!N"&Espectros!A10,TRUE)*D36) -> 14.15505226 | F36: =IF($E36="","",$E36*I10) -> 0.0001026435844 | G36: 0.0001517831183 | H36: 0.0002229768676 | I36: 0.0003254174423 | J36: 0.0004718093275 | K36: 0.0006795742203 | L36: 0.0009724156653 | M36: 0.001382329816 | N36: 0.001952163024 | O36: 0.002738830575 | P36: 0.003817323188 | Q36: 0.005285637454 | R36: 0.007270771397 | S36: 0.009935924593 | T36: 0.01348903127 | U36: 0.01819273168 | V36: 0.02437584867 | W36: 0.03244638025 | X36: 0.04290594188 | Y36: 0.05636549233 | Z36: 0.07356205403 | AA36: 0.09537599193 | AB36: 0.1228482477 | AC36: 0.1571967427 | AD36: 0.1998309702 | AE36: 0.2523636089 | AF36: 0.3166178092 | AG36: 0.3946286646 | AH36: 0.4886372757 | AI36: 0.6010757932 | AJ36: 0.7345418769 | AK36: 0.8917611753 | AL36: 1.075536711 | AM36: 1.288684469 | AN36: 1.533955033 | AO36: 1.813941766 | AP36: 2.130976844 | AQ36: 2.487017254 | AR36: 2.883523826 | AS36: 3.321337187 | AT36: 3.800555419 | AU36: 4.320418823 | AV36: 4.879207716 | AW36: 5.474159444 | AX36: 6.101410659 | AY36: 6.755970554 | AZ36: 7.431729906 | BA36: 8.121509658 | BB36: 8.817151246 | BC36: 9.509649143 | BD36: 10.18932408 | BE36: 10.84603333 | BF36: 11.46941249 | BG36: 12.04914102 | BH36: 12.57522257 | BI36: 13.03826944 | BJ36: 13.42978008 | BK36: 13.74239819 | BL36: 13.97014241 | BM36: 14.10859661 | BN36: 14.15505226 | BO36: 14.10859661 | BP36: 13.97014241 | BQ36: 13.74239819 | BR36: 13.42978008 | BS36: 13.03826944 | BT36: 12.57522257 | BU36: 12.04914102 | BV36: 11.46941249 | BW36: 10.84603333 | BX36: 10.18932408 | BY36: 9.509649143 | BZ36: 8.817151246 | CA36: 8.121509658 | CB36: 7.431729906 | CC36: 6.755970554 | CD36: 6.101410659 | CE36: 5.474159444 | CF36: 4.879207716 | CG36: 4.320418823 | CH36: 3.800555419 | CI36: 3.321337187 | CJ36: 2.883523826 | CK36: 2.487017254 | CL36: 2.130976844 | CM36: 1.813941766 | CN36: 1.533955033 | CO36: 1.288684469 | CP36: 1.075536711 | CQ36: 0.8917611753 | CR36: 0.7345418769 | CS36: 0.6010757932 | CT36: 0.4886372757 | CU36: 0.3946286646 | CV36: 0.3166178092 | CW36: 0.2523636089 | CX36: 0.1998309702 | CY36: 0.1571967427 | CZ36: 0.1228482477 | DA36: 0.09537599193 | DB36: 0.07356205403 | DC36: 0.05636549233 | DD36: 0.04290594188 | DE36: 0.03244638025 | DF36: 0.02437584867 | DG36: 0.01819273168 | DH36: 0.01348903127 | DI36: 0.009935924593 | DJ36: 0.007270771397 | DK36: 0.005285637454 | DL36: 0.003817323188 | DM36: 0.002738830575 | DN36: 0.001952163024 | DO36: 0.001382329816 | DP36: 0.0009724156653 | DQ36: 0.0006795742203 | DR36: 0.0004718093275 | DS36: 0.0003254174423 | DT36: 0.0002229768676 | DU36: 0.0001517831183 | DV36: 0.0001026435844 | DW36: 6.89580269e-05 | DX36: 4.602380503e-05 | DY36: 3.051580941e-05 | DZ36: 2.01007353e-05 | EA36: 1.315357099e-05 | EB36: 8.551062478e-06 | EC36: 5.52256917e-06 | ED36: 3.54329186e-06 | EE36: 2.258485814e-06 | EF36: 1.430120017e-06 | EG36: 8.996473017e-07 | EH36: 5.62233548e-07 | EI36: 3.49064681e-07 | EJ36: 2.152978726e-07 | EK36: 1.319223098e-07 | EL36: 8.030478671e-08 | EM36: 4.856342374e-08 | EN36: 2.917573725e-08 | EO36: 1.741321889e-08 | EP36: 1.032478358e-08 | EQ36: 6.081735568e-09 | ER36: 3.558924601e-09 | ES36: 2.068972504e-09 | ET36: 1.194910367e-09 | EU36: 6.855839104e-10 | EV36: 3.90778429e-10 | EW36: 2.212815609e-10 | EX36: 1.244814241e-10 | EY36: 6.956784457e-11 | EZ36: 3.862399795e-11 | FA36: 2.130348138e-11 | FB36: 1.167316474e-11 | FC36: 6.354352836e-12 | FD36: 3.436360479e-12 | FE36: 1.846166147e-12 | FF36: 9.853432106e-13 | FG36: 5.224550746e-13 | FH36: 2.752041972e-13 | FI36: 1.440143712e-13 | FJ36: 7.486887197e-14 | FK36: 3.866708428e-14 | FL36: 1.983929514e-14 | FM36: 1.011243468e-14 | FN36: 5.120706666e-15 | FO36: 2.576017123e-15 | FP36: 1.287396341e-15 | FQ36: 6.391760206e-16 | FR36: 3.152632545e-16 | FS36: 1.544795208e-16 | FT36: 7.519918788e-17 | FU36: 3.63663794e-17 | FV36: 1.747155896e-17 | FW36: 8.33888393e-18 | FX36: 3.953929101e-18 | FY36: 1.862492379e-18 | FZ36: 8.715750891e-19 | GA36: 4.051910012e-19 | GB36: 1.871369092e-19 | GC36: 8.586255167e-20 | GD36: 3.913747537e-20 | GE36: 1.772256189e-20 | GF36: 7.972689933e-21 | GG36: 3.56309929e-21 | GH36: 1.581960564e-21 | GI36: 6.977631972e-22 | GJ36: 3.057490692e-22 | GK36: 1.33096583e-22 | GL36: 5.755901404e-23 | GM36: 2.472888098e-23 | GN36: 1.055456309e-23 | GO36: 4.475285379e-24 | GP36: 1.885149888e-24 | GQ36: 7.888886661e-25 | GR36: 3.279670584e-25 | GS36: 1.35453244e-25 | GT36: 5.557676636e-26 | GU36: 2.265383935e-26 | GV36: 9.173499386e-27 | GW36: 3.690395687e-27 | GX36: 1.474876004e-27 | GY36: 5.855753188e-28 | GZ36: 2.309695325e-28 | HA36: 9.050473579e-29 | HB36: 3.523161833e-29 | HC36: 1.362506422e-29 | HD36: 5.234668713e-30 | HE36: 1.997949575e-30 | HF36: 7.575730604e-31 | HG36: 2.853705814e-31 | HH36: 1.067919595e-31 | HI36: 3.970201863e-32 | HJ36: 1.466328582e-32 | HK36: 5.380153782e-33 | HL36: 1.961113623e-33 | HM36: 7.101588471e-34 | HN36: 2.554776573e-34 | HO36: 9.130509783e-35 | HP36: 3.241767061e-35 | HQ36: 1.143439688e-35 | HR36: 4.006723722e-36 | HS36: 1.394794449e-36 | HT36: 4.823649034e-37 | HU36: 1.657241767e-37 | HV36: 5.656407859e-38 | HW36: 1.917963075e-38 | HX36: 6.460772439e-39 | HY36: 2.162087796e-39 | HZ36: 7.187980398e-40 | IA36: 2.374024086e-40 | IB36: 7.789472267e-41 | IC36: 2.539075577e-41 | ID36: 8.222197389e-42 | IE36: 2.645116759e-42 | IF36: 8.453693029e-43 | IG36: 2.68406345e-43 | IH36: 8.466107145e-44 | II36: 2.652891089e-44 | IJ36: 8.258473114e-45 | IK36: 2.554022833e-45 | IL36: 7.846834083e-46 | IM36: 2.395018332e-46 | IN36: 7.262194767e-47 | IO36: 2.187618666e-47 | IP36: 6.546663618e-48 | IQ36: 1.946314914e-48 | IR36: 5.748451514e-49 | IS36: 1.686682398e-49 | IT36: 4.916549665e-50 | IU36: 1.423745048e-50 | IV36: 4.095893922e-51 | IW36: 1.170603592e-51 | IX36: 3.323653049e-52 | IY36: 9.3748902e-53 | IZ36: 2.627007881e-53 | JA36: 7.313095408e-54 | JB36: 2.022487197e-54 | JC36: 5.556675054e-55 | JD36: 1.516662323e-55 | JE36: 4.112514799e-56 | JF36: 1.107823892e-56 | JG36: 2.964685702e-57 | JH36: 7.88190631e-58 | JI36: 2.081749915e-58 | JJ36: 5.462236765e-59 | JK36: 1.423826804e-59 | JL36: 3.687130302e-60 | JM36: 9.485592968e-61 | JN36: 2.424293305e-61 | JO36: 6.155318321e-62 | JP36: 1.552603463e-62 | JQ36: 3.890588167e-63 | JR36: 9.685335084e-64 | JS36: 2.395293399e-64 | JT36: 5.885013489e-65 | JU36: 1.436418155e-65 | JV36: 3.483044207e-66 | JW36: 8.390382607e-67 | JX36: 2.007933023e-67 | JY36: 4.773768529e-68 | JZ36: 1.127504204e-68 | KA36: 2.645572457e-69 | KB36: 6.166884709e-70 | KC36: 1.42809361e-70 | KD36: 3.285429864e-71 | KE36: 7.508832267e-72 | KF36: 1.704893613e-72 | KG36: 3.845624201e-73 | KH36: 8.617495765e-74 | KI36: 1.918403654e-74 | KJ36: 4.242712323e-75 | KK36: 9.321629896e-76 | KL36: 2.034627003e-76 | KM36: 4.41186719e-77 | KN36: 9.503962952e-78 | KO36: 2.033909931e-78 | KP36: 4.324176149e-79 | KQ36: 9.133131594e-80 | KR36: 1.916376035e-80 | KS36: 3.994720749e-81 | KT36: 8.27250041e-82 | KU36: 1.701891414e-82 | KV36: 3.47833635e-83 | KW36: 7.062459676e-84 | KX36: 1.424574168e-84 | KY36: 2.854689166e-85 | KZ36: 5.682994905e-86 | LA36: 1.123932901e-86 | LB36: 2.2082497e-87 | LC36: 4.310232069e-88 | LD36: 8.357912218e-89 | LE36: 1.610051008e-89 | LF36: 3.081244367e-90 | LG36: 5.858107381e-91 | LH36: 1.106453563e-91 | LI36: 2.076126124e-92 | LJ36: 3.870071178e-93 | LK36: 7.166858829e-94 | LL36: 1.318509992e-94 | LM36: 2.409809314e-95 | LN36: 4.375489136e-96 | LO36: 7.892511422e-97 | LP36: 1.414322682e-97 | LQ36: 2.517830392e-98 | LR36: 4.452963287e-99 | LS36: 7.823776501e-100 | LT36: 1.365615491e-100 | LU36: 2.368018613e-101 | LV36: 4.079307714e-102 | LW36: 6.981238895e-103 | LX36: 1.186924817e-103 | LY36: 2.004742509e-104 | LZ36: 3.363865836e-105 | MA36: 5.607424192e-106 | MB36: 9.286088828e-107 | MC36: 1.527731152e-107 | MD36: 2.496926238e-108 | ME36: 4.054237344e-109 | MF36: 6.539692143e-110 | MG36: 1.047973056e-110 | MH36: 1.668351697e-111 | MI36: 2.638577021e-112 | MJ36: 4.145688075e-113 | MK36: 6.470951529e-114 | ML36: 1.003423688e-114 | MM36: 1.545771264e-115 | MN36: 2.365651617e-116 | MO36: 3.596673574e-117 | MP36: 5.432452507e-118 | MQ36: 8.151462414e-119 | MR36: 1.215121767e-119 | MS36: 1.799487145e-120 | MT36: 2.64741713e-121 | MU36: 3.869373729e-122 | MV36: 5.618283638e-123 | MW36: 8.104221841e-124 | MX36: 1.161351429e-124 | MY36: 1.653334295e-125 | MZ36: 2.338311515e-126 | NA36: 3.285403687e-127 | NB36: 4.585849417e-128 | NC36: 6.359097995e-129 | ND36: 8.760238363e-130 | NE36: 1.198894608e-130 | NF36: 1.630011876e-131 | NG36: 2.20163443e-132 | NH36: 2.954230147e-133 | NI36: 3.938112525e-134 | NJ36: 5.215267568e-135 | NK36: 6.861352729e-136 | NL36: 8.967834308e-137 | NM36: 1.164421144e-137 | NN36: 1.50202537e-138 | NO36: 1.924815607e-139 | NP36: 2.450449026e-140 | NQ36: 3.099180651e-141 | NR36: 3.893971684e-142 | NS36: 4.860527048e-143 | NT36: 6.027241836e-144 | NU36: 7.425035739e-145 | NV36: 9.087055016e-146 | NW36: 1.104822333e-146 | NX36: 1.334462608e-147 | NY36: 1.601271789e-148 | NZ36: 1.908834928e-149 | OA36: 2.260561735e-150 | OB36: 2.659555445e-151 | OC36: 3.108468019e-152 | OD36: 3.609345333e-153 | OE36: 4.163467193e-154 | OF36: 4.771188067e-155
A37: =IF(Principal!M21="","",MATCH(Principal!M21,Datos!A:A,0)) -> 10 | B37: =IF(A37="","",INDIRECT("Datos!A"&Espectros!A11,TRUE)) -> Green (520-525) XP-E | C37: =IF(A37="","",INDIRECT("Datos!O"&Espectros!A11,TRUE)) -> 3.16 | D37: =IF(B37="","",INDIRECT(ADDRESS(17+MATCH(B37,Principal!$M$18:$M$30,0),15+MATCH("X",Principal!$P$17:$R$17,0),1,1,"Principal"),TRUE)/C37) -> 2.53164557 | E37: =IF(A37="","",INDIRECT("Datos!N"&Espectros!A11,TRUE)*D37) -> 1.297702258 | F37: 9.676177877e-25 | G37: 2.267086273e-24 | H37: 5.276876488e-24 | I37: 1.220198506e-23 | J37: 2.80303633e-23 | K37: 6.396930647e-23 | L37: 1.450304638e-22 | M37: 3.266566528e-22 | N37: 7.309176634e-22 | O37: 1.62476324e-21 | P37: 3.588032682e-21 | Q37: 7.871678966e-21 | R37: 1.715627643e-20 | S37: 3.714696825e-20 | T37: 7.990397632e-20 | U37: 1.707489679e-19 | V37: 3.624870206e-19 | W37: 7.64489477e-19 | X37: 1.601751875e-18 | Y37: 3.333985051e-18 | Z37: 6.894086582e-18 | AA37: 1.416232304e-17 | AB37: 2.890260167e-17 | AC37: 5.859817043e-17 | AD37: 1.180255013e-16 | AE37: 2.361632564e-16 | AF37: 4.694544731e-16 | AG37: 9.270844834e-16 | AH37: 1.818820419e-15 | AI37: 3.544908322e-15 | AJ37: 6.863803989e-15 | AK37: 1.320290248e-14 | AL37: 2.52300805e-14 | AM37: 4.789746567e-14 | AN37: 9.0333973e-14 | AO37: 1.69252217e-13 | AP37: 3.150375335e-13 | AQ37: 5.825522837e-13 | AR37: 1.070168584e-12 | AS37: 1.953053608e-12 | AT37: 3.540958268e-12 | AU37: 6.37781813e-12 | AV37: 1.141216734e-11 | AW37: 2.028657866e-11 | AX37: 3.582565716e-11 | AY37: 6.285273779e-11 | AZ37: 1.095466023e-10 | BA37: 1.896785854e-10 | BB37: 3.262739271e-10 | BC37: 5.575593668e-10 | BD37: 9.465521369e-10 | BE37: 1.596403393e-09 | BF37: 2.67476371e-09 | BG37: 4.452181699e-09 | BH37: 7.362156005e-09 | BI37: 1.209433043e-08 | BJ37: 1.973800804e-08 | BK37: 3.20014378e-08 | BL37: 5.154426356e-08 | BM37: 8.247757146e-08 | BN37: 1.311100758e-07 | BO37: 2.070527247e-07 | BP37: 3.248407538e-07 | BQ37: 5.062962924e-07 | BR37: =IF($E37="","",$E37*BU11) -> 7.839415126e-07 | BS37: 1.205888785e-06 | BT37: 1.842788645e-06 | BU37: 2.797618407e-06 | BV37: 4.219355364e-06 | BW37: 6.321911465e-06 | BX37: 9.410125007e-06 | BY37: 1.391512314e-05 | BZ37: 2.044200043e-05 | CA37: 2.983351398e-05 | CB37: 4.325438141e-05 | CC37: 6.230178339e-05 | CD37: 8.914880573e-05 | CE37: 0.0001267287813 | CF37: 0.0001789697641 | CG37: 0.0002510896148 | CH37: 0.0003499633083 | CI37: 0.000484574944 | CJ37: 0.0006665674052 | CK37: 0.0009109024493 | CL37: 0.001236643003 | CM37: 0.001667867312 | CN37: 0.002234721092 | CO37: 0.00297460865 | CP37: 0.003933516925 | CQ37: 0.005167457194 | CR37: 0.00674399796 | CS37: 0.008743849034 | CT37: 0.01126244153 | CU37: 0.01441143163 | CV37: 0.01832003841 | CW37: 0.0231361085 | CX37: 0.02902678409 | CY37: 0.03617863781 | CZ37: 0.04479712855 | DA37: 0.05510523023 | DB37: 0.06734109026 | DC37: 0.08175458973 | DD37: 0.09860270325 | DE37: 0.1181435938 | DF37: 0.1406294284 | DG37: 0.1662979607 | DH37: 0.195362999 | DI37: 0.2280039555 | DJ37: 0.2643547554 | DK37: 0.3044924657 | DL37: 0.3484260783 | DM37: 0.3960859456 | DN37: 0.4473144112 | DO37: 0.5018582014 | DP37: 0.5593631334 | DQ37: 0.6193716616 | DR37: 0.6813237068 | DS37: 0.7445611095 | DT37: 0.8083359118 | DU37: 0.8718225078 | DV37: 0.9341335243 | DW37: 0.9943391009 | DX37: 1.051489052 | DY37: 1.104637215 | DZ37: 1.152867148 | EA37: 1.195318207 | EB37: 1.231210991 | EC37: 1.259871092 | ED37: =IF($E37="","",$E37*EG11) -> 1.280750152 | EE37: 1.293443311 | EF37: 1.297702258 | EG37: 1.293443311 | EH37: 1.280750152 | EI37: 1.259871092 | EJ37: 1.231210991 | EK37: 1.195318207 | EL37: 1.152867148 | EM37: 1.104637215 | EN37: 1.051489052 | EO37: 0.9943391009 | EP37: 0.9341335243 | EQ37: 0.8718225078 | ER37: 0.8083359118 | ES37: 0.7445611095 | ET37: 0.6813237068 | EU37: 0.6193716616 | EV37: 0.5593631334 | EW37: 0.5018582014 | EX37: 0.4473144112 | EY37: 0.3960859456 | EZ37: 0.3484260783 | FA37: 0.3044924657 | FB37: 0.2643547554 | FC37: 0.2280039555 | FD37: 0.195362999 | FE37: 0.1662979607 | FF37: 0.1406294284 | FG37: 0.1181435938 | FH37: 0.09860270325 | FI37: 0.08175458973 | FJ37: 0.06734109026 | FK37: 0.05510523023 | FL37: 0.04479712855 | FM37: 0.03617863781 | FN37: 0.02902678409 | FO37: 0.0231361085 | FP37: 0.01832003841 | FQ37: 0.01441143163 | FR37: 0.01126244153 | FS37: 0.008743849034 | FT37: 0.00674399796 | FU37: 0.005167457194 | FV37: 0.003933516925 | FW37: 0.00297460865 | FX37: 0.002234721092 | FY37: 0.001667867312 | FZ37: 0.001236643003 | GA37: 0.0009109024493 | GB37: 0.0006665674052 | GC37: 0.000484574944 | GD37: 0.0003499633083 | GE37: 0.0002510896148 | GF37: 0.0001789697641 | GG37: 0.0001267287813 | GH37: 8.914880573e-05 | GI37: 6.230178339e-05 | GJ37: 4.325438141e-05 | GK37: 2.983351398e-05 | GL37: 2.044200043e-05 | GM37: 1.391512314e-05 | GN37: 9.410125007e-06 | GO37: 6.321911465e-06 | GP37: =IF($E37="","",$E37*GS11) -> 4.219355364e-06 | GQ37: 2.797618407e-06 | GR37: 1.842788645e-06 | GS37: 1.205888785e-06 | GT37: 7.839415126e-07 | GU37: 5.062962924e-07 | GV37: 3.248407538e-07 | GW37: 2.070527247e-07 | GX37: 1.311100758e-07 | GY37: 8.247757146e-08 | GZ37: 5.154426356e-08 | HA37: 3.20014378e-08 | HB37: 1.973800804e-08 | HC37: 1.209433043e-08 | HD37: 7.362156005e-09 | HE37: 4.452181699e-09 | HF37: 2.67476371e-09 | HG37: 1.596403393e-09 | HH37: 9.465521369e-10 | HI37: 5.575593668e-10 | HJ37: 3.262739271e-10 | HK37: 1.896785854e-10 | HL37: 1.095466023e-10 | HM37: 6.285273779e-11 | HN37: 3.582565716e-11 | HO37: 2.028657866e-11 | HP37: 1.141216734e-11 | HQ37: 6.37781813e-12 | HR37: 3.540958268e-12 | HS37: 1.953053608e-12 | HT37: 1.070168584e-12 | HU37: 5.825522837e-13 | HV37: 3.150375335e-13 | HW37: 1.69252217e-13 | HX37: 9.0333973e-14 | HY37: 4.789746567e-14 | HZ37: 2.52300805e-14 | IA37: 1.320290248e-14 | IB37: 6.863803989e-15 | IC37: 3.544908322e-15 | ID37: 1.818820419e-15 | IE37: 9.270844834e-16 | IF37: 4.694544731e-16 | IG37: 2.361632564e-16 | IH37: 1.180255013e-16 | II37: 5.859817043e-17 | IJ37: 2.890260167e-17 | IK37: 1.416232304e-17 | IL37: 6.894086582e-18 | IM37: 3.333985051e-18 | IN37: 1.601751875e-18 | IO37: 7.64489477e-19 | IP37: 3.624870206e-19 | IQ37: 1.707489679e-19 | IR37: 7.990397632e-20 | IS37: 3.714696825e-20 | IT37: 1.715627643e-20 | IU37: 7.871678966e-21 | IV37: 3.588032682e-21 | IW37: 1.62476324e-21 | IX37: 7.309176634e-22 | IY37: 3.266566528e-22 | IZ37: 1.450304638e-22 | JA37: 6.396930647e-23 | JB37: =IF($E37="","",$E37*JE11) -> 2.80303633e-23 | JC37: 1.220198506e-23 | JD37: 5.276876488e-24 | JE37: 2.267086273e-24 | JF37: 9.676177877e-25 | JG37: 4.102837511e-25 | JH37: 1.728261556e-25 | JI37: 7.232347744e-26 | JJ37: 3.006725685e-26 | JK37: 1.241803826e-26 | JL37: 5.095148632e-27 | JM37: 2.076851284e-27 | JN37: 8.410050802e-28 | JO37: 3.383268903e-28 | JP37: 1.352132005e-28 | JQ37: 5.36841828e-29 | JR37: 2.117474935e-29 | JS37: 8.297263604e-30 | JT37: 3.229952797e-30 | JU37: 1.249114187e-30 | JV37: 4.799022483e-31 | JW37: 1.831673685e-31 | JX37: 6.945253557e-32 | JY37: 2.616211094e-32 | JZ37: 9.790438381e-33 | KA37: 3.639788695e-33 | KB37: 1.344295928e-33 | KC37: 4.93239981e-34 | KD37: 1.797903342e-34 | KE37: 6.510571081e-35 | KF37: 2.342159721e-35 | KG37: 8.370638934e-36 | KH37: 2.971976617e-36 | KI37: 1.048278902e-36 | KJ37: 3.673271086e-37 | KK37: 1.278715099e-37 | KL37: 4.422209205e-38 | KM37: 1.519320694e-38 | KN37: 5.18566312e-39 | KO37: 1.758343923e-39 | KP37: 5.923085853e-40 | KQ37: 1.982151787e-40 | KR37: 6.58977319e-41 | KS37: 2.176450047e-41 | KT37: 7.141206941e-42 | KU37: 2.327765413e-42 | KV37: 7.537919264e-43 | KW37: 2.424981502e-43 | KX37: 7.750149081e-44 | KY37: 2.460686922e-44 | KZ37: 7.761530054e-45 | LA37: 2.432108827e-45 | LB37: 7.571176005e-46 | LC37: 2.34146871e-46 | LD37: 7.193794919e-47 | LE37: 2.195697084e-47 | LF37: 6.657811197e-48 | LG37: 2.005557895e-48 | LH37: 6.001828887e-49 | LI37: 1.78433623e-49 | LJ37: 5.270046602e-50 | LK37: 1.546311179e-50 | LL37: 4.507378342e-51 | LM37: 1.305256334e-51 | LN37: =IF($E37="","",$E37*LQ11) -> 3.75502025e-52 | LO37: 1.073182137e-52 | LP37: 3.047047785e-53 | LQ37: 8.594681214e-54 | LR37: 2.408379704e-54 | LS37: 6.70447572e-55 | LT37: 1.854169206e-55 | LU37: 5.094230405e-56 | LV37: 1.390440731e-56 | LW37: 3.770257884e-57 | LX37: 1.015627169e-57 | LY37: 2.717954873e-58 | LZ37: 7.225948321e-59 | MA37: 1.908499887e-59 | MB37: 5.007651579e-60 | MC37: 1.305331286e-60 | MD37: 3.380275274e-61 | ME37: 8.696170937e-62 | MF37: 2.222535697e-62 | MG37: 5.643052624e-63 | MH37: 1.423390731e-63 | MI37: 3.566800711e-64 | MJ37: 8.879289861e-65 | MK37: 2.195949258e-65 | ML37: 5.395243443e-66 | MM37: 1.316874744e-66 | MN37: 3.19317389e-67 | MO37: 7.69210756e-68 | MP37: 1.840826278e-68 | MQ37: 4.376479919e-69 | MR37: 1.033669621e-69 | MS37: 2.425399276e-70 | MT37: 5.653656419e-71 | MU37: 1.309242995e-71 | MV37: 3.012005659e-72 | MW37: 6.883922718e-73 | MX37: 1.563006797e-73 | MY37: 3.525578793e-74 | MZ37: 7.900319618e-75 | NA37: 1.758747836e-75 | NB37: 3.889619945e-76 | NC37: 8.545853407e-77 | ND37: 1.865298698e-77 | NE37: 4.044697191e-78 | NF37: 8.71301211e-79 | NG37: 1.864641303e-79 | NH37: 3.964304085e-80 | NI37: 8.373042549e-81 | NJ37: 1.756888962e-81 | NK37: 3.662267039e-82 | NL37: 7.584035904e-83 | NM37: 1.560254451e-83 | NN37: 3.188857837e-84 | NO37: 6.474698712e-85 | NP37: 1.306016453e-85 | NQ37: 2.617112609e-86 | NR37: 5.210037505e-87 | NS37: 1.030395533e-87 | NT37: 2.024471947e-88 | NU37: 3.951520477e-89 | NV37: 7.662339462e-90 | NW37: 1.476057304e-90 | NX37: 2.824813146e-91 | NY37: 5.370576549e-92 | NZ37: =IF($E37="","",$E37*OC11) -> 1.014370883e-92 | OA37: 1.903344126e-93 | OB37: 3.547991213e-94 | OC37: 6.570409427e-95 | OD37: 1.208779283e-95 | OE37: 2.209257111e-96 | OF37: 4.011346638e-97
A38: =IF(Principal!M22="","",MATCH(Principal!M22,Datos!A:A,0)) -> 23 | B38: =IF(A38="","",INDIRECT("Datos!A"&Espectros!A12,TRUE)) -> UV (410-420) Semiled | C38: =IF(A38="","",INDIRECT("Datos!O"&Espectros!A12,TRUE)) -> 2.38 | D38: =IF(B38="","",INDIRECT(ADDRESS(17+MATCH(B38,Principal!$M$18:$M$30,0),15+MATCH("X",Principal!$P$17:$R$17,0),1,1,"Principal"),TRUE)/C38) -> 3.361344538 | E38: =IF(A38="","",INDIRECT("Datos!N"&Espectros!A12,TRUE)*D38) -> 3.058823529 | F38: 0.1587301788 | G38: =IF($E38="","",$E38*J12) -> 0.1927043443 | H38: =IF($E38="","",$E38*K12) -> 0.2324171565 | I38: =IF($E38="","",$E38*L12) -> 0.2784771333 | J38: =IF($E38="","",$E38*M12) -> 0.3314786593 | K38: =IF($E38="","",$E38*N12) -> 0.3919821454 | L38: =IF($E38="","",$E38*O12) -> 0.4604915607 | M38: =IF($E38="","",$E38*P12) -> 0.5374297992 | N38: =IF($E38="","",$E38*Q12) -> 0.6231125368 | O38: =IF($E38="","",$E38*R12) -> 0.7177214287 | P38: =IF($E38="","",$E38*S12) -> 0.8212776699 | Q38: =IF($E38="","",$E38*T12) -> 0.9336170933 | R38: =IF($E38="","",$E38*U12) -> 1.054368086 | S38: =IF($E38="","",$E38*V12) -> 1.182933655 | T38: =IF($E38="","",$E38*W12) -> 1.318478953 | U38: =IF($E38="","",$E38*X12) -> 1.459925496 | V38: =IF($E38="","",$E38*Y12) -> 1.605953117 | W38: =IF($E38="","",$E38*Z12) -> 1.755010463 | X38: =IF($E38="","",$E38*AA12) -> 1.905334519 | Y38: =IF($E38="","",$E38*AB12) -> 2.054979241 | Z38: =IF($E38="","",$E38*AC12) -> 2.201852996 | AA38: =IF($E38="","",$E38*AD12) -> 2.343764003 | AB38: =IF($E38="","",$E38*AE12) -> 2.478472571 | AC38: =IF($E38="","",$E38*AF12) -> 2.603748497 | AD38: =IF($E38="","",$E38*AG12) -> 2.717431627 | AE38: =IF($E38="","",$E38*AH12) -> 2.817493331 | AF38: =IF($E38="","",$E38*AI12) -> 2.902096477 | AG38: =IF($E38="","",$E38*AJ12) -> 2.96965141 | AH38: =IF($E38="","",$E38*AK12) -> 3.018865597 | AI38: =IF($E38="","",$E38*AL12) -> 3.048784735 | AJ38: =IF($E38="","",$E38*AM12) -> 3.058823529 | AK38: =IF($E38="","",$E38*AN12) -> 3.048784735 | AL38: =IF($E38="","",$E38*AO12) -> 3.018865597 | AM38: =IF($E38="","",$E38*AP12) -> 2.96965141 | AN38: =IF($E38="","",$E38*AQ12) -> 2.902096477 | AO38: =IF($E38="","",$E38*AR12) -> 2.817493331 | AP38: =IF($E38="","",$E38*AS12) -> 2.717431627 | AQ38: =IF($E38="","",$E38*AT12) -> 2.603748497 | AR38: =IF($E38="","",$E38*AU12) -> 2.478472571 | AS38: =IF($E38="","",$E38*AV12) -> 2.343764003 | AT38: =IF($E38="","",$E38*AW12) -> 2.201852996 | AU38: =IF($E38="","",$E38*AX12) -> 2.054979241 | AV38: =IF($E38="","",$E38*AY12) -> 1.905334519 | AW38: =IF($E38="","",$E38*AZ12) -> 1.755010463 | AX38: =IF($E38="","",$E38*BA12) -> 1.605953117 | AY38: =IF($E38="","",$E38*BB12) -> 1.459925496 | AZ38: =IF($E38="","",$E38*BC12) -> 1.318478953 | BA38: =IF($E38="","",$E38*BD12) -> 1.182933655 | BB38: =IF($E38="","",$E38*BE12) -> 1.054368086 | BC38: =IF($E38="","",$E38*BF12) -> 0.9336170933 | BD38: =IF($E38="","",$E38*BG12) -> 0.8212776699 | BE38: =IF($E38="","",$E38*BH12) -> 0.7177214287 | BF38: =IF($E38="","",$E38*BI12) -> 0.6231125368 | BG38: =IF($E38="","",$E38*BJ12) -> 0.5374297992 | BH38: =IF($E38="","",$E38*BK12) -> 0.4604915607 | BI38: =IF($E38="","",$E38*BL12) -> 0.3919821454 | BJ38: =IF($E38="","",$E38*BM12) -> 0.3314786593 | BK38: =IF($E38="","",$E38*BN12) -> 0.2784771333 | BL38: =IF($E38="","",$E38*BO12) -> 0.2324171565 | BM38: =IF($E38="","",$E38*BP12) -> 0.1927043443 | BN38: =IF($E38="","",$E38*BQ12) -> 0.1587301788 | BO38: =IF($E38="","",$E38*BR12) -> 0.1298889432 | BP38: =IF($E38="","",$E38*BS12) -> 0.1055916409 | BQ38: =IF($E38="","",$E38*BT12) -> 0.08527693307 | BR38: 0.06841924612 | BS38: =IF($E38="","",$E38*BV12) -> 0.05453429138 | BT38: =IF($E38="","",$E38*BW12) -> 0.04318229719 | BU38: =IF($E38="","",$E38*BX12) -> 0.0339692914 | BV38: =IF($E38="","",$E38*BY12) -> 0.0265467837 | BW38: =IF($E38="","",$E38*BZ12) -> 0.02061019082 | BX38: =IF($E38="","",$E38*CA12) -> 0.01589632716 | BY38: =IF($E38="","",$E38*CB12) -> 0.01218025133 | BZ38: =IF($E38="","",$E38*CC12) -> 0.009271721653 | CA38: =IF($E38="","",$E38*CD12) -> 0.007011471912 | CB38: =IF($E38="","",$E38*CE12) -> 0.005267477509 | CC38: =IF($E38="","",$E38*CF12) -> 0.0039313423 | CD38: =IF($E38="","",$E38*CG12) -> 0.002914900311 | CE38: =IF($E38="","",$E38*CH12) -> 0.002147094858 | CF38: =IF($E38="","",$E38*CI12) -> 0.00157117093 | CG38: =IF($E38="","",$E38*CJ12) -> 0.001142195162 | CH38: =IF($E38="","",$E38*CK12) -> 0.000824901086 | CI38: =IF($E38="","",$E38*CL12) -> 0.0005918451765 | CJ38: =IF($E38="","",$E38*CM12) -> 0.0004218509462 | CK38: =IF($E38="","",$E38*CN12) -> 0.0002987133419 | CL38: =IF($E38="","",$E38*CO12) -> 0.0002101333052 | CM38: =IF($E38="","",$E38*CP12) -> 0.0001468519915 | CN38: =IF($E38="","",$E38*CQ12) -> 0.0001019552203 | CO38: =IF($E38="","",$E38*CR12) -> 7.032079507e-05 | CP38: =IF($E38="","",$E38*CS12) -> 4.818398946e-05 | CQ38: =IF($E38="","",$E38*CT12) -> 3.279943903e-05 | CR38: =IF($E38="","",$E38*CU12) -> 2.218067481e-05 | CS38: =IF($E38="","",$E38*CV12) -> 1.490142398e-05 | CT38: =IF($E38="","",$E38*CW12) -> 9.945473538e-06 | CU38: =IF($E38="","",$E38*CX12) -> 6.594286909e-06 | CV38: =IF($E38="","",$E38*CY12) -> 4.343650658e-06 | CW38: =IF($E38="","",$E38*CZ12) -> 2.842409317e-06 | CX38: =IF($E38="","",$E38*DA12) -> 1.847834301e-06 | CY38: =IF($E38="","",$E38*DB12) -> 1.193394712e-06 | CZ38: =IF($E38="","",$E38*DC12) -> 7.656845281e-07 | DA38: =IF($E38="","",$E38*DD12) -> 4.880454992e-07 | DB38: =IF($E38="","",$E38*DE12) -> 3.090405232e-07 | DC38: =IF($E38="","",$E38*DF12) -> 1.944084899e-07 | DD38: =IF($E38="","",$E38*DG12) -> 1.214953625e-07 | DE38: =IF($E38="","",$E38*DH12) -> 7.543082424e-08 | DF38: =IF($E38="","",$E38*DI12) -> 4.652460382e-08 | DG38: =IF($E38="","",$E38*DJ12) -> 2.850763514e-08 | DH38: =IF($E38="","",$E38*DK12) -> 1.735339203e-08 | DI38: =IF($E38="","",$E38*DL12) -> 1.04942702e-08 | DJ38: =IF($E38="","",$E38*DM12) -> 6.304705198e-09 | DK38: =IF($E38="","",$E38*DN12) -> 3.762894171e-09 | DL38: =IF($E38="","",$E38*DO12) -> 2.231124999e-09 | DM38: =IF($E38="","",$E38*DP12) -> 1.314227281e-09 | DN38: =IF($E38="","",$E38*DQ12) -> 7.690626714e-10 | DO38: =IF($E38="","",$E38*DR12) -> 4.470927877e-10 | DP38: =IF($E38="","",$E38*DS12) -> 2.582131014e-10 | DQ38: =IF($E38="","",$E38*DT12) -> 1.481506502e-10 | DR38: =IF($E38="","",$E38*DU12) -> 8.44449198e-11 | DS38: =IF($E38="","",$E38*DV12) -> 4.781764366e-11 | DT38: =IF($E38="","",$E38*DW12) -> 2.68997035e-11 | DU38: =IF($E38="","",$E38*DX12) -> 1.503320199e-11 | DV38: =IF($E38="","",$E38*DY12) -> 8.346418757e-12 | DW38: =IF($E38="","",$E38*DZ12) -> 4.603557012e-12 | DX38: =IF($E38="","",$E38*EA12) -> 2.522502234e-12 | DY38: =IF($E38="","",$E38*EB12) -> 1.373138269e-12 | DZ38: =IF($E38="","",$E38*EC12) -> 7.425772855e-13 | EA38: =IF($E38="","",$E38*ED12) -> 3.989456445e-13 | EB38: =IF($E38="","",$E38*EE12) -> 2.129268717e-13 | EC38: =IF($E38="","",$E38*EF12) -> 1.128994684e-13 | ED38: 5.947000817e-14 | EE38: =IF($E38="","",$E38*EH12) -> 3.112065847e-14 | EF38: =IF($E38="","",$E38*EI12) -> 1.617872283e-14 | EG38: =IF($E38="","",$E38*EJ12) -> 8.355729459e-15 | EH38: =IF($E38="","",$E38*EK12) -> 4.287154977e-15 | EI38: =IF($E38="","",$E38*EL12) -> 2.185237649e-15 | EJ38: =IF($E38="","",$E38*EM12) -> 1.106554589e-15 | EK38: =IF($E38="","",$E38*EN12) -> 5.566621473e-16 | EL38: =IF($E38="","",$E38*EO12) -> 2.781987765e-16 | EM38: =IF($E38="","",$E38*EP12) -> 1.381221782e-16 | EN38: =IF($E38="","",$E38*EQ12) -> 6.812653482e-17 | EO38: =IF($E38="","",$E38*ER12) -> 3.338211574e-17 | EP38: =IF($E38="","",$E38*ES12) -> 1.625010215e-17 | EQ38: =IF($E38="","",$E38*ET12) -> 7.858560668e-18 | ER38: =IF($E38="","",$E38*EU12) -> 3.775501117e-18 | ES38: =IF($E38="","",$E38*EV12) -> 1.801983765e-18 | ET38: =IF($E38="","",$E38*EW12) -> 8.544208203e-19 | EU38: =IF($E38="","",$E38*EX12) -> 4.024736472e-19 | EV38: =IF($E38="","",$E38*EY12) -> 1.883422498e-19 | EW38: =IF($E38="","",$E38*EZ12) -> 8.755939188e-20 | EX38: =IF($E38="","",$E38*FA12) -> 4.043918527e-20 | EY38: =IF($E38="","",$E38*FB12) -> 1.855439234e-20 | EZ38: =IF($E38="","",$E38*FC12) -> 8.457378206e-21 | FA38: =IF($E38="","",$E38*FD12) -> 3.829741375e-21 | FB38: =IF($E38="","",$E38*FE12) -> 1.722851396e-21 | FC38: =IF($E38="","",$E38*FF12) -> 7.699647971e-22 | FD38: =IF($E38="","",$E38*FG12) -> 3.418523722e-22 | FE38: =IF($E38="","",$E38*FH12) -> 1.507825224e-22 | FF38: =IF($E38="","",$E38*FI12) -> 6.607057533e-23 | FG38: =IF($E38="","",$E38*FJ12) -> 2.876138866e-23 | FH38: =IF($E38="","",$E38*FK12) -> 1.243816435e-23 | FI38: =IF($E38="","",$E38*FL12) -> 5.343765715e-24 | FJ38: =IF($E38="","",$E38*FM12) -> 2.280778999e-24 | FK38: =IF($E38="","",$E38*FN12) -> 9.670828452e-25 | FL38: =IF($E38="","",$E38*FO12) -> 4.073698017e-25 | FM38: =IF($E38="","",$E38*FP12) -> 1.704742002e-25 | FN38: =IF($E38="","",$E38*FQ12) -> 7.087175211e-26 | FO38: =IF($E38="","",$E38*FR12) -> 2.927064925e-26 | FP38: =IF($E38="","",$E38*FS12) -> 1.200981229e-26 | FQ38: =IF($E38="","",$E38*FT12) -> 4.895361425e-27 | FR38: =IF($E38="","",$E38*FU12) -> 1.982339255e-27 | FS38: =IF($E38="","",$E38*FV12) -> 7.974727997e-28 | FT38: =IF($E38="","",$E38*FW12) -> 3.187120287e-28 | FU38: =IF($E38="","",$E38*FX12) -> 1.265393818e-28 | FV38: =IF($E38="","",$E38*FY12) -> 4.991115732e-29 | FW38: =IF($E38="","",$E38*FZ12) -> 1.955754102e-29 | FX38: =IF($E38="","",$E38*GA12) -> 7.613345475e-30 | FY38: =IF($E38="","",$E38*GB12) -> 2.944296231e-30 | FZ38: =IF($E38="","",$E38*GC12) -> 1.131181117e-30 | GA38: =IF($E38="","",$E38*GD12) -> 4.317451505e-31 | GB38: =IF($E38="","",$E38*GE12) -> 1.63707082e-31 | GC38: =IF($E38="","",$E38*GF12) -> 6.166690399e-32 | GD38: =IF($E38="","",$E38*GG12) -> 2.307711426e-32 | GE38: =IF($E38="","",$E38*GH12) -> 8.579372684e-33 | GF38: =IF($E38="","",$E38*GI12) -> 3.168649812e-33 | GG38: =IF($E38="","",$E38*GJ12) -> 1.162619584e-33 | GH38: =IF($E38="","",$E38*GK12) -> 4.23785118e-34 | GI38: =IF($E38="","",$E38*GL12) -> 1.534611495e-34 | GJ38: =IF($E38="","",$E38*GM12) -> 5.520721892e-35 | GK38: =IF($E38="","",$E38*GN12) -> 1.973049455e-35 | GL38: =IF($E38="","",$E38*GO12) -> 7.005267928e-36 | GM38: =IF($E38="","",$E38*GP12) -> 2.470905905e-36 | GN38: =IF($E38="","",$E38*GQ12) -> 8.658294274e-37 | GO38: =IF($E38="","",$E38*GR12) -> 3.014068757e-37 | GP38: 1.042362182e-37 | GQ38: =IF($E38="","",$E38*GT12) -> 3.581201973e-38 | GR38: =IF($E38="","",$E38*GU12) -> 1.222316465e-38 | GS38: =IF($E38="","",$E38*GV12) -> 4.144605384e-39 | GT38: =IF($E38="","",$E38*GW12) -> 1.39613492e-39 | GU38: =IF($E38="","",$E38*GX12) -> 4.672144545e-40 | GV38: =IF($E38="","",$E38*GY12) -> 1.553280282e-40 | GW38: =IF($E38="","",$E38*GZ12) -> 5.130126401e-41 | GX38: =IF($E38="","",$E38*HA12) -> 1.683259136e-41 | GY38: =IF($E38="","",$E38*HB12) -> 5.486792964e-42 | GZ38: =IF($E38="","",$E38*HC12) -> 1.77676849e-42 | HA38: =IF($E38="","",$E38*HD12) -> 5.715941721e-43 | HB38: =IF($E38="","",$E38*HE12) -> 1.826793336e-43 | HC38: =IF($E38="","",$E38*HF12) -> 5.800103229e-44 | HD38: =IF($E38="","",$E38*HG12) -> 1.829475953e-44 | HE38: =IF($E38="","",$E38*HH12) -> 5.73274159e-45 | HF38: =IF($E38="","",$E38*HI12) -> 1.784607461e-45 | HG38: =IF($E38="","",$E38*HJ12) -> 5.519093105e-46 | HH38: =IF($E38="","",$E38*HK12) -> 1.695654688e-46 | HI38: =IF($E38="","",$E38*HL12) -> 5.175493733e-47 | HJ38: =IF($E38="","",$E38*HM12) -> 1.56931757e-47 | HK38: =IF($E38="","",$E38*HN12) -> 4.727315254e-48 | HL38: =IF($E38="","",$E38*HO12) -> 1.414695498e-48 | HM38: =IF($E38="","",$E38*HP12) -> 4.205872041e-49 | HN38: =IF($E38="","",$E38*HQ12) -> 1.242206558e-49 | HO38: =IF($E38="","",$E38*HR12) -> 3.644821445e-50 | HP38: =IF($E38="","",$E38*HS12) -> 1.062437462e-50 | HQ38: =IF($E38="","",$E38*HT12) -> 3.076629299e-51 | HR38: =IF($E38="","",$E38*HU12) -> 8.85098583e-52 | HS38: =IF($E38="","",$E38*HV12) -> 2.529605503e-52 | HT38: =IF($E38="","",$E38*HW12) -> 7.182218729e-53 | HU38: =IF($E38="","",$E38*HX12) -> 2.025858626e-53 | HV38: =IF($E38="","",$E38*HY12) -> 5.676809501e-54 | HW38: =IF($E38="","",$E38*HZ12) -> 1.580316899e-54 | HX38: =IF($E38="","",$E38*IA12) -> 4.370475862e-55 | HY38: =IF($E38="","",$E38*IB12) -> 1.200764793e-55 | HZ38: =IF($E38="","",$E38*IC12) -> 3.277418065e-56 | IA38: =IF($E38="","",$E38*ID12) -> 8.886902568e-57 | IB38: =IF($E38="","",$E38*IE12) -> 2.393942265e-57 | IC38: =IF($E38="","",$E38*IF12) -> 6.406511408e-58 | ID38: =IF($E38="","",$E38*IG12) -> 1.70323359e-58 | IE38: =IF($E38="","",$E38*IH12) -> 4.498539111e-59 | IF38: =IF($E38="","",$E38*II12) -> 1.180357234e-59 | IG38: =IF($E38="","",$E38*IJ12) -> 3.076805969e-60 | IH38: =IF($E38="","",$E38*IK12) -> 7.967671692e-61 | II38: =IF($E38="","",$E38*IL12) -> 2.049780843e-61 | IJ38: =IF($E38="","",$E38*IM12) -> 5.238755227e-62 | IK38: =IF($E38="","",$E38*IN12) -> 1.330128081e-62 | IL38: =IF($E38="","",$E38*IO12) -> 3.355084754e-63 | IM38: =IF($E38="","",$E38*IP12) -> 8.40733217e-64 | IN38: =IF($E38="","",$E38*IQ12) -> 2.092943939e-64 | IO38: =IF($E38="","",$E38*IR12) -> 5.176088136e-65 | IP38: =IF($E38="","",$E38*IS12) -> 1.271716797e-65 | IQ38: =IF($E38="","",$E38*IT12) -> 3.104015138e-66 | IR38: =IF($E38="","",$E38*IU12) -> 7.526653645e-67 | IS38: =IF($E38="","",$E38*IV12) -> 1.813112326e-67 | IT38: =IF($E38="","",$E38*IW12) -> 4.339025149e-68 | IU38: =IF($E38="","",$E38*IX12) -> 1.031583298e-68 | IV38: =IF($E38="","",$E38*IY12) -> 2.436470261e-69 | IW38: =IF($E38="","",$E38*IZ12) -> 5.716926459e-70 | IX38: =IF($E38="","",$E38*JA12) -> 1.33262751e-70 | IY38: =IF($E38="","",$E38*JB12) -> 3.086026286e-71 | IZ38: =IF($E38="","",$E38*JC12) -> 7.099620676e-72 | JA38: =IF($E38="","",$E38*JD12) -> 1.622614483e-72 | JB38: 3.684174809e-73 | JC38: =IF($E38="","",$E38*JF12) -> 8.310167685e-74 | JD38: =IF($E38="","",$E38*JG12) -> 1.862190144e-74 | JE38: =IF($E38="","",$E38*JH12) -> 4.14555745e-75 | JF38: =IF($E38="","",$E38*JI12) -> 9.168251759e-76 | JG38: =IF($E38="","",$E38*JJ12) -> 2.014349387e-76 | JH38: =IF($E38="","",$E38*JK12) -> 4.396709271e-77 | JI38: =IF($E38="","",$E38*JL12) -> 9.533785476e-78 | JJ38: =IF($E38="","",$E38*JM12) -> 2.053750488e-78 | JK38: =IF($E38="","",$E38*JN12) -> 4.395159719e-79 | JL38: =IF($E38="","",$E38*JO12) -> 9.344290296e-80 | JM38: =IF($E38="","",$E38*JP12) -> 1.973616013e-80 | JN38: =IF($E38="","",$E38*JQ12) -> 4.141175884e-81 | JO38: =IF($E38="","",$E38*JR12) -> 8.632356555e-82 | JP38: =IF($E38="","",$E38*JS12) -> 1.787638677e-82 | JQ38: =IF($E38="","",$E38*JT12) -> 3.677687235e-83 | JR38: =IF($E38="","",$E38*JU12) -> 7.516480243e-84 | JS38: =IF($E38="","",$E38*JV12) -> 1.526155992e-84 | JT38: =IF($E38="","",$E38*JW12) -> 3.078420979e-85 | JU38: =IF($E38="","",$E38*JX12) -> 6.168815366e-86 | JV38: =IF($E38="","",$E38*JY12) -> 1.22806177e-86 | JW38: =IF($E38="","",$E38*JZ12) -> 2.428752885e-87 | JX38: =IF($E38="","",$E38*KA12) -> 4.771897705e-88 | JY38: =IF($E38="","",$E38*KB12) -> 9.314157958e-89 | JZ38: =IF($E38="","",$E38*KC12) -> 1.806095666e-89 | KA38: =IF($E38="","",$E38*KD12) -> 3.479225519e-90 | KB38: =IF($E38="","",$E38*KE12) -> 6.658387827e-91 | KC38: =IF($E38="","",$E38*KF12) -> 1.265902546e-91 | KD38: =IF($E38="","",$E38*KG12) -> 2.390981064e-92 | KE38: =IF($E38="","",$E38*KH12) -> 4.486386428e-93 | KF38: =IF($E38="","",$E38*KI12) -> 8.362996164e-94 | KG38: =IF($E38="","",$E38*KJ12) -> 1.548716035e-94 | KH38: =IF($E38="","",$E38*KK12) -> 2.849222533e-95 | KI38: =IF($E38="","",$E38*KL12) -> 5.207456174e-96 | KJ38: =IF($E38="","",$E38*KM12) -> 9.455174641e-97 | KK38: =IF($E38="","",$E38*KN12) -> 1.705525292e-97 | KL38: =IF($E38="","",$E38*KO12) -> 3.05626812e-98 | KM38: =IF($E38="","",$E38*KP12) -> 5.440883369e-99 | KN38: =IF($E38="","",$E38*KQ12) -> 9.622591725e-100 | KO38: =IF($E38="","",$E38*KR12) -> 1.69067208e-100 | KP38: =IF($E38="","",$E38*KS12) -> 2.951014746e-101 | KQ38: =IF($E38="","",$E38*KT12) -> 5.117148928e-102 | KR38: =IF($E38="","",$E38*KU12) -> 8.815144011e-103 | KS38: =IF($E38="","",$E38*KV12) -> 1.508604659e-103 | KT38: =IF($E38="","",$E38*KW12) -> 2.564874711e-104 | KU38: =IF($E38="","",$E38*KX12) -> 4.332130636e-105 | KV38: =IF($E38="","",$E38*KY12) -> 7.269116198e-106 | KW38: =IF($E38="","",$E38*KZ12) -> 1.211731383e-106 | KX38: =IF($E38="","",$E38*LA12) -> 2.006669172e-107 | KY38: =IF($E38="","",$E38*LB12) -> 3.301337153e-108 | KZ38: =IF($E38="","",$E38*LC12) -> 5.395710723e-109 | LA38: =IF($E38="","",$E38*LD12) -> 8.760968417e-110 | LB38: =IF($E38="","",$E38*LE12) -> 1.413189003e-110 | LC38: =IF($E38="","",$E38*LF12) -> 2.264608129e-111 | LD38: =IF($E38="","",$E38*LG12) -> 3.605209878e-112 | LE38: =IF($E38="","",$E38*LH12) -> 5.701809731e-113 | LF38: =IF($E38="","",$E38*LI12) -> 8.958588066e-114 | LG38: =IF($E38="","",$E38*LJ12) -> 1.398334561e-114 | LH38: =IF($E38="","",$E38*LK12) -> 2.168339564e-115 | LI38: =IF($E38="","",$E38*LL12) -> 3.340320773e-116 | LJ38: =IF($E38="","",$E38*LM12) -> 5.112033989e-117 | LK38: =IF($E38="","",$E38*LN12) -> 7.772200024e-118 | LL38: =IF($E38="","",$E38*LO12) -> 1.173921031e-118 | LM38: =IF($E38="","",$E38*LP12) -> 1.761483078e-119 | LN38: 2.62580666e-120 | LO38: =IF($E38="","",$E38*LR12) -> 3.888585869e-121 | LP38: =IF($E38="","",$E38*LS12) -> 5.720912689e-122 | LQ38: =IF($E38="","",$E38*LT12) -> 8.361489019e-123 | LR38: =IF($E38="","",$E38*LU12) -> 1.214078046e-123 | LS38: =IF($E38="","",$E38*LV12) -> 1.751274668e-124 | LT38: =IF($E38="","",$E38*LW12) -> 2.509612123e-125 | LU38: =IF($E38="","",$E38*LX12) -> 3.572758157e-126 | LV38: =IF($E38="","",$E38*LY12) -> 5.052953636e-127 | LW38: =IF($E38="","",$E38*LZ12) -> 7.099564108e-128 | LX38: =IF($E38="","",$E38*MA12) -> 9.909750833e-129 | LY38: =IF($E38="","",$E38*MB12) -> 1.37416367e-129 | LZ38: =IF($E38="","",$E38*MC12) -> 1.893035979e-130 | MA38: =IF($E38="","",$E38*MD12) -> 2.590740725e-131 | MB38: =IF($E38="","",$E38*ME12) -> 3.522359781e-132 | MC38: =IF($E38="","",$E38*MF12) -> 4.757602494e-133 | MD38: =IF($E38="","",$E38*MG12) -> 6.38391757e-134 | ME38: =IF($E38="","",$E38*MH12) -> 8.510029513e-135 | MF38: =IF($E38="","",$E38*MI12) -> 1.126988643e-135 | MG38: =IF($E38="","",$E38*MJ12) -> 1.482697964e-136 | MH38: =IF($E38="","",$E38*MK12) -> 1.937896242e-137 | MI38: =IF($E38="","",$E38*ML12) -> 2.516245597e-138 | MJ38: =IF($E38="","",$E38*MM12) -> 3.24578847e-139 | MK38: =IF($E38="","",$E38*MN12) -> 4.159413303e-140 | ML38: =IF($E38="","",$E38*MO12) -> 5.2952762e-141 | MM38: =IF($E38="","",$E38*MP12) -> 6.697147082e-142 | MN38: =IF($E38="","",$E38*MQ12) -> 8.414643752e-143 | MO38: =IF($E38="","",$E38*MR12) -> 1.050331304e-143 | MP38: =IF($E38="","",$E38*MS12) -> 1.302451506e-144 | MQ38: =IF($E38="","",$E38*MT12) -> 1.604506547e-145 | MR38: =IF($E38="","",$E38*MU12) -> 1.963659136e-146 | MS38: =IF($E38="","",$E38*MV12) -> 2.387456071e-147 | MT38: =IF($E38="","",$E38*MW12) -> 2.883695199e-148 | MU38: =IF($E38="","",$E38*MX12) -> 3.460254143e-149 | MV38: =IF($E38="","",$E38*MY12) -> 4.124879995e-150 | MW38: =IF($E38="","",$E38*MZ12) -> 4.884940935e-151 | MX38: =IF($E38="","",$E38*NA12) -> 5.747142873e-152 | MY38: =IF($E38="","",$E38*NB12) -> 6.717216537e-153 | MZ38: =IF($E38="","",$E38*NC12) -> 7.79958295e-154 | NA38: =IF($E38="","",$E38*ND12) -> 8.997007695e-155 | NB38: =IF($E38="","",$E38*NE12) -> 1.031025675e-155 | NC38: =IF($E38="","",$E38*NF12) -> 1.17377687e-156 | ND38: =IF($E38="","",$E38*NG12) -> 1.327535953e-157 | NE38: =IF($E38="","",$E38*NH12) -> 1.491597732e-158 | NF38: =IF($E38="","",$E38*NI12) -> 1.664952373e-159 | NG38: =IF($E38="","",$E38*NJ12) -> 1.846275868e-160 | NH38: =IF($E38="","",$E38*NK12) -> 2.033930223e-161 | NI38: =IF($E38="","",$E38*NL12) -> 2.225974496e-162 | NJ38: =IF($E38="","",$E38*NM12) -> 2.420187404e-163 | NK38: =IF($E38="","",$E38*NN12) -> 2.614101743e-164 | NL38: =IF($E38="","",$E38*NO12) -> 2.80505031e-165 | NM38: =IF($E38="","",$E38*NP12) -> 2.990222474e-166 | NN38: =IF($E38="","",$E38*NQ12) -> 3.16672992e-167 | NO38: =IF($E38="","",$E38*NR12) -> 3.331679584e-168 | NP38: =IF($E38="","",$E38*NS12) -> 3.482251288e-169 | NQ38: =IF($E38="","",$E38*NT12) -> 3.615777232e-170 | NR38: =IF($E38="","",$E38*NU12) -> 3.729820244e-171 | NS38: =IF($E38="","",$E38*NV12) -> 3.822247593e-172 | NT38: =IF($E38="","",$E38*NW12) -> 3.891297256e-173 | NU38: =IF($E38="","",$E38*NX12) -> 3.935633763e-174 | NV38: =IF($E38="","",$E38*NY12) -> 3.954391151e-175 | NW38: =IF($E38="","",$E38*NZ12) -> 3.947201084e-176 | NX38: =IF($E38="","",$E38*OA12) -> 3.914204891e-177 | NY38: =IF($E38="","",$E38*OB12) -> 3.856048938e-178 | NZ38: 3.773863578e-179 | OA38: 3.66922661e-180 | OB38: 3.544112916e-181 | OC38: 3.400832512e-182 | OD38: 3.241959726e-183 | OE38: 3.070256539e-184 | OF38: 2.888593253e-185
A39: =IF(Principal!M23="","",MATCH(Principal!M23,Datos!A:A,0)) -> 15 | B39: =IF(A39="","",INDIRECT("Datos!A"&Espectros!A13,TRUE)) -> Photo Red (650-665) XP-E2 | C39: =IF(A39="","",INDIRECT("Datos!O"&Espectros!A13,TRUE)) -> 2.42 | D39: =IF(B39="","",INDIRECT(ADDRESS(17+MATCH(B39,Principal!$M$18:$M$30,0),15+MATCH("X",Principal!$P$17:$R$17,0),1,1,"Principal"),TRUE)/C39) -> 3.305785124 | E39: =IF(A39="","",INDIRECT("Datos!N"&Espectros!A13,TRUE)*D39) -> 4.014167651 | F39: 3.365946741e-104 | G39: 1.97977816e-103 | H39: 1.15683254e-102 | I39: 6.715357552e-102 | J39: 3.872687593e-101 | K39: 2.218709613e-100 | L39: 1.262795844e-99 | M39: 7.140202042e-99 | N39: 4.010814125e-98 | O39: 2.238201841e-97 | P39: 1.240825298e-96 | Q39: 6.833869922e-96 | R39: 3.739103224e-95 | S39: 2.032417283e-94 | T39: 1.097496091e-93 | U39: 5.88759276e-93 | V39: 3.137741929e-92 | W39: 1.661274342e-91 | X39: 8.737962411e-91 | Y39: 4.565871288e-90 | Z39: 2.37018276e-89 | AA39: 1.22231934e-88 | AB39: 6.262276073e-88 | AC39: 3.187310797e-87 | AD39: 1.611614982e-86 | AE39: 8.0954847e-86 | AF39: 4.039885855e-85 | AG39: 2.002811197e-84 | AH39: 9.864057716e-84 | AI39: 4.826317368e-83 | AJ39: 2.34596121e-82 | AK39: 1.132844902e-81 | AL39: 5.434564665e-81 | AM39: 2.590023739e-80 | AN39: 1.226273679e-79 | AO39: 5.767873758e-79 | AP39: 2.695186137e-78 | AQ39: 1.251141587e-77 | AR39: 5.769907271e-77 | AS39: 2.643479125e-76 | AT39: 1.203171718e-75 | AU39: 5.440314699e-75 | AV39: 2.443796892e-74 | AW39: 1.090563283e-73 | AX39: 4.834831168e-73 | AY39: 2.129395993e-72 | AZ39: 9.317002886e-72 | BA39: 4.049866482e-71 | BB39: 1.748839117e-70 | BC39: 7.502460024e-70 | BD39: 3.197438495e-69 | BE39: 1.353771561e-68 | BF39: 5.694207011e-68 | BG39: 2.379390892e-67 | BH39: 9.877408517e-67 | BI39: 4.073473685e-66 | BJ39: 1.668904525e-65 | BK39: 6.792704892e-65 | BL39: 2.746620645e-64 | BM39: 1.103314412e-63 | BN39: 4.402958377e-63 | BO39: 1.745559057e-62 | BP39: 6.874944421e-62 | BQ39: 2.689976676e-61 | BR39: 1.04561671e-60 | BS39: 4.037766438e-60 | BT39: 1.549011174e-59 | BU39: 5.903541018e-59 | BV39: 2.235194385e-58 | BW39: 8.40741893e-58 | BX39: 3.141627984e-57 | BY39: 1.166249588e-56 | BZ39: 4.301034515e-56 | CA39: 1.575792504e-55 | CB39: 5.735480539e-55 | CC39: 2.073887857e-54 | CD39: 7.449813576e-54 | CE39: 2.658582975e-53 | CF39: 9.425398296e-53 | CG39: 3.319662112e-52 | CH39: 1.161536148e-51 | CI39: 4.03753459e-51 | CJ39: 1.394262222e-50 | CK39: 4.783186802e-50 | CL39: 1.630177528e-49 | CM39: 5.519466987e-49 | CN39: 1.856538911e-48 | CO39: 6.203769451e-48 | CP39: 2.059453173e-47 | CQ39: 6.791924843e-47 | CR39: 2.225248409e-46 | CS39: 7.242838559e-46 | CT39: 2.341983272e-45 | CU39: 7.523214601e-45 | CV39: 2.400865274e-44 | CW39: 7.611614899e-44 | CX39: 2.39734481e-43 | CY39: 7.501167729e-43 | CZ39: 2.331696002e-42 | DA39: 7.200450307e-42 | DB39: 2.20898143e-41 | DC39: 6.732388202e-41 | DD39: 2.038407054e-40 | DE39: 6.131367603e-40 | DF39: 1.832181417e-39 | DG39: 5.43906528e-39 | DH39: 1.604075281e-38 | DI39: 4.69969744e-38 | DJ39: 1.367916949e-37 | DK39: 3.955434887e-37 | DL39: 1.136248772e-36 | DM39: 3.242629219e-36 | DN39: 9.193181505e-36 | DO39: 2.589280231e-35 | DP39: 7.244976055e-35 | DQ39: 2.013907556e-34 | DR39: 5.56143398e-34 | DS39: 1.525733629e-33 | DT39: 4.158295321e-33 | DU39: 1.125891702e-32 | DV39: 3.028465181e-32 | DW39: 8.092696055e-32 | DX39: 2.148367392e-31 | DY39: 5.6658954e-31 | DZ39: 1.484476172e-30 | EA39: 3.863870724e-30 | EB39: 9.991176289e-30 | EC39: 2.566583124e-29 | ED39: 6.549961159e-29 | EE39: 1.660606727e-28 | EF39: 4.18253457e-28 | EG39: 1.046542726e-27 | EH39: 2.60147146e-27 | EI39: 6.424300481e-27 | EJ39: 1.576076538e-26 | EK39: 3.841257666e-26 | EL39: 9.300670402e-26 | EM39: 2.237173911e-25 | EN39: 5.346011837e-25 | EO39: 1.269126066e-24 | EP39: 2.993121109e-24 | EQ39: 7.01275221e-24 | ER39: 1.632290209e-23 | ES39: 3.774426175e-23 | ET39: 8.670600432e-23 | EU39: 1.978755289e-22 | EV39: 4.486210861e-22 | EW39: 1.010443313e-21 | EX39: 2.260939304e-21 | EY39: 5.025861672e-21 | EZ39: 1.109882073e-20 | FA39: 2.434937511e-20 | FB39: 5.306931497e-20 | FC39: 1.149062949e-19 | FD39: 2.471660621e-19 | FE39: 5.281758425e-19 | FF39: 1.121276982e-18 | FG39: 2.364786614e-18 | FH39: 4.954680877e-18 | FI39: 1.031297808e-17 | FJ39: 2.13253997e-17 | FK39: 4.380815297e-17 | FL39: 8.940408937e-17 | FM39: 1.812610549e-16 | FN39: 3.650869421e-16 | FO39: 7.305211179e-16 | FP39: 1.452158188e-15 | FQ39: 2.8677399e-15 | FR39: 5.626136538e-15 | FS39: 1.096542464e-14 | FT39: 2.12317269e-14 | FU39: 4.084038824e-14 | FV39: 7.804392136e-14 | FW39: 1.481606864e-13 | FX39: 2.794290524e-13 | FY39: 5.235459598e-13 | FZ39: 9.745020231e-13 | GA39: 1.802002361e-12 | GB39: 3.310340322e-12 | GC39: 6.041358535e-12 | GD39: 1.095320598e-11 | GE39: 1.972843236e-11 | GF39: 3.530112756e-11 | GG39: 6.27522433e-11 | GH39: 1.108190983e-10 | GI39: 1.944216597e-10 | GJ39: 3.388592603e-10 | GK39: 5.867306133e-10 | GL39: 1.009259432e-09 | GM39: 1.724692055e-09 | GN39: 2.927958971e-09 | GO39: 4.938136479e-09 | GP39: 8.273816194e-09 | GQ39: 1.377188307e-08 | GR39: 2.277327353e-08 | GS39: 3.741125491e-08 | GT39: 6.105535603e-08 | GU39: 9.898968398e-08 | GV39: 1.594412849e-07 | GW39: 2.551269348e-07 | GX39: 4.055613078e-07 | GY39: 6.40473841e-07 | GZ39: 1.004826213e-06 | HA39: 1.566120569e-06 | HB39: 2.424957374e-06 | HC39: 3.730162077e-06 | HD39: 5.700277178e-06 | HE39: 8.653841235e-06 | HF39: 1.305168401e-05 | HG39: 1.955549691e-05 | HH39: 2.910823277e-05 | HI39: 4.304349232e-05 | HJ39: 6.32330077e-05 | HK39: 9.228366985e-05 | HL39: 0.0001337982866 | HM39: 0.0001927173987 | HN39: 0.0002757629879 | HO39: 0.0003920086995 | HP39: 0.0005536051378 | HQ39: 0.0007766926528 | HR39: 0.001082537526 | HS39: 0.001498930169 | HT39: 0.002061885381 | HU39: 0.002817684197 | HV39: 0.003825293751 | HW39: 0.005159195008 | HX39: 0.006912637363 | HY39: 0.009201323143 | HZ39: 0.01216750321 | IA39: 0.01598443663 | IB39: 0.02086113227 | IC39: 0.02704724887 | ID39: 0.03483798242 | IE39: 0.04457871771 | IF39: 0.05666916668 | IG39: 0.07156666156 | IH39: 0.08978822145 | II39: 0.1119109693 | IJ39: 0.1385704488 | IK39: 0.1704563826 | IL39: 0.2083054294 | IM39: 0.2528905436 | IN39: 0.3050066217 | IO39: 0.3654522365 | IP39: 0.4350074132 | IQ39: 0.5144075925 | IR39: 0.6043141452 | IS39: 0.7052820451 | IT39: 0.8177255614 | IU39: 0.9418830847 | IV39: 1.077782429 | IW39: 1.225208155 | IX39: 1.383672586 | IY39: 1.552392273 | IZ39: 1.730271626 | JA39: 1.915895324 | JB39: 2.107530882 | JC39: 2.303142421 | JD39: 2.500416292 | JE39: 2.696798658 | JF39: 2.889544618 | JG39: 3.075777844 | JH39: 3.252559137 | JI39: 3.416961746 | JJ39: 3.566150849 | JK39: 3.69746423 | JL39: 3.808490972 | JM39: 3.897144935 | JN39: 3.961729895 | JO39: 4.000993499 | JP39: 4.014167651 | JQ39: 4.000993499 | JR39: 3.961729895 | JS39: 3.897144935 | JT39: 3.808490972 | JU39: 3.69746423 | JV39: 3.566150849 | JW39: 3.416961746 | JX39: 3.252559137 | JY39: 3.075777844 | JZ39: 2.889544618 | KA39: 2.696798658 | KB39: 2.500416292 | KC39: 2.303142421 | KD39: 2.107530882 | KE39: 1.915895324 | KF39: 1.730271626 | KG39: 1.552392273 | KH39: 1.383672586 | KI39: 1.225208155 | KJ39: 1.077782429 | KK39: 0.9418830847 | KL39: 0.8177255614 | KM39: 0.7052820451 | KN39: 0.6043141452 | KO39: 0.5144075925 | KP39: 0.4350074132 | KQ39: 0.3654522365 | KR39: 0.3050066217 | KS39: 0.2528905436 | KT39: 0.2083054294 | KU39: 0.1704563826 | KV39: 0.1385704488 | KW39: 0.1119109693 | KX39: 0.08978822145 | KY39: 0.07156666156 | KZ39: 0.05666916668 | LA39: 0.04457871771 | LB39: 0.03483798242 | LC39: 0.02704724887 | LD39: 0.02086113227 | LE39: 0.01598443663 | LF39: 0.01216750321 | LG39: 0.009201323143 | LH39: 0.006912637363 | LI39: 0.005159195008 | LJ39: 0.003825293751 | LK39: 0.002817684197 | LL39: 0.002061885381 | LM39: 0.001498930169 | LN39: 0.001082537526 | LO39: 0.0007766926528 | LP39: 0.0005536051378 | LQ39: 0.0003920086995 | LR39: 0.0002757629879 | LS39: 0.0001927173987 | LT39: 0.0001337982866 | LU39: 9.228366985e-05 | LV39: 6.32330077e-05 | LW39: 4.304349232e-05 | LX39: 2.910823277e-05 | LY39: 1.955549691e-05 | LZ39: 1.305168401e-05 | MA39: 8.653841235e-06 | MB39: 5.700277178e-06 | MC39: 3.730162077e-06 | MD39: 2.424957374e-06 | ME39: 1.566120569e-06 | MF39: 1.004826213e-06 | MG39: 6.40473841e-07 | MH39: 4.055613078e-07 | MI39: 2.551269348e-07 | MJ39: 1.594412849e-07 | MK39: 9.898968398e-08 | ML39: 6.105535603e-08 | MM39: 3.741125491e-08 | MN39: 2.277327353e-08 | MO39: 1.377188307e-08 | MP39: 8.273816194e-09 | MQ39: 4.938136479e-09 | MR39: 2.927958971e-09 | MS39: 1.724692055e-09 | MT39: 1.009259432e-09 | MU39: 5.867306133e-10 | MV39: 3.388592603e-10 | MW39: 1.944216597e-10 | MX39: 1.108190983e-10 | MY39: 6.27522433e-11 | MZ39: 3.530112756e-11 | NA39: 1.972843236e-11 | NB39: 1.095320598e-11 | NC39: 6.041358535e-12 | ND39: 3.310340322e-12 | NE39: 1.802002361e-12 | NF39: 9.745020231e-13 | NG39: 5.235459598e-13 | NH39: 2.794290524e-13 | NI39: 1.481606864e-13 | NJ39: 7.804392136e-14 | NK39: 4.084038824e-14 | NL39: 2.12317269e-14 | NM39: 1.096542464e-14 | NN39: 5.626136538e-15 | NO39: 2.8677399e-15 | NP39: 1.452158188e-15 | NQ39: 7.305211179e-16 | NR39: 3.650869421e-16 | NS39: 1.812610549e-16 | NT39: 8.940408937e-17 | NU39: 4.380815297e-17 | NV39: 2.13253997e-17 | NW39: 1.031297808e-17 | NX39: 4.954680877e-18 | NY39: 2.364786614e-18 | NZ39: 1.121276982e-18 | OA39: 5.281758425e-19 | OB39: 2.471660621e-19 | OC39: 1.149062949e-19 | OD39: 5.306931497e-20 | OE39: 2.434937511e-20 | OF39: 1.109882073e-20
A40: =IF(Principal!M24="","",MATCH(Principal!M24,Datos!A:A,0)) -> 22 | B40: =IF(A40="","",INDIRECT("Datos!A"&Espectros!A14,TRUE)) -> UV (405-410) Semiled | C40: =IF(A40="","",INDIRECT("Datos!O"&Espectros!A14,TRUE)) -> 2.38 | D40: =IF(B40="","",INDIRECT(ADDRESS(17+MATCH(B40,Principal!$M$18:$M$30,0),15+MATCH("X",Principal!$P$17:$R$17,0),1,1,"Principal"),TRUE)/C40) -> 3.361344538 | E40: =IF(A40="","",INDIRECT("Datos!N"&Espectros!A14,TRUE)*D40) -> 2.857142857 | F40: 0.7671274939 | G40: 0.8720599223 | H40: 0.9848493114 | I40: 1.104938029 | J40: 1.231546275 | K40: 1.363666672 | L40: 1.500066098 | M40: 1.639295488 | N40: 1.779708067 | O40: 1.919486104 | P40: 2.056675875 | Q40: 2.189230112 | R40: 2.315056798 | S40: 2.432072772 | T40: 2.53826031 | U40: 2.63172454 | V40: 2.710749456 | W40: 2.773850219 | X40: 2.819819513 | Y40: 2.847765961 | Z40: 2.857142857 | AA40: 2.847765961 | AB40: 2.819819513 | AC40: 2.773850219 | AD40: 2.710749456 | AE40: 2.63172454 | AF40: 2.53826031 | AG40: 2.432072772 | AH40: 2.315056798 | AI40: 2.189230112 | AJ40: 2.056675875 | AK40: 1.919486104 | AL40: 1.779708067 | AM40: 1.639295488 | AN40: 1.500066098 | AO40: 1.363666672 | AP40: 1.231546275 | AQ40: 1.104938029 | AR40: 0.9848493114 | AS40: 0.8720599223 | AT40: 0.7671274939 | AU40: 0.6703991367 | AV40: 0.5820281937 | AW40: 0.5019948674 | AX40: 0.4301294798 | AY40: 0.3661371688 | AZ40: 0.3096229235 | BA40: 0.2601160036 | BB40: 0.2170929484 | BC40: 0.1799985634 | BD40: 0.1482644527 | BE40: 0.121324837 | BF40: 0.09862955472 | BG40: 0.07965427814 | BH40: 0.06390808703 | BI40: 0.05093862382 | BJ40: 0.04033511276 | BK40: 0.0317295579 | BL40: 0.02479644631 | BM40: 0.01925127714 | BN40: 0.01484821767 | BO40: 0.01137715784 | BP40: 0.008660399347 | BQ40: 0.006549177061 | BR40: 0.0049201713 | BS40: 0.003672132918 | BT40: 0.002722709082 | BU40: 0.002005528164 | BV40: 0.001467577242 | BW40: 0.001066885591 | BX40: 0.0007705120034 | BY40: 0.0005528224176 | BZ40: 0.0003940365981 | CA40: 0.0002790179567 | CB40: 0.000196278362 | CC40: 0.0001371694426 | CD40: 9.52328981e-05 | CE40: 6.568425913e-05 | CF40: 4.500702312e-05 | CG40: 3.063683865e-05 | CH40: 2.071821274e-05 | CI40: 1.391891251e-05 | CJ40: 9.28972803e-06 | CK40: 6.159498762e-06 | CL40: 4.057256109e-06 | CM40: 2.654997714e-06 | CN40: 1.725999072e-06 | CO40: 1.114709346e-06 | CP40: 7.15199834e-07 | CQ40: 4.55866675e-07 | CR40: 2.88664225e-07 | CS40: 1.815903477e-07 | CT40: 1.134846792e-07 | CU40: 7.045736331e-08 | CV40: 4.345704752e-08 | CW40: 2.662801085e-08 | CX40: 1.620921233e-08 | CY40: 9.8023403e-09 | CZ40: 5.88901035e-09 | DA40: 3.514791259e-09 | DB40: 2.084017856e-09 | DC40: 1.227574933e-09 | DD40: 7.183552425e-10 | DE40: 4.176141424e-10 | DF40: 2.411880617e-10 | DG40: 1.383824754e-10 | DH40: 7.887712289e-11 | DI40: 4.466483199e-11 | DJ40: 2.512609668e-11 | DK40: 1.404200186e-11 | DL40: 7.796105433e-12 | DM40: 4.300025781e-12 | DN40: 2.356183406e-12 | DO40: 1.28260168e-12 | DP40: 6.936161458e-13 | DQ40: 3.726415361e-13 | DR40: 1.988877373e-13 | DS40: 1.054555474e-13 | DT40: 5.554890873e-14 | DU40: 2.906874692e-14 | DV40: 1.511199385e-14 | DW40: 7.804802242e-15 | DX40: 4.004485418e-15 | DY40: 2.041156046e-15 | DZ40: 1.033594946e-15 | EA40: 5.199591486e-16 | EB40: 2.59856e-16 | EC40: 1.290152214e-16 | ED40: 6.363467538e-17 | EE40: 3.118109712e-17 | EF40: 1.517866685e-17 | EG40: 7.340413811e-18 | EH40: 3.526566977e-18 | EI40: 1.683171649e-18 | EJ40: 7.980853816e-19 | EK40: 3.759369232e-19 | EL40: 1.759240795e-19 | EM40: 8.178624516e-20 | EN40: 3.777286536e-20 | EO40: 1.733102582e-20 | EP40: 7.899748874e-21 | EQ40: 3.577230955e-21 | ER40: 1.609256799e-21 | ES40: 7.191978874e-22 | ET40: 3.193126554e-22 | EU40: 1.408408177e-22 | EV40: 6.171427366e-23 | EW40: 2.686503336e-23 | EX40: 1.16180656e-23 | EY40: 4.991429514e-24 | EZ40: 2.130397966e-24 | FA40: 9.033191411e-25 | FB40: 3.805102543e-25 | FC40: 1.592341431e-25 | FD40: 6.619888933e-26 | FE40: 2.734071633e-26 | FF40: 1.121795653e-26 | FG40: 4.572590342e-27 | FH40: 1.851635568e-27 | FI40: 7.448921756e-28 | FJ40: 2.976980488e-28 | FK40: 1.181961259e-28 | FL40: 4.662031178e-29 | FM40: 1.826803282e-29 | FN40: 7.111366653e-30 | FO40: 2.750166809e-30 | FP40: 1.056597746e-30 | FQ40: 4.032784373e-31 | FR40: 1.529132085e-31 | FS40: 5.760095427e-32 | FT40: 2.155554629e-32 | FU40: 8.01369976e-33 | FV40: 2.959727846e-33 | FW40: 1.085963348e-33 | FX40: 3.958432421e-34 | FY40: 1.433428319e-34 | FZ40: 5.156718251e-35 | GA40: 1.842958282e-35 | GB40: 6.54338213e-36 | GC40: 2.307989032e-36 | GD40: 8.087417728e-37 | GE40: 2.815338949e-37 | GF40: 9.736350049e-38 | GG40: 3.345078766e-38 | GH40: 1.141724171e-38 | GI40: 3.871334699e-39 | GJ40: 1.304082068e-39 | GK40: 4.364091059e-40 | GL40: 1.450866197e-40 | GM40: 4.791876308e-41 | GN40: 1.572275018e-41 | GO40: 5.125026395e-42 | GP40: 1.659618919e-42 | GQ40: 5.339066443e-43 | GR40: 1.706345424e-43 | GS40: 5.41767884e-44 | GT40: 1.708851165e-44 | GU40: 5.354758628e-45 | GV40: 1.666941035e-45 | GW40: 5.155196857e-46 | GX40: 1.58385328e-46 | GY40: 4.834252388e-47 | GZ40: 1.465846082e-47 | HA40: 4.415624138e-48 | HB40: 1.321418872e-48 | HC40: 3.928561796e-49 | HD40: 1.160302829e-49 | HE40: 3.404503547e-50 | HF40: 9.923866401e-51 | HG40: 2.87377462e-51 | HH40: 8.267404346e-52 | HI40: 2.362818327e-52 | HJ40: 6.708665846e-53 | HK40: 1.89228553e-53 | HL40: 5.302514369e-54 | HM40: 1.476120181e-54 | HN40: 4.082312619e-55 | HO40: 1.121593488e-55 | HP40: 3.061324567e-56 | HQ40: 8.300952948e-57 | HR40: 2.236099918e-57 | HS40: 5.984104062e-58 | HT40: 1.590932474e-58 | HU40: 4.201932137e-59 | HV40: 1.102531482e-59 | HW40: 2.873939641e-60 | HX40: 7.442330701e-61 | HY40: 1.914630458e-61 | HZ40: 4.893342794e-62 | IA40: 1.242427329e-62 | IB40: 3.133870374e-63 | IC40: 7.853002577e-64 | ID40: 1.954947635e-64 | IE40: 4.834807599e-65 | IF40: 1.187867338e-65 | IG40: 2.899354799e-66 | IH40: 7.030390768e-67 | II40: 1.693566459e-67 | IJ40: 4.052935578e-68 | IK40: 9.635668169e-69 | IL40: 2.27582387e-69 | IM40: 5.339986252e-70 | IN40: 1.24476196e-70 | IO40: 2.882552025e-71 | IP40: 6.631513819e-72 | IQ40: 1.515628913e-72 | IR40: 3.441262184e-73 | IS40: 7.762244541e-74 | IT40: 1.739408376e-74 | IU40: 3.872223992e-75 | IV40: 8.563751643e-76 | IW40: 1.881535142e-76 | IX40: 4.106816352e-77 | IY40: 8.905184235e-78 | IZ40: 1.918338368e-78 | JA40: 4.105368969e-79 | JB40: 8.728183243e-80 | JC40: 1.843487485e-80 | JD40: 3.86813132e-81 | JE40: 8.063190188e-82 | JF40: 1.66977239e-82 | JG40: 3.435202362e-83 | JH40: 7.020888139e-84 | JI40: 1.425530322e-84 | JJ40: 2.875448167e-85 | JK40: 5.762080287e-86 | JL40: 1.147090664e-86 | JM40: 2.268615332e-87 | JN40: 4.457267087e-88 | JO40: 8.700037653e-89 | JP40: 1.687012435e-89 | JQ40: 3.249826034e-90 | JR40: 6.219373245e-91 | JS40: 1.182436444e-91 | JT40: 2.233333961e-92 | JU40: 4.190580729e-93 | JV40: 7.811589823e-94 | JW40: 1.44660289e-94 | JX40: 2.661361707e-95 | JY40: 4.864107415e-96 | JZ40: 8.831756533e-97 | KA40: 1.593073075e-97 | KB40: 2.854755936e-98 | KC40: 5.082143806e-99 | KD40: 8.988135127e-100 | KE40: 1.579199195e-100 | KF40: 2.756442346e-101 | KG40: 4.779754493e-102 | KH40: 8.233925725e-103 | KI40: 1.40913622e-103 | KJ40: 2.395762092e-104 | KK40: 4.046495649e-105 | KL40: 6.789833811e-106 | KM40: 1.131837006e-106 | KN40: 1.874361314e-107 | KO40: 3.083666571e-108 | KP40: 5.039949577e-109 | KQ40: 8.183322148e-110 | KR40: 1.320011706e-110 | KS40: 2.115293307e-111 | KT40: 3.367503733e-112 | KU40: 5.325866233e-113 | KV40: 8.36791193e-114 | KW40: 1.306136678e-114 | KX40: 2.02537212e-115 | KY40: 3.120079843e-116 | KZ40: 4.774976803e-117 | LA40: 7.259747275e-118 | LB40: 1.096519644e-118 | LC40: 1.645341336e-119 | LD40: 2.452676551e-120 | LE40: 3.632195592e-121 | LF40: 5.343709654e-122 | LG40: 7.81018205e-123 | LH40: 1.134028944e-123 | LI40: 1.635806009e-124 | LJ40: 2.344143192e-125 | LK40: 3.337191685e-126 | LL40: 4.719791858e-127 | LM40: 6.63146098e-128 | LN40: 9.256360669e-129 | LO40: 1.283559472e-129 | LP40: 1.76822042e-130 | LQ40: 2.419922655e-131 | LR40: 3.290116279e-132 | LS40: 4.443914418e-133 | LT40: 5.962999928e-134 | LU40: 7.948928666e-135 | LV40: 1.0526817e-135 | LW40: 1.384937659e-136 | LX40: 1.810122863e-137 | LY40: 2.350339294e-138 | LZ40: 3.031780439e-139 | MA40: 3.885166272e-140 | MB40: 4.94613711e-141 | MC40: 6.255576944e-142 | MD40: 7.859832076e-143 | ME40: 9.810786903e-144 | MF40: 1.216575583e-144 | MG40: 1.498714906e-145 | MH40: 1.834187105e-146 | MI40: 2.230041385e-147 | MJ40: 2.693561449e-148 | MK40: 3.232105518e-149 | ML40: 3.852909885e-150 | MM40: 4.562856918e-151 | MN40: 5.368210376e-152 | MO40: 6.274323139e-153 | MP40: 7.285324733e-154 | MQ40: 8.403798396e-155 | MR40: 9.630459605e-156 | MS40: 1.096384988e-156 | MT40: 1.24000611e-157 | MU40: 1.393250629e-158 | MV40: 1.555175293e-159 | MW40: 1.724543393e-160 | MX40: 1.899824933e-161 | MY40: 2.079206946e-162 | MZ40: 2.260614608e-163 | NA40: 2.441743386e-164 | NB40: 2.620101938e-165 | NC40: 2.793064948e-166 | ND40: 2.95793454e-167 | NE40: 3.112008402e-168 | NF40: 3.252652302e-169 | NG40: 3.377374337e-170 | NH40: 3.48389803e-171 | NI40: 3.570231268e-172 | NJ40: 3.634728206e-173 | NK40: 3.676141427e-174 | NL40: 3.693662064e-175 | NM40: 3.686946068e-176 | NN40: 3.656125447e-177 | NO40: 3.601803953e-178 | NP40: 3.525037408e-179 | NQ40: 3.427299581e-180 | NR40: 3.310435142e-181 | NS40: 3.176601797e-182 | NT40: 3.028204139e-183 | NU40: 2.867822042e-184 | NV40: 2.698136555e-185 | NW40: 2.521856273e-186 | NX40: 2.341646937e-187 | NY40: 2.160066772e-188 | NZ40: 1.979509615e-189 | OA40: 1.802157456e-190 | OB40: 1.629943417e-191 | OC40: 1.464525714e-192 | OD40: 1.307272582e-193 | OE40: 1.15925768e-194 | OF40: 1.021265096e-195
A41: =IF(Principal!M25="","",MATCH(Principal!M25,Datos!A:A,0)) ->  | B41: =IF(A41="","",INDIRECT("Datos!A"&Espectros!A15,TRUE)) ->  | C41: =IF(A41="","",INDIRECT("Datos!O"&Espectros!A15,TRUE)) ->  | D41: =IF(B41="","",INDIRECT(ADDRESS(17+MATCH(B41,Principal!$M$18:$M$30,0),15+MATCH("X",Principal!$P$17:$R$17,0),1,1,"Principal"),TRUE)/C41) ->  | E41: =IF(A41="","",INDIRECT("Datos!N"&Espectros!A15,TRUE)*D41) -> 
A42: =IF(Principal!M26="","",MATCH(Principal!M26,Datos!A:A,0)) ->  | B42: =IF(A42="","",INDIRECT("Datos!A"&Espectros!A16,TRUE)) ->  | C42: =IF(A42="","",INDIRECT("Datos!O"&Espectros!A16,TRUE)) ->  | D42: =IF(B42="","",INDIRECT(ADDRESS(17+MATCH(B42,Principal!$M$18:$M$30,0),15+MATCH("X",Principal!$P$17:$R$17,0),1,1,"Principal"),TRUE)/C42) ->  | E42: =IF(A42="","",INDIRECT("Datos!N"&Espectros!A16,TRUE)*D42) -> 
A43: =IF(Principal!M27="","",MATCH(Principal!M27,Datos!A:A,0)) ->  | B43: =IF(A43="","",INDIRECT("Datos!A"&Espectros!A17,TRUE)) ->  | C43: =IF(A43="","",INDIRECT("Datos!O"&Espectros!A17,TRUE)) ->  | D43: =IF(B43="","",INDIRECT(ADDRESS(17+MATCH(B43,Principal!$M$18:$M$30,0),15+MATCH("X",Principal!$P$17:$R$17,0),1,1,"Principal"),TRUE)/C43) ->  | E43: =IF(A43="","",INDIRECT("Datos!N"&Espectros!A17,TRUE)*D43) -> 
A44: =IF(Principal!M28="","",MATCH(Principal!M28,Datos!A:A,0)) ->  | B44: =IF(A44="","",INDIRECT("Datos!A"&Espectros!A18,TRUE)) ->  | C44: =IF(A44="","",INDIRECT("Datos!O"&Espectros!A18,TRUE)) ->  | D44: =IF(B44="","",INDIRECT(ADDRESS(17+MATCH(B44,Principal!$M$18:$M$30,0),15+MATCH("X",Principal!$P$17:$R$17,0),1,1,"Principal"),TRUE)/C44) ->  | E44: =IF(A44="","",INDIRECT("Datos!N"&Espectros!A18,TRUE)*D44) -> 
A45: =IF(Principal!M29="","",MATCH(Principal!M29,Datos!A:A,0)) ->  | B45: =IF(A45="","",INDIRECT("Datos!A"&Espectros!A19,TRUE)) ->  | C45: =IF(A45="","",INDIRECT("Datos!O"&Espectros!A19,TRUE)) ->  | D45: =IF(B45="","",INDIRECT(ADDRESS(17+MATCH(B45,Principal!$M$18:$M$30,0),15+MATCH("X",Principal!$P$17:$R$17,0),1,1,"Principal"),TRUE)/C45) ->  | E45: =IF(A45="","",INDIRECT("Datos!N"&Espectros!A19,TRUE)*D45) -> 
A46: =IF(Principal!M30="","",MATCH(Principal!M30,Datos!A:A,0)) ->  | B46: =IF(A46="","",INDIRECT("Datos!A"&Espectros!A20,TRUE)) ->  | C46: =IF(A46="","",INDIRECT("Datos!O"&Espectros!A20,TRUE)) ->  | D46: =IF(B46="","",INDIRECT(ADDRESS(17+MATCH(B46,Principal!$M$18:$M$30,0),15+MATCH("X",Principal!$P$17:$R$17,0),1,1,"Principal"),TRUE)/C46) ->  | E46: =IF(A46="","",INDIRECT("Datos!N"&Espectros!A20,TRUE)*D46) -> 
A47: =IF(Principal!M31="","",MATCH(Principal!M31,Datos!A:A,0)) ->  | C47: =IF(A47="","",INDIRECT("Datos!O"&Espectros!A21,TRUE)) ->  | D47: =IF(B47="","",INDIRECT(ADDRESS(17+MATCH(B47,Principal!$M$18:$M$30,0),15+MATCH("X",Principal!$P$17:$R$17,0),1,1,"Principal"),TRUE)/C47) ->  | E47: =IF(A47="","",INDIRECT("Datos!N"&Espectros!A21,TRUE)*D47) -> 
A48: =IF(Principal!M32="","",MATCH(Principal!M32,Datos!A:A,0)) ->  | C48: =IF(A48="","",INDIRECT("Datos!O"&Espectros!A22,TRUE)) ->  | D48: =IF(B48="","",INDIRECT(ADDRESS(17+MATCH(B48,Principal!$M$18:$M$30,0),15+MATCH("X",Principal!$P$17:$R$17,0),1,1,"Principal"),TRUE)/C48) ->  | E48: =IF(A48="","",INDIRECT("Datos!N"&Espectros!A22,TRUE)*D48) -> 
A49: =IF(Principal!M33="","",MATCH(Principal!M33,Datos!A:A,0)) ->  | C49: =IF(A49="","",INDIRECT("Datos!O"&Espectros!A23,TRUE)) ->  | D49: =IF(B49="","",INDIRECT(ADDRESS(17+MATCH(B49,Principal!$M$18:$M$30,0),15+MATCH("X",Principal!$P$17:$R$17,0),1,1,"Principal"),TRUE)/C49) ->  | E49: =IF(A49="","",INDIRECT("Datos!N"&Espectros!A23,TRUE)*D49) -> 
A50: =IF(Principal!M34="","",MATCH(Principal!M34,Datos!A:A,0)) ->  | C50: =IF(A50="","",INDIRECT("Datos!O"&Espectros!A24,TRUE)) ->  | D50: =IF(B50="","",INDIRECT(ADDRESS(17+MATCH(B50,Principal!$M$18:$M$30,0),15+MATCH("X",Principal!$P$17:$R$17,0),1,1,"Principal"),TRUE)/C50) ->  | E50: =IF(A50="","",INDIRECT("Datos!N"&Espectros!A24,TRUE)*D50) -> 
A51: =IF(Principal!M35="","",MATCH(Principal!M35,Datos!A:A,0)) ->  | C51: =IF(A51="","",INDIRECT("Datos!O"&Espectros!A25,TRUE)) ->  | D51: =IF(B51="","",INDIRECT(ADDRESS(17+MATCH(B51,Principal!$M$18:$M$30,0),15+MATCH("X",Principal!$P$17:$R$17,0),1,1,"Principal"),TRUE)/C51) ->  | E51: =IF(A51="","",INDIRECT("Datos!N"&Espectros!A25,TRUE)*D51) -> 
A52: =IF(Principal!M36="","",MATCH(Principal!M36,Datos!A:A,0)) ->  | C52: =IF(A52="","",INDIRECT("Datos!O"&Espectros!A26,TRUE)) ->  | D52: =IF(B52="","",INDIRECT(ADDRESS(17+MATCH(B52,Principal!$M$18:$M$30,0),15+MATCH("X",Principal!$P$17:$R$17,0),1,1,"Principal"),TRUE)/C52) ->  | E52: =IF(A52="","",INDIRECT("Datos!N"&Espectros!A26,TRUE)*D52) -> 
A53: =IF(Principal!M37="","",MATCH(Principal!M37,Datos!A:A,0)) ->  | C53: =IF(A53="","",INDIRECT("Datos!O"&Espectros!A27,TRUE)) ->  | D53: =IF(B53="","",INDIRECT(ADDRESS(17+MATCH(B53,Principal!$M$18:$M$30,0),15+MATCH("X",Principal!$P$17:$R$17,0),1,1,"Principal"),TRUE)/C53) ->  | E53: =IF(A53="","",INDIRECT("Datos!N"&Espectros!A27,TRUE)*D53) -> 
A54: =IF(Principal!M38="","",MATCH(Principal!M38,Datos!A:A,0)) ->  | C54: =IF(A54="","",INDIRECT("Datos!O"&Espectros!A28,TRUE)) ->  | D54: =IF(B54="","",INDIRECT(ADDRESS(17+MATCH(B54,Principal!$M$18:$M$30,0),15+MATCH("X",Principal!$P$17:$R$17,0),1,1,"Principal"),TRUE)/C54) ->  | E54: =IF(A54="","",INDIRECT("Datos!N"&Espectros!A28,TRUE)*D54) -> 
A55: =IF(Principal!M39="","",MATCH(Principal!M39,Datos!A:A,0)) -> 
A56: Espectro ponderado por "lm flux" para cada tipo de led | I56: =IF(G56="","",(G56-$C$2)*($F$3-$F$2) / ($C$3-$C$2)+$F$2) ->  | L56: =IF($G56="","",$J$2*EXP(1)^(-(((I$6-$I56)^2)/0.2))) ->  | M56: =IF($G56="","",$J$2*EXP(1)^(-(((J$6-$I56)^2)/0.2))) ->  | N56: =IF($G56="","",$J$2*EXP(1)^(-(((K$6-$I56)^2)/0.2))) ->  | O56: =IF($G56="","",$J$2*EXP(1)^(-(((L$6-$I56)^2)/0.2))) ->  | P56: =IF($G56="","",$J$2*EXP(1)^(-(((M$6-$I56)^2)/0.2))) ->  | Q56: =IF($G56="","",$J$2*EXP(1)^(-(((N$6-$I56)^2)/0.2))) ->  | R56: =IF($G56="","",$J$2*EXP(1)^(-(((O$6-$I56)^2)/0.2))) ->  | S56: =IF($G56="","",$J$2*EXP(1)^(-(((P$6-$I56)^2)/0.2))) ->  | T56: =IF($G56="","",$J$2*EXP(1)^(-(((Q$6-$I56)^2)/0.2))) ->  | U56: =IF($G56="","",$J$2*EXP(1)^(-(((R$6-$I56)^2)/0.2))) ->  | V56: =IF($G56="","",$J$2*EXP(1)^(-(((S$6-$I56)^2)/0.2))) ->  | W56: =IF($G56="","",$J$2*EXP(1)^(-(((T$6-$I56)^2)/0.2))) ->  | X56: =IF($G56="","",$J$2*EXP(1)^(-(((U$6-$I56)^2)/0.2))) ->  | Y56: =IF($G56="","",$J$2*EXP(1)^(-(((V$6-$I56)^2)/0.2))) ->  | Z56: =IF($G56="","",$J$2*EXP(1)^(-(((W$6-$I56)^2)/0.2))) ->  | AA56: =IF($G56="","",$J$2*EXP(1)^(-(((X$6-$I56)^2)/0.2))) ->  | AB56: =IF($G56="","",$J$2*EXP(1)^(-(((Y$6-$I56)^2)/0.2))) ->  | AC56: =IF($G56="","",$J$2*EXP(1)^(-(((Z$6-$I56)^2)/0.2))) ->  | AD56: =IF($G56="","",$J$2*EXP(1)^(-(((AA$6-$I56)^2)/0.2))) ->  | AE56: =IF($G56="","",$J$2*EXP(1)^(-(((AB$6-$I56)^2)/0.2))) ->  | AF56: =IF($G56="","",$J$2*EXP(1)^(-(((AC$6-$I56)^2)/0.2))) ->  | AG56: =IF($G56="","",$J$2*EXP(1)^(-(((AD$6-$I56)^2)/0.2))) ->  | AH56: =IF($G56="","",$J$2*EXP(1)^(-(((AE$6-$I56)^2)/0.2))) ->  | AI56: =IF($G56="","",$J$2*EXP(1)^(-(((AF$6-$I56)^2)/0.2))) ->  | AJ56: =IF($G56="","",$J$2*EXP(1)^(-(((AG$6-$I56)^2)/0.2))) ->  | AK56: =IF($G56="","",$J$2*EXP(1)^(-(((AH$6-$I56)^2)/0.2))) ->  | AL56: =IF($G56="","",$J$2*EXP(1)^(-(((AI$6-$I56)^2)/0.2))) ->  | AM56: =IF($G56="","",$J$2*EXP(1)^(-(((AJ$6-$I56)^2)/0.2))) ->  | AN56: =IF($G56="","",$J$2*EXP(1)^(-(((AK$6-$I56)^2)/0.2))) ->  | AO56: =IF($G56="","",$J$2*EXP(1)^(-(((AL$6-$I56)^2)/0.2))) ->  | AP56: =IF($G56="","",$J$2*EXP(1)^(-(((AM$6-$I56)^2)/0.2))) ->  | AQ56: =IF($G56="","",$J$2*EXP(1)^(-(((AN$6-$I56)^2)/0.2))) ->  | AR56: =IF($G56="","",$J$2*EXP(1)^(-(((AO$6-$I56)^2)/0.2))) ->  | AS56: =IF($G56="","",$J$2*EXP(1)^(-(((AP$6-$I56)^2)/0.2))) ->  | AT56: =IF($G56="","",$J$2*EXP(1)^(-(((AQ$6-$I56)^2)/0.2))) ->  | AU56: =IF($G56="","",$J$2*EXP(1)^(-(((AR$6-$I56)^2)/0.2))) ->  | AV56: =IF($G56="","",$J$2*EXP(1)^(-(((AS$6-$I56)^2)/0.2))) ->  | AW56: =IF($G56="","",$J$2*EXP(1)^(-(((AT$6-$I56)^2)/0.2))) ->  | AX56: =IF($G56="","",$J$2*EXP(1)^(-(((AU$6-$I56)^2)/0.2))) ->  | AY56: =IF($G56="","",$J$2*EXP(1)^(-(((AV$6-$I56)^2)/0.2))) ->  | AZ56: =IF($G56="","",$J$2*EXP(1)^(-(((AW$6-$I56)^2)/0.2))) ->  | BA56: =IF($G56="","",$J$2*EXP(1)^(-(((AX$6-$I56)^2)/0.2))) ->  | BB56: =IF($G56="","",$J$2*EXP(1)^(-(((AY$6-$I56)^2)/0.2))) ->  | BC56: =IF($G56="","",$J$2*EXP(1)^(-(((AZ$6-$I56)^2)/0.2))) ->  | BD56: =IF($G56="","",$J$2*EXP(1)^(-(((BA$6-$I56)^2)/0.2))) ->  | BE56: =IF($G56="","",$J$2*EXP(1)^(-(((BB$6-$I56)^2)/0.2))) ->  | BF56: =IF($G56="","",$J$2*EXP(1)^(-(((BC$6-$I56)^2)/0.2))) ->  | BG56: =IF($G56="","",$J$2*EXP(1)^(-(((BD$6-$I56)^2)/0.2))) ->  | BH56: =IF($G56="","",$J$2*EXP(1)^(-(((BE$6-$I56)^2)/0.2))) ->  | BI56: =IF($G56="","",$J$2*EXP(1)^(-(((BF$6-$I56)^2)/0.2))) ->  | BJ56: =IF($G56="","",$J$2*EXP(1)^(-(((BG$6-$I56)^2)/0.2))) ->  | BK56: =IF($G56="","",$J$2*EXP(1)^(-(((BH$6-$I56)^2)/0.2))) ->  | BL56: =IF($G56="","",$J$2*EXP(1)^(-(((BI$6-$I56)^2)/0.2))) ->  | BM56: =IF($G56="","",$J$2*EXP(1)^(-(((BJ$6-$I56)^2)/0.2))) ->  | BN56: =IF($G56="","",$J$2*EXP(1)^(-(((BK$6-$I56)^2)/0.2))) ->  | BO56: =IF($G56="","",$J$2*EXP(1)^(-(((BL$6-$I56)^2)/0.2))) ->  | BP56: =IF($G56="","",$J$2*EXP(1)^(-(((BM$6-$I56)^2)/0.2))) ->  | BQ56: =IF($G56="","",$J$2*EXP(1)^(-(((BN$6-$I56)^2)/0.2))) ->  | BR56: =IF($G56="","",$J$2*EXP(1)^(-(((BO$6-$I56)^2)/0.2))) ->  | BS56: =IF($G56="","",$J$2*EXP(1)^(-(((BP$6-$I56)^2)/0.2))) ->  | BT56: =IF($G56="","",$J$2*EXP(1)^(-(((BQ$6-$I56)^2)/0.2))) ->  | BU56: =IF($G56="","",$J$2*EXP(1)^(-(((BR$6-$I56)^2)/0.2))) ->  | BV56: =IF($G56="","",$J$2*EXP(1)^(-(((BS$6-$I56)^2)/0.2))) ->  | BW56: =IF($G56="","",$J$2*EXP(1)^(-(((BT$6-$I56)^2)/0.2))) ->  | BX56: =IF($G56="","",$J$2*EXP(1)^(-(((BU$6-$I56)^2)/0.2))) ->  | BY56: =IF($G56="","",$J$2*EXP(1)^(-(((BV$6-$I56)^2)/0.2))) ->  | BZ56: =IF($G56="","",$J$2*EXP(1)^(-(((BW$6-$I56)^2)/0.2))) ->  | CA56: =IF($G56="","",$J$2*EXP(1)^(-(((BX$6-$I56)^2)/0.2))) ->  | CB56: =IF($G56="","",$J$2*EXP(1)^(-(((BY$6-$I56)^2)/0.2))) ->  | CC56: =IF($G56="","",$J$2*EXP(1)^(-(((BZ$6-$I56)^2)/0.2))) ->  | CD56: =IF($G56="","",$J$2*EXP(1)^(-(((CA$6-$I56)^2)/0.2))) ->  | CE56: =IF($G56="","",$J$2*EXP(1)^(-(((CB$6-$I56)^2)/0.2))) ->  | CF56: =IF($G56="","",$J$2*EXP(1)^(-(((CC$6-$I56)^2)/0.2))) ->  | CG56: =IF($G56="","",$J$2*EXP(1)^(-(((CD$6-$I56)^2)/0.2))) ->  | CH56: =IF($G56="","",$J$2*EXP(1)^(-(((CE$6-$I56)^2)/0.2))) ->  | CI56: =IF($G56="","",$J$2*EXP(1)^(-(((CF$6-$I56)^2)/0.2))) ->  | CJ56: =IF($G56="","",$J$2*EXP(1)^(-(((CG$6-$I56)^2)/0.2))) ->  | CK56: =IF($G56="","",$J$2*EXP(1)^(-(((CH$6-$I56)^2)/0.2))) ->  | CL56: =IF($G56="","",$J$2*EXP(1)^(-(((CI$6-$I56)^2)/0.2))) ->  | CM56: =IF($G56="","",$J$2*EXP(1)^(-(((CJ$6-$I56)^2)/0.2))) ->  | CN56: =IF($G56="","",$J$2*EXP(1)^(-(((CK$6-$I56)^2)/0.2))) ->  | CO56: =IF($G56="","",$J$2*EXP(1)^(-(((CL$6-$I56)^2)/0.2))) ->  | CP56: =IF($G56="","",$J$2*EXP(1)^(-(((CM$6-$I56)^2)/0.2))) ->  | CQ56: =IF($G56="","",$J$2*EXP(1)^(-(((CN$6-$I56)^2)/0.2))) ->  | CR56: =IF($G56="","",$J$2*EXP(1)^(-(((CO$6-$I56)^2)/0.2))) ->  | CS56: =IF($G56="","",$J$2*EXP(1)^(-(((CP$6-$I56)^2)/0.2))) ->  | CT56: =IF($G56="","",$J$2*EXP(1)^(-(((CQ$6-$I56)^2)/0.2))) ->  | CU56: =IF($G56="","",$J$2*EXP(1)^(-(((CR$6-$I56)^2)/0.2))) ->  | CV56: =IF($G56="","",$J$2*EXP(1)^(-(((CS$6-$I56)^2)/0.2))) ->  | CW56: =IF($G56="","",$J$2*EXP(1)^(-(((CT$6-$I56)^2)/0.2))) ->  | CX56: =IF($G56="","",$J$2*EXP(1)^(-(((CU$6-$I56)^2)/0.2))) ->  | CY56: =IF($G56="","",$J$2*EXP(1)^(-(((CV$6-$I56)^2)/0.2))) ->  | CZ56: =IF($G56="","",$J$2*EXP(1)^(-(((CW$6-$I56)^2)/0.2))) ->  | DA56: =IF($G56="","",$J$2*EXP(1)^(-(((CX$6-$I56)^2)/0.2))) ->  | DB56: =IF($G56="","",$J$2*EXP(1)^(-(((CY$6-$I56)^2)/0.2))) ->  | DC56: =IF($G56="","",$J$2*EXP(1)^(-(((CZ$6-$I56)^2)/0.2))) ->  | DD56: =IF($G56="","",$J$2*EXP(1)^(-(((DA$6-$I56)^2)/0.2))) ->  | DE56: =IF($G56="","",$J$2*EXP(1)^(-(((DB$6-$I56)^2)/0.2))) ->  | DF56: =IF($G56="","",$J$2*EXP(1)^(-(((DC$6-$I56)^2)/0.2))) ->  | DG56: =IF($G56="","",$J$2*EXP(1)^(-(((DD$6-$I56)^2)/0.2))) ->  | DH56: =IF($G56="","",$J$2*EXP(1)^(-(((DE$6-$I56)^2)/0.2))) ->  | DI56: =IF($G56="","",$J$2*EXP(1)^(-(((DF$6-$I56)^2)/0.2))) ->  | DJ56: =IF($G56="","",$J$2*EXP(1)^(-(((DG$6-$I56)^2)/0.2))) ->  | DK56: =IF($G56="","",$J$2*EXP(1)^(-(((DH$6-$I56)^2)/0.2))) ->  | DL56: =IF($G56="","",$J$2*EXP(1)^(-(((DI$6-$I56)^2)/0.2))) ->  | DM56: =IF($G56="","",$J$2*EXP(1)^(-(((DJ$6-$I56)^2)/0.2))) ->  | DN56: =IF($G56="","",$J$2*EXP(1)^(-(((DK$6-$I56)^2)/0.2))) ->  | DO56: =IF($G56="","",$J$2*EXP(1)^(-(((DL$6-$I56)^2)/0.2))) ->  | DP56: =IF($G56="","",$J$2*EXP(1)^(-(((DM$6-$I56)^2)/0.2))) ->  | DQ56: =IF($G56="","",$J$2*EXP(1)^(-(((DN$6-$I56)^2)/0.2))) ->  | DR56: =IF($G56="","",$J$2*EXP(1)^(-(((DO$6-$I56)^2)/0.2))) ->  | DS56: =IF($G56="","",$J$2*EXP(1)^(-(((DP$6-$I56)^2)/0.2))) ->  | DT56: =IF($G56="","",$J$2*EXP(1)^(-(((DQ$6-$I56)^2)/0.2))) ->  | DU56: =IF($G56="","",$J$2*EXP(1)^(-(((DR$6-$I56)^2)/0.2))) ->  | DV56: =IF($G56="","",$J$2*EXP(1)^(-(((DS$6-$I56)^2)/0.2))) ->  | DW56: =IF($G56="","",$J$2*EXP(1)^(-(((DT$6-$I56)^2)/0.2))) ->  | DX56: =IF($G56="","",$J$2*EXP(1)^(-(((DU$6-$I56)^2)/0.2))) ->  | DY56: =IF($G56="","",$J$2*EXP(1)^(-(((DV$6-$I56)^2)/0.2))) ->  | DZ56: =IF($G56="","",$J$2*EXP(1)^(-(((DW$6-$I56)^2)/0.2))) ->  | EA56: =IF($G56="","",$J$2*EXP(1)^(-(((DX$6-$I56)^2)/0.2))) ->  | EB56: =IF($G56="","",$J$2*EXP(1)^(-(((DY$6-$I56)^2)/0.2))) ->  | EC56: =IF($G56="","",$J$2*EXP(1)^(-(((DZ$6-$I56)^2)/0.2))) ->  | ED56: =IF($G56="","",$J$2*EXP(1)^(-(((EA$6-$I56)^2)/0.2))) ->  | EE56: =IF($G56="","",$J$2*EXP(1)^(-(((EB$6-$I56)^2)/0.2))) ->  | EF56: =IF($G56="","",$J$2*EXP(1)^(-(((EC$6-$I56)^2)/0.2))) ->  | EG56: =IF($G56="","",$J$2*EXP(1)^(-(((ED$6-$I56)^2)/0.2))) ->  | EH56: =IF($G56="","",$J$2*EXP(1)^(-(((EE$6-$I56)^2)/0.2))) ->  | EI56: =IF($G56="","",$J$2*EXP(1)^(-(((EF$6-$I56)^2)/0.2))) ->  | EJ56: =IF($G56="","",$J$2*EXP(1)^(-(((EG$6-$I56)^2)/0.2))) ->  | EK56: =IF($G56="","",$J$2*EXP(1)^(-(((EH$6-$I56)^2)/0.2))) ->  | EL56: =IF($G56="","",$J$2*EXP(1)^(-(((EI$6-$I56)^2)/0.2))) ->  | EM56: =IF($G56="","",$J$2*EXP(1)^(-(((EJ$6-$I56)^2)/0.2))) ->  | EN56: =IF($G56="","",$J$2*EXP(1)^(-(((EK$6-$I56)^2)/0.2))) ->  | EO56: =IF($G56="","",$J$2*EXP(1)^(-(((EL$6-$I56)^2)/0.2))) ->  | EP56: =IF($G56="","",$J$2*EXP(1)^(-(((EM$6-$I56)^2)/0.2))) ->  | EQ56: =IF($G56="","",$J$2*EXP(1)^(-(((EN$6-$I56)^2)/0.2))) ->  | ER56: =IF($G56="","",$J$2*EXP(1)^(-(((EO$6-$I56)^2)/0.2))) ->  | ES56: =IF($G56="","",$J$2*EXP(1)^(-(((EP$6-$I56)^2)/0.2))) ->  | ET56: =IF($G56="","",$J$2*EXP(1)^(-(((EQ$6-$I56)^2)/0.2))) ->  | EU56: =IF($G56="","",$J$2*EXP(1)^(-(((ER$6-$I56)^2)/0.2))) ->  | EV56: =IF($G56="","",$J$2*EXP(1)^(-(((ES$6-$I56)^2)/0.2))) ->  | EW56: =IF($G56="","",$J$2*EXP(1)^(-(((ET$6-$I56)^2)/0.2))) ->  | EX56: =IF($G56="","",$J$2*EXP(1)^(-(((EU$6-$I56)^2)/0.2))) ->  | EY56: =IF($G56="","",$J$2*EXP(1)^(-(((EV$6-$I56)^2)/0.2))) ->  | EZ56: =IF($G56="","",$J$2*EXP(1)^(-(((EW$6-$I56)^2)/0.2))) ->  | FA56: =IF($G56="","",$J$2*EXP(1)^(-(((EX$6-$I56)^2)/0.2))) ->  | FB56: =IF($G56="","",$J$2*EXP(1)^(-(((EY$6-$I56)^2)/0.2))) ->  | FC56: =IF($G56="","",$J$2*EXP(1)^(-(((EZ$6-$I56)^2)/0.2))) ->  | FD56: =IF($G56="","",$J$2*EXP(1)^(-(((FA$6-$I56)^2)/0.2))) ->  | FE56: =IF($G56="","",$J$2*EXP(1)^(-(((FB$6-$I56)^2)/0.2))) ->  | FF56: =IF($G56="","",$J$2*EXP(1)^(-(((FC$6-$I56)^2)/0.2))) ->  | FG56: =IF($G56="","",$J$2*EXP(1)^(-(((FD$6-$I56)^2)/0.2))) ->  | FH56: =IF($G56="","",$J$2*EXP(1)^(-(((FE$6-$I56)^2)/0.2))) ->  | FI56: =IF($G56="","",$J$2*EXP(1)^(-(((FF$6-$I56)^2)/0.2))) ->  | FJ56: =IF($G56="","",$J$2*EXP(1)^(-(((FG$6-$I56)^2)/0.2))) ->  | FK56: =IF($G56="","",$J$2*EXP(1)^(-(((FH$6-$I56)^2)/0.2))) ->  | FL56: =IF($G56="","",$J$2*EXP(1)^(-(((FI$6-$I56)^2)/0.2))) ->  | FM56: =IF($G56="","",$J$2*EXP(1)^(-(((FJ$6-$I56)^2)/0.2))) ->  | FN56: =IF($G56="","",$J$2*EXP(1)^(-(((FK$6-$I56)^2)/0.2))) ->  | FO56: =IF($G56="","",$J$2*EXP(1)^(-(((FL$6-$I56)^2)/0.2))) ->  | FP56: =IF($G56="","",$J$2*EXP(1)^(-(((FM$6-$I56)^2)/0.2))) ->  | FQ56: =IF($G56="","",$J$2*EXP(1)^(-(((FN$6-$I56)^2)/0.2))) ->  | FR56: =IF($G56="","",$J$2*EXP(1)^(-(((FO$6-$I56)^2)/0.2))) ->  | FS56: =IF($G56="","",$J$2*EXP(1)^(-(((FP$6-$I56)^2)/0.2))) ->  | FT56: =IF($G56="","",$J$2*EXP(1)^(-(((FQ$6-$I56)^2)/0.2))) ->  | FU56: =IF($G56="","",$J$2*EXP(1)^(-(((FR$6-$I56)^2)/0.2))) ->  | FV56: =IF($G56="","",$J$2*EXP(1)^(-(((FS$6-$I56)^2)/0.2))) ->  | FW56: =IF($G56="","",$J$2*EXP(1)^(-(((FT$6-$I56)^2)/0.2))) ->  | FX56: =IF($G56="","",$J$2*EXP(1)^(-(((FU$6-$I56)^2)/0.2))) ->  | FY56: =IF($G56="","",$J$2*EXP(1)^(-(((FV$6-$I56)^2)/0.2))) ->  | FZ56: =IF($G56="","",$J$2*EXP(1)^(-(((FW$6-$I56)^2)/0.2))) ->  | GA56: =IF($G56="","",$J$2*EXP(1)^(-(((FX$6-$I56)^2)/0.2))) ->  | GB56: =IF($G56="","",$J$2*EXP(1)^(-(((FY$6-$I56)^2)/0.2))) ->  | GC56: =IF($G56="","",$J$2*EXP(1)^(-(((FZ$6-$I56)^2)/0.2))) ->  | GD56: =IF($G56="","",$J$2*EXP(1)^(-(((GA$6-$I56)^2)/0.2))) ->  | GE56: =IF($G56="","",$J$2*EXP(1)^(-(((GB$6-$I56)^2)/0.2))) ->  | GF56: =IF($G56="","",$J$2*EXP(1)^(-(((GC$6-$I56)^2)/0.2))) ->  | GG56: =IF($G56="","",$J$2*EXP(1)^(-(((GD$6-$I56)^2)/0.2))) ->  | GH56: =IF($G56="","",$J$2*EXP(1)^(-(((GE$6-$I56)^2)/0.2))) ->  | GI56: =IF($G56="","",$J$2*EXP(1)^(-(((GF$6-$I56)^2)/0.2))) ->  | GJ56: =IF($G56="","",$J$2*EXP(1)^(-(((GG$6-$I56)^2)/0.2))) ->  | GK56: =IF($G56="","",$J$2*EXP(1)^(-(((GH$6-$I56)^2)/0.2))) ->  | GL56: =IF($G56="","",$J$2*EXP(1)^(-(((GI$6-$I56)^2)/0.2))) ->  | GM56: =IF($G56="","",$J$2*EXP(1)^(-(((GJ$6-$I56)^2)/0.2))) ->  | GN56: =IF($G56="","",$J$2*EXP(1)^(-(((GK$6-$I56)^2)/0.2))) ->  | GO56: =IF($G56="","",$J$2*EXP(1)^(-(((GL$6-$I56)^2)/0.2))) ->  | GP56: =IF($G56="","",$J$2*EXP(1)^(-(((GM$6-$I56)^2)/0.2))) ->  | GQ56: =IF($G56="","",$J$2*EXP(1)^(-(((GN$6-$I56)^2)/0.2))) ->  | GR56: =IF($G56="","",$J$2*EXP(1)^(-(((GO$6-$I56)^2)/0.2))) ->  | GS56: =IF($G56="","",$J$2*EXP(1)^(-(((GP$6-$I56)^2)/0.2))) ->  | GT56: =IF($G56="","",$J$2*EXP(1)^(-(((GQ$6-$I56)^2)/0.2))) ->  | GU56: =IF($G56="","",$J$2*EXP(1)^(-(((GR$6-$I56)^2)/0.2))) ->  | GV56: =IF($G56="","",$J$2*EXP(1)^(-(((GS$6-$I56)^2)/0.2))) ->  | GW56: =IF($G56="","",$J$2*EXP(1)^(-(((GT$6-$I56)^2)/0.2))) ->  | GX56: =IF($G56="","",$J$2*EXP(1)^(-(((GU$6-$I56)^2)/0.2))) ->  | GY56: =IF($G56="","",$J$2*EXP(1)^(-(((GV$6-$I56)^2)/0.2))) ->  | GZ56: =IF($G56="","",$J$2*EXP(1)^(-(((GW$6-$I56)^2)/0.2))) ->  | HA56: =IF($G56="","",$J$2*EXP(1)^(-(((GX$6-$I56)^2)/0.2))) ->  | HB56: =IF($G56="","",$J$2*EXP(1)^(-(((GY$6-$I56)^2)/0.2))) ->  | HC56: =IF($G56="","",$J$2*EXP(1)^(-(((GZ$6-$I56)^2)/0.2))) ->  | HD56: =IF($G56="","",$J$2*EXP(1)^(-(((HA$6-$I56)^2)/0.2))) ->  | HE56: =IF($G56="","",$J$2*EXP(1)^(-(((HB$6-$I56)^2)/0.2))) ->  | HF56: =IF($G56="","",$J$2*EXP(1)^(-(((HC$6-$I56)^2)/0.2))) ->  | HG56: =IF($G56="","",$J$2*EXP(1)^(-(((HD$6-$I56)^2)/0.2))) ->  | HH56: =IF($G56="","",$J$2*EXP(1)^(-(((HE$6-$I56)^2)/0.2))) ->  | HI56: =IF($G56="","",$J$2*EXP(1)^(-(((HF$6-$I56)^2)/0.2))) ->  | HJ56: =IF($G56="","",$J$2*EXP(1)^(-(((HG$6-$I56)^2)/0.2))) ->  | HK56: =IF($G56="","",$J$2*EXP(1)^(-(((HH$6-$I56)^2)/0.2))) ->  | HL56: =IF($G56="","",$J$2*EXP(1)^(-(((HI$6-$I56)^2)/0.2))) ->  | HM56: =IF($G56="","",$J$2*EXP(1)^(-(((HJ$6-$I56)^2)/0.2))) ->  | HN56: =IF($G56="","",$J$2*EXP(1)^(-(((HK$6-$I56)^2)/0.2))) ->  | HO56: =IF($G56="","",$J$2*EXP(1)^(-(((HL$6-$I56)^2)/0.2))) ->  | HP56: =IF($G56="","",$J$2*EXP(1)^(-(((HM$6-$I56)^2)/0.2))) ->  | HQ56: =IF($G56="","",$J$2*EXP(1)^(-(((HN$6-$I56)^2)/0.2))) ->  | HR56: =IF($G56="","",$J$2*EXP(1)^(-(((HO$6-$I56)^2)/0.2))) ->  | HS56: =IF($G56="","",$J$2*EXP(1)^(-(((HP$6-$I56)^2)/0.2))) ->  | HT56: =IF($G56="","",$J$2*EXP(1)^(-(((HQ$6-$I56)^2)/0.2))) ->  | HU56: =IF($G56="","",$J$2*EXP(1)^(-(((HR$6-$I56)^2)/0.2))) ->  | HV56: =IF($G56="","",$J$2*EXP(1)^(-(((HS$6-$I56)^2)/0.2))) ->  | HW56: =IF($G56="","",$J$2*EXP(1)^(-(((HT$6-$I56)^2)/0.2))) ->  | HX56: =IF($G56="","",$J$2*EXP(1)^(-(((HU$6-$I56)^2)/0.2))) ->  | HY56: =IF($G56="","",$J$2*EXP(1)^(-(((HV$6-$I56)^2)/0.2))) ->  | HZ56: =IF($G56="","",$J$2*EXP(1)^(-(((HW$6-$I56)^2)/0.2))) ->  | IA56: =IF($G56="","",$J$2*EXP(1)^(-(((HX$6-$I56)^2)/0.2))) ->  | IB56: =IF($G56="","",$J$2*EXP(1)^(-(((HY$6-$I56)^2)/0.2))) ->  | IC56: =IF($G56="","",$J$2*EXP(1)^(-(((HZ$6-$I56)^2)/0.2))) ->  | ID56: =IF($G56="","",$J$2*EXP(1)^(-(((IA$6-$I56)^2)/0.2))) ->  | IE56: =IF($G56="","",$J$2*EXP(1)^(-(((IB$6-$I56)^2)/0.2))) ->  | IF56: =IF($G56="","",$J$2*EXP(1)^(-(((IC$6-$I56)^2)/0.2))) ->  | IG56: =IF($G56="","",$J$2*EXP(1)^(-(((ID$6-$I56)^2)/0.2))) ->  | IH56: =IF($G56="","",$J$2*EXP(1)^(-(((IE$6-$I56)^2)/0.2))) ->  | II56: =IF($G56="","",$J$2*EXP(1)^(-(((IF$6-$I56)^2)/0.2))) ->  | IJ56: =IF($G56="","",$J$2*EXP(1)^(-(((IG$6-$I56)^2)/0.2))) ->  | IK56: =IF($G56="","",$J$2*EXP(1)^(-(((IH$6-$I56)^2)/0.2))) ->  | IL56: =IF($G56="","",$J$2*EXP(1)^(-(((II$6-$I56)^2)/0.2))) ->  | IM56: =IF($G56="","",$J$2*EXP(1)^(-(((IJ$6-$I56)^2)/0.2))) ->  | IN56: =IF($G56="","",$J$2*EXP(1)^(-(((IK$6-$I56)^2)/0.2))) ->  | IO56: =IF($G56="","",$J$2*EXP(1)^(-(((IL$6-$I56)^2)/0.2))) ->  | IP56: =IF($G56="","",$J$2*EXP(1)^(-(((IM$6-$I56)^2)/0.2))) ->  | IQ56: =IF($G56="","",$J$2*EXP(1)^(-(((IN$6-$I56)^2)/0.2))) ->  | IR56: =IF($G56="","",$J$2*EXP(1)^(-(((IO$6-$I56)^2)/0.2))) ->  | IS56: =IF($G56="","",$J$2*EXP(1)^(-(((IP$6-$I56)^2)/0.2))) ->  | IT56: =IF($G56="","",$J$2*EXP(1)^(-(((IQ$6-$I56)^2)/0.2))) ->  | IU56: =IF($G56="","",$J$2*EXP(1)^(-(((IR$6-$I56)^2)/0.2))) ->  | IV56: =IF($G56="","",$J$2*EXP(1)^(-(((IS$6-$I56)^2)/0.2))) ->  | IW56: =IF($G56="","",$J$2*EXP(1)^(-(((IT$6-$I56)^2)/0.2))) ->  | IX56: =IF($G56="","",$J$2*EXP(1)^(-(((IU$6-$I56)^2)/0.2))) ->  | IY56: =IF($G56="","",$J$2*EXP(1)^(-(((IV$6-$I56)^2)/0.2))) ->  | IZ56: =IF($G56="","",$J$2*EXP(1)^(-(((IW$6-$I56)^2)/0.2))) ->  | JA56: =IF($G56="","",$J$2*EXP(1)^(-(((IX$6-$I56)^2)/0.2))) ->  | JB56: =IF($G56="","",$J$2*EXP(1)^(-(((IY$6-$I56)^2)/0.2))) ->  | JC56: =IF($G56="","",$J$2*EXP(1)^(-(((IZ$6-$I56)^2)/0.2))) ->  | JD56: =IF($G56="","",$J$2*EXP(1)^(-(((JA$6-$I56)^2)/0.2))) ->  | JE56: =IF($G56="","",$J$2*EXP(1)^(-(((JB$6-$I56)^2)/0.2))) ->  | JF56: =IF($G56="","",$J$2*EXP(1)^(-(((JC$6-$I56)^2)/0.2))) ->  | JG56: =IF($G56="","",$J$2*EXP(1)^(-(((JD$6-$I56)^2)/0.2))) ->  | JH56: =IF($G56="","",$J$2*EXP(1)^(-(((JE$6-$I56)^2)/0.2))) ->  | JI56: =IF($G56="","",$J$2*EXP(1)^(-(((JF$6-$I56)^2)/0.2))) ->  | JJ56: =IF($G56="","",$J$2*EXP(1)^(-(((JG$6-$I56)^2)/0.2))) ->  | JK56: =IF($G56="","",$J$2*EXP(1)^(-(((JH$6-$I56)^2)/0.2))) ->  | JL56: =IF($G56="","",$J$2*EXP(1)^(-(((JI$6-$I56)^2)/0.2))) ->  | JM56: =IF($G56="","",$J$2*EXP(1)^(-(((JJ$6-$I56)^2)/0.2))) ->  | JN56: =IF($G56="","",$J$2*EXP(1)^(-(((JK$6-$I56)^2)/0.2))) ->  | JO56: =IF($G56="","",$J$2*EXP(1)^(-(((JL$6-$I56)^2)/0.2))) ->  | JP56: =IF($G56="","",$J$2*EXP(1)^(-(((JM$6-$I56)^2)/0.2))) ->  | JQ56: =IF($G56="","",$J$2*EXP(1)^(-(((JN$6-$I56)^2)/0.2))) ->  | JR56: =IF($G56="","",$J$2*EXP(1)^(-(((JO$6-$I56)^2)/0.2))) ->  | JS56: =IF($G56="","",$J$2*EXP(1)^(-(((JP$6-$I56)^2)/0.2))) ->  | JT56: =IF($G56="","",$J$2*EXP(1)^(-(((JQ$6-$I56)^2)/0.2))) ->  | JU56: =IF($G56="","",$J$2*EXP(1)^(-(((JR$6-$I56)^2)/0.2))) ->  | JV56: =IF($G56="","",$J$2*EXP(1)^(-(((JS$6-$I56)^2)/0.2))) ->  | JW56: =IF($G56="","",$J$2*EXP(1)^(-(((JT$6-$I56)^2)/0.2))) ->  | JX56: =IF($G56="","",$J$2*EXP(1)^(-(((JU$6-$I56)^2)/0.2))) ->  | JY56: =IF($G56="","",$J$2*EXP(1)^(-(((JV$6-$I56)^2)/0.2))) ->  | JZ56: =IF($G56="","",$J$2*EXP(1)^(-(((JW$6-$I56)^2)/0.2))) ->  | KA56: =IF($G56="","",$J$2*EXP(1)^(-(((JX$6-$I56)^2)/0.2))) ->  | KB56: =IF($G56="","",$J$2*EXP(1)^(-(((JY$6-$I56)^2)/0.2))) ->  | KC56: =IF($G56="","",$J$2*EXP(1)^(-(((JZ$6-$I56)^2)/0.2))) ->  | KD56: =IF($G56="","",$J$2*EXP(1)^(-(((KA$6-$I56)^2)/0.2))) ->  | KE56: =IF($G56="","",$J$2*EXP(1)^(-(((KB$6-$I56)^2)/0.2))) ->  | KF56: =IF($G56="","",$J$2*EXP(1)^(-(((KC$6-$I56)^2)/0.2))) ->  | KG56: =IF($G56="","",$J$2*EXP(1)^(-(((KD$6-$I56)^2)/0.2))) ->  | KH56: =IF($G56="","",$J$2*EXP(1)^(-(((KE$6-$I56)^2)/0.2))) ->  | KI56: =IF($G56="","",$J$2*EXP(1)^(-(((KF$6-$I56)^2)/0.2))) ->  | KJ56: =IF($G56="","",$J$2*EXP(1)^(-(((KG$6-$I56)^2)/0.2))) ->  | KK56: =IF($G56="","",$J$2*EXP(1)^(-(((KH$6-$I56)^2)/0.2))) ->  | KL56: =IF($G56="","",$J$2*EXP(1)^(-(((KI$6-$I56)^2)/0.2))) ->  | KM56: =IF($G56="","",$J$2*EXP(1)^(-(((KJ$6-$I56)^2)/0.2))) ->  | KN56: =IF($G56="","",$J$2*EXP(1)^(-(((KK$6-$I56)^2)/0.2))) ->  | KO56: =IF($G56="","",$J$2*EXP(1)^(-(((KL$6-$I56)^2)/0.2))) ->  | KP56: =IF($G56="","",$J$2*EXP(1)^(-(((KM$6-$I56)^2)/0.2))) ->  | KQ56: =IF($G56="","",$J$2*EXP(1)^(-(((KN$6-$I56)^2)/0.2))) ->  | KR56: =IF($G56="","",$J$2*EXP(1)^(-(((KO$6-$I56)^2)/0.2))) ->  | KS56: =IF($G56="","",$J$2*EXP(1)^(-(((KP$6-$I56)^2)/0.2))) ->  | KT56: =IF($G56="","",$J$2*EXP(1)^(-(((KQ$6-$I56)^2)/0.2))) ->  | KU56: =IF($G56="","",$J$2*EXP(1)^(-(((KR$6-$I56)^2)/0.2))) ->  | KV56: =IF($G56="","",$J$2*EXP(1)^(-(((KS$6-$I56)^2)/0.2))) ->  | KW56: =IF($G56="","",$J$2*EXP(1)^(-(((KT$6-$I56)^2)/0.2))) ->  | KX56: =IF($G56="","",$J$2*EXP(1)^(-(((KU$6-$I56)^2)/0.2))) ->  | KY56: =IF($G56="","",$J$2*EXP(1)^(-(((KV$6-$I56)^2)/0.2))) ->  | KZ56: =IF($G56="","",$J$2*EXP(1)^(-(((KW$6-$I56)^2)/0.2))) ->  | LA56: =IF($G56="","",$J$2*EXP(1)^(-(((KX$6-$I56)^2)/0.2))) ->  | LB56: =IF($G56="","",$J$2*EXP(1)^(-(((KY$6-$I56)^2)/0.2))) ->  | LC56: =IF($G56="","",$J$2*EXP(1)^(-(((KZ$6-$I56)^2)/0.2))) ->  | LD56: =IF($G56="","",$J$2*EXP(1)^(-(((LA$6-$I56)^2)/0.2))) ->  | LE56: =IF($G56="","",$J$2*EXP(1)^(-(((LB$6-$I56)^2)/0.2))) ->  | LF56: =IF($G56="","",$J$2*EXP(1)^(-(((LC$6-$I56)^2)/0.2))) ->  | LG56: =IF($G56="","",$J$2*EXP(1)^(-(((LD$6-$I56)^2)/0.2))) ->  | LH56: =IF($G56="","",$J$2*EXP(1)^(-(((LE$6-$I56)^2)/0.2))) ->  | LI56: =IF($G56="","",$J$2*EXP(1)^(-(((LF$6-$I56)^2)/0.2))) ->  | LJ56: =IF($G56="","",$J$2*EXP(1)^(-(((LG$6-$I56)^2)/0.2))) ->  | LK56: =IF($G56="","",$J$2*EXP(1)^(-(((LH$6-$I56)^2)/0.2))) ->  | LL56: =IF($G56="","",$J$2*EXP(1)^(-(((LI$6-$I56)^2)/0.2))) ->  | LM56: =IF($G56="","",$J$2*EXP(1)^(-(((LJ$6-$I56)^2)/0.2))) ->  | LN56: =IF($G56="","",$J$2*EXP(1)^(-(((LK$6-$I56)^2)/0.2))) ->  | LO56: =IF($G56="","",$J$2*EXP(1)^(-(((LL$6-$I56)^2)/0.2))) ->  | LP56: =IF($G56="","",$J$2*EXP(1)^(-(((LM$6-$I56)^2)/0.2))) ->  | LQ56: =IF($G56="","",$J$2*EXP(1)^(-(((LN$6-$I56)^2)/0.2))) ->  | LR56: =IF($G56="","",$J$2*EXP(1)^(-(((LO$6-$I56)^2)/0.2))) ->  | LS56: =IF($G56="","",$J$2*EXP(1)^(-(((LP$6-$I56)^2)/0.2))) ->  | LT56: =IF($G56="","",$J$2*EXP(1)^(-(((LQ$6-$I56)^2)/0.2))) ->  | LU56: =IF($G56="","",$J$2*EXP(1)^(-(((LR$6-$I56)^2)/0.2))) ->  | LV56: =IF($G56="","",$J$2*EXP(1)^(-(((LS$6-$I56)^2)/0.2))) ->  | LW56: =IF($G56="","",$J$2*EXP(1)^(-(((LT$6-$I56)^2)/0.2))) ->  | LX56: =IF($G56="","",$J$2*EXP(1)^(-(((LU$6-$I56)^2)/0.2))) ->  | LY56: =IF($G56="","",$J$2*EXP(1)^(-(((LV$6-$I56)^2)/0.2))) ->  | LZ56: =IF($G56="","",$J$2*EXP(1)^(-(((LW$6-$I56)^2)/0.2))) ->  | MA56: =IF($G56="","",$J$2*EXP(1)^(-(((LX$6-$I56)^2)/0.2))) ->  | MB56: =IF($G56="","",$J$2*EXP(1)^(-(((LY$6-$I56)^2)/0.2))) ->  | MC56: =IF($G56="","",$J$2*EXP(1)^(-(((LZ$6-$I56)^2)/0.2))) ->  | MD56: =IF($G56="","",$J$2*EXP(1)^(-(((MA$6-$I56)^2)/0.2))) ->  | ME56: =IF($G56="","",$J$2*EXP(1)^(-(((MB$6-$I56)^2)/0.2))) ->  | MF56: =IF($G56="","",$J$2*EXP(1)^(-(((MC$6-$I56)^2)/0.2))) ->  | MG56: =IF($G56="","",$J$2*EXP(1)^(-(((MD$6-$I56)^2)/0.2))) ->  | MH56: =IF($G56="","",$J$2*EXP(1)^(-(((ME$6-$I56)^2)/0.2))) ->  | MI56: =IF($G56="","",$J$2*EXP(1)^(-(((MF$6-$I56)^2)/0.2))) ->  | MJ56: =IF($G56="","",$J$2*EXP(1)^(-(((MG$6-$I56)^2)/0.2))) ->  | MK56: =IF($G56="","",$J$2*EXP(1)^(-(((MH$6-$I56)^2)/0.2))) ->  | ML56: =IF($G56="","",$J$2*EXP(1)^(-(((MI$6-$I56)^2)/0.2))) ->  | MM56: =IF($G56="","",$J$2*EXP(1)^(-(((MJ$6-$I56)^2)/0.2))) ->  | MN56: =IF($G56="","",$J$2*EXP(1)^(-(((MK$6-$I56)^2)/0.2))) ->  | MO56: =IF($G56="","",$J$2*EXP(1)^(-(((ML$6-$I56)^2)/0.2))) ->  | MP56: =IF($G56="","",$J$2*EXP(1)^(-(((MM$6-$I56)^2)/0.2))) ->  | MQ56: =IF($G56="","",$J$2*EXP(1)^(-(((MN$6-$I56)^2)/0.2))) ->  | MR56: =IF($G56="","",$J$2*EXP(1)^(-(((MO$6-$I56)^2)/0.2))) ->  | MS56: =IF($G56="","",$J$2*EXP(1)^(-(((MP$6-$I56)^2)/0.2))) ->  | MT56: =IF($G56="","",$J$2*EXP(1)^(-(((MQ$6-$I56)^2)/0.2))) ->  | MU56: =IF($G56="","",$J$2*EXP(1)^(-(((MR$6-$I56)^2)/0.2))) ->  | MV56: =IF($G56="","",$J$2*EXP(1)^(-(((MS$6-$I56)^2)/0.2))) ->  | MW56: =IF($G56="","",$J$2*EXP(1)^(-(((MT$6-$I56)^2)/0.2))) ->  | MX56: =IF($G56="","",$J$2*EXP(1)^(-(((MU$6-$I56)^2)/0.2))) ->  | MY56: =IF($G56="","",$J$2*EXP(1)^(-(((MV$6-$I56)^2)/0.2))) ->  | MZ56: =IF($G56="","",$J$2*EXP(1)^(-(((MW$6-$I56)^2)/0.2))) ->  | NA56: =IF($G56="","",$J$2*EXP(1)^(-(((MX$6-$I56)^2)/0.2))) ->  | NB56: =IF($G56="","",$J$2*EXP(1)^(-(((MY$6-$I56)^2)/0.2))) ->  | NC56: =IF($G56="","",$J$2*EXP(1)^(-(((MZ$6-$I56)^2)/0.2))) ->  | ND56: =IF($G56="","",$J$2*EXP(1)^(-(((NA$6-$I56)^2)/0.2))) ->  | NE56: =IF($G56="","",$J$2*EXP(1)^(-(((NB$6-$I56)^2)/0.2))) ->  | NF56: =IF($G56="","",$J$2*EXP(1)^(-(((NC$6-$I56)^2)/0.2))) ->  | NG56: =IF($G56="","",$J$2*EXP(1)^(-(((ND$6-$I56)^2)/0.2))) ->  | NH56: =IF($G56="","",$J$2*EXP(1)^(-(((NE$6-$I56)^2)/0.2))) ->  | NI56: =IF($G56="","",$J$2*EXP(1)^(-(((NF$6-$I56)^2)/0.2))) ->  | NJ56: =IF($G56="","",$J$2*EXP(1)^(-(((NG$6-$I56)^2)/0.2))) ->  | NK56: =IF($G56="","",$J$2*EXP(1)^(-(((NH$6-$I56)^2)/0.2))) ->  | NL56: =IF($G56="","",$J$2*EXP(1)^(-(((NI$6-$I56)^2)/0.2))) ->  | NM56: =IF($G56="","",$J$2*EXP(1)^(-(((NJ$6-$I56)^2)/0.2))) ->  | NN56: =IF($G56="","",$J$2*EXP(1)^(-(((NK$6-$I56)^2)/0.2))) ->  | NO56: =IF($G56="","",$J$2*EXP(1)^(-(((NL$6-$I56)^2)/0.2))) ->  | NP56: =IF($G56="","",$J$2*EXP(1)^(-(((NM$6-$I56)^2)/0.2))) ->  | NQ56: =IF($G56="","",$J$2*EXP(1)^(-(((NN$6-$I56)^2)/0.2))) ->  | NR56: =IF($G56="","",$J$2*EXP(1)^(-(((NO$6-$I56)^2)/0.2))) ->  | NS56: =IF($G56="","",$J$2*EXP(1)^(-(((NP$6-$I56)^2)/0.2))) ->  | NT56: =IF($G56="","",$J$2*EXP(1)^(-(((NQ$6-$I56)^2)/0.2))) ->  | NU56: =IF($G56="","",$J$2*EXP(1)^(-(((NR$6-$I56)^2)/0.2))) ->  | NV56: =IF($G56="","",$J$2*EXP(1)^(-(((NS$6-$I56)^2)/0.2))) ->  | NW56: =IF($G56="","",$J$2*EXP(1)^(-(((NT$6-$I56)^2)/0.2))) ->  | NX56: =IF($G56="","",$J$2*EXP(1)^(-(((NU$6-$I56)^2)/0.2))) ->  | NY56: =IF($G56="","",$J$2*EXP(1)^(-(((NV$6-$I56)^2)/0.2))) ->  | NZ56: =IF($G56="","",$J$2*EXP(1)^(-(((NW$6-$I56)^2)/0.2))) ->  | OA56: =IF($G56="","",$J$2*EXP(1)^(-(((NX$6-$I56)^2)/0.2))) ->  | OB56: =IF($G56="","",$J$2*EXP(1)^(-(((NY$6-$I56)^2)/0.2))) ->  | OC56: =IF($G56="","",$J$2*EXP(1)^(-(((NZ$6-$I56)^2)/0.2))) ->  | OD56: =IF($G56="","",$J$2*EXP(1)^(-(((OA$6-$I56)^2)/0.2))) ->  | OE56: =IF($G56="","",$J$2*EXP(1)^(-(((OB$6-$I56)^2)/0.2))) -> 
A57: FILA | B57: Nombre | C57: lm/Led | D57: Nº Led | E57: Lumens | F57: =I$7 -> 390 | G57: =J$7 -> 391 | H57: 392 | I57: 393 | J57: 394 | K57: 395 | L57: 396 | M57: 397 | N57: 398 | O57: 399 | P57: 400 | Q57: 401 | R57: 402 | S57: 403 | T57: 404 | U57: 405 | V57: 406 | W57: 407 | X57: 408 | Y57: 409 | Z57: 410 | AA57: 411 | AB57: 412 | AC57: 413 | AD57: 414 | AE57: 415 | AF57: 416 | AG57: 417 | AH57: 418 | AI57: 419 | AJ57: 420 | AK57: 421 | AL57: 422 | AM57: 423 | AN57: 424 | AO57: 425 | AP57: 426 | AQ57: 427 | AR57: 428 | AS57: 429 | AT57: 430 | AU57: 431 | AV57: 432 | AW57: 433 | AX57: 434 | AY57: 435 | AZ57: 436 | BA57: 437 | BB57: 438 | BC57: 439 | BD57: 440 | BE57: 441 | BF57: 442 | BG57: 443 | BH57: 444 | BI57: 445 | BJ57: 446 | BK57: 447 | BL57: 448 | BM57: 449 | BN57: 450 | BO57: 451 | BP57: 452 | BQ57: 453 | BR57: 454 | BS57: =BV$7 -> 455 | BT57: 456 | BU57: 457 | BV57: 458 | BW57: 459 | BX57: 460 | BY57: 461 | BZ57: 462 | CA57: 463 | CB57: 464 | CC57: 465 | CD57: 466 | CE57: 467 | CF57: 468 | CG57: 469 | CH57: 470 | CI57: 471 | CJ57: 472 | CK57: 473 | CL57: 474 | CM57: 475 | CN57: 476 | CO57: 477 | CP57: 478 | CQ57: 479 | CR57: 480 | CS57: 481 | CT57: 482 | CU57: 483 | CV57: 484 | CW57: 485 | CX57: 486 | CY57: 487 | CZ57: 488 | DA57: 489 | DB57: 490 | DC57: 491 | DD57: 492 | DE57: 493 | DF57: 494 | DG57: 495 | DH57: 496 | DI57: 497 | DJ57: 498 | DK57: 499 | DL57: 500 | DM57: 501 | DN57: 502 | DO57: 503 | DP57: 504 | DQ57: 505 | DR57: 506 | DS57: 507 | DT57: 508 | DU57: 509 | DV57: 510 | DW57: 511 | DX57: 512 | DY57: 513 | DZ57: 514 | EA57: 515 | EB57: 516 | EC57: 517 | ED57: 518 | EE57: =EH$7 -> 519 | EF57: 520 | EG57: 521 | EH57: 522 | EI57: 523 | EJ57: 524 | EK57: 525 | EL57: 526 | EM57: 527 | EN57: 528 | EO57: 529 | EP57: 530 | EQ57: 531 | ER57: 532 | ES57: 533 | ET57: 534 | EU57: 535 | EV57: 536 | EW57: 537 | EX57: 538 | EY57: 539 | EZ57: 540 | FA57: 541 | FB57: 542 | FC57: 543 | FD57: 544 | FE57: 545 | FF57: 546 | FG57: 547 | FH57: 548 | FI57: 549 | FJ57: 550 | FK57: 551 | FL57: 552 | FM57: 553 | FN57: 554 | FO57: 555 | FP57: 556 | FQ57: 557 | FR57: 558 | FS57: 559 | FT57: 560 | FU57: 561 | FV57: 562 | FW57: 563 | FX57: 564 | FY57: 565 | FZ57: 566 | GA57: 567 | GB57: 568 | GC57: 569 | GD57: 570 | GE57: 571 | GF57: 572 | GG57: 573 | GH57: 574 | GI57: 575 | GJ57: 576 | GK57: 577 | GL57: 578 | GM57: 579 | GN57: 580 | GO57: 581 | GP57: 582 | GQ57: =GT$7 -> 583 | GR57: 584 | GS57: 585 | GT57: 586 | GU57: 587 | GV57: 588 | GW57: 589 | GX57: 590 | GY57: 591 | GZ57: 592 | HA57: 593 | HB57: 594 | HC57: 595 | HD57: 596 | HE57: 597 | HF57: 598 | HG57: 599 | HH57: 600 | HI57: 601 | HJ57: 602 | HK57: 603 | HL57: 604 | HM57: 605 | HN57: 606 | HO57: 607 | HP57: 608 | HQ57: 609 | HR57: 610 | HS57: 611 | HT57: 612 | HU57: 613 | HV57: 614 | HW57: 615 | HX57: 616 | HY57: 617 | HZ57: 618 | IA57: 619 | IB57: 620 | IC57: 621 | ID57: 622 | IE57: 623 | IF57: 624 | IG57: 625 | IH57: 626 | II57: 627 | IJ57: 628 | IK57: 629 | IL57: 630 | IM57: 631 | IN57: 632 | IO57: 633 | IP57: 634 | IQ57: 635 | IR57: 636 | IS57: 637 | IT57: 638 | IU57: 639 | IV57: 640 | IW57: 641 | IX57: 642 | IY57: 643 | IZ57: 644 | JA57: 645 | JB57: 646 | JC57: =JF$7 -> 647 | JD57: 648 | JE57: 649 | JF57: 650 | JG57: 651 | JH57: 652 | JI57: 653 | JJ57: 654 | JK57: 655 | JL57: 656 | JM57: 657 | JN57: 658 | JO57: 659 | JP57: 660 | JQ57: 661 | JR57: 662 | JS57: 663 | JT57: 664 | JU57: 665 | JV57: 666 | JW57: 667 | JX57: 668 | JY57: 669 | JZ57: 670 | KA57: 671 | KB57: 672 | KC57: 673 | KD57: 674 | KE57: 675 | KF57: 676 | KG57: 677 | KH57: 678 | KI57: 679 | KJ57: 680 | KK57: 681 | KL57: 682 | KM57: 683 | KN57: 684 | KO57: 685 | KP57: 686 | KQ57: 687 | KR57: 688 | KS57: 689 | KT57: 690 | KU57: 691 | KV57: 692 | KW57: 693 | KX57: 694 | KY57: 695 | KZ57: 696 | LA57: 697 | LB57: 698 | LC57: 699 | LD57: 700 | LE57: 701 | LF57: 702 | LG57: 703 | LH57: 704 | LI57: 705 | LJ57: 706 | LK57: 707 | LL57: 708 | LM57: 709 | LN57: 710 | LO57: =LR$7 -> 711 | LP57: 712 | LQ57: 713 | LR57: 714 | LS57: 715 | LT57: 716 | LU57: 717 | LV57: 718 | LW57: 719 | LX57: 720 | LY57: 721 | LZ57: 722 | MA57: 723 | MB57: 724 | MC57: 725 | MD57: 726 | ME57: 727 | MF57: 728 | MG57: 729 | MH57: 730 | MI57: 731 | MJ57: 732 | MK57: 733 | ML57: 734 | MM57: 735 | MN57: 736 | MO57: 737 | MP57: 738 | MQ57: 739 | MR57: 740 | MS57: 741 | MT57: 742 | MU57: 743 | MV57: 744 | MW57: 745 | MX57: 746 | MY57: 747 | MZ57: 748 | NA57: 749 | NB57: 750 | NC57: 751 | ND57: 752 | NE57: 753 | NF57: 754 | NG57: 755 | NH57: 756 | NI57: 757 | NJ57: 758 | NK57: 759 | NL57: 760 | NM57: 761 | NN57: 762 | NO57: 763 | NP57: 764 | NQ57: 765 | NR57: 766 | NS57: 767 | NT57: 768 | NU57: 769 | NV57: 770 | NW57: 771 | NX57: 772 | NY57: 773 | NZ57: 774 | OA57: =OD$7 -> 775 | OB57: 776 | OC57: =OF$7 -> 777 | OD57: =OG$7 -> 778 | OE57: =OH$7 -> 779 | OF57: =OI$7 -> 780
E58: =SUM(E60:E80) -> 5011.127118 | F58: =IF($E58=0,0,SUM(F60:F80)) -> 2.93160026 | G58: 3.316663516 | H58: 3.760926215 | I58: 4.276052865 | J58: 4.876742597 | K58: 5.581593225 | L58: 6.414178585 | M58: 7.404374691 | N58: 8.589970465 | O58: 10.01859703 | P58: 11.7500049 | Q58: 13.85871031 | R58: 16.43701973 | S58: 19.59842416 | T58: 23.48133275 | U58: 28.25308664 | V58: 34.1141605 | W58: 41.30242014 | X58: 50.09726169 | Y58: 60.82341224 | Z58: 73.85412596 | AA58: 89.61346702 | AB58: 108.5773336 | AC58: 131.2728511 | AD58: 158.2757522 | AE58: 190.205368 | AF58: 227.7168879 | AG58: 271.4906044 | AH58: 322.2179487 | AI58: 380.5842403 | AJ58: 447.2482267 | AK58: 522.8186594 | AL58: 607.8283519 | AM58: 702.7063671 | AN58: 807.7491916 | AO58: 923.0919439 | AP58: 1048.680831 | AQ58: 1184.248193 | AR58: 1329.291534 | AS58: 1483.057954 | AT58: 1644.535279 | AU58: 1812.451078 | AV58: 1985.280439 | AW58: 2161.263108 | AX58: 2338.430173 | AY58: 2514.640025 | AZ58: 2687.622891 | BA58: 2855.032729 | BB58: 3014.504874 | BC58: 3163.717413 | BD58: 3300.454002 | BE58: 3422.665625 | BF58: 3528.528781 | BG58: 3616.497618 | BH58: 3685.347784 | BI58: 3734.210098 | BJ58: 3762.592592 | BK58: 3770.390028 | BL58: 3757.880589 | BM58: 3725.710026 | BN58: 3674.864167 | BO58: 3606.631218 | BP58: 3522.555708 | BQ58: 3424.386307 | BR58: =IF($E58=0,0,SUM(BR60:BR80)) -> 3314.019902 | BS58: 3193.444415 | BT58: 3064.682742 | BU58: 2929.740017 | BV58: 2790.556073 | BW58: 2648.964589 | BX58: 2506.659954 | BY58: 2365.172434 | BZ58: 2225.851737 | CA58: 2089.858667 | CB58: 1958.164192 | CC58: 1831.55495 | CD58: 1710.644042 | CE58: 1595.885829 | CF58: 1487.593449 | CG58: 1385.957807 | CH58: 1291.066934 | CI58: 1202.924777 | CJ58: 1121.468679 | CK58: 1046.58502 | CL58: 978.122728 | CM58: 915.9045217 | CN58: 859.7359565 | CO58: 809.4124399 | CP58: 764.7244976 | CQ58: 725.4616129 | CR58: 691.4149811 | CS58: 662.3795055 | CT58: 638.1553183 | CU58: 618.5490563 | CV58: 603.375047 | CW58: 592.4564939 | CX58: 585.6266796 | CY58: 582.7301439 | CZ58: 583.623747 | DA58: 588.1774943 | DB58: 596.2749794 | DC58: 607.8133009 | DD58: 622.70232 | DE58: 640.8631533 | DF58: 662.2258307 | DG58: 686.7260988 | DH58: 714.3013969 | DI58: 744.8860955 | DJ58: 778.406138 | DK58: 814.7732813 | DL58: 853.8791786 | DM58: 895.5895843 | DN58: 939.7389853 | DO58: 986.125978 | DP58: 1034.509701 | DQ58: 1084.607612 | DR58: 1136.094866 | DS58: 1188.605474 | DT58: 1241.735376 | DU58: 1295.047456 | DV58: 1348.078443 | DW58: 1400.347551 | DX58: 1451.366592 | DY58: 1500.651239 | DZ58: 1547.733024 | EA58: 1592.171595 | EB58: 1633.566725 | EC58: 1671.569574 | ED58: =IF($E58=0,0,SUM(ED60:ED80)) -> 1705.892683 | EE58: 1736.318274 | EF58: 1762.704451 | EG58: 1784.989023 | EH58: 1803.190765 | EI58: 1817.408048 | EJ58: 1827.814891 | EK58: 1834.654622 | EL58: 1838.231419 | EM58: 1838.900104 | EN58: 1837.054645 | EO58: 1833.11584 | EP58: 1827.518696 | EQ58: 1820.700005 | ER58: 1813.086562 | ES58: 1805.084462 | ET58: 1797.069788 | EU58: 1789.380945 | EV58: 1782.312816 | EW58: 1776.112784 | EX58: 1770.978617 | EY58: 1767.058109 | EZ58: 1764.450315 | FA58: 1763.20816 | FB58: 1763.342174 | FC58: 1764.825082 | FD58: 1767.596966 | FE58: 1771.570753 | FF58: 1776.637773 | FG58: 1782.673177 | FH58: 1789.54105 | FI58: 1797.099075 | FJ58: 1805.202654 | FK58: 1813.708434 | FL58: 1822.477208 | FM58: 1831.376202 | FN58: 1840.280781 | FO58: 1849.075618 | FP58: 1857.655391 | FQ58: 1865.925081 | FR58: 1873.799936 | FS58: 1881.205171 | FT58: 1888.075485 | FU58: 1894.354428 | FV58: 1899.993701 | FW58: 1904.952404 | FX58: 1909.196291 | FY58: 1912.697036 | FZ58: 1915.431553 | GA58: 1917.381359 | GB58: 1918.532011 | GC58: 1918.872597 | GD58: 1918.395296 | GE58: 1917.095005 | GF58: 1914.969013 | GG58: 1912.016733 | GH58: 1908.239474 | GI58: 1903.640261 | GJ58: 1898.223672 | GK58: 1891.995719 | GL58: 1884.963739 | GM58: 1877.13631 | GN58: 1868.523172 | GO58: 1859.135171 | GP58: =IF($E58=0,0,SUM(GP60:GP80)) -> 1848.984199 | GQ58: 1838.083149 | GR58: 1826.445865 | GS58: 1814.087105 | GT58: 1801.022496 | GU58: 1787.268497 | GV58: 1772.842358 | GW58: 1757.762082 | GX58: 1742.046384 | GY58: 1725.714652 | GZ58: 1708.786905 | HA58: 1691.283752 | HB58: 1673.226351 | HC58: 1654.636366 | HD58: 1635.535926 | HE58: 1615.947578 | HF58: 1595.894252 | HG58: 1575.399212 | HH58: 1554.486018 | HI58: 1533.178486 | HJ58: 1511.500649 | HK58: 1489.47672 | HL58: 1467.131061 | HM58: 1444.488151 | HN58: 1421.572563 | HO58: 1398.408946 | HP58: 1375.02201 | HQ58: 1351.436526 | HR58: 1327.677334 | HS58: 1303.769359 | HT58: 1279.737644 | HU58: 1255.607403 | HV58: 1231.404079 | HW58: 1207.153434 | HX58: 1182.881647 | HY58: 1158.61544 | HZ58: 1134.382215 | IA58: 1110.210212 | IB58: 1086.128682 | IC58: 1062.168064 | ID58: 1038.360163 | IE58: 1014.738327 | IF58: 991.3375944 | IG58: 968.1948143 | IH58: 945.348716 | II58: 922.8399107 | IJ58: 900.710808 | IK58: 879.0054274 | IL58: 857.7690868 | IM58: 837.0479503 | IN58: 816.8884238 | IO58: 797.3363887 | IP58: 778.4362726 | IQ58: 760.2299627 | IR58: 742.7555766 | IS58: 726.0461169 | IT58: 710.1280442 | IU58: 695.0198157 | IV58: 680.7304444 | IW58: 667.258145 | IX58: 654.5891335 | IY58: 642.6966558 | IZ58: 631.5403159 | JA58: 621.065771 | JB58: =IF($E58=0,0,SUM(JB60:JB80)) -> 611.20485 | JC58: 601.8761409 | JD58: 592.9860718 | JE58: 584.4304919 | JF58: 576.0967332 | JG58: 567.8661115 | JH58: 559.6167995 | JI58: 551.2269819 | JJ58: 542.5781845 | JK58: 533.5586541 | JL58: 524.0666552 | JM58: 514.0135503 | JN58: 503.326533 | JO58: 491.9508947 | JP58: 479.8517273 | JQ58: 467.0149832 | JR58: 453.447847 | JS58: 439.1784032 | JT58: 424.2546136 | JU58: 408.7426547 | JV58: 392.7246882 | JW58: 376.2961663 | JX58: 359.5627886 | JY58: 342.637242 | JZ58: 325.6358574 | KA58: 308.6753156 | KB58: 291.8695267 | KC58: 275.3267903 | KD58: 259.1473275 | KE58: 243.42125 | KF58: 228.2270094 | KG58: 213.6303447 | KH58: 199.683723 | KI58: 186.4262461 | KJ58: 173.8839803 | KK58: 162.0706506 | KL58: 150.9886339 | KM58: 140.630178 | KN58: 130.9787736 | KO58: 122.0106109 | KP58: 113.6960547 | KQ58: 106.0010832 | KR58: 98.88864325 | KS58: 92.31988755 | KT58: 86.25526659 | KU58: 80.65546193 | KV58: 75.48215372 | KW58: 70.69862476 | KX58: 66.27020943 | KY58: 62.16460043 | KZ58: 58.35203013 | LA58: 54.80534477 | LB58: 51.49999076 | LC58: 48.41393178 | LD58: 45.52751437 | LE58: 42.82329787 | LF58: 40.28586267 | LG58: 37.90160814 | LH58: 35.65854975 | LI58: 33.54612247 | LJ58: 31.55499552 | LK58: 29.67690205 | LL58: 27.9044856 | LM58: 26.23116425 | LN58: =IF($E58=0,0,SUM(LN60:LN80)) -> 24.65101225 | LO58: 23.15865848 | LP58: 21.74920031 | LQ58: 20.41813163 | LR58: 19.16128314 | LS58: 17.97477348 | LT58: 16.85496945 | LU58: 15.79845391 | LV58: 14.80200002 | LW58: 13.86255058 | LX58: 12.97720159 | LY58: 12.143189 | LZ58: 11.35787811 | MA58: 10.61875494 | MB58: 9.923419079 | MC58: 9.269577755 | MD58: 8.655040751 | ME58: 8.077715958 | MF58: 7.535605418 | MG58: 7.026801717 | MH58: 6.549484636 | MI58: 6.101917995 | MJ58: 5.682446637 | MK58: 5.289493531 | ML58: 4.921556947 | MM58: 4.577207721 | MN58: 4.255086565 | MO58: 3.953901447 | MP58: 3.672425016 | MQ58: 3.409492089 | MR58: 3.163997177 | MS58: 2.934892079 | MT58: 2.721183521 | MU58: 2.521930855 | MV58: 2.336243812 | MW58: 2.163280317 | MX58: 2.00224436 | MY58: 1.85238393 | MZ58: 1.712989007 | NA58: 1.583389615 | NB58: 1.462953943 | NC58: 1.351086519 | ND58: 1.247226451 | NE58: 1.150845728 | NF58: 1.061447583 | NG58: 0.9785649137 | NH58: 0.9017587665 | NI58: 0.8306168769 | NJ58: 0.7647522693 | NK58: 0.7038019128 | NL58: 0.6474254339 | NM58: 0.5953038831 | NN58: 0.5471385554 | NO58: 0.5026498632 | NP58: 0.4615762592 | NQ58: 0.4236732096 | NR58: 0.3887122145 | NS58: 0.3564798757 | NT58: 0.3267770087 | NU58: 0.2994177989 | NV58: 0.2742289994 | NW58: 0.25104917 | NX58: 0.2297279547 | NY58: 0.2101253971 | NZ58: =IF($E58=0,0,SUM(NZ60:NZ80)) -> 0.1921112924 | OA58: 0.1755645733 | OB58: 0.16037273 | OC58: 0.1464312616 | OD58: 0.1336431586 | OE58: 0.1219184138 | OF58: 0.1111735622
A59: Espectro normalizado a 1 --> | E59: =MAX(F58:OF58) -> 3770.390028 | F59: =F58 / $E59 -> 0.0007775323609 | G59: 0.0008796605898 | H59: 0.0009974899645 | I59: 0.001134114198 | J59: 0.001293431863 | K59: 0.001480375553 | L59: 0.001701197631 | M59: 0.001963821948 | N59: 0.002278271055 | O59: 0.002657177893 | P59: 0.003116389766 | Q59: 0.003675670212 | R59: 0.004359501167 | S59: 0.005197983235 | T59: 0.006227825921 | U59: 0.007493412202 | V59: 0.009047912881 | W59: 0.01095441581 | X59: 0.01328702371 | Y59: 0.01613186216 | Z59: 0.01958792735 | AA59: 0.0237676915 | AB59: 0.02879737447 | AC59: 0.03481678291 | AD59: 0.04197861522 | AE59: 0.05044713322 | AF59: 0.06039610921 | AG59: 0.0720059735 | AH59: 0.08546011057 | AI59: 0.100940284 | AJ59: 0.1186212098 | AK59: 0.1386643439 | AL59: 0.1612110013 | AM59: 0.1863749803 | AN59: 0.2142349162 | AO59: 0.2448266458 | AP59: 0.2781359019 | AQ59: 0.3140916945 | AR59: 0.3525607496 | AS59: 0.393343379 | AT59: 0.4361711301 | AU59: 0.4807065224 | AV59: 0.5265451118 | AW59: 0.5732200361 | AX59: 0.6202090912 | AY59: 0.6669442701 | AZ59: 0.7128235729 | BA59: 0.7572247718 | BB59: 0.7995206998 | BC59: 0.8390955285 | BD59: 0.8753614287 | BE59: 0.9077749514 | BF59: 0.9358524594 | BG59: 0.9591839546 | BH59: 0.9774447091 | BI59: 0.9904041944 | BJ59: 0.9979319284 | BK59: 1 | BL59: 0.9966821898 | BM59: 0.9881497665 | BN59: 0.9746641965 | BO59: 0.9565671431 | BP59: 0.9342682538 | BQ59: 0.9082313186 | BR59: =BR58 / $E59 -> 0.8789594386 | BS59: 0.8469798592 | BT59: 0.8128291022 | BU59: 0.7770389787 | BV59: 0.7401239799 | BW59: 0.7025704422 | BX59: 0.6648277593 | BY59: 0.6273017954 | BZ59: 0.5903505262 | CA59: 0.5542818255 | CB59: 0.5193532175 | CC59: 0.4857733381 | CD59: 0.4537047968 | CE59: 0.4232681015 | CF59: 0.3945463038 | CG59: 0.3675900362 | CH59: 0.342422647 | CI59: 0.3190451832 | CJ59: 0.2974410261 | CK59: 0.2775800414 | CL59: 0.2594221608 | CM59: 0.242920365 | CN59: 0.2280230825 | CO59: 0.2146760505 | CP59: 0.2028237111 | CQ59: 0.1924102301 | CR59: 0.1833802275 | CS59: 0.1756793065 | CT59: 0.1692544574 | CU59: 0.1640543954 | CV59: 0.1600298755 | CW59: 0.1571340072 | CX59: 0.1553225728 | CY59: 0.1545543404 | CZ59: 0.1547913459 | DA59: 0.1559991115 | DB59: 0.1581467633 | DC59: 0.1612070094 | DD59: 0.1651559429 | DE59: 0.1699726417 | DF59: 0.1756385482 | DG59: 0.1821366208 | DH59: 0.1894502668 | DI59: 0.1975620798 | DJ59: 0.206452418 | DK59: 0.2160978772 | DL59: 0.2264697212 | DM59: 0.2375323448 | DN59: 0.2492418499 | DO59: 0.2615448192 | DP59: 0.2743773702 | DQ59: 0.2876645663 | DR59: 0.3013202501 | DS59: 0.3152473525 | DT59: 0.3293387068 | DU59: 0.3434783791 | DV59: 0.357543499 | DW59: 0.3714065497 | DX59: 0.3849380517 | DY59: 0.39800955 | DZ59: 0.4104967954 | EA59: 0.4222829953 | EB59: 0.4332620002 | EC59: 0.4433412887 | ED59: =ED58 / $E59 -> 0.4524446199 | EE59: 0.4605142336 | EF59: 0.4675124954 | EG59: 0.473422911 | EH59: 0.4782504599 | EI59: 0.4820212323 | EJ59: 0.4847813825 | EK59: 0.4865954472 | EL59: 0.4875441015 | EM59: 0.4877214532 | EN59: 0.4872319922 | EO59: 0.4861873243 | EP59: 0.4847028246 | EQ59: 0.4828943401 | ER59: 0.4808750682 | ES59: 0.478752715 | ET59: 0.4766270265 | EU59: 0.4745877566 | EV59: 0.4727131153 | EW59: 0.4710687146 | EX59: 0.4697070074 | EY59: 0.4686671924 | EZ59: 0.4679755414 | FA59: 0.4676460914 | FB59: 0.4676816353 | FC59: 0.4680749388 | FD59: 0.4688101105 | FE59: 0.4698640565 | FF59: 0.4712079545 | FG59: 0.4728086918 | FH59: 0.4746302204 | FI59: 0.4766347941 | FJ59: 0.4787840622 | FK59: 0.4810400039 | FL59: 0.4833656981 | FM59: 0.4857259298 | FN59: 0.4880876428 | FO59: 0.4904202493 | FP59: 0.4926958158 | FQ59: 0.4948891407 | FR59: 0.4969777455 | FS59: 0.4989417958 | FT59: 0.5007639716 | FU59: 0.5024293015 | FV59: 0.503924975 | FW59: 0.5052401449 | FX59: 0.5063657278 | FY59: 0.5072942114 | FZ59: 0.5080194724 | GA59: 0.508536609 | GB59: 0.5088417901 | GC59: 0.5089321217 | GD59: 0.5088055298 | GE59: 0.5084606608 | GF59: 0.5078967955 | GG59: 0.5071137783 | GH59: 0.5061119566 | GI59: 0.5048921323 | GJ59: 0.5034555199 | GK59: 0.5018037139 | GL59: 0.4999386603 | GM59: 0.4978626338 | GN59: 0.4955782181 | GO59: 0.4930882898 | GP59: =GP58 / $E59 -> 0.4903960029 | GQ59: 0.4875047767 | GR59: 0.4844182834 | GS59: 0.4811404368 | GT59: 0.4776753817 | GU59: 0.4740274835 | GV59: 0.4702013173 | GW59: 0.4662016579 | GX59: 0.462033469 | GY59: 0.4577018927 | GZ59: 0.4532122385 | HA59: 0.4485699727 | HB59: 0.4437807066 | HC59: 0.4388501863 | HD59: 0.4337842805 | HE59: 0.4285889699 | HF59: 0.4232703356 | HG59: 0.4178345478 | HH59: 0.4122878553 | HI59: 0.4066365747 | HJ59: 0.40088708 | HK59: 0.3950457934 | HL59: 0.3891191759 | HM59: 0.3831137203 | HN59: 0.3770359439 | HO59: 0.3708923839 | HP59: 0.3646895943 | HQ59: 0.3584341451 | HR59: 0.3521326241 | HS59: 0.345791642 | HT59: 0.3394178413 | HU59: 0.3330179088 | HV59: 0.3265985931 | HW59: 0.3201667267 | HX59: 0.313729253 | HY59: 0.3072932592 | HZ59: 0.3008660129 | IA59: 0.2944550044 | IB59: 0.2880679914 | IC59: 0.2817130471 | ID59: 0.2753986074 | IE59: 0.2691335166 | IF59: 0.2629270678 | IG59: 0.2567890343 | IH59: 0.2507296882 | II59: 0.2447598004 | IJ59: 0.2388906191 | IK59: 0.2331338193 | IL59: 0.2275014204 | IM59: 0.2220056663 | IN59: 0.2166588649 | IO59: 0.2114731852 | IP59: 0.2064604104 | IQ59: 0.20163165 | IR59: 0.1969970139 | IS59: 0.1925652549 | IT59: 0.1883433913 | IU59: 0.1843363181 | IV59: 0.1805464261 | IW59: 0.1769732415 | IX59: 0.1736131086 | IY59: 0.1704589316 | IZ59: 0.1674999964 | JA59: 0.1647218899 | JB59: =JB58 / $E59 -> 0.1621065315 | JC59: 0.1596323288 | JD59: 0.1572744643 | JE59: 0.1550053144 | JF59: 0.152794997 | JG59: 0.1506120341 | JH59: 0.148424114 | JI59: 0.1461989284 | JJ59: 0.143905055 | JK59: 0.1415128541 | JL59: 0.138995343 | JM59: 0.1363290128 | JN59: 0.1334945534 | JO59: 0.1304774549 | JP59: 0.1272684586 | JQ59: 0.1238638389 | JR59: 0.1202655014 | JS59: 0.1164808945 | JT59: 0.1125227391 | JU59: 0.1084085868 | JV59: 0.1041602289 | JW59: 0.09980298152 | JX59: 0.09536487894 | JY59: 0.09087580846 | JZ59: 0.08636662387 | KA59: 0.08186827181 | KB59: 0.07741096398 | KC59: 0.07302342416 | KD59: 0.06873223343 | KE59: 0.0645612916 | KF59: 0.06053140596 | KG59: 0.05666001213 | KH59: 0.05296102566 | KI59: 0.04944481732 | KJ59: 0.04611830049 | KK59: 0.04298511543 | KL59: 0.04004589255 | KM59: 0.03729857573 | KN59: 0.03473878633 | KO59: 0.03236020941 | KP59: 0.03015498499 | KQ59: 0.02811408962 | KR59: 0.02622769594 | KS59: 0.02448550067 | KT59: 0.0228770143 | KU59: 0.02139180863 | KV59: 0.02001972028 | KW59: 0.01875101097 | KX59: 0.0175764865 | KY59: 0.0164875782 | KZ59: 0.01547639096 | LA59: 0.01453572293 | LB59: 0.0136590619 | LC59: 0.01284056329 | LD59: 0.01207501453 | LE59: 0.01135778992 | LF59: 0.01068479981 | LG59: 0.01005243698 | LH59: 0.009457522824 | LI59: 0.008897255249 | LJ59: 0.0083691595 | LK59: 0.007871043003 | LL59: 0.007400954647 | LM59: 0.006957148743 | LN59: =LN58 / $E59 -> 0.006538053641 | LO59: 0.006142244783 | LP59: 0.005768421875 | LQ59: 0.005415389781 | LR59: 0.005082042705 | LS59: 0.004767351213 | LT59: 0.004470351693 | LU59: 0.004190137836 | LV59: 0.0039258538 | LW59: 0.003676688745 | LX59: 0.003441872456 | LY59: 0.003220671842 | LZ59: 0.003012388116 | MA59: 0.002816354505 | MB59: 0.002631934364 | MC59: 0.002458519593 | MD59: 0.002295529292 | ME59: 0.002142408583 | MF59: 0.001998627559 | MG59: 0.001863680326 | MH59: 0.001737084118 | MI59: 0.001618378457 | MJ59: 0.001507124355 | MK59: 0.001402903544 | ML59: 0.001305317729 | MM59: 0.00121398786 | MN59: 0.001128553421 | MO59: 0.001048671733 | MP59: 0.0009740172738 | MQ59: 0.0009042810063 | MR59: 0.0008391697287 | MS59: 0.0007784054321 | MT59: 0.000721724676 | MU59: 0.0006688779772 | MV59: 0.0006196292147 | MW59: 0.0005737550495 | MX59: 0.0005310443603 | MY59: 0.0004912976951 | MZ59: 0.0004543267391 | NA59: 0.0004199537987 | NB59: 0.0003880113018 | NC59: 0.0003583413145 | ND59: 0.0003307950747 | NE59: 0.0003052325408 | NF59: 0.000281521958 | NG59: 0.0002595394393 | NH59: 0.0002391685634 | NI59: 0.0002202999877 | NJ59: 0.0002028310768 | NK59: 0.0001866655459 | NL59: 0.0001717131196 | NM59: 0.0001578892047 | NN59: 0.0001451145774 | NO59: 0.000133315084 | NP59: 0.0001224213558 | NQ59: 0.0001123685365 | NR59: 0.0001030960223 | NS59: 9.454721476e-05 | NT59: 8.666928522e-05 | NU59: 7.94129511e-05 | NV59: 7.273226308e-05 | NW59: 6.658440325e-05 | NX59: 6.092949349e-05 | NY59: 5.573041398e-05 | NZ59: =NZ58 / $E59 -> 5.095263115e-05 | OA59: 4.656403502e-05 | OB59: 4.25347852e-05 | OC59: 3.883716552e-05 | OD59: 3.544544665e-05 | OE59: 3.233575649e-05 | OF59: 2.948595805e-05
A60: =IF(Principal!M18="","",MATCH(Principal!M18,Datos!A:A,0)) -> 8 | B60: =IF(A60="","",INDIRECT("Datos!A"&Espectros!A8,TRUE)) -> Blue (465-480) XP-E2 | C60: =IF(A60="","",INDIRECT("Datos!M"&Espectros!A8,TRUE)) -> 111.4285714 | D60: =IF(B60="","",D34) -> 5.732484076 | E60: =IF(A60="","",C60*D60) -> 638.7625114 | F60: =IF($E60="","",$E60*I8) -> 9.715556485e-06 | G60: =IF($E60="","",$E60*J8) -> 1.575193282e-05 | H60: 2.537141555e-05 | I60: 4.059758728e-05 | J60: 6.453575985e-05 | K60: 0.0001019166898 | L60: 0.0001598949947 | M60: 0.0002492120895 | N60: 0.0003858762257 | O60: 0.0005935695526 | P60: 0.0009070680855 | Q60: 0.001377059914 | R60: 0.002076875502 | S60: 0.003111807828 | T60: 0.00463190616 | U60: 0.006849382399 | V60: 0.01006207969 | W60: 0.01468482481 | X60: 0.0212909218 | Y60: 0.03066654418 | Z60: 0.0438813408 | AA60: 0.06237917376 | AB60: 0.08809353244 | AC60: 0.1235927825 | AD60: 0.1722609638 | AE60: 0.2385202818 | AF60: 0.3281016637 | AG60: 0.4483696723 | AH60: 0.6087075718 | AI60: 0.8209672956 | AJ60: 1.099987342 | AK60: 1.464179075 | AL60: 1.936178453 | AM60: 2.543555669 | AN60: 3.319569684 | AO60: 4.303947947 | AP60: 5.543664111 | AQ60: 7.093678232 | AR60: 9.017595272 | AS60: 11.38818915 | AT60: 14.28773156 | AU60: 17.80805836 | AV60: 22.05030173 | AW60: 27.12421516 | AX60: 33.14702095 | AY60: 40.24171704 | AZ60: 48.53479292 | BA60: 58.15332311 | BB60: 69.22143067 | BC60: 81.8561441 | BD60: 96.16270536 | BE60: 112.2294258 | BF60: 130.1222267 | BG60: 149.8790427 | BH60: 171.5042996 | BI60: 194.9637151 | BJ60: 220.1796868 | BK60: 247.0275467 | BL60: 275.3329569 | BM60: 304.8707018 | BN60: 335.3650958 | BO60: 366.4921759 | BP60: 397.883778 | BQ60: 429.1335175 | BR60: 459.8046064 | BS60: =IF($E60="","",$E60*BV8) -> 489.4393436 | BT60: 517.5700229 | BU60: 543.7309192 | BV60: 567.4709357 | BW60: 588.3664418 | BX60: 606.0337957 | BY60: 620.1410361 | BZ60: 630.4182479 | CA60: 636.6661479 | CB60: 638.7625114 | CC60: 636.6661479 | CD60: 630.4182479 | CE60: 620.1410361 | CF60: 606.0337957 | CG60: 588.3664418 | CH60: 567.4709357 | CI60: 543.7309192 | CJ60: 517.5700229 | CK60: 489.4393436 | CL60: 459.8046064 | CM60: 429.1335175 | CN60: 397.883778 | CO60: 366.4921759 | CP60: 335.3650958 | CQ60: 304.8707018 | CR60: 275.3329569 | CS60: 247.0275467 | CT60: 220.1796868 | CU60: 194.9637151 | CV60: 171.5042996 | CW60: 149.8790427 | CX60: 130.1222267 | CY60: 112.2294258 | CZ60: 96.16270536 | DA60: 81.8561441 | DB60: 69.22143067 | DC60: 58.15332311 | DD60: 48.53479292 | DE60: 40.24171704 | DF60: 33.14702095 | DG60: 27.12421516 | DH60: 22.05030173 | DI60: 17.80805836 | DJ60: 14.28773156 | DK60: 11.38818915 | DL60: 9.017595272 | DM60: 7.093678232 | DN60: 5.543664111 | DO60: 4.303947947 | DP60: 3.319569684 | DQ60: 2.543555669 | DR60: 1.936178453 | DS60: 1.464179075 | DT60: 1.099987342 | DU60: 0.8209672956 | DV60: 0.6087075718 | DW60: 0.4483696723 | DX60: 0.3281016637 | DY60: 0.2385202818 | DZ60: 0.1722609638 | EA60: 0.1235927825 | EB60: 0.08809353244 | EC60: 0.06237917376 | ED60: 0.0438813408 | EE60: =IF($E60="","",$E60*EH8) -> 0.03066654418 | EF60: 0.0212909218 | EG60: 0.01468482481 | EH60: 0.01006207969 | EI60: 0.006849382399 | EJ60: 0.00463190616 | EK60: 0.003111807828 | EL60: 0.002076875502 | EM60: 0.001377059914 | EN60: 0.0009070680855 | EO60: 0.0005935695526 | EP60: 0.0003858762257 | EQ60: 0.0002492120895 | ER60: 0.0001598949947 | ES60: 0.0001019166898 | ET60: 6.453575985e-05 | EU60: 4.059758728e-05 | EV60: 2.537141555e-05 | EW60: 1.575193282e-05 | EX60: 9.715556485e-06 | EY60: 5.953141279e-06 | EZ60: 3.623843012e-06 | FA60: 2.191478628e-06 | FB60: 1.316587664e-06 | FC60: 7.85790912e-07 | FD60: 4.659173678e-07 | FE60: 2.744450965e-07 | FF60: 1.606004396e-07 | FG60: 9.336469043e-08 | FH60: 5.39216622e-08 | FI60: 3.093773814e-08 | FJ60: 1.763431219e-08 | FK60: 9.985577089e-09 | FL60: 5.617363015e-09 | FM60: 3.13932653e-09 | FN60: 1.74295096e-09 | FO60: 9.613433433e-10 | FP60: 5.267645703e-10 | FQ60: 2.867472546e-10 | FR60: 1.550695969e-10 | FS60: 8.331030521e-11 | FT60: 4.446471069e-11 | FU60: 2.35763676e-11 | FV60: 1.241889616e-11 | FW60: 6.498809026e-12 | FX60: 3.3785413e-12 | FY60: 1.744895278e-12 | FZ60: 8.952703069e-13 | GA60: 4.563348867e-13 | GB60: 2.310775961e-13 | GC60: 1.16245644e-13 | GD60: 5.80951949e-14 | GE60: 2.884353039e-14 | GF60: 1.422660577e-14 | GG60: 6.971060565e-15 | GH60: 3.393447174e-15 | GI60: 1.641073406e-15 | GJ60: 7.884235726e-16 | GK60: 3.763014323e-16 | GL60: 1.784254579e-16 | GM60: 8.404704462e-17 | GN60: 3.93307974e-17 | GO60: 1.828469557e-17 | GP60: 8.444761618e-18 | GQ60: =IF($E60="","",$E60*GT8) -> 3.874643351e-18 | GR60: 1.7661222e-18 | GS60: 7.997503599e-19 | GT60: 3.5977652e-19 | GU60: 1.607888271e-19 | GV60: 7.138773379e-20 | GW60: 3.148734204e-20 | GX60: 1.379726755e-20 | GY60: 6.006131663e-21 | GZ60: 2.597414667e-21 | HA60: 1.115918318e-21 | HB60: 4.762864243e-22 | HC60: 2.019522411e-22 | HD60: 8.506948997e-23 | HE60: 3.559948039e-23 | HF60: 1.479987908e-23 | HG60: 6.112478619e-24 | HH60: 2.507963531e-24 | HI60: 1.022279752e-24 | HJ60: 4.13964385e-25 | HK60: 1.665332189e-25 | HL60: 6.655542365e-26 | HM60: 2.642473897e-26 | HN60: 1.04227576e-26 | HO60: 4.084127083e-27 | HP60: 1.589866048e-27 | HQ60: 6.148462103e-28 | HR60: 2.362202605e-28 | HS60: 9.015970158e-29 | HT60: 3.418632878e-29 | HU60: 1.287766557e-29 | HV60: 4.819106209e-30 | HW60: 1.791597844e-30 | HX60: 6.616971172e-31 | HY60: 2.427854364e-31 | HZ60: 8.849743821e-32 | IA60: 3.204670955e-32 | IB60: 1.152871405e-32 | IC60: 4.120244313e-33 | ID60: 1.462883521e-33 | IE60: 5.159899046e-34 | IF60: 1.80807874e-34 | IG60: 6.294165421e-35 | IH60: 2.176725393e-35 | II60: 7.478488197e-36 | IJ60: 2.552517095e-36 | IK60: 8.655022162e-37 | IL60: 2.915495578e-37 | IM60: 9.756662176e-38 | IN60: 3.243656275e-38 | IO60: 1.071304831e-38 | IP60: 3.515086186e-39 | IQ60: 1.145786156e-39 | IR60: 3.71035822e-40 | IS60: 1.193638421e-40 | IT60: 3.814823208e-41 | IU60: 1.21121355e-41 | IV60: 3.820425217e-42 | IW60: 1.197146674e-42 | IX60: 3.726728046e-43 | IY60: 1.152531272e-43 | IZ60: 3.540971345e-44 | JA60: 1.080778719e-44 | JB60: 3.277146337e-45 | JC60: =IF($E60="","",$E60*JF8) -> 9.871873074e-46 | JD60: 2.95425493e-46 | JE60: 8.782962997e-47 | JF60: 2.594052821e-47 | JG60: 7.611342326e-48 | JH60: 2.218647839e-48 | JI60: 6.424808227e-49 | JJ60: 1.848317787e-49 | JK60: 5.282479189e-50 | JL60: 1.499835485e-50 | JM60: 4.2305237e-51 | JN60: 1.185466588e-51 | JO60: 3.300115818e-52 | JP60: 9.126698912e-53 | JQ60: 2.507511556e-53 | JR60: 6.844107789e-54 | JS60: 1.855818143e-54 | JT60: 4.999178798e-55 | JU60: 1.337847469e-55 | JV60: 3.556798078e-56 | JW60: 9.394128535e-57 | JX60: 2.464895225e-57 | JY60: 6.425177159e-58 | JZ60: 1.663858647e-58 | KA60: 4.280479558e-59 | KB60: 1.093989376e-59 | KC60: 2.777656003e-60 | KD60: 7.006296187e-61 | KE60: 1.755671277e-61 | KF60: 4.370615414e-62 | KG60: 1.080902845e-62 | KH60: 2.655677934e-63 | KI60: 6.481997035e-64 | KJ60: 1.571762522e-64 | KK60: 3.786253675e-65 | KL60: 9.061021579e-66 | KM60: 2.15421626e-66 | KN60: 5.087988397e-67 | KO60: 1.19384406e-67 | KP60: 2.782875464e-68 | KQ60: 6.444431598e-69 | KR60: 1.482586847e-69 | KS60: 3.388444258e-70 | KT60: 7.693522462e-71 | KU60: 1.735380786e-71 | KV60: 3.888741019e-72 | KW60: 8.657010326e-73 | KX60: 1.914571227e-73 | KY60: 4.206489394e-74 | KZ60: 9.181481143e-75 | LA60: 1.990904246e-75 | LB60: 4.288769218e-76 | LC60: 9.178245274e-77 | LD60: 1.951332687e-77 | LE60: 4.121427434e-78 | LF60: 8.647860468e-79 | LG60: 1.802662265e-79 | LH60: 3.733058019e-80 | LI60: 7.679974708e-81 | LJ60: 1.569638049e-81 | LK60: 3.187013651e-82 | LL60: 6.428549725e-83 | LM60: 1.288210306e-83 | LN60: 2.564514796e-84 | LO60: =IF($E60="","",$E60*LR8) -> 5.071872494e-85 | LP60: 9.964972915e-86 | LQ60: 1.945040265e-86 | LR60: 3.77160105e-87 | LS60: 7.265534637e-88 | LT60: 1.390445866e-88 | LU60: 2.643536253e-89 | LV60: 4.992995034e-90 | LW60: 9.368750548e-91 | LX60: 1.746412757e-91 | LY60: 3.234124932e-92 | LZ60: 5.949923306e-93 | MA60: 1.087453314e-93 | MB60: 1.974488244e-94 | MC60: 3.561583753e-95 | MD60: 6.382288749e-96 | ME60: 1.136199029e-96 | MF60: 2.009449318e-97 | MG60: 3.530566354e-98 | MH60: 6.162492123e-99 | MI60: 1.068594794e-99 | MJ60: 1.840833076e-100 | MK60: 3.150361868e-101 | ML60: 5.356130538e-102 | MM60: 9.046624031e-103 | MN60: 1.517981954e-103 | MO60: 2.53041267e-104 | MP60: 4.190451091e-105 | MQ60: 6.894057112e-106 | MR60: 1.126765797e-106 | MS60: 1.829519792e-107 | MT60: 2.951108974e-108 | MU60: 4.729095228e-109 | MV60: 7.528622995e-110 | MW60: 1.190687291e-110 | MX60: 1.870787954e-111 | MY60: 2.920089006e-112 | MZ60: 4.528061237e-113 | NA60: 6.975465127e-114 | NB60: 1.067526661e-114 | NC60: 1.62303904e-115 | ND60: 2.451454746e-116 | NE60: 3.678438275e-117 | NF60: 5.483372416e-118 | NG60: 8.120386323e-119 | NH60: 1.19467649e-119 | NI60: 1.746098025e-120 | NJ60: 2.535313116e-121 | NK60: 3.657120439e-122 | NL60: 5.240727773e-123 | NM60: 7.460855297e-124 | NN60: 1.055189135e-124 | NO60: 1.482575034e-125 | NP60: 2.069415665e-126 | NQ60: 2.869613852e-127 | NR60: 3.953155207e-128 | NS60: 5.410145554e-129 | NT60: 7.35561028e-130 | NU60: 9.935120769e-131 | NV60: 1.333129283e-131 | NW60: 1.777117173e-132 | NX60: 2.353447622e-133 | NY60: 3.096261899e-134 | NZ60: 4.046835192e-135 | OA60: =IF($E60="","",$E60*OD8) -> 5.254580204e-136 | OB60: 6.778056906e-137 | OC60: 8.685944978e-138 | OD60: 1.105792437e-138 | OE60: 1.398539814e-139 | OF60: 1.757198127e-140
A61: =IF(Principal!M19="","",MATCH(Principal!M19,Datos!A:A,0)) -> 27 | B61: =IF(A61="","",INDIRECT("Datos!A"&Espectros!A9,TRUE)) -> Blanco Frío (6000K) XP-G2 | C61: =IF(A61="","",INDIRECT("Datos!M"&Espectros!A9,TRUE)) -> 557.1428571 | D61: 5.739514349 | E61: =IF(A61="","",C61*D61) -> 3197.729423 | F61: =IF($E61="","",$E61*I9) -> 1.86129851 | G61: 2.065543635 | H61: 2.306241014 | I61: 2.593612919 | J61: 2.941046237 | K61: 3.36598337 | L61: 3.891018045 | M61: 4.545227309 | N61: 5.365770562 | O61: 6.399784008 | P61: 7.706593785 | Q61: 9.360262478 | R61: 11.45247125 | S61: 14.09572272 | T61: 17.42682756 | U61: 21.61061054 | V61: 26.84373906 | W61: 33.35854034 | X61: 41.42663261 | Y61: 51.3621532 | Z61: 63.52432411 | AA61: 78.31905687 | AB61: 96.19926609 | AC61: 117.6635401 | AD61: 143.2528104 | AE61: 173.5446748 | AF61: 209.1450656 | AG61: 250.6770168 | AH61: 298.766376 | AI61: 354.0244265 | AJ61: 417.027535 | AK61: 488.29411 | AL61: 568.2593487 | AM61: 657.2484441 | AN61: 755.4491258 | AO61: 862.8845845 | AP61: 979.387984 | AQ61: 1104.579874 | AR61: 1237.849866 | AS61: 1378.34392 | AT61: 1524.958493 | AU61: 1676.342629 | AV61: 1830.9088 | AW61: 1986.853006 | AX61: 2142.184204 | AY61: 2294.762745 | AZ61: 2442.347014 | BA61: 2582.647001 | BB61: 2713.383154 | BC61: 2832.348437 | BD61: 2937.471318 | BE61: 3026.877167 | BF61: 3098.945567 | BG61: 3152.36108 | BH61: 3186.155276 | BI61: 3199.73814 | BJ61: 3192.917449 | BK61: 3165.905242 | BL61: 3119.311075 | BM61: 3054.12239 | BN61: 2971.672859 | BO61: 2873.600166 | BP61: 2761.795063 | BQ61: 2638.343952 | BR61: 2505.467416 | BS61: 2365.457219 | BT61: 2220.614274 | BU61: 2073.189873 | BV61: 1925.332221 | BW61: 1779.039944 | BX61: 1636.123813 | BY61: 1498.177483 | BZ61: 1366.557577 | CA61: 1242.373005 | CB61: 1126.483035 | CC61: 1019.503277 | CD61: 921.8185082 | CE61: 833.6010839 | CF61: 754.8335792 | CG61: 685.3343083 | CH61: 624.7844041 | CI61: 572.7552593 | CJ61: 528.7352799 | CK61: 492.1550858 | CL61: 462.4104858 | CM61: 438.8827573 | CN61: 420.9559464 | CO61: 408.0310773 | CP61: 399.5373094 | CQ61: 394.9401965 | CR61: 393.7472966 | CS61: 395.5114421 | CT61: 399.8320166 | CU61: 406.3545952 | CV61: 414.7693006 | CW61: 424.8082052 | CX61: 436.2420764 | CY61: 448.8767238 | CZ61: 462.5491646 | DA61: 477.123781 | DB61: 492.4886034 | DC61: 508.5518141 | DD61: 525.2385371 | DE61: 542.4879497 | DF61: 560.2507301 | DG61: 578.4868393 | DH61: 597.1636217 | DI61: 616.254202 | DJ61: 635.7361493 | DK61: 655.5903773 | DL61: 675.8002504 | DM61: 696.3508648 | DN61: 717.2284773 | DO61: 738.4200555 | DP61: 759.9129287 | DQ61: 781.694519 | DR61: 803.7521374 | DS61: 826.0728305 | DT61: 848.6432679 | DU61: 871.4496602 | DV61: 894.4777018 | DW61: 917.7125318 | DX61: 941.1387098 | DY61: 964.7402017 | DZ61: 988.5003754 | EA61: 1012.402002 | EB61: 1036.427264 | EC61: 1060.557763 | ED61: 1084.774539 | EE61: 1109.058084 | EF61: 1133.388367 | EG61: 1157.74485 | EH61: 1182.106517 | EI61: 1206.451901 | EJ61: 1230.759107 | EK61: 1255.005848 | EL61: 1279.169474 | EM61: 1303.227001 | EN61: 1327.155151 | EO61: 1350.930385 | EP61: 1374.52894 | EQ61: 1397.926867 | ER61: 1421.100068 | ES61: 1444.024342 | ET61: 1466.675418 | EU61: 1489.029004 | EV61: 1511.060826 | EW61: 1532.746671 | EX61: 1554.06243 | EY61: 1574.984145 | EZ61: 1595.488053 | FA61: 1615.550626 | FB61: 1635.148621 | FC61: 1654.259123 | FD61: 1672.859586 | FE61: 1690.927883 | FF61: 1708.442344 | FG61: 1725.381804 | FH61: 1741.725641 | FI61: 1757.453821 | FJ61: 1772.546939 | FK61: 1786.986255 | FL61: 1800.753736 | FM61: 1813.832095 | FN61: 1826.204823 | FO61: 1837.856224 | FP61: 1848.771454 | FQ61: 1858.936546 | FR61: 1868.33844 | FS61: 1876.965017 | FT61: 1884.805118 | FU61: 1891.848573 | FV61: 1898.08622 | FW61: 1903.509927 | FX61: 1908.112607 | FY61: 1911.888237 | FZ61: 1914.831867 | GA61: 1916.939635 | GB61: 1918.208773 | GC61: 1918.637612 | GD61: 1918.225588 | GE61: 1916.973244 | GF61: 1914.882225 | GG61: 1911.955278 | GH61: 1908.196243 | GI61: 1903.610049 | GJ61: 1898.202697 | GK61: 1891.981252 | GL61: 1884.953826 | GM61: 1877.129562 | GN61: 1868.518608 | GO61: 1859.132105 | GP61: 1848.982153 | GQ61: 1838.081792 | GR61: 1826.444971 | GS61: 1814.086519 | GT61: 1801.022113 | GU61: 1787.268247 | GV61: 1772.842194 | GW61: 1757.761971 | GX61: 1742.046304 | GY61: 1725.714585 | GZ61: 1708.786838 | HA61: 1691.283671 | HB61: 1673.22624 | HC61: 1654.636205 | HD61: 1635.535685 | HE61: 1615.947216 | HF61: 1595.893707 | HG61: 1575.398397 | HH61: 1554.484805 | HI61: 1533.176693 | HJ61: 1511.498014 | HK61: 1489.472875 | HL61: 1467.125486 | HM61: 1444.480121 | HN61: 1421.561074 | HO61: 1398.392613 | HP61: 1374.998945 | HQ61: 1351.404167 | HR61: 1327.632233 | HS61: 1303.706909 | HT61: 1279.65174 | HU61: 1255.490009 | HV61: 1231.244705 | HW61: 1206.938486 | HX61: 1182.593646 | HY61: 1158.232086 | HZ61: 1133.87528 | IA61: 1109.544253 | IB61: 1085.259545 | IC61: 1061.041194 | ID61: 1036.908708 | IE61: 1012.881044 | IF61: 988.9765869 | IG61: 965.2131325 | IH61: 941.6078694 | II61: 918.177364 | IJ61: 894.9375474 | IK61: 871.9037032 | IL61: 849.0904577 | IM61: 826.5117716 | IN61: 804.1809329 | IO61: 782.1105522 | IP61: 760.3125588 | IQ61: 738.7981992 | IR61: 717.5780364 | IS61: 696.6619511 | IT61: 676.0591442 | IU61: 655.7781407 | IV61: 635.8267951 | IW61: 616.2122977 | IX61: 596.9411825 | IY61: 578.0193365 | IZ61: 559.4520092 | JA61: 541.2438241 | JB61: 523.3987909 | JC61: 505.9203182 | JD61: 488.8112278 | JE61: 472.0737694 | JF61: 455.7096358 | JG61: 439.7199792 | JH61: 424.1054282 | JI61: 408.8661046 | JJ61: 394.0016417 | JK61: 379.5112019 | JL61: 365.3934958 | JM61: 351.6468009 | JN61: 338.2689803 | JO61: 325.2575026 | JP61: 312.6094605 | JQ61: 300.321591 | JR61: 288.3902944 | JS61: 276.8116537 | JT61: 265.5814542 | JU61: 254.6952025 | JV61: 244.1481454 | JW61: 233.9352891 | JX61: 224.0514173 | JY61: 214.4911097 | JZ61: 205.24876 | KA61: 196.3185931 | KB61: 187.6946827 | KC61: 179.3709676 | KD61: 171.3412684 | KE61: 163.5993032 | KF61: 156.1387027 | KG61: 148.9530255 | KH61: 142.0357721 | KI61: 135.3803988 | KJ61: 128.9803309 | KK61: 122.8289756 | KL61: 116.9197339 | KM61: 111.2460121 | KN61: 105.8012333 | KO61: 100.5788473 | KP61: 95.57234084 | KQ61: 90.77524662 | KR61: 86.18115237 | KS61: 81.78370883 | KT61: 77.57663749 | KU61: 73.55373767 | KV61: 69.70889311 | KW61: 66.03607805 | KX61: 62.52936276 | KY61: 59.18291861 | KZ61: 55.99102264 | LA61: 52.94806166 | LB61: 50.0485359 | LC61: 47.28706225 | LD61: 44.65837701 | LE61: 42.15733829 | LF61: 39.77892799 | LG61: 37.51825341 | LH61: 35.37054854 | LI61: 33.33117493 | LJ61: 31.39562231 | LK61: 29.55950887 | LL61: 27.81858127 | LM61: 26.16871432 | LN61: 24.60591049 | LO61: 23.12629913 | LP61: 21.72613546 | LQ61: 20.40179937 | LR61: 19.14979402 | LS61: 17.96674429 | LT61: 16.84939501 | LU61: 15.7946091 | LV61: 14.79936554 | LW61: 13.86075726 | LX61: 12.97598885 | LY61: 12.14237425 | LZ61: 11.35733434 | MA61: 10.6183944 | MB61: 9.923181588 | MC61: 9.269422346 | MD61: 8.65493972 | ME61: 8.077650709 | MF61: 7.535563554 | MG61: 7.026775033 | MH61: 6.549467739 | MI61: 6.101907365 | MJ61: 5.682439995 | MK61: 5.289489407 | ML61: 4.921554404 | MM61: 4.577206162 | MN61: 4.255085616 | MO61: 3.953900873 | MP61: 3.672424672 | MQ61: 3.409491883 | MR61: 3.163997055 | MS61: 2.934892007 | MT61: 2.721183479 | MU61: 2.521930831 | MV61: 2.336243798 | MW61: 2.163280309 | MX61: 2.002244356 | MY61: 1.852383928 | MZ61: 1.712989005 | NA61: 1.583389614 | NB61: 1.462953943 | NC61: 1.351086519 | ND61: 1.247226451 | NE61: 1.150845728 | NF61: 1.061447583 | NG61: 0.9785649137 | NH61: 0.9017587665 | NI61: 0.8306168769 | NJ61: 0.7647522693 | NK61: 0.7038019128 | NL61: 0.6474254339 | NM61: 0.5953038831 | NN61: 0.5471385554 | NO61: 0.5026498632 | NP61: 0.4615762592 | NQ61: 0.4236732096 | NR61: 0.3887122145 | NS61: 0.3564798757 | NT61: 0.3267770087 | NU61: 0.2994177989 | NV61: 0.2742289994 | NW61: 0.25104917 | NX61: 0.2297279547 | NY61: 0.2101253971 | NZ61: 0.1921112924 | OA61: 0.1755645733 | OB61: 0.16037273 | OC61: 0.1464312616 | OD61: 0.1336431586 | OE61: 0.1219184138 | OF61: 0.1111735622
A62: =IF(Principal!M20="","",MATCH(Principal!M20,Datos!A:A,0)) -> 24 | B62: =IF(A62="","",INDIRECT("Datos!A"&Espectros!A10,TRUE)) -> Royal Blue (440-450) XT-E | C62: =IF(A62="","",INDIRECT("Datos!M"&Espectros!A10,TRUE)) -> 69.51964286 | D62: 5.284552846 | E62: 367.3802265 | F62: 0.002664011591 | G62: 0.003939379053 | H62: 0.005787141622 | I62: 0.008445884298 | J62: 0.01224533929 | K62: 0.01763766931 | L62: 0.02523807618 | M62: 0.03587698804 | N62: 0.05066643913 | O62: 0.07108360875 | P62: 0.09907480602 | Q62: 0.1371834345 | R62: 0.1887056008 | S62: 0.2578769869 | T62: 0.3500943177 | U62: 0.472174158 | V62: 0.6326507763 | W62: 0.8421133531 | X62: 1.113580816 | Y62: 1.462909988 | Z62: 1.90922955 | AA62: 2.475388495 | AB62: 3.188403421 | AC62: 4.079884259 | AD62: 5.186413001 | AE62: 6.549845104 | AF62: 8.217498621 | AG62: 10.24219236 | AH62: 12.68209185 | AI62: 15.60032114 | AJ62: 19.06429987 | AK62: 23.14476954 | AL62: 27.91447979 | AM62: 33.44651671 | AN62: 39.81226891 | AO62: 47.07904459 | AP62: 55.307373 | AQ62: 64.54804582 | AR62: 74.83897737 | AS62: 86.20198534 | AT62: 98.63961535 | AU62: 112.1321501 | AV62: 126.6349571 | AW62: 142.0763342 | AX62: 158.3560123 | AY62: 175.3444598 | AZ62: 192.883118 | BA62: 210.7856617 | BB62: 228.8403434 | BC62: 246.8134338 | BD62: 264.4537171 | BE62: 281.4979491 | BF62: 297.6771317 | BG62: 312.7234061 | BH62: 326.3773267 | BI62: 338.3952452 | BJ62: 348.5565122 | BK62: 356.6702025 | BL62: 362.581076 | BM62: 366.1745163 | BN62: 367.3802265 | BO62: 366.1745163 | BP62: 362.581076 | BQ62: 356.6702025 | BR62: 348.5565122 | BS62: 338.3952452 | BT62: 326.3773267 | BU62: 312.7234061 | BV62: 297.6771317 | BW62: 281.4979491 | BX62: 264.4537171 | BY62: 246.8134338 | BZ62: 228.8403434 | CA62: 210.7856617 | CB62: 192.883118 | CC62: 175.3444598 | CD62: 158.3560123 | CE62: 142.0763342 | CF62: 126.6349571 | CG62: 112.1321501 | CH62: 98.63961535 | CI62: 86.20198534 | CJ62: 74.83897737 | CK62: 64.54804582 | CL62: 55.307373 | CM62: 47.07904459 | CN62: 39.81226891 | CO62: 33.44651671 | CP62: 27.91447979 | CQ62: 23.14476954 | CR62: 19.06429987 | CS62: 15.60032114 | CT62: 12.68209185 | CU62: 10.24219236 | CV62: 8.217498621 | CW62: 6.549845104 | CX62: 5.186413001 | CY62: 4.079884259 | CZ62: 3.188403421 | DA62: 2.475388495 | DB62: 1.90922955 | DC62: 1.462909988 | DD62: 1.113580816 | DE62: 0.8421133531 | DF62: 0.6326507763 | DG62: 0.472174158 | DH62: 0.3500943177 | DI62: 0.2578769869 | DJ62: 0.1887056008 | DK62: 0.1371834345 | DL62: 0.09907480602 | DM62: 0.07108360875 | DN62: 0.05066643913 | DO62: 0.03587698804 | DP62: 0.02523807618 | DQ62: 0.01763766931 | DR62: 0.01224533929 | DS62: 0.008445884298 | DT62: 0.005787141622 | DU62: 0.003939379053 | DV62: 0.002664011591 | DW62: 0.00178973663 | DX62: 0.001194501836 | DY62: 0.0007920073175 | DZ62: 0.0005216944839 | EA62: 0.0003413877815 | EB62: 0.0002219342755 | EC62: 0.0001433327602 | ED62: 9.196259694e-05 | EE62: 5.861674081e-05 | EF62: 3.711733492e-05 | EG62: 2.334944607e-05 | EH62: 1.459220951e-05 | EI62: 9.059624731e-06 | EJ62: 5.587840987e-06 | EK62: 3.423911629e-06 | EL62: 2.084230434e-06 | EM62: 1.2604151e-06 | EN62: 7.572270846e-07 | EO62: 4.51942683e-07 | EP62: 2.679694331e-07 | EQ62: 1.578453649e-07 | ER62: 9.23683291e-08 | ES62: 5.369811237e-08 | ET62: 3.101270366e-08 | EU62: 1.779364481e-08 | EV62: 1.014226335e-08 | EW62: 5.743141633e-09 | EX62: 3.230790881e-09 | EY62: 1.805563838e-09 | EZ62: 1.002447243e-09 | FA62: 5.529105558e-10 | FB62: 3.029653176e-10 | FC62: 1.649208735e-10 | FD62: 8.918729986e-11 | FE62: 4.791539618e-11 | FF62: 2.557359769e-11 | FG62: 1.355979901e-11 | FH62: 7.142649735e-12 | FI62: 3.73774899e-12 | FJ62: 1.943146703e-12 | FK62: 1.003565505e-12 | FL62: 5.14909066e-13 | FM62: 2.624581297e-13 | FN62: 1.329028208e-13 | FO62: 6.685794842e-14 | FP62: 3.341308465e-14 | FQ62: 1.658917444e-14 | FR62: 8.182342508e-15 | FS62: 4.009361482e-15 | FT62: 1.951719722e-15 | FU62: 9.438530109e-16 | FV62: 4.534568412e-16 | FW62: 2.164273935e-16 | FX62: 1.026202759e-16 | FY62: 4.83391272e-17 | FZ62: 2.262085986e-17 | GA62: 1.051632724e-17 | GB62: 4.85695134e-18 | GC62: 2.228476666e-18 | GD62: 1.015774036e-18 | GE62: 4.599713714e-19 | GF62: 2.069231945e-19 | GG62: 9.247667896e-20 | GH62: 4.105820448e-20 | GI62: 1.810974602e-20 | GJ62: 7.935411343e-21 | GK62: 3.454388715e-21 | GL62: 1.49388665e-21 | GM62: 6.418133769e-22 | GN62: 2.739331305e-22 | GO62: 1.161515567e-22 | GP62: 4.892718019e-23 | GQ62: 2.047481644e-23 | GR62: 8.512057034e-24 | GS62: 3.515553495e-24 | GT62: 1.442439394e-24 | GU62: 5.879577465e-25 | GV62: 2.380890031e-25 | GW62: 9.578052966e-26 | GX62: 3.827893181e-26 | GY62: 1.519802182e-26 | GZ62: 5.994583245e-27 | HA62: 2.348959913e-27 | HB62: 9.14401422e-28 | HC62: 3.536249169e-28 | HD62: 1.358605918e-28 | HE62: 5.185478327e-29 | HF62: 1.966205121e-29 | HG62: 7.406508069e-30 | HH62: 2.771678517e-30 | HI62: 1.030426191e-30 | HJ62: 3.805709202e-31 | HK62: 1.396365113e-31 | HL62: 5.089874298e-32 | HM62: 1.843146272e-32 | HN62: 6.630667116e-33 | HO62: 2.369732509e-33 | HP62: 8.413682231e-34 | HQ62: 2.967683367e-34 | HR62: 1.039905075e-34 | HS62: 3.620049513e-35 | HT62: 1.25192987e-35 | HU62: 4.301205282e-36 | HV62: 1.468064096e-36 | HW62: 4.977881365e-37 | HX62: 1.676828879e-37 | HY62: 5.611482666e-38 | HZ62: 1.865568433e-38 | IA62: 6.161542112e-39 | IB62: 2.021679632e-39 | IC62: 6.589916752e-40 | ID62: 2.13398911e-40 | IE62: 6.865136036e-41 | IF62: 2.194071489e-41 | IG62: 6.966218277e-42 | IH62: 2.197293448e-42 | II62: 6.885313531e-43 | IJ62: 2.143404112e-43 | IK62: 6.628710861e-44 | IL62: 2.036567318e-44 | IM62: 6.21603058e-45 | IN62: 1.88483003e-45 | IO62: 5.677745486e-46 | IP62: 1.699121075e-46 | IQ62: 5.051465729e-47 | IR62: 1.491953106e-47 | IS62: 4.377615495e-48 | IT62: 1.2760413e-48 | IU62: 3.695187898e-49 | IV62: 1.063048308e-49 | IW62: 3.038184562e-50 | IX62: 8.626209123e-51 | IY62: 2.433159002e-51 | IZ62: 6.818136254e-52 | JA62: 1.898040782e-52 | JB62: 5.24916327e-53 | JC62: 1.442179444e-53 | JD62: 3.936345394e-54 | JE62: 1.067362091e-54 | JF62: 2.87524613e-55 | JG62: 7.69454527e-56 | JH62: 2.045669964e-56 | JI62: 5.40297373e-57 | JJ62: 1.41766893e-57 | JK62: 3.695400087e-58 | JL62: 9.569577985e-59 | JM62: 2.461890799e-59 | JN62: 6.292010844e-60 | JO62: 1.597551317e-60 | JP62: 4.029627027e-61 | JQ62: 1.009763253e-61 | JR62: 2.513731868e-62 | JS62: 6.216744488e-63 | JT62: 1.527396401e-63 | JU62: 3.72807968e-64 | JV62: 9.039892934e-65 | JW62: 2.177639902e-65 | JX62: 5.211389367e-66 | JY62: 1.238983884e-66 | JZ62: 2.926324411e-67 | KA62: 6.866318756e-68 | KB62: 1.600553257e-68 | KC62: 3.706474155e-69 | KD62: 8.52700467e-70 | KE62: 1.948842327e-70 | KF62: 4.424880882e-71 | KG62: 9.980933051e-72 | KH62: 2.236584851e-72 | KI62: 4.979024845e-73 | KJ62: 1.101153556e-73 | KK62: 2.419335823e-74 | KL62: 5.280670925e-75 | KM62: 1.14505601e-75 | KN62: 2.466658544e-76 | KO62: 5.278809835e-77 | KP62: 1.122296678e-77 | KQ62: 2.370412974e-78 | KR62: 4.973762362e-79 | KS62: 1.036789823e-79 | KT62: 2.147044756e-80 | KU62: 4.417088976e-81 | KV62: 9.027674162e-82 | KW62: 1.832990784e-82 | KX62: 3.697339796e-83 | KY62: 7.409060262e-84 | KZ62: 1.474964498e-84 | LA62: 2.91705545e-85 | LB62: 5.731291272e-86 | LC62: 1.118677631e-86 | LD62: 2.169212537e-87 | LE62: 4.178726386e-88 | LF62: 7.99706163e-89 | LG62: 1.52041319e-89 | LH62: 2.871689578e-90 | LI62: 5.388377741e-91 | LJ62: 1.004438273e-91 | LK62: 1.860086541e-92 | LL62: 3.422060833e-93 | LM62: 6.254419093e-94 | LN62: 1.13561445e-94 | LO62: 2.048422415e-95 | LP62: 3.670733088e-96 | LQ62: 6.534776999e-97 | LR62: 1.155722092e-97 | LS62: 2.030582953e-98 | LT62: 3.544318446e-99 | LU62: 6.145955508e-100 | LV62: 1.058743524e-100 | LW62: 1.811910743e-101 | LX62: 3.08054467e-102 | LY62: 5.203108708e-103 | LZ62: 8.730577392e-104 | MA62: 1.455350875e-104 | MB62: 2.410111495e-105 | MC62: 3.965073432e-106 | MD62: 6.480522359e-107 | ME62: 1.05223676e-107 | MF62: 1.697311699e-108 | MG62: 2.71990927e-109 | MH62: 4.330039994e-110 | MI62: 6.8481628e-111 | MJ62: 1.075971883e-111 | MK62: 1.67947076e-112 | ML62: 2.604285839e-113 | MM62: 4.011894738e-114 | MN62: 6.139812208e-115 | MO62: 9.334806593e-116 | MP62: 1.409938724e-116 | MQ62: 2.115630555e-117 | MR62: 3.153727033e-118 | MS62: 4.670388937e-119 | MT62: 6.87110642e-120 | MU62: 1.004257258e-120 | MV62: 1.458169335e-121 | MW62: 2.103369737e-122 | MX62: 3.014171498e-123 | MY62: 4.29106383e-124 | MZ62: 6.068853706e-125 | NA62: 8.526936728e-126 | NB62: 1.190211358e-126 | NC62: 1.650440294e-127 | ND62: 2.273632265e-128 | NE62: 3.111611066e-129 | NF62: 4.230532823e-130 | NG62: 5.714121999e-131 | NH62: 7.667408925e-132 | NI62: 1.022097725e-132 | NJ62: 1.353570545e-133 | NK62: 1.780795487e-134 | NL62: 2.327511716e-135 | NM62: 3.022138637e-136 | NN62: 3.898356645e-137 | NO62: 4.995666427e-138 | NP62: 6.359895401e-139 | NQ62: 8.043613461e-140 | NR62: 1.010641411e-140 | NS62: 1.26150119e-141 | NT62: 1.564310346e-142 | NU62: 1.927093776e-143 | NV62: 2.358454259e-144 | NW62: 2.867455882e-145 | NX62: 3.463464254e-146 | NY62: 4.1559408e-147 | NZ62: 4.954190172e-148 | OA62: 5.867061927e-149 | OB62: 6.902610203e-150 | OC62: 8.067717896e-151 | OD62: 9.367694877e-152 | OE62: 1.080586275e-152 | OF62: 1.238314151e-153
A63: =IF(Principal!M21="","",MATCH(Principal!M21,Datos!A:A,0)) -> 10 | B63: =IF(A63="","",INDIRECT("Datos!A"&Espectros!A11,TRUE)) -> Green (520-525) XP-E | C63: =IF(A63="","",INDIRECT("Datos!M"&Espectros!A11,TRUE)) -> 248.5714286 | D63: 2.53164557 | E63: 629.2947559 | F63: 4.692268938e-22 | G63: 1.099378146e-21 | H63: 2.558915715e-21 | I63: 5.917108614e-21 | J63: 1.359276407e-20 | K63: 3.102063579e-20 | L63: 7.032962283e-20 | M63: 1.584056106e-19 | N63: 3.544439025e-19 | O63: 7.878964381e-19 | P63: 1.739944689e-18 | Q63: 3.817213281e-18 | R63: 8.319593129e-18 | S63: 1.801367931e-17 | T63: 3.874783524e-17 | U63: 8.280129701e-17 | V63: 1.757808309e-16 | W63: 3.707238821e-16 | X63: 7.767375368e-16 | Y63: 1.616749371e-15 | Z63: 3.343149406e-15 | AA63: 6.867735314e-15 | AB63: 1.401573863e-14 | AC63: 2.841601079e-14 | AD63: 5.723410633e-14 | AE63: 1.145226479e-13 | AF63: 2.276525576e-13 | AG63: 4.495710785e-13 | AH63: 8.820005858e-13 | AI63: 1.719032393e-12 | AJ63: 3.328464468e-12 | AK63: 6.4024835e-12 | AL63: 1.223482294e-11 | AM63: 2.322691803e-11 | AN63: 4.380565353e-11 | AO63: 8.207547757e-11 | AP63: 1.527711511e-10 | AQ63: 2.824970789e-10 | AR63: 5.189568514e-10 | AS63: 9.470942859e-10 | AT63: 1.717116893e-09 | AU63: 3.092795346e-09 | AV63: 5.534102306e-09 | AW63: 9.837570591e-09 | AX63: 1.737293593e-08 | AY63: 3.047917814e-08 | AZ63: 5.312243385e-08 | BA63: 9.198083642e-08 | BB63: 1.582200154e-07 | BC63: 2.703772638e-07 | BD63: 4.590115277e-07 | BE63: 7.741438975e-07 | BF63: 1.297073166e-06 | BG63: 2.158996471e-06 | BH63: 3.570130311e-06 | BI63: 5.864903655e-06 | BJ63: 9.57155224e-06 | BK63: 1.551845723e-05 | BL63: 2.499535973e-05 | BM63: 3.999584873e-05 | BN63: 6.357920904e-05 | BO63: 0.0001004060778 | BP63: 0.0001575250267 | BQ63: 0.0002455182611 | BR63: =IF($E63="","",$E63*BU11) -> 0.0003801567577 | BS63: 0.0005847716483 | BT63: 0.0008936234975 | BU63: 0.001356649094 | BV63: 0.002046091996 | BW63: 0.003065684527 | BX63: 0.004563251919 | BY63: 0.006747860665 | BZ63: 0.00991293927 | CA63: 0.01446716593 | CB63: 0.02097534718 | CC63: 0.03021200382 | CD63: 0.04323093036 | CE63: 0.06145458793 | CF63: 0.08678780768 | CG63: 0.1217608869 | CH63: 0.1697077071 | CI63: 0.2349849276 | CJ63: 0.3232385318 | CK63: 0.4417239247 | CL63: 0.5996852914 | CM63: 0.8087988958 | CN63: 1.083683299 | CO63: 1.442476973 | CP63: 1.907480362 | CQ63: 2.505855017 | CR63: 3.270366931 | CS63: 4.240154712 | CT63: 5.461495769 | CU63: 6.988535538 | CV63: 8.883936227 | CW63: 11.21939309 | CX63: 14.07595841 | CY63: 17.54410683 | CZ63: 21.72347155 | DA63: 26.7221793 | DB63: 32.6557149 | DC63: 39.6452532 | DD63: 47.81540889 | DE63: 57.29137295 | DF63: 68.19542872 | DG63: 80.64287008 | DH63: 94.7373791 | DI63: 110.5659581 | DJ63: 128.1935515 | DK63: 147.6575314 | DL63: 168.9622581 | DM63: 192.0739576 | DN63: 216.9161774 | DO63: 243.3660976 | DP63: 271.2519643 | DQ63: 300.3518999 | DR63: 330.3943051 | DS63: 361.0600188 | DT63: 391.9863337 | DU63: 422.7728887 | DV63: 452.9893699 | DW63: 482.1848602 | DX63: 509.8985858 | DY63: 535.6717245 | DZ63: 559.0598659 | EA63: 579.6456582 | EB63: 597.0511461 | EC63: 610.9492886 | ED63: =IF($E63="","",$E63*EG11) -> 621.0741713 | EE63: 627.2294648 | EF63: 629.2947559 | EG63: 627.2294648 | EH63: 621.0741713 | EI63: 610.9492886 | EJ63: 597.0511461 | EK63: 579.6456582 | EL63: 559.0598659 | EM63: 535.6717245 | EN63: 509.8985858 | EO63: 482.1848602 | EP63: 452.9893699 | EQ63: 422.7728887 | ER63: 391.9863337 | ES63: 361.0600188 | ET63: 330.3943051 | EU63: 300.3518999 | EV63: 271.2519643 | EW63: 243.3660976 | EX63: 216.9161774 | EY63: 192.0739576 | EZ63: 168.9622581 | FA63: 147.6575314 | FB63: 128.1935515 | FC63: 110.5659581 | FD63: 94.7373791 | FE63: 80.64287008 | FF63: 68.19542872 | FG63: 57.29137295 | FH63: 47.81540889 | FI63: 39.6452532 | FJ63: 32.6557149 | FK63: 26.7221793 | FL63: 21.72347155 | FM63: 17.54410683 | FN63: 14.07595841 | FO63: 11.21939309 | FP63: 8.883936227 | FQ63: 6.988535538 | FR63: 5.461495769 | FS63: 4.240154712 | FT63: 3.270366931 | FU63: 2.505855017 | FV63: 1.907480362 | FW63: 1.442476973 | FX63: 1.083683299 | FY63: 0.8087988958 | FZ63: 0.5996852914 | GA63: 0.4417239247 | GB63: 0.3232385318 | GC63: 0.2349849276 | GD63: 0.1697077071 | GE63: 0.1217608869 | GF63: 0.08678780768 | GG63: 0.06145458793 | GH63: 0.04323093036 | GI63: 0.03021200382 | GJ63: 0.02097534718 | GK63: 0.01446716593 | GL63: 0.00991293927 | GM63: 0.006747860665 | GN63: 0.004563251919 | GO63: 0.003065684527 | GP63: =IF($E63="","",$E63*GS11) -> 0.002046091996 | GQ63: 0.001356649094 | GR63: 0.0008936234975 | GS63: 0.0005847716483 | GT63: 0.0003801567577 | GU63: 0.0002455182611 | GV63: 0.0001575250267 | GW63: 0.0001004060778 | GX63: 6.357920904e-05 | GY63: 3.999584873e-05 | GZ63: 2.499535973e-05 | HA63: 1.551845723e-05 | HB63: 9.57155224e-06 | HC63: 5.864903655e-06 | HD63: 3.570130311e-06 | HE63: 2.158996471e-06 | HF63: 1.297073166e-06 | HG63: 7.741438975e-07 | HH63: 4.590115277e-07 | HI63: 2.703772638e-07 | HJ63: 1.582200154e-07 | HK63: 9.198083642e-08 | HL63: 5.312243385e-08 | HM63: 3.047917814e-08 | HN63: 1.737293593e-08 | HO63: 9.837570591e-09 | HP63: 5.534102306e-09 | HQ63: 3.092795346e-09 | HR63: 1.717116893e-09 | HS63: 9.470942859e-10 | HT63: 5.189568514e-10 | HU63: 2.824970789e-10 | HV63: 1.527711511e-10 | HW63: 8.207547757e-11 | HX63: 4.380565353e-11 | HY63: 2.322691803e-11 | HZ63: 1.223482294e-11 | IA63: 6.4024835e-12 | IB63: 3.328464468e-12 | IC63: 1.719032393e-12 | ID63: 8.820005858e-13 | IE63: 4.495710785e-13 | IF63: 2.276525576e-13 | IG63: 1.145226479e-13 | IH63: 5.723410633e-14 | II63: 2.841601079e-14 | IJ63: 1.401573863e-14 | IK63: 6.867735314e-15 | IL63: 3.343149406e-15 | IM63: 1.616749371e-15 | IN63: 7.767375368e-16 | IO63: 3.707238821e-16 | IP63: 1.757808309e-16 | IQ63: 8.280129701e-17 | IR63: 3.874783524e-17 | IS63: 1.801367931e-17 | IT63: 8.319593129e-18 | IU63: 3.817213281e-18 | IV63: 1.739944689e-18 | IW63: 7.878964381e-19 | IX63: 3.544439025e-19 | IY63: 1.584056106e-19 | IZ63: 7.032962283e-20 | JA63: 3.102063579e-20 | JB63: =IF($E63="","",$E63*JE11) -> 1.359276407e-20 | JC63: 5.917108614e-21 | JD63: 2.558915715e-21 | JE63: 1.099378146e-21 | JF63: 4.692268938e-22 | JG63: 1.989588994e-22 | JH63: 8.380858765e-23 | JI63: 3.507182391e-23 | JJ63: 1.458051487e-23 | JK63: 6.021879293e-24 | JL63: 2.470790426e-24 | JM63: 1.007127493e-24 | JN63: 4.078285935e-25 | JO63: 1.640648589e-25 | JP63: 6.556893733e-26 | JQ63: 2.603307076e-26 | JR63: 1.02682712e-26 | JS63: 4.02359204e-27 | JT63: 1.56630101e-27 | JU63: 6.057329429e-28 | JV63: 2.327189973e-28 | JW63: 8.882335201e-29 | JX63: 3.367961807e-29 | JY63: 1.268679246e-29 | JZ63: 4.747677284e-30 | KA63: 1.765042732e-30 | KB63: 6.518894243e-31 | KC63: 2.39186864e-31 | KD63: 8.718572675e-32 | KE63: 3.157171234e-32 | KF63: 1.135783514e-32 | KG63: 4.059173938e-33 | KH63: 1.441200621e-33 | KI63: 5.083418881e-34 | KJ63: 1.781279348e-34 | KK63: 6.200873129e-35 | KL63: 2.14446191e-35 | KM63: 7.36764184e-36 | KN63: 2.514683617e-36 | KO63: 8.526737186e-37 | KP63: 2.872282023e-37 | KQ63: 9.612048661e-38 | KR63: 3.195578713e-38 | KS63: 1.055425921e-38 | KT63: 3.462985482e-39 | KU63: 1.128803282e-39 | KV63: 3.655363189e-40 | KW63: 1.17594628e-40 | KX63: 3.758279794e-41 | KY63: 1.193260909e-41 | KZ63: 3.763798769e-42 | LA63: 1.179402533e-42 | LB63: 3.67149038e-43 | LC63: 1.135448422e-43 | LD63: 3.48848697e-44 | LE63: 1.064759387e-44 | LF63: 3.228572384e-45 | LG63: 9.7255519e-46 | LH63: 2.910466882e-46 | LI63: 8.652781678e-47 | LJ63: 2.555603699e-47 | LK63: 7.498526801e-48 | LL63: 2.18576298e-48 | LM63: 6.329579543e-49 | LN63: =IF($E63="","",$E63*LQ11) -> 1.82092197e-49 | LO63: 5.204182137e-50 | LP63: 1.477604883e-50 | LQ63: 4.167818761e-51 | LR63: 1.16789557e-51 | LS63: 3.251201411e-52 | LT63: 8.99142273e-53 | LU63: 2.47034515e-53 | LV63: 6.742664235e-54 | LW63: 1.828311156e-54 | LX63: 4.925080832e-55 | LY63: 1.318017857e-55 | LZ63: 3.504079119e-56 | MA63: 9.254888503e-57 | MB63: 2.42836048e-57 | MC63: 6.329943007e-58 | MD63: 1.639196889e-58 | ME63: 4.217034172e-59 | MF63: 1.077774236e-59 | MG63: 2.736485509e-60 | MH63: 6.902448672e-61 | MI63: 1.729648669e-61 | MJ63: 4.305834032e-62 | MK63: 1.064881674e-62 | ML63: 2.616315403e-63 | MM63: 6.385920697e-64 | MN63: 1.548465815e-64 | MO63: 3.730133719e-65 | MP63: 8.926718869e-66 | MQ63: 2.122286407e-66 | MR63: 5.012574094e-67 | MS63: 1.176148871e-67 | MT63: 2.741627607e-68 | MU63: 6.348912055e-69 | MV63: 1.460611904e-69 | MW63: 3.338220644e-70 | MX63: 7.579488861e-71 | MY63: 1.709658924e-71 | MZ63: 3.831101993e-72 | NA63: 8.528695881e-73 | NB63: 1.8861934e-73 | NC63: 4.144140693e-74 | ND63: 9.045392977e-75 | NE63: 1.961395009e-75 | NF63: 4.225200963e-76 | NG63: 9.04220507e-77 | NH63: 1.92240998e-77 | NI63: 4.060339523e-78 | NJ63: 8.519681643e-79 | NK63: 1.775943155e-79 | NL63: 3.677726531e-80 | NM63: 7.566141912e-81 | NN63: 1.546372831e-81 | NO63: 3.139775647e-82 | NP63: 6.333265584e-83 | NQ63: 1.269116418e-83 | NR63: 2.526503488e-84 | NS63: 4.99669706e-85 | NT63: 9.817271812e-86 | NU63: 1.916210825e-86 | NV63: 3.715698275e-87 | NW63: 7.157844683e-88 | NX63: 1.369836639e-88 | NY63: 2.604353686e-89 | NZ63: =IF($E63="","",$E63*OC11) -> 4.918988725e-90 | OA63: 9.22988667e-91 | OB63: 1.720527379e-91 | OC63: 3.186188643e-92 | OD63: 5.861733379e-93 | OE63: 1.071335051e-93 | OF63: 1.945222325e-94
